Workbook

Sheet COVER
C2: COVER
C4: NAVIGATION
C6: COMMENTS
C9: Bonneville Power Administration
C10: 6P Energy Conservation Standards Savings Model
C11: SMALL ELECTRIC MOTORS
C13: Product Description
C14: DOE defines the term “small electric motor” to mean “a NEMA general-purpose alternating current single-speed induction motor built in a two-digit frame number series in accordance with NEMA Standards Publication MG1–1987.” (42 U.S.C. 6311(13)(G)) Such motors include single-phase, capacitor-start induction-run (CSIR), capacitor-start capacitor-run (CSCR), and polyphase motors. Small electric motors are included in other covered products are excluded from coverage under this final rule and this is reflected in the national shipments estimates. The DOE accounts for the following applications that contain small electric motors: Industrial fans and blowers, air compressors, pumps (biggest groups), conveyors, and a small bucket of miscellaneous applications. While DOE is currently in rulemakings for the bolded categories, those products are not yet covered, meaning that any small electric motors such products will be subject to standards from now until at least 2020 (and more likely later), when those standards take effect. Based on this, counting savings from this rule is reasonable. LBNL has, to their best of their ability, accounted for the distinction between general and definite motors.
C16: Standard Compliance Year
C17: 2015, per DOE Final Rule published March 9, 2010
C19: Major changes from previous rulemaking
C20: No previous standards exist for small electric motors.
C22: 6P Baseline
C23: The Northwest Council did not model small electric motors in the 6P.
C25: Prepared By:
C26: Navigant Consulting | D26: Cadeo Group
C27: One Market Street | Spear Street Tower, Suite 1200 | D27: 840 First Street, Suite 300
C28: San Francisco, CA 94105 | D28: Washington, DC 20002

Sheet Definitions
C2: Definitions
C4: NAVIGATION
C6: COMMENTS
C9: Category | D9: Definition
C10: Average Megawatt (aMW) | D10: The average number of megawatts over a specified time period
C11: Adjustment to 6P Baseline | D11: Adjustment to reconcile the 6P projected energy consumption and the modeled consumption calculated using best available data.
C12: Department of Energy Aggregate Lifecycle Savings | D12: Sum of 'Total First Year Savings'. This accounts for the cumulative savings in accordance with DOE Carbon Accounting Practices.
C13: Department of Energy Notice of Proposed Rulemaking (DOE NOPR) | D13: Federal Register notice detailing analyses conducted by the DOE to establish proposed energy conservation standards.
C14: Efficiency Level (EL) | D14: The discrete efficiency ratings of a product. Each efficiency level is associated with a different UEC.
C15: Efficiency Level Distribution | D15: The mix of various equipment efficiencies shipped in a given year.
C16: Incremental Savings | D16: Savings due to the higher standards for units installed in a particular year. First year savings are highest following the standards compliance year while the stock turns over, after which first year savings are only attributed to shipments associated with new construction.
C17: Governmental Regulatory Impact Model (GRIM) | D17: The industry cash flow model used by DOE to assess impacts on manufacturers due to proposed energy conservation standards
C18: Installed Unit Energy Consumption (Installed UEC) | D18: The average annual unit energy consumption of all installed units in a given year.
C19: Market Unit Energy Consumption (Market UEC) | D19: The average annual unit energy consumption of units shipped in a given year.
C20: National Impact Analysis (NIA) | D20: The energy impact analysis used by DOE to calculate energy savings associated with each standard.
C21: Pre-case | D21: The case representing 6P baseline assumptions where energy consumption due to the product accounts for shipment and shipment UEC by year, without the affect of standards announced following the development of the 6P.
C22: Post-case | D22: The case in which standards are implemented. If the 6P already captured the analyzed standard, the post-case will be the same as the pre-case.
C23: Product Class | D23: Product classificiation determined by product configuration, size, application, location, and other attributes that contribute to consumer utility. DOE is allowed to establish different standards for each product class.
C24: Product Class Distribution | D24: Market share/mix of each product class shipped in a given year.
C25: Product Lifetime | D25: The average time a given class of products stays in the field as part of the installed stock. Some products will last longer (delaying replacement) whereas others will fail and be retired earlier (accelerating replacement), but the lifetime represents the market average.
C26: Shipments | D26: Sales of products. This may be presented by product class, efficiency distribution, or delineated by other metrics. Shipments may be attributed to new construction and/or replacements and retrofits.
C27: Sixth Power Plan (6P) | D27: The Pacific Northwest Resource Plan published by the Northwest Power Conservation Council. The 6P timeframe is from 2010-2015.
C28: Sixth Power Plan Baseline (6P Baseline) | D28: The 6P assumes equipment efficiency and shipment units in the region. When available, the 6P assumptions are the baseline for each standard impact analysis.
C29: Standard Compliance Year | D29: The year when the appliance standard goes into effect.
C30: Stock | D30: All units installed in previous years which remain in operation.
C31: Technical Support Document (TSD) | D31: TSDs are published by the DOE as companion documents to Federal Register notices (e.g., ANOPRs/preliminary analyses and NOPRs). The TSDs include technical detail that supports the notices. The final rule TSD includes the discussion of the Manufacturer Impact Analysis (MIA) and National Impact Analysis (NIA).
C32: Cumulative Savings through 2034 | D32: The sum of incremental savings from 2010 through 2034
C33: Trial Standard Level (TSL) | D33: A proposed efficiency standard evaluated by DOE during the NOPR and Final Rule phase analyses. A TSL may specify different standard efficiency levels for each product class included in the rulemaking.

Sheet Comments
C2: Comments
C4: NAVIGATION
C7: Tab | D7: Comment
C8: Example | D8: Please use this space to document your comments as you review the model. We look forward to receiving your feedback. Thank you.

Sheet Navigation
C2: NAVIGATION
C4: COMMENTS
C7: INFORMATION TABS | E7: INPUT TABS | H7: UEC CALCULATIONS | L7: RESULTS | N7: CHARTS
C9: COVER | E9: PRODUCT CLASSES | H9: UEC DEVELOPMENT
C11: DEFINITIONS | E11: EFFICIENCY LEVELS
C13: COMMENTS | E13: PRODUCT SPECIFICATIONS | L13: SUMMARY RESULTS | N13: CHARTS - ALL
E15: CONSTANTS & MENUS
C17: NAVIGATION | E17: PRODUCT CLASS DISTRIBUTION
E19: EFFICIENCY DISTRIBUTION | H19: UEC | L19: Results
E21: STOCK MODEL - Polyphase | H21: UEC - Polyphase | L21: RESULTS - Polyphase
E23: STOCK MODEL - CSIR | H23: UEC - CSIR | L23: RESULTS - CSIR
E25: STOCK MODEL - CSCR | H25: UEC - CSCR | L25: RESULTS - CSCR
L27: RESULTS - All Motors

Sheet Product Classes
C2: Selection of Product Classes for Model
C4: NAVIGATION
C6: COMMENTS
C9: All Product Classes | D9: Abbreviation | E9: 2010 DFR PCs | F9: Representative PCs | G9: 6P PCs | I9: Model PCs
C10: Polyphase Motors | D10: Polyphase | E10: 22 motor variations by horsepower and pole configuration | F10: 2010-DOE-PC14 | G10: N/A | I10: PC1
C11: Capacitor-Start, Induction-Run Motors | D11: CSIR | E11: 20 motor variations by horsepower and pole configuration | F11: 2010-DOE-PC30 | G11: N/A | I11: PC2
C12: Capacitor-Start, Capacitor-Run Motors | D12: CSCR | E12: 20 motor variations by horsepower and pole configuration | F12: 2010-DOE-PC53 | G12: N/A | I12: PC3
C14: Rationale | D14: Each of the product classes had 20 or more variations. The DOE modeled each of polyphase, CSIR and CSCR motors as one class respectively by choosing one representative motor variation from each product class. The representative product classes' specifications are shown in the 'Data' tab. As a result, Navigant only modeled the DOE representative product classes. The 6P did not include small electric motors.
C18: Sources | D18: DOE Small Electric Motors 2010 Direct Final Rule, Technical Support Document Chapter 3: Market and Technology Assessment, Table 3.5 Polyphase Small Electric Motors Product Classes (page 3-13)
D19: DOE Small Electric Motors 2010 Direct Final Rule, Technical Support Document Chapter 3: Market and Technology Assessment, Table 3.6 Capacitor-Start, Induction-Run Small Electric Motors Product Classes (page 3-14)
D20: DOE Small Electric Motors 2010 Direct Final Rule, Technical Support Document Chapter 3: Market and Technology Assessment, Table 3.7 Capacitor-Start, Capacitor-Run Small Electric Motors Product Classes (page 3-14)

Sheet Efficiency Levels
C2: Efficiency Levels and Standards for Each Product Class
C4: NAVIGATION
C6: COMMENTS
C9: PC1 | D9: =OFFSET('Product Classes'!$C$9,MATCH(C9,'Product Classes'!$I$10:$I$12,0),0) -> Polyphase Motors
C11: Model ELs | D11: Full-Load Efficiency | E11: Unit Energy Consumption (kWh/year) | F11: Compliance Year | G11: Model Efficiency Levels | H11: Notes
C12: EL0 | D12: 0.753 | E12: 1934 | F12: - | G12: Baseline
C13: EL1 | D13: 0.773 | E13: 1883 | F13: - | G13: -
C14: EL2 | D14: 0.788 | E14: 1836 | F14: - | G14: -
C15: EL3 | D15: 0.805 | E15: 1775 | F15: - | G15: -
C16: EL4 | D16: 0.811 | E16: 1759 | F16: - | G16: -
C17: EL5 | D17: 0.835 | E17: 1678 | F17: 2015 | G17: - | H17: Also referred to as EL 4b in the DOE Final Rule TSD
C18: EL6 | D18: 0.852 | E18: 1643 | F18: - | G18: - | H18: Also referred to as EL 5 in the DOE Final Rule TSD
C19: EL7 | D19: 0.862 | E19: 1622 | F19: - | G19: - | H19: Also referred to as EL 6 in the DOE Final Rule TSD
C20: EL8 | D20: 0.877 | E20: 1594 | F20: - | G20: Maximum Available Technology | H20: Also referred to as EL 7 in the DOE Final Rule TSD
C22: Sources | D22: DOE Small Electric Motors 2010 Direct Final Rule, Technical Support Document Chapter 8: Life-Cycle Cost and Payback Period Analysis, Table 8.2.17 Average Annual Electricity Use by Efficiency Level for Small Electric Motors (page 8-19)
C27: PC2 | D27: =OFFSET('Product Classes'!$C$9,MATCH(C27,'Product Classes'!$I$10:$I$12,0),0) -> Capacitor-Start, Induction-Run Motors
C29: Model ELs | D29: Full-Load Efficiency | E29: Unit Energy Consumption (kWh/year) | F29: Compliance Year | G29: Model Efficiency Levels
C30: EL0 | D30: 0.579 | E30: 1265 | F30: - | G30: Baseline
C31: EL1 | D31: 0.611 | E31: 1182 | F31: - | G31: -
C32: EL2 | D32: 0.635 | E32: 1125 | F32: - | G32: -
C33: EL3 | D33: 0.657 | E33: 1071 | F33: - | G33: -
C34: EL4 | D34: 0.705 | E34: 979 | F34: - | G34: -
C35: EL5 | D35: 0.718 | E35: 953 | F35: - | G35: -
C36: EL6 | D36: 0.731 | E36: 920 | F36: - | G36: -
C37: EL7 | D37: 0.776 | E37: 858 | F37: 2015 | G37: -
C39: Sources | D39: DOE Small Electric Motors 2010 Direct Final Rule, Technical Support Document Chapter 8: Life-Cycle Cost and Payback Period Analysis, Table 8.2.17 Average Annual Electricity Use by Efficiency Level for Small Electric Motors (page 8-19)
C44: PC3 | D44: =OFFSET('Product Classes'!$C$9,MATCH(C44,'Product Classes'!$I$10:$I$12,0),0) -> Capacitor-Start, Capacitor-Run Motors
C46: Model ELs | D46: Full-Load Efficiency | E46: Unit Energy Consumption (kWh/year) | F46: Compliance Year | G46: Model Efficiency Levels
C47: EL0 | D47: 0.714 | E47: 2310 | F47: - | G47: Baseline
C48: EL1 | D48: 0.751 | E48: 2208 | F48: - | G48: -
C49: EL2 | D49: 0.795 | E49: 2036 | F49: - | G49: -
C50: EL3 | D50: 0.817 | E50: 1965 | F50: 2015 | G50: -
C51: EL4 | D51: 0.828 | E51: 1979 | F51: - | G51: -
C52: EL5 | D52: 0.84 | E52: 1959 | F52: - | G52: -
C53: EL6 | D53: 0.846 | E53: 1923 | F53: - | G53: -
C54: EL7 | D54: 0.867 | E54: 1873 | F54: - | G54: -
C55: EL8 | D55: 0.879 | E55: 1824 | F55: - | G55: Maximum Available Technology
C57: Sources | D57: DOE Small Electric Motors 2010 Direct Final Rule, Technical Support Document Chapter 8: Life-Cycle Cost and Payback Period Analysis, Table 8.2.17 Average Annual Electricity Use by Efficiency Level for Small Electric Motors (page 8-19)

Sheet Product Specifications
C2: Market and Usage Attributes
C4: NAVIGATION
C6: COMMENTS
C9: Constants
C10: Hours/Day | D10: 24
C11: Days/Week | D11: 7
C12: Days/Year | D12: 365.25
C13: kW/MW | D13: 1000
C15: Product Class Specifications
D16: Polyphase | E16: CSIR | F16: CSCR
C17: Horsepower | D17: 1 | E17: 0.5 | F17: 0.75
C18: Pole Configuration | D18: 4-pole | E18: 4-pole | F18: 4-pole
C19: Frame Series | D19: 56 | E19: 48 | F19: 56
C20: Lifetime | D20: 9 | E20: 7 | F20: 7
C22: Source | D22: 2010 DOE TSD Chapter 5: Engineering Analysis - Table 5.2.2 Representative Units Selected for the Final Rule
C24: Key Stock Model Assumptions
D25: Value | E25: Source
C26: Standard Compliance Year | D26: 2015 | E26: DOE Small Electric Motors 2010 Direct Final Rule, 10 CFR Part 431, (page 10874)
C27: Northwest Region Scaling Factor | D27: 0.04 | E27: Northwest Council Assumption and Regional Technical Forum Convention
C28: Shipment Growth Rate | D28: 0.01826201266 | E28: DOE Small Electric Motors 2010 Final Rule, Analytical Spreadsheets: Small Polyphase Electric Motors National Impact Analysis Spreadsheet, 'ShipmentDrivers' tab, cells AE12:AE14 (2010-2030 AAGR)

Sheet Constants & Menus
C2: CONSTANTS & MENUS
C4: NAVIGATION
C6: COMMENTS
C9: Hours/Day | D9: 24
C10: Days/Week | D10: 7
C11: Days/Year | D11: 365.25
C12: kW/MW | D12: 1000
C13: Standard Compliance Year | D13: 2015
D17: Building Type
D18: Large Off
D19: Medium Off
D20: Small Off
D21: Big Box
D22: Small Box
D23: High End
D24: Anchor
D25: K-12
D26: University
D27: Warehouse
D28: Supermarket
D29: MiniMart
D30: Restaurant
D31: Lodging
D32: Hospital
D33: OtherHealth
D34: Assembly
D35: Other
D36: TOTAL

Sheet Product Class Dist
C2: Product Class Distributions
C4: NAVIGATION
C6: COMMENTS
C9: PRE-Case Shipments | D9: =E9-1 -> 1981 | E9: =F9-1 -> 1982 | F9: 1983 | G9: 1984 | H9: =I9-1 -> 1985 | I9: 1986 | J9: 1987 | K9: 1988 | L9: =M9-1 -> 1989 | M9: 1990 | N9: =M9+1 -> 1991 | O9: =N9+1 -> 1992 | P9: =O9+1 -> 1993 | Q9: =P9+1 -> 1994 | R9: =Q9+1 -> 1995 | S9: =R9+1 -> 1996 | T9: =S9+1 -> 1997 | U9: =T9+1 -> 1998 | V9: =U9+1 -> 1999 | W9: =V9+1 -> 2000 | X9: =W9+1 -> 2001 | Y9: =X9+1 -> 2002 | Z9: =Y9+1 -> 2003 | AA9: =Z9+1 -> 2004 | AB9: =AA9+1 -> 2005 | AC9: =AB9+1 -> 2006 | AD9: =AC9+1 -> 2007 | AE9: =AD9+1 -> 2008 | AF9: =AE9+1 -> 2009 | AG9: =AF9+1 -> 2010 | AH9: =AG9+1 -> 2011 | AI9: =AH9+1 -> 2012 | AJ9: =AI9+1 -> 2013 | AK9: =AJ9+1 -> 2014 | AL9: =AK9+1 -> 2015 | AM9: =AL9+1 -> 2016 | AN9: =AM9+1 -> 2017 | AO9: =AN9+1 -> 2018 | AP9: =AO9+1 -> 2019 | AQ9: =AP9+1 -> 2020 | AR9: =AQ9+1 -> 2021 | AS9: =AR9+1 -> 2022 | AT9: =AS9+1 -> 2023 | AU9: =AT9+1 -> 2024 | AV9: =AU9+1 -> 2025 | AW9: =AV9+1 -> 2026 | AX9: =AW9+1 -> 2027 | AY9: =AX9+1 -> 2028 | AZ9: =AY9+1 -> 2029 | BA9: =AZ9+1 -> 2030 | BB9: =BA9+1 -> 2031 | BC9: =BB9+1 -> 2032 | BD9: =BC9+1 -> 2033 | BE9: =BD9+1 -> 2034
C10: ='Product Classes'!I10&" - "&OFFSET('Product Classes'!$C$9,MATCH('Product Classes'!I10,MODEL_PCS,0),0) -> PC1 - Polyphase Motors | D10: =$AE10/((1+ShipmentGrowthRate)^($AE$9-D$9)) -> 460101.4717 | E10: 468503.8506 | F10: 477059.6739 | G10: 485771.7437 | H10: 494642.9134 | I10: 503676.0886 | J10: 512874.2277 | K10: 522240.3433 | L10: 531777.5031 | M10: =$AE10/((1+ShipmentGrowthRate)^($AE$9-M$9)) -> 541488.8306 | N10: 551377.5065 | O10: 561446.7695 | P10: 571699.9175 | Q10: 582140.3086 | R10: 592771.3623 | S10: 603596.5604 | T10: 614619.4485 | U10: 625843.6366 | V10: 637272.801 | W10: =$AE10/((1+ShipmentGrowthRate)^($AE$9-W$9)) -> 648910.685 | X10: 660761.1001 | Y10: 672827.9277 | Z10: 685115.1199 | AA10: 697626.7009 | AB10: 710366.7685 | AC10: 723339.4954 | AD10: 736549.1305 | AE10: 750000 | AF10: =$AE10*(1+ShipmentGrowthRate)^(AF$9-$AE$9) -> 763696.5095 | AG10: 777643.1448 | AH10: 791844.4738 | AI10: 806305.1476 | AJ10: 821029.9024 | AK10: 836023.5609 | AL10: 851291.0337 | AM10: 866837.3214 | AN10: 882667.5155 | AO10: 898786.8009 | AP10: =$AE10*(1+ShipmentGrowthRate)^(AP$9-$AE$9) -> 915200.4568 | AQ10: 931913.8591 | AR10: 948932.4818 | AS10: 966261.8988 | AT10: 983907.7859 | AU10: 1001875.922 | AV10: 1020172.193 | AW10: 1038802.591 | AX10: 1057773.217 | AY10: 1077090.285 | AZ10: =$AE10*(1+ShipmentGrowthRate)^(AZ$9-$AE$9) -> 1096760.121 | BA10: 1116789.168 | BB10: 1137183.986 | BC10: 1157951.254 | BD10: 1179097.775 | BE10: 1200630.473
C11: ='Product Classes'!I11&" - "&OFFSET('Product Classes'!$C$9,MATCH('Product Classes'!I11,MODEL_PCS,0),0) -> PC2 - Capacitor-Start, Induction-Run Motors | D11: 1901752.75 | E11: 1936482.583 | F11: 1971846.652 | G11: 2007856.541 | H11: 2044524.042 | I11: 2081861.166 | J11: 2119880.141 | K11: 2158593.419 | L11: 2198013.679 | M11: 2238153.833 | N11: 2279027.027 | O11: 2320646.647 | P11: 2363026.326 | Q11: 2406179.942 | R11: 2450121.631 | S11: 2494865.783 | T11: 2540427.054 | U11: 2586820.365 | V11: 2634060.911 | W11: 2682164.165 | X11: 2731145.881 | Y11: 2781022.101 | Z11: 2831809.162 | AA11: 2883523.697 | AB11: 2936182.643 | AC11: 2989803.248 | AD11: 3044403.073 | AE11: 3100000 | AF11: 3156612.239 | AG11: 3214258.332 | AH11: 3272957.158 | AI11: 3332727.943 | AJ11: 3393590.263 | AK11: 3455564.052 | AL11: 3518669.606 | AM11: 3582927.595 | AN11: 3648359.064 | AO11: 3714985.444 | AP11: 3782828.555 | AQ11: 3851910.618 | AR11: 3922254.258 | AS11: 3993882.515 | AT11: 4066818.848 | AU11: 4141087.146 | AV11: 4216711.732 | AW11: 4293717.375 | AX11: 4372129.296 | AY11: 4451973.176 | AZ11: 4533275.167 | BA11: 4616061.895 | BB11: 4700360.476 | BC11: 4786198.519 | BD11: 4873604.137 | BE11: 4962605.957
C12: ='Product Classes'!I12&" - "&OFFSET('Product Classes'!$C$9,MATCH('Product Classes'!I12,MODEL_PCS,0),0) -> PC3 - Capacitor-Start, Capacitor-Run Motors | D12: 100092.25 | E12: 101920.1359 | F12: 103781.4027 | G12: 105676.66 | H12: 107606.5285 | I12: 109571.6403 | J12: 111572.639 | K12: 113610.18 | L12: 115684.9305 | M12: 117797.5702 | N12: 119948.7909 | O12: 122139.2972 | P12: 124369.8066 | Q12: 126641.0496 | R12: 128953.77 | S12: 131308.7254 | T12: 133706.687 | U12: 136148.4402 | V12: 138634.7848 | W12: 141166.535 | X12: 143744.52 | Y12: 146369.5843 | Z12: 149042.5875 | AA12: 151764.4051 | AB12: 154535.9286 | AC12: 157358.0657 | AD12: 160231.7407 | AE12: 163157.8947 | AF12: 166137.4863 | AG12: 169171.4912 | AH12: 172260.9031 | AI12: 175406.7339 | AJ12: 178610.0139 | AK12: 181871.7922 | AL12: 185193.1372 | AM12: 188575.1366 | AN12: 192018.8981 | AO12: 195525.5497 | AP12: 199096.2397 | AQ12: 202732.1378 | AR12: 206434.4346 | AS12: 210204.3429 | AT12: 214043.0973 | AU12: 217951.955 | AV12: 221932.1964 | AW12: 225985.125 | AX12: 230112.0682 | AY12: 234314.3777 | AZ12: 238593.4298 | BA12: 242950.6261 | BB12: 247387.3935 | BC12: 251905.1852 | BD12: 256505.4809 | BE12: 261189.7872
C13: Total | D13: =SUM(D10:D12) -> 2461946.472 | E13: 2506906.569 | F13: 2552687.729 | G13: 2599304.944 | H13: 2646773.484 | I13: 2695108.895 | J13: 2744327.008 | K13: 2794443.942 | L13: 2845476.113 | M13: =SUM(M10:M12) -> 2897440.234 | N13: =SUM(N10:N12) -> 2950353.324 | O13: 3004232.714 | P13: 3059096.05 | Q13: 3114961.3 | R13: 3171846.763 | S13: 3229771.069 | T13: 3288753.189 | U13: 3348812.442 | V13: 3409968.497 | W13: 3472241.385 | X13: 3535651.501 | Y13: 3600219.613 | Z13: 3665966.869 | AA13: 3732914.803 | AB13: 3801085.34 | AC13: 3870500.809 | AD13: 3941183.944 | AE13: 4013157.895 | AF13: 4086446.235 | AG13: 4161072.968 | AH13: 4237062.535 | AI13: 4314439.825 | AJ13: 4393230.18 | AK13: 4473459.405 | AL13: 4555153.777 | AM13: 4638340.053 | AN13: 4723045.478 | AO13: 4809297.794 | AP13: 4897125.251 | AQ13: 4986556.615 | AR13: 5077621.175 | AS13: 5170348.757 | AT13: 5264769.731 | AU13: 5360915.023 | AV13: 5458816.121 | AW13: 5558505.09 | AX13: 5660014.581 | AY13: 5763377.838 | AZ13: 5868628.718 | BA13: 5975801.69 | BB13: 6084931.856 | BC13: 6196054.958 | BD13: 6309207.392 | BE13: 6424426.218
C15: POST-Case Shipments | D15: =E15-1 -> 1981 | E15: 1982 | F15: 1983 | G15: 1984 | H15: 1985 | I15: 1986 | J15: 1987 | K15: 1988 | L15: =M15-1 -> 1989 | M15: 1990 | N15: =M15+1 -> 1991 | O15: =N15+1 -> 1992 | P15: =O15+1 -> 1993 | Q15: =P15+1 -> 1994 | R15: =Q15+1 -> 1995 | S15: =R15+1 -> 1996 | T15: =S15+1 -> 1997 | U15: =T15+1 -> 1998 | V15: =U15+1 -> 1999 | W15: =V15+1 -> 2000 | X15: =W15+1 -> 2001 | Y15: =X15+1 -> 2002 | Z15: =Y15+1 -> 2003 | AA15: =Z15+1 -> 2004 | AB15: =AA15+1 -> 2005 | AC15: =AB15+1 -> 2006 | AD15: =AC15+1 -> 2007 | AE15: =AD15+1 -> 2008 | AF15: =AE15+1 -> 2009 | AG15: =AF15+1 -> 2010 | AH15: =AG15+1 -> 2011 | AI15: =AH15+1 -> 2012 | AJ15: =AI15+1 -> 2013 | AK15: =AJ15+1 -> 2014 | AL15: =AK15+1 -> 2015 | AM15: =AL15+1 -> 2016 | AN15: =AM15+1 -> 2017 | AO15: =AN15+1 -> 2018 | AP15: =AO15+1 -> 2019 | AQ15: =AP15+1 -> 2020 | AR15: =AQ15+1 -> 2021 | AS15: =AR15+1 -> 2022 | AT15: =AS15+1 -> 2023 | AU15: =AT15+1 -> 2024 | AV15: =AU15+1 -> 2025 | AW15: =AV15+1 -> 2026 | AX15: =AW15+1 -> 2027 | AY15: =AX15+1 -> 2028 | AZ15: =AY15+1 -> 2029 | BA15: =AZ15+1 -> 2030 | BB15: =BA15+1 -> 2031 | BC15: =BB15+1 -> 2032 | BD15: =BC15+1 -> 2033 | BE15: =BD15+1 -> 2034
C16: ='Product Classes'!I10&" - "&OFFSET('Product Classes'!$C$9,MATCH('Product Classes'!I10,MODEL_PCS,0),0) -> PC1 - Polyphase Motors | D16: =$AE16/((1+ShipmentGrowthRate)^($AE$15-D$15)) -> 460101.4717 | E16: 468503.8506 | F16: 477059.6739 | G16: 485771.7437 | H16: 494642.9134 | I16: 503676.0886 | J16: 512874.2277 | K16: 522240.3433 | L16: 531777.5031 | M16: =$AE16/((1+ShipmentGrowthRate)^($AE$15-M$15)) -> 541488.8306 | N16: 551377.5065 | O16: 561446.7695 | P16: 571699.9175 | Q16: 582140.3086 | R16: 592771.3623 | S16: 603596.5604 | T16: 614619.4485 | U16: 625843.6366 | V16: 637272.801 | W16: =$AE16/((1+ShipmentGrowthRate)^($AE$15-W$15)) -> 648910.685 | X16: 660761.1001 | Y16: 672827.9277 | Z16: 685115.1199 | AA16: 697626.7009 | AB16: 710366.7685 | AC16: 723339.4954 | AD16: 736549.1305 | AE16: 750000 | AF16: =$AE16*(1+ShipmentGrowthRate)^(AF$15-$AE$15) -> 763696.5095 | AG16: 777643.1448 | AH16: 791844.4738 | AI16: 806305.1476 | AJ16: 821029.9024 | AK16: 836023.5609 | AL16: 851291.0337 | AM16: 866837.3214 | AN16: 882667.5155 | AO16: 898786.8009 | AP16: =$AE16*(1+ShipmentGrowthRate)^(AP$15-$AE$15) -> 915200.4568 | AQ16: 931913.8591 | AR16: 948932.4818 | AS16: 966261.8988 | AT16: 983907.7859 | AU16: 1001875.922 | AV16: 1020172.193 | AW16: 1038802.591 | AX16: 1057773.217 | AY16: 1077090.285 | AZ16: =$AE16*(1+ShipmentGrowthRate)^(AZ$15-$AE$15) -> 1096760.121 | BA16: 1116789.168 | BB16: 1137183.986 | BC16: 1157951.254 | BD16: 1179097.775 | BE16: 1200630.473
C17: ='Product Classes'!I11&" - "&OFFSET('Product Classes'!$C$9,MATCH('Product Classes'!I11,MODEL_PCS,0),0) -> PC2 - Capacitor-Start, Induction-Run Motors | D17: 1901752.75 | E17: 1936482.583 | F17: 1971846.652 | G17: 2007856.541 | H17: 2044524.042 | I17: 2081861.166 | J17: 2119880.141 | K17: 2158593.419 | L17: 2198013.679 | M17: 2238153.833 | N17: 2279027.027 | O17: 2320646.647 | P17: 2363026.326 | Q17: 2406179.942 | R17: 2450121.631 | S17: 2494865.783 | T17: 2540427.054 | U17: 2586820.365 | V17: 2634060.911 | W17: 2682164.165 | X17: 2731145.881 | Y17: 2781022.101 | Z17: 2831809.162 | AA17: 2883523.697 | AB17: 2936182.643 | AC17: 2989803.248 | AD17: 3044403.073 | AE17: 3100000 | AF17: 3156612.239 | AG17: 3214258.332 | AH17: 3272957.158 | AI17: 3332727.943 | AJ17: 3393590.263 | AK17: 3455564.052 | AL17: 3518669.606 | AM17: 3582927.595 | AN17: 3648359.064 | AO17: 3714985.444 | AP17: 3782828.555 | AQ17: 3851910.618 | AR17: 3922254.258 | AS17: 3993882.515 | AT17: 4066818.848 | AU17: 4141087.146 | AV17: 4216711.732 | AW17: 4293717.375 | AX17: 4372129.296 | AY17: 4451973.176 | AZ17: 4533275.167 | BA17: 4616061.895 | BB17: 4700360.476 | BC17: 4786198.519 | BD17: 4873604.137 | BE17: 4962605.957
C18: ='Product Classes'!I12&" - "&OFFSET('Product Classes'!$C$9,MATCH('Product Classes'!I12,MODEL_PCS,0),0) -> PC3 - Capacitor-Start, Capacitor-Run Motors | D18: 100092.25 | E18: 101920.1359 | F18: 103781.4027 | G18: 105676.66 | H18: 107606.5285 | I18: 109571.6403 | J18: 111572.639 | K18: 113610.18 | L18: 115684.9305 | M18: 117797.5702 | N18: 119948.7909 | O18: 122139.2972 | P18: 124369.8066 | Q18: 126641.0496 | R18: 128953.77 | S18: 131308.7254 | T18: 133706.687 | U18: 136148.4402 | V18: 138634.7848 | W18: 141166.535 | X18: 143744.52 | Y18: 146369.5843 | Z18: 149042.5875 | AA18: 151764.4051 | AB18: 154535.9286 | AC18: 157358.0657 | AD18: 160231.7407 | AE18: 163157.8947 | AF18: 166137.4863 | AG18: 169171.4912 | AH18: 172260.9031 | AI18: 175406.7339 | AJ18: 178610.0139 | AK18: 181871.7922 | AL18: 185193.1372 | AM18: 188575.1366 | AN18: 192018.8981 | AO18: 195525.5497 | AP18: 199096.2397 | AQ18: 202732.1378 | AR18: 206434.4346 | AS18: 210204.3429 | AT18: 214043.0973 | AU18: 217951.955 | AV18: 221932.1964 | AW18: 225985.125 | AX18: 230112.0682 | AY18: 234314.3777 | AZ18: 238593.4298 | BA18: 242950.6261 | BB18: 247387.3935 | BC18: 251905.1852 | BD18: 256505.4809 | BE18: 261189.7872
C19: Total | D19: =SUM(D16:D18) -> 2461946.472 | E19: 2506906.569 | F19: 2552687.729 | G19: 2599304.944 | H19: 2646773.484 | I19: 2695108.895 | J19: 2744327.008 | K19: 2794443.942 | L19: 2845476.113 | M19: =SUM(M16:M18) -> 2897440.234 | N19: =SUM(N16:N18) -> 2950353.324 | O19: 3004232.714 | P19: 3059096.05 | Q19: 3114961.3 | R19: 3171846.763 | S19: 3229771.069 | T19: 3288753.189 | U19: 3348812.442 | V19: 3409968.497 | W19: 3472241.385 | X19: 3535651.501 | Y19: 3600219.613 | Z19: 3665966.869 | AA19: 3732914.803 | AB19: 3801085.34 | AC19: 3870500.809 | AD19: 3941183.944 | AE19: 4013157.895 | AF19: 4086446.235 | AG19: 4161072.968 | AH19: 4237062.535 | AI19: 4314439.825 | AJ19: 4393230.18 | AK19: 4473459.405 | AL19: 4555153.777 | AM19: 4638340.053 | AN19: 4723045.478 | AO19: 4809297.794 | AP19: 4897125.251 | AQ19: 4986556.615 | AR19: 5077621.175 | AS19: 5170348.757 | AT19: 5264769.731 | AU19: 5360915.023 | AV19: 5458816.121 | AW19: 5558505.09 | AX19: 5660014.581 | AY19: 5763377.838 | AZ19: 5868628.718 | BA19: 5975801.69 | BB19: 6084931.856 | BC19: 6196054.958 | BD19: 6309207.392 | BE19: 6424426.218
C21: Source/Rationale | D21: DOE Small Electric Motors 2010 Final Rule, Analytical Spreadsheets: Small Polyphase Electric Motors National Impact Analysis Spreadsheet, 'ShipmentsForecast' tab, cells B15:AN15 (total polyphase motor shipments from 2008-2045))
D22: DOE Small Electric Motors 2010 Final Rule, Analytical Spreadsheets: Small Capacitor-Start Electric Motors National Impact Analysis Spreadsheet for the 20% Space-Constrained Scenario, 'ShipmentsForecast' tab - cells B52:AN52, cells B74:AN74 (total capacitor-start, induction-run and capacitor-start, capacitor-run motor shipments from 2008-2045 in the base case)
D23: DOE Small Electric Motors 2010 Final Rule, Analytical Spreadsheets: Small Capacitor-Start Electric Motors National Impact Analysis Spreadsheet for the 20% Space-Constrained Scenario, 'ShipmentsForecast' tab - cells B52:AN52, cells B74:AN74 (total capacitor-start, induction-run and capacitor-start, capacitor-run motor shipments from 2008-2045 in the standard case)
D24: Data from 1990-2007 is backcasted using an average of the next five years
D25: No switching after standard is implemented
C27: PRE-Case Distribution | D27: =E27-1 -> 1981 | E27: 1982 | F27: 1983 | G27: 1984 | H27: 1985 | I27: 1986 | J27: 1987 | K27: 1988 | L27: =M27-1 -> 1989 | M27: 1990 | N27: =M27+1 -> 1991 | O27: =N27+1 -> 1992 | P27: 1993 | Q27: 1994 | R27: 1995 | S27: 1996 | T27: 1997 | U27: 1998 | V27: 1999 | W27: 2000 | X27: 2001 | Y27: 2002 | Z27: 2003 | AA27: 2004 | AB27: 2005 | AC27: 2006 | AD27: 2007 | AE27: 2008 | AF27: =AE27+1 -> 2009 | AG27: 2010 | AH27: 2011 | AI27: 2012 | AJ27: 2013 | AK27: 2014 | AL27: 2015 | AM27: 2016 | AN27: 2017 | AO27: 2018 | AP27: 2019 | AQ27: 2020 | AR27: 2021 | AS27: 2022 | AT27: 2023 | AU27: 2024 | AV27: 2025 | AW27: 2026 | AX27: 2027 | AY27: 2028 | AZ27: 2029 | BA27: 2030 | BB27: 2031 | BC27: 2032 | BD27: 2033 | BE27: 2034
C28: ='Product Classes'!I10&" - "&OFFSET('Product Classes'!$C$9,MATCH('Product Classes'!I10,MODEL_PCS,0),0) -> PC1 - Polyphase Motors | D28: =D10/SUM(D$10:D$12) -> 0.1868852459 | E28: 0.1868852459 | F28: 0.1868852459 | G28: 0.1868852459 | H28: 0.1868852459 | I28: 0.1868852459 | J28: 0.1868852459 | K28: 0.1868852459 | L28: 0.1868852459 | M28: =M10/SUM(M$10:M$12) -> 0.1868852459 | N28: =N10/SUM(N$10:N$12) -> 0.1868852459 | O28: 0.1868852459 | P28: 0.1868852459 | Q28: 0.1868852459 | R28: 0.1868852459 | S28: 0.1868852459 | T28: 0.1868852459 | U28: 0.1868852459 | V28: 0.1868852459 | W28: 0.1868852459 | X28: 0.1868852459 | Y28: 0.1868852459 | Z28: 0.1868852459 | AA28: 0.1868852459 | AB28: 0.1868852459 | AC28: 0.1868852459 | AD28: 0.1868852459 | AE28: 0.1868852459 | AF28: 0.1868852459 | AG28: 0.1868852459 | AH28: 0.1868852459 | AI28: 0.1868852459 | AJ28: 0.1868852459 | AK28: 0.1868852459 | AL28: 0.1868852459 | AM28: 0.1868852459 | AN28: 0.1868852459 | AO28: 0.1868852459 | AP28: 0.1868852459 | AQ28: 0.1868852459 | AR28: 0.1868852459 | AS28: 0.1868852459 | AT28: 0.1868852459 | AU28: 0.1868852459 | AV28: 0.1868852459 | AW28: 0.1868852459 | AX28: 0.1868852459 | AY28: 0.1868852459 | AZ28: 0.1868852459 | BA28: 0.1868852459 | BB28: 0.1868852459 | BC28: 0.1868852459 | BD28: 0.1868852459 | BE28: 0.1868852459
C29: ='Product Classes'!I11&" - "&OFFSET('Product Classes'!$C$9,MATCH('Product Classes'!I11,MODEL_PCS,0),0) -> PC2 - Capacitor-Start, Induction-Run Motors | D29: =D11/SUM(D$10:D$12) -> 0.7724590164 | E29: 0.7724590164 | F29: 0.7724590164 | G29: 0.7724590164 | H29: 0.7724590164 | I29: 0.7724590164 | J29: 0.7724590164 | K29: 0.7724590164 | L29: 0.7724590164 | M29: =M11/SUM(M$10:M$12) -> 0.7724590164 | N29: 0.7724590164 | O29: 0.7724590164 | P29: 0.7724590164 | Q29: 0.7724590164 | R29: 0.7724590164 | S29: 0.7724590164 | T29: 0.7724590164 | U29: 0.7724590164 | V29: 0.7724590164 | W29: 0.7724590164 | X29: 0.7724590164 | Y29: 0.7724590164 | Z29: 0.7724590164 | AA29: 0.7724590164 | AB29: 0.7724590164 | AC29: 0.7724590164 | AD29: 0.7724590164 | AE29: 0.7724590164 | AF29: 0.7724590164 | AG29: 0.7724590164 | AH29: 0.7724590164 | AI29: 0.7724590164 | AJ29: 0.7724590164 | AK29: 0.7724590164 | AL29: 0.7724590164 | AM29: 0.7724590164 | AN29: 0.7724590164 | AO29: 0.7724590164 | AP29: 0.7724590164 | AQ29: 0.7724590164 | AR29: 0.7724590164 | AS29: 0.7724590164 | AT29: 0.7724590164 | AU29: 0.7724590164 | AV29: 0.7724590164 | AW29: 0.7724590164 | AX29: 0.7724590164 | AY29: 0.7724590164 | AZ29: 0.7724590164 | BA29: 0.7724590164 | BB29: 0.7724590164 | BC29: 0.7724590164 | BD29: 0.7724590164 | BE29: 0.7724590164
C30: ='Product Classes'!I12&" - "&OFFSET('Product Classes'!$C$9,MATCH('Product Classes'!I12,MODEL_PCS,0),0) -> PC3 - Capacitor-Start, Capacitor-Run Motors | D30: =D12/SUM(D$10:D$12) -> 0.0406557377 | E30: 0.0406557377 | F30: 0.0406557377 | G30: 0.0406557377 | H30: 0.0406557377 | I30: 0.0406557377 | J30: 0.0406557377 | K30: 0.0406557377 | L30: 0.0406557377 | M30: =M12/SUM(M$10:M$12) -> 0.0406557377 | N30: 0.0406557377 | O30: 0.0406557377 | P30: 0.0406557377 | Q30: 0.0406557377 | R30: 0.0406557377 | S30: 0.0406557377 | T30: 0.0406557377 | U30: 0.0406557377 | V30: 0.0406557377 | W30: 0.0406557377 | X30: 0.0406557377 | Y30: 0.0406557377 | Z30: 0.0406557377 | AA30: 0.0406557377 | AB30: 0.0406557377 | AC30: 0.0406557377 | AD30: 0.0406557377 | AE30: 0.0406557377 | AF30: 0.0406557377 | AG30: 0.0406557377 | AH30: 0.0406557377 | AI30: 0.0406557377 | AJ30: 0.0406557377 | AK30: 0.0406557377 | AL30: 0.0406557377 | AM30: 0.0406557377 | AN30: 0.0406557377 | AO30: 0.0406557377 | AP30: 0.0406557377 | AQ30: 0.0406557377 | AR30: 0.0406557377 | AS30: 0.0406557377 | AT30: 0.0406557377 | AU30: 0.0406557377 | AV30: 0.0406557377 | AW30: 0.0406557377 | AX30: 0.0406557377 | AY30: 0.0406557377 | AZ30: 0.0406557377 | BA30: 0.0406557377 | BB30: 0.0406557377 | BC30: 0.0406557377 | BD30: 0.0406557377 | BE30: 0.0406557377
C32: POST-Case Distribution | D32: =E32-1 -> 1981 | E32: 1982 | F32: 1983 | G32: 1984 | H32: 1985 | I32: 1986 | J32: 1987 | K32: 1988 | L32: =M32-1 -> 1989 | M32: 1990 | N32: =M32+1 -> 1991 | O32: =N32+1 -> 1992 | P32: =O32+1 -> 1993 | Q32: =P32+1 -> 1994 | R32: =Q32+1 -> 1995 | S32: =R32+1 -> 1996 | T32: =S32+1 -> 1997 | U32: =T32+1 -> 1998 | V32: =U32+1 -> 1999 | W32: =V32+1 -> 2000 | X32: =W32+1 -> 2001 | Y32: =X32+1 -> 2002 | Z32: =Y32+1 -> 2003 | AA32: =Z32+1 -> 2004 | AB32: =AA32+1 -> 2005 | AC32: =AB32+1 -> 2006 | AD32: =AC32+1 -> 2007 | AE32: =AD32+1 -> 2008 | AF32: =AE32+1 -> 2009 | AG32: =AF32+1 -> 2010 | AH32: =AG32+1 -> 2011 | AI32: =AH32+1 -> 2012 | AJ32: =AI32+1 -> 2013 | AK32: =AJ32+1 -> 2014 | AL32: =AK32+1 -> 2015 | AM32: =AL32+1 -> 2016 | AN32: =AM32+1 -> 2017 | AO32: =AN32+1 -> 2018 | AP32: =AO32+1 -> 2019 | AQ32: =AP32+1 -> 2020 | AR32: =AQ32+1 -> 2021 | AS32: =AR32+1 -> 2022 | AT32: =AS32+1 -> 2023 | AU32: =AT32+1 -> 2024 | AV32: =AU32+1 -> 2025 | AW32: =AV32+1 -> 2026 | AX32: =AW32+1 -> 2027 | AY32: =AX32+1 -> 2028 | AZ32: =AY32+1 -> 2029 | BA32: =AZ32+1 -> 2030 | BB32: =BA32+1 -> 2031 | BC32: =BB32+1 -> 2032 | BD32: =BC32+1 -> 2033 | BE32: =BD32+1 -> 2034
C33: ='Product Classes'!I10&" - "&OFFSET('Product Classes'!$C$9,MATCH('Product Classes'!I10,MODEL_PCS,0),0) -> PC1 - Polyphase Motors | D33: =D16/SUM(D$10:D$12) -> 0.1868852459 | E33: 0.1868852459 | F33: 0.1868852459 | G33: 0.1868852459 | H33: 0.1868852459 | I33: 0.1868852459 | J33: 0.1868852459 | K33: 0.1868852459 | L33: =L16/SUM(L$10:L$12) -> 0.1868852459 | M33: =M16/SUM(M$10:M$12) -> 0.1868852459 | N33: =N16/SUM(N$10:N$12) -> 0.1868852459 | O33: 0.1868852459 | P33: 0.1868852459 | Q33: 0.1868852459 | R33: 0.1868852459 | S33: 0.1868852459 | T33: 0.1868852459 | U33: 0.1868852459 | V33: 0.1868852459 | W33: 0.1868852459 | X33: 0.1868852459 | Y33: 0.1868852459 | Z33: 0.1868852459 | AA33: 0.1868852459 | AB33: 0.1868852459 | AC33: 0.1868852459 | AD33: 0.1868852459 | AE33: 0.1868852459 | AF33: 0.1868852459 | AG33: 0.1868852459 | AH33: 0.1868852459 | AI33: 0.1868852459 | AJ33: 0.1868852459 | AK33: 0.1868852459 | AL33: 0.1868852459 | AM33: 0.1868852459 | AN33: 0.1868852459 | AO33: 0.1868852459 | AP33: 0.1868852459 | AQ33: 0.1868852459 | AR33: 0.1868852459 | AS33: 0.1868852459 | AT33: 0.1868852459 | AU33: 0.1868852459 | AV33: 0.1868852459 | AW33: 0.1868852459 | AX33: 0.1868852459 | AY33: 0.1868852459 | AZ33: 0.1868852459 | BA33: 0.1868852459 | BB33: 0.1868852459 | BC33: 0.1868852459 | BD33: 0.1868852459 | BE33: 0.1868852459
C34: ='Product Classes'!I11&" - "&OFFSET('Product Classes'!$C$9,MATCH('Product Classes'!I11,MODEL_PCS,0),0) -> PC2 - Capacitor-Start, Induction-Run Motors | D34: =D17/SUM(D$10:D$12) -> 0.7724590164 | E34: 0.7724590164 | F34: 0.7724590164 | G34: 0.7724590164 | H34: 0.7724590164 | I34: 0.7724590164 | J34: 0.7724590164 | K34: 0.7724590164 | L34: =L17/SUM(L$10:L$12) -> 0.7724590164 | M34: 0.7724590164 | N34: 0.7724590164 | O34: 0.7724590164 | P34: 0.7724590164 | Q34: 0.7724590164 | R34: 0.7724590164 | S34: 0.7724590164 | T34: 0.7724590164 | U34: 0.7724590164 | V34: 0.7724590164 | W34: 0.7724590164 | X34: 0.7724590164 | Y34: 0.7724590164 | Z34: 0.7724590164 | AA34: 0.7724590164 | AB34: 0.7724590164 | AC34: 0.7724590164 | AD34: 0.7724590164 | AE34: 0.7724590164 | AF34: 0.7724590164 | AG34: 0.7724590164 | AH34: 0.7724590164 | AI34: 0.7724590164 | AJ34: 0.7724590164 | AK34: 0.7724590164 | AL34: 0.7724590164 | AM34: 0.7724590164 | AN34: 0.7724590164 | AO34: 0.7724590164 | AP34: 0.7724590164 | AQ34: 0.7724590164 | AR34: 0.7724590164 | AS34: 0.7724590164 | AT34: 0.7724590164 | AU34: 0.7724590164 | AV34: 0.7724590164 | AW34: 0.7724590164 | AX34: 0.7724590164 | AY34: 0.7724590164 | AZ34: 0.7724590164 | BA34: 0.7724590164 | BB34: 0.7724590164 | BC34: 0.7724590164 | BD34: 0.7724590164 | BE34: 0.7724590164
C35: ='Product Classes'!I12&" - "&OFFSET('Product Classes'!$C$9,MATCH('Product Classes'!I12,MODEL_PCS,0),0) -> PC3 - Capacitor-Start, Capacitor-Run Motors | D35: =D18/SUM(D$10:D$12) -> 0.0406557377 | E35: 0.0406557377 | F35: 0.0406557377 | G35: 0.0406557377 | H35: 0.0406557377 | I35: 0.0406557377 | J35: 0.0406557377 | K35: 0.0406557377 | L35: =L18/SUM(L$10:L$12) -> 0.0406557377 | M35: 0.0406557377 | N35: 0.0406557377 | O35: 0.0406557377 | P35: 0.0406557377 | Q35: 0.0406557377 | R35: 0.0406557377 | S35: 0.0406557377 | T35: 0.0406557377 | U35: 0.0406557377 | V35: 0.0406557377 | W35: 0.0406557377 | X35: 0.0406557377 | Y35: 0.0406557377 | Z35: 0.0406557377 | AA35: 0.0406557377 | AB35: 0.0406557377 | AC35: 0.0406557377 | AD35: 0.0406557377 | AE35: 0.0406557377 | AF35: 0.0406557377 | AG35: 0.0406557377 | AH35: 0.0406557377 | AI35: 0.0406557377 | AJ35: 0.0406557377 | AK35: 0.0406557377 | AL35: 0.0406557377 | AM35: 0.0406557377 | AN35: 0.0406557377 | AO35: 0.0406557377 | AP35: 0.0406557377 | AQ35: 0.0406557377 | AR35: 0.0406557377 | AS35: 0.0406557377 | AT35: 0.0406557377 | AU35: 0.0406557377 | AV35: 0.0406557377 | AW35: 0.0406557377 | AX35: 0.0406557377 | AY35: 0.0406557377 | AZ35: 0.0406557377 | BA35: 0.0406557377 | BB35: 0.0406557377 | BC35: 0.0406557377 | BD35: 0.0406557377 | BE35: 0.0406557377

Sheet Efficiency Dist
C2: Efficiency Distributions by Product Class
C4: NAVIGATION
C6: COMMENTS
D9: ='Product Classes'!I10&" - "&OFFSET('Product Classes'!$C$9,MATCH('Product Classes'!I10,MODEL_PCS,0),0) -> PC1 - Polyphase Motors
D11: PRE-Case
D12: Efficiency Level | E12: Full-Load Efficiency | G12: 1981 | H12: =G12+1 -> 1982 | I12: =H12+1 -> 1983 | J12: 1984 | K12: 1985 | L12: 1986 | M12: 1987 | N12: 1988 | O12: 1989 | P12: 1990 | Q12: 1991 | R12: 1992 | S12: 1993 | T12: 1994 | U12: 1995 | V12: 1996 | W12: 1997 | X12: 1998 | Y12: 1999 | Z12: 2000 | AA12: 2001 | AB12: 2002 | AC12: 2003 | AD12: 2004 | AE12: 2005 | AF12: 2006 | AG12: 2007 | AH12: 2008 | AI12: 2009 | AJ12: 2010 | AK12: 2011 | AL12: 2012 | AM12: 2013 | AN12: 2014 | AO12: 2015 | AP12: 2016 | AQ12: 2017 | AR12: 2018 | AS12: 2019 | AT12: 2020 | AU12: 2021 | AV12: 2022 | AW12: 2023 | AX12: 2024 | AY12: 2025 | AZ12: 2026 | BA12: 2027 | BB12: 2028 | BC12: 2029 | BD12: 2030 | BE12: 2031 | BF12: 2032 | BG12: =BF12+1 -> 2033 | BH12: 2034
D13: ='Efficiency Levels'!C12 -> EL0 | E13: ='Efficiency Levels'!D12 -> 0.753 | G13: 0.54 | H13: 0.54 | I13: 0.54 | J13: 0.54 | K13: 0.54 | L13: 0.54 | M13: 0.54 | N13: 0.54 | O13: 0.54 | P13: 0.54 | Q13: 0.54 | R13: 0.54 | S13: 0.54 | T13: 0.54 | U13: 0.54 | V13: 0.54 | W13: 0.54 | X13: 0.54 | Y13: 0.54 | Z13: 0.54 | AA13: 0.54 | AB13: 0.54 | AC13: 0.54 | AD13: 0.54 | AE13: 0.54 | AF13: 0.54 | AG13: 0.54 | AH13: 0.54 | AI13: 0.54 | AJ13: 0.54 | AK13: 0.54 | AL13: 0.54 | AM13: 0.54 | AN13: 0.54 | AO13: 0.54 | AP13: 0.54 | AQ13: 0.54 | AR13: 0.54 | AS13: 0.54 | AT13: 0.54 | AU13: 0.54 | AV13: 0.54 | AW13: 0.54 | AX13: 0.54 | AY13: 0.54 | AZ13: 0.54 | BA13: 0.54 | BB13: 0.54 | BC13: 0.54 | BD13: 0.54 | BE13: 0.54 | BF13: 0.54 | BG13: 0.54 | BH13: 0.54
D14: ='Efficiency Levels'!C13 -> EL1 | E14: ='Efficiency Levels'!D13 -> 0.773 | G14: 0.06 | H14: 0.06 | I14: 0.06 | J14: 0.06 | K14: 0.06 | L14: 0.06 | M14: 0.06 | N14: 0.06 | O14: 0.06 | P14: 0.06 | Q14: 0.06 | R14: 0.06 | S14: 0.06 | T14: 0.06 | U14: 0.06 | V14: 0.06 | W14: 0.06 | X14: 0.06 | Y14: 0.06 | Z14: 0.06 | AA14: 0.06 | AB14: 0.06 | AC14: 0.06 | AD14: 0.06 | AE14: 0.06 | AF14: 0.06 | AG14: 0.06 | AH14: 0.06 | AI14: 0.06 | AJ14: 0.06 | AK14: 0.06 | AL14: 0.06 | AM14: 0.06 | AN14: 0.06 | AO14: 0.06 | AP14: 0.06 | AQ14: 0.06 | AR14: 0.06 | AS14: 0.06 | AT14: 0.06 | AU14: 0.06 | AV14: 0.06 | AW14: 0.06 | AX14: 0.06 | AY14: 0.06 | AZ14: 0.06 | BA14: 0.06 | BB14: 0.06 | BC14: 0.06 | BD14: 0.06 | BE14: 0.06 | BF14: 0.06 | BG14: 0.06 | BH14: 0.06
D15: ='Efficiency Levels'!C14 -> EL2 | E15: ='Efficiency Levels'!D14 -> 0.788 | G15: 0.13 | H15: 0.13 | I15: 0.13 | J15: 0.13 | K15: 0.13 | L15: 0.13 | M15: 0.13 | N15: 0.13 | O15: 0.13 | P15: 0.13 | Q15: 0.13 | R15: 0.13 | S15: 0.13 | T15: 0.13 | U15: 0.13 | V15: 0.13 | W15: 0.13 | X15: 0.13 | Y15: 0.13 | Z15: 0.13 | AA15: 0.13 | AB15: 0.13 | AC15: 0.13 | AD15: 0.13 | AE15: 0.13 | AF15: 0.13 | AG15: 0.13 | AH15: 0.13 | AI15: 0.13 | AJ15: 0.13 | AK15: 0.13 | AL15: 0.13 | AM15: 0.13 | AN15: 0.13 | AO15: 0.13 | AP15: 0.13 | AQ15: 0.13 | AR15: 0.13 | AS15: 0.13 | AT15: 0.13 | AU15: 0.13 | AV15: 0.13 | AW15: 0.13 | AX15: 0.13 | AY15: 0.13 | AZ15: 0.13 | BA15: 0.13 | BB15: 0.13 | BC15: 0.13 | BD15: 0.13 | BE15: 0.13 | BF15: 0.13 | BG15: 0.13 | BH15: 0.13
D16: ='Efficiency Levels'!C15 -> EL3 | E16: ='Efficiency Levels'!D15 -> 0.805 | G16: 0.07 | H16: 0.07 | I16: 0.07 | J16: 0.07 | K16: 0.07 | L16: 0.07 | M16: 0.07 | N16: 0.07 | O16: 0.07 | P16: 0.07 | Q16: 0.07 | R16: 0.07 | S16: 0.07 | T16: 0.07 | U16: 0.07 | V16: 0.07 | W16: 0.07 | X16: 0.07 | Y16: 0.07 | Z16: 0.07 | AA16: 0.07 | AB16: 0.07 | AC16: 0.07 | AD16: 0.07 | AE16: 0.07 | AF16: 0.07 | AG16: 0.07 | AH16: 0.07 | AI16: 0.07 | AJ16: 0.07 | AK16: 0.07 | AL16: 0.07 | AM16: 0.07 | AN16: 0.07 | AO16: 0.07 | AP16: 0.07 | AQ16: 0.07 | AR16: 0.07 | AS16: 0.07 | AT16: 0.07 | AU16: 0.07 | AV16: 0.07 | AW16: 0.07 | AX16: 0.07 | AY16: 0.07 | AZ16: 0.07 | BA16: 0.07 | BB16: 0.07 | BC16: 0.07 | BD16: 0.07 | BE16: 0.07 | BF16: 0.07 | BG16: 0.07 | BH16: 0.07
D17: ='Efficiency Levels'!C16 -> EL4 | E17: ='Efficiency Levels'!D16 -> 0.811 | G17: 0.12 | H17: 0.12 | I17: 0.12 | J17: 0.12 | K17: 0.12 | L17: 0.12 | M17: 0.12 | N17: 0.12 | O17: 0.12 | P17: 0.12 | Q17: 0.12 | R17: 0.12 | S17: 0.12 | T17: 0.12 | U17: 0.12 | V17: 0.12 | W17: 0.12 | X17: 0.12 | Y17: 0.12 | Z17: 0.12 | AA17: 0.12 | AB17: 0.12 | AC17: 0.12 | AD17: 0.12 | AE17: 0.12 | AF17: 0.12 | AG17: 0.12 | AH17: 0.12 | AI17: 0.12 | AJ17: 0.12 | AK17: 0.12 | AL17: 0.12 | AM17: 0.12 | AN17: 0.12 | AO17: 0.12 | AP17: 0.12 | AQ17: 0.12 | AR17: 0.12 | AS17: 0.12 | AT17: 0.12 | AU17: 0.12 | AV17: 0.12 | AW17: 0.12 | AX17: 0.12 | AY17: 0.12 | AZ17: 0.12 | BA17: 0.12 | BB17: 0.12 | BC17: 0.12 | BD17: 0.12 | BE17: 0.12 | BF17: 0.12 | BG17: 0.12 | BH17: 0.12
D18: ='Efficiency Levels'!C17 -> EL5 | E18: ='Efficiency Levels'!D17 -> 0.835 | G18: 0.05 | H18: 0.05 | I18: 0.05 | J18: 0.05 | K18: 0.05 | L18: 0.05 | M18: 0.05 | N18: 0.05 | O18: 0.05 | P18: 0.05 | Q18: 0.05 | R18: 0.05 | S18: 0.05 | T18: 0.05 | U18: 0.05 | V18: 0.05 | W18: 0.05 | X18: 0.05 | Y18: 0.05 | Z18: 0.05 | AA18: 0.05 | AB18: 0.05 | AC18: 0.05 | AD18: 0.05 | AE18: 0.05 | AF18: 0.05 | AG18: 0.05 | AH18: 0.05 | AI18: 0.05 | AJ18: 0.05 | AK18: 0.05 | AL18: 0.05 | AM18: 0.05 | AN18: 0.05 | AO18: 0.05 | AP18: 0.05 | AQ18: 0.05 | AR18: 0.05 | AS18: 0.05 | AT18: 0.05 | AU18: 0.05 | AV18: 0.05 | AW18: 0.05 | AX18: 0.05 | AY18: 0.05 | AZ18: 0.05 | BA18: 0.05 | BB18: 0.05 | BC18: 0.05 | BD18: 0.05 | BE18: 0.05 | BF18: 0.05 | BG18: 0.05 | BH18: 0.05
D19: ='Efficiency Levels'!C18 -> EL6 | E19: ='Efficiency Levels'!D18 -> 0.852 | G19: 0.03 | H19: 0.03 | I19: 0.03 | J19: 0.03 | K19: 0.03 | L19: 0.03 | M19: 0.03 | N19: 0.03 | O19: 0.03 | P19: 0.03 | Q19: 0.03 | R19: 0.03 | S19: 0.03 | T19: 0.03 | U19: 0.03 | V19: 0.03 | W19: 0.03 | X19: 0.03 | Y19: 0.03 | Z19: 0.03 | AA19: 0.03 | AB19: 0.03 | AC19: 0.03 | AD19: 0.03 | AE19: 0.03 | AF19: 0.03 | AG19: 0.03 | AH19: 0.03 | AI19: 0.03 | AJ19: 0.03 | AK19: 0.03 | AL19: 0.03 | AM19: 0.03 | AN19: 0.03 | AO19: 0.03 | AP19: 0.03 | AQ19: 0.03 | AR19: 0.03 | AS19: 0.03 | AT19: 0.03 | AU19: 0.03 | AV19: 0.03 | AW19: 0.03 | AX19: 0.03 | AY19: 0.03 | AZ19: 0.03 | BA19: 0.03 | BB19: 0.03 | BC19: 0.03 | BD19: 0.03 | BE19: 0.03 | BF19: 0.03 | BG19: 0.03 | BH19: 0.03
D20: ='Efficiency Levels'!C19 -> EL7 | E20: ='Efficiency Levels'!D19 -> 0.862 | G20: 0 | H20: 0 | I20: 0 | J20: 0 | K20: 0 | L20: 0 | M20: 0 | N20: 0 | O20: 0 | P20: 0 | Q20: 0 | R20: 0 | S20: 0 | T20: 0 | U20: 0 | V20: 0 | W20: 0 | X20: 0 | Y20: 0 | Z20: 0 | AA20: 0 | AB20: 0 | AC20: 0 | AD20: 0 | AE20: 0 | AF20: 0 | AG20: 0 | AH20: 0 | AI20: 0 | AJ20: 0 | AK20: 0 | AL20: 0 | AM20: 0 | AN20: 0 | AO20: 0 | AP20: 0 | AQ20: 0 | AR20: 0 | AS20: 0 | AT20: 0 | AU20: 0 | AV20: 0 | AW20: 0 | AX20: 0 | AY20: 0 | AZ20: 0 | BA20: 0 | BB20: 0 | BC20: 0 | BD20: 0 | BE20: 0 | BF20: 0 | BG20: 0 | BH20: 0
D21: ='Efficiency Levels'!C20 -> EL8 | E21: ='Efficiency Levels'!D20 -> 0.877 | G21: 0 | H21: 0 | I21: 0 | J21: 0 | K21: 0 | L21: 0 | M21: 0 | N21: 0 | O21: 0 | P21: 0 | Q21: 0 | R21: 0 | S21: 0 | T21: 0 | U21: 0 | V21: 0 | W21: 0 | X21: 0 | Y21: 0 | Z21: 0 | AA21: 0 | AB21: 0 | AC21: 0 | AD21: 0 | AE21: 0 | AF21: 0 | AG21: 0 | AH21: 0 | AI21: 0 | AJ21: 0 | AK21: 0 | AL21: 0 | AM21: 0 | AN21: 0 | AO21: 0 | AP21: 0 | AQ21: 0 | AR21: 0 | AS21: 0 | AT21: 0 | AU21: 0 | AV21: 0 | AW21: 0 | AX21: 0 | AY21: 0 | AZ21: 0 | BA21: 0 | BB21: 0 | BC21: 0 | BD21: 0 | BE21: 0 | BF21: 0 | BG21: 0 | BH21: 0
D22: TOTAL | G22: =SUM(G13:G21) -> 1 | H22: =SUM(H13:H21) -> 1 | I22: 1 | J22: 1 | K22: 1 | L22: 1 | M22: 1 | N22: 1 | O22: 1 | P22: 1 | Q22: =SUM(Q13:Q21) -> 1 | R22: 1 | S22: 1 | T22: 1 | U22: 1 | V22: 1 | W22: 1 | X22: 1 | Y22: 1 | Z22: 1 | AA22: 1 | AB22: 1 | AC22: 1 | AD22: 1 | AE22: 1 | AF22: 1 | AG22: 1 | AH22: 1 | AI22: 1 | AJ22: 1 | AK22: 1 | AL22: 1 | AM22: 1 | AN22: 1 | AO22: 1 | AP22: 1 | AQ22: 1 | AR22: 1 | AS22: 1 | AT22: 1 | AU22: 1 | AV22: 1 | AW22: 1 | AX22: 1 | AY22: 1 | AZ22: 1 | BA22: 1 | BB22: 1 | BC22: 1 | BD22: 1 | BE22: 1 | BF22: 1 | BG22: =SUM(BG13:BG21) -> 1 | BH22: 1
D24: POST-Case
D25: Efficiency Level | E25: Full-Load Efficiency | G25: 1981 | H25: =G25+1 -> 1982 | I25: =H25+1 -> 1983 | J25: 1984 | K25: 1985 | L25: 1986 | M25: 1987 | N25: 1988 | O25: 1989 | P25: 1990 | Q25: 1991 | R25: 1992 | S25: 1993 | T25: 1994 | U25: 1995 | V25: 1996 | W25: 1997 | X25: 1998 | Y25: 1999 | Z25: 2000 | AA25: 2001 | AB25: 2002 | AC25: 2003 | AD25: 2004 | AE25: 2005 | AF25: 2006 | AG25: 2007 | AH25: 2008 | AI25: 2009 | AJ25: 2010 | AK25: 2011 | AL25: 2012 | AM25: 2013 | AN25: 2014 | AO25: 2015 | AP25: 2016 | AQ25: 2017 | AR25: 2018 | AS25: 2019 | AT25: 2020 | AU25: 2021 | AV25: 2022 | AW25: 2023 | AX25: 2024 | AY25: 2025 | AZ25: 2026 | BA25: 2027 | BB25: 2028 | BC25: 2029 | BD25: 2030 | BE25: 2031 | BF25: 2032 | BG25: =BF25+1 -> 2033 | BH25: 2034
D26: ='Efficiency Levels'!C12 -> EL0 | E26: ='Efficiency Levels'!D12 -> 0.753 | G26: 0.54 | H26: 0.54 | I26: 0.54 | J26: 0.54 | K26: 0.54 | L26: 0.54 | M26: 0.54 | N26: 0.54 | O26: 0.54 | P26: 0.54 | Q26: 0.54 | R26: 0.54 | S26: 0.54 | T26: 0.54 | U26: 0.54 | V26: 0.54 | W26: 0.54 | X26: 0.54 | Y26: 0.54 | Z26: 0.54 | AA26: 0.54 | AB26: 0.54 | AC26: 0.54 | AD26: 0.54 | AE26: 0.54 | AF26: 0.54 | AG26: 0.54 | AH26: 0.54 | AI26: 0.54 | AJ26: 0.54 | AK26: 0.54 | AL26: 0.54 | AM26: 0.54 | AN26: 0.54 | AO26: 0 | AP26: 0 | AQ26: 0 | AR26: 0 | AS26: 0 | AT26: 0 | AU26: 0 | AV26: 0 | AW26: 0 | AX26: 0 | AY26: 0 | AZ26: 0 | BA26: 0 | BB26: 0 | BC26: 0 | BD26: 0 | BE26: 0 | BF26: 0 | BG26: 0 | BH26: 0
D27: ='Efficiency Levels'!C13 -> EL1 | E27: ='Efficiency Levels'!D13 -> 0.773 | G27: 0.06 | H27: 0.06 | I27: 0.06 | J27: 0.06 | K27: 0.06 | L27: 0.06 | M27: 0.06 | N27: 0.06 | O27: 0.06 | P27: 0.06 | Q27: 0.06 | R27: 0.06 | S27: 0.06 | T27: 0.06 | U27: 0.06 | V27: 0.06 | W27: 0.06 | X27: 0.06 | Y27: 0.06 | Z27: 0.06 | AA27: 0.06 | AB27: 0.06 | AC27: 0.06 | AD27: 0.06 | AE27: 0.06 | AF27: 0.06 | AG27: 0.06 | AH27: 0.06 | AI27: 0.06 | AJ27: 0.06 | AK27: 0.06 | AL27: 0.06 | AM27: 0.06 | AN27: 0.06 | AO27: 0 | AP27: 0 | AQ27: 0 | AR27: 0 | AS27: 0 | AT27: 0 | AU27: 0 | AV27: 0 | AW27: 0 | AX27: 0 | AY27: 0 | AZ27: 0 | BA27: 0 | BB27: 0 | BC27: 0 | BD27: 0 | BE27: 0 | BF27: 0 | BG27: 0 | BH27: 0
D28: ='Efficiency Levels'!C14 -> EL2 | E28: ='Efficiency Levels'!D14 -> 0.788 | G28: 0.13 | H28: 0.13 | I28: 0.13 | J28: 0.13 | K28: 0.13 | L28: 0.13 | M28: 0.13 | N28: 0.13 | O28: 0.13 | P28: 0.13 | Q28: 0.13 | R28: 0.13 | S28: 0.13 | T28: 0.13 | U28: 0.13 | V28: 0.13 | W28: 0.13 | X28: 0.13 | Y28: 0.13 | Z28: 0.13 | AA28: 0.13 | AB28: 0.13 | AC28: 0.13 | AD28: 0.13 | AE28: 0.13 | AF28: 0.13 | AG28: 0.13 | AH28: 0.13 | AI28: 0.13 | AJ28: 0.13 | AK28: 0.13 | AL28: 0.13 | AM28: 0.13 | AN28: 0.13 | AO28: 0 | AP28: 0 | AQ28: 0 | AR28: 0 | AS28: 0 | AT28: 0 | AU28: 0 | AV28: 0 | AW28: 0 | AX28: 0 | AY28: 0 | AZ28: 0 | BA28: 0 | BB28: 0 | BC28: 0 | BD28: 0 | BE28: 0 | BF28: 0 | BG28: 0 | BH28: 0
D29: ='Efficiency Levels'!C15 -> EL3 | E29: ='Efficiency Levels'!D15 -> 0.805 | G29: 0.07 | H29: 0.07 | I29: 0.07 | J29: 0.07 | K29: 0.07 | L29: 0.07 | M29: 0.07 | N29: 0.07 | O29: 0.07 | P29: 0.07 | Q29: 0.07 | R29: 0.07 | S29: 0.07 | T29: 0.07 | U29: 0.07 | V29: 0.07 | W29: 0.07 | X29: 0.07 | Y29: 0.07 | Z29: 0.07 | AA29: 0.07 | AB29: 0.07 | AC29: 0.07 | AD29: 0.07 | AE29: 0.07 | AF29: 0.07 | AG29: 0.07 | AH29: 0.07 | AI29: 0.07 | AJ29: 0.07 | AK29: 0.07 | AL29: 0.07 | AM29: 0.07 | AN29: 0.07 | AO29: 0 | AP29: 0 | AQ29: 0 | AR29: 0 | AS29: 0 | AT29: 0 | AU29: 0 | AV29: 0 | AW29: 0 | AX29: 0 | AY29: 0 | AZ29: 0 | BA29: 0 | BB29: 0 | BC29: 0 | BD29: 0 | BE29: 0 | BF29: 0 | BG29: 0 | BH29: 0
D30: ='Efficiency Levels'!C16 -> EL4 | E30: ='Efficiency Levels'!D16 -> 0.811 | G30: 0.12 | H30: 0.12 | I30: 0.12 | J30: 0.12 | K30: 0.12 | L30: 0.12 | M30: 0.12 | N30: 0.12 | O30: 0.12 | P30: 0.12 | Q30: 0.12 | R30: 0.12 | S30: 0.12 | T30: 0.12 | U30: 0.12 | V30: 0.12 | W30: 0.12 | X30: 0.12 | Y30: 0.12 | Z30: 0.12 | AA30: 0.12 | AB30: 0.12 | AC30: 0.12 | AD30: 0.12 | AE30: 0.12 | AF30: 0.12 | AG30: 0.12 | AH30: 0.12 | AI30: 0.12 | AJ30: 0.12 | AK30: 0.12 | AL30: 0.12 | AM30: 0.12 | AN30: 0.12 | AO30: 0 | AP30: 0 | AQ30: 0 | AR30: 0 | AS30: 0 | AT30: 0 | AU30: 0 | AV30: 0 | AW30: 0 | AX30: 0 | AY30: 0 | AZ30: 0 | BA30: 0 | BB30: 0 | BC30: 0 | BD30: 0 | BE30: 0 | BF30: 0 | BG30: 0 | BH30: 0
D31: ='Efficiency Levels'!C17 -> EL5 | E31: ='Efficiency Levels'!D17 -> 0.835 | G31: 0.05 | H31: 0.05 | I31: 0.05 | J31: 0.05 | K31: 0.05 | L31: 0.05 | M31: 0.05 | N31: 0.05 | O31: 0.05 | P31: 0.05 | Q31: 0.05 | R31: 0.05 | S31: 0.05 | T31: 0.05 | U31: 0.05 | V31: 0.05 | W31: 0.05 | X31: 0.05 | Y31: 0.05 | Z31: 0.05 | AA31: 0.05 | AB31: 0.05 | AC31: 0.05 | AD31: 0.05 | AE31: 0.05 | AF31: 0.05 | AG31: 0.05 | AH31: 0.05 | AI31: 0.05 | AJ31: 0.05 | AK31: 0.05 | AL31: 0.05 | AM31: 0.05 | AN31: 0.05 | AO31: 0.97 | AP31: 0.97 | AQ31: 0.97 | AR31: 0.97 | AS31: 0.97 | AT31: 0.97 | AU31: 0.97 | AV31: 0.97 | AW31: 0.97 | AX31: 0.97 | AY31: 0.97 | AZ31: 0.97 | BA31: 0.97 | BB31: 0.97 | BC31: 0.97 | BD31: 0.97 | BE31: 0.97 | BF31: 0.97 | BG31: 0.97 | BH31: 0.97
D32: ='Efficiency Levels'!C18 -> EL6 | E32: ='Efficiency Levels'!D18 -> 0.852 | G32: 0.03 | H32: 0.03 | I32: 0.03 | J32: 0.03 | K32: 0.03 | L32: 0.03 | M32: 0.03 | N32: 0.03 | O32: 0.03 | P32: 0.03 | Q32: 0.03 | R32: 0.03 | S32: 0.03 | T32: 0.03 | U32: 0.03 | V32: 0.03 | W32: 0.03 | X32: 0.03 | Y32: 0.03 | Z32: 0.03 | AA32: 0.03 | AB32: 0.03 | AC32: 0.03 | AD32: 0.03 | AE32: 0.03 | AF32: 0.03 | AG32: 0.03 | AH32: 0.03 | AI32: 0.03 | AJ32: 0.03 | AK32: 0.03 | AL32: 0.03 | AM32: 0.03 | AN32: 0.03 | AO32: 0.03 | AP32: 0.03 | AQ32: 0.03 | AR32: 0.03 | AS32: 0.03 | AT32: 0.03 | AU32: 0.03 | AV32: 0.03 | AW32: 0.03 | AX32: 0.03 | AY32: 0.03 | AZ32: 0.03 | BA32: 0.03 | BB32: 0.03 | BC32: 0.03 | BD32: 0.03 | BE32: 0.03 | BF32: 0.03 | BG32: 0.03 | BH32: 0.03
D33: ='Efficiency Levels'!C19 -> EL7 | E33: ='Efficiency Levels'!D19 -> 0.862 | G33: 0 | H33: 0 | I33: 0 | J33: 0 | K33: 0 | L33: 0 | M33: 0 | N33: 0 | O33: 0 | P33: 0 | Q33: 0 | R33: 0 | S33: 0 | T33: 0 | U33: 0 | V33: 0 | W33: 0 | X33: 0 | Y33: 0 | Z33: 0 | AA33: 0 | AB33: 0 | AC33: 0 | AD33: 0 | AE33: 0 | AF33: 0 | AG33: 0 | AH33: 0 | AI33: 0 | AJ33: 0 | AK33: 0 | AL33: 0 | AM33: 0 | AN33: 0 | AO33: 0 | AP33: 0 | AQ33: 0 | AR33: 0 | AS33: 0 | AT33: 0 | AU33: 0 | AV33: 0 | AW33: 0 | AX33: 0 | AY33: 0 | AZ33: 0 | BA33: 0 | BB33: 0 | BC33: 0 | BD33: 0 | BE33: 0 | BF33: 0 | BG33: 0 | BH33: 0
D34: ='Efficiency Levels'!C20 -> EL8 | E34: ='Efficiency Levels'!D20 -> 0.877 | G34: 0 | H34: 0 | I34: 0 | J34: 0 | K34: 0 | L34: 0 | M34: 0 | N34: 0 | O34: 0 | P34: 0 | Q34: 0 | R34: 0 | S34: 0 | T34: 0 | U34: 0 | V34: 0 | W34: 0 | X34: 0 | Y34: 0 | Z34: 0 | AA34: 0 | AB34: 0 | AC34: 0 | AD34: 0 | AE34: 0 | AF34: 0 | AG34: 0 | AH34: 0 | AI34: 0 | AJ34: 0 | AK34: 0 | AL34: 0 | AM34: 0 | AN34: 0 | AO34: 0 | AP34: 0 | AQ34: 0 | AR34: 0 | AS34: 0 | AT34: 0 | AU34: 0 | AV34: 0 | AW34: 0 | AX34: 0 | AY34: 0 | AZ34: 0 | BA34: 0 | BB34: 0 | BC34: 0 | BD34: 0 | BE34: 0 | BF34: 0 | BG34: 0 | BH34: 0
D35: TOTAL | G35: =SUM(G26:G34) -> 1 | H35: =SUM(H26:H34) -> 1 | I35: 1 | J35: 1 | K35: 1 | L35: 1 | M35: 1 | N35: 1 | O35: 1 | P35: 1 | Q35: =SUM(Q26:Q34) -> 1 | R35: 1 | S35: 1 | T35: 1 | U35: 1 | V35: 1 | W35: 1 | X35: 1 | Y35: 1 | Z35: 1 | AA35: 1 | AB35: 1 | AC35: 1 | AD35: 1 | AE35: 1 | AF35: 1 | AG35: 1 | AH35: 1 | AI35: 1 | AJ35: 1 | AK35: 1 | AL35: 1 | AM35: 1 | AN35: =SUM(AN26:AN34) -> 1 | AO35: 1 | AP35: 1 | AQ35: 1 | AR35: 1 | AS35: 1 | AT35: 1 | AU35: 1 | AV35: 1 | AW35: 1 | AX35: 1 | AY35: 1 | AZ35: 1 | BA35: 1 | BB35: 1 | BC35: 1 | BD35: 1 | BE35: 1 | BF35: 1 | BG35: =SUM(BG26:BG34) -> 1 | BH35: 1
D37: Sources | E37: DOE Small Electric Motors 2010 Final Rule, Technical Support Document, Chapter 10: National Impact Analysis, Table 10.2.2 Polyphase Motor Efficiency Market Shares in the Base and Standards Cases (page 10-3)
D41: ='Product Classes'!I11&" - "&OFFSET('Product Classes'!$C$9,MATCH('Product Classes'!I11,MODEL_PCS,0),0) -> PC2 - Capacitor-Start, Induction-Run Motors
D43: PRE-Case
D44: Efficiency Level | E44: Full-Load Efficiency | G44: 1981 | H44: =G44+1 -> 1982 | I44: =H44+1 -> 1983 | J44: 1984 | K44: 1985 | L44: 1986 | M44: 1987 | N44: 1988 | O44: 1989 | P44: 1990 | Q44: 1991 | R44: 1992 | S44: 1993 | T44: 1994 | U44: 1995 | V44: 1996 | W44: 1997 | X44: 1998 | Y44: 1999 | Z44: 2000 | AA44: 2001 | AB44: 2002 | AC44: 2003 | AD44: 2004 | AE44: 2005 | AF44: 2006 | AG44: 2007 | AH44: 2008 | AI44: 2009 | AJ44: 2010 | AK44: 2011 | AL44: 2012 | AM44: 2013 | AN44: 2014 | AO44: 2015 | AP44: 2016 | AQ44: 2017 | AR44: 2018 | AS44: 2019 | AT44: 2020 | AU44: 2021 | AV44: 2022 | AW44: 2023 | AX44: 2024 | AY44: 2025 | AZ44: 2026 | BA44: 2027 | BB44: 2028 | BC44: 2029 | BD44: 2030 | BE44: 2031 | BF44: 2032 | BG44: =BF44+1 -> 2033 | BH44: 2034
D45: ='Efficiency Levels'!C30 -> EL0 | E45: ='Efficiency Levels'!D30 -> 0.579 | G45: 0.4 | H45: 0.4 | I45: 0.4 | J45: 0.4 | K45: 0.4 | L45: 0.4 | M45: 0.4 | N45: 0.4 | O45: 0.4 | P45: 0.4 | Q45: 0.4 | R45: 0.4 | S45: 0.4 | T45: 0.4 | U45: 0.4 | V45: 0.4 | W45: 0.4 | X45: 0.4 | Y45: 0.4 | Z45: 0.4 | AA45: 0.4 | AB45: 0.4 | AC45: 0.4 | AD45: 0.4 | AE45: 0.4 | AF45: 0.4 | AG45: 0.4 | AH45: 0.4 | AI45: 0.4 | AJ45: 0.4 | AK45: 0.4 | AL45: 0.4 | AM45: 0.4 | AN45: 0.4 | AO45: 0.4 | AP45: 0.4 | AQ45: 0.4 | AR45: 0.4 | AS45: 0.4 | AT45: 0.4 | AU45: 0.4 | AV45: 0.4 | AW45: 0.4 | AX45: 0.4 | AY45: 0.4 | AZ45: 0.4 | BA45: 0.4 | BB45: 0.4 | BC45: 0.4 | BD45: 0.4 | BE45: 0.4 | BF45: 0.4 | BG45: 0.4 | BH45: 0.4
D46: ='Efficiency Levels'!C31 -> EL1 | E46: ='Efficiency Levels'!D31 -> 0.611 | G46: 0.3 | H46: 0.3 | I46: 0.3 | J46: 0.3 | K46: 0.3 | L46: 0.3 | M46: 0.3 | N46: 0.3 | O46: 0.3 | P46: 0.3 | Q46: 0.3 | R46: 0.3 | S46: 0.3 | T46: 0.3 | U46: 0.3 | V46: 0.3 | W46: 0.3 | X46: 0.3 | Y46: 0.3 | Z46: 0.3 | AA46: 0.3 | AB46: 0.3 | AC46: 0.3 | AD46: 0.3 | AE46: 0.3 | AF46: 0.3 | AG46: 0.3 | AH46: 0.3 | AI46: 0.3 | AJ46: 0.3 | AK46: 0.3 | AL46: 0.3 | AM46: 0.3 | AN46: 0.3 | AO46: 0.3 | AP46: 0.3 | AQ46: 0.3 | AR46: 0.3 | AS46: 0.3 | AT46: 0.3 | AU46: 0.3 | AV46: 0.3 | AW46: 0.3 | AX46: 0.3 | AY46: 0.3 | AZ46: 0.3 | BA46: 0.3 | BB46: 0.3 | BC46: 0.3 | BD46: 0.3 | BE46: 0.3 | BF46: 0.3 | BG46: 0.3 | BH46: 0.3
D47: ='Efficiency Levels'!C32 -> EL2 | E47: ='Efficiency Levels'!D32 -> 0.635 | G47: 0.13 | H47: 0.13 | I47: 0.13 | J47: 0.13 | K47: 0.13 | L47: 0.13 | M47: 0.13 | N47: 0.13 | O47: 0.13 | P47: 0.13 | Q47: 0.13 | R47: 0.13 | S47: 0.13 | T47: 0.13 | U47: 0.13 | V47: 0.13 | W47: 0.13 | X47: 0.13 | Y47: 0.13 | Z47: 0.13 | AA47: 0.13 | AB47: 0.13 | AC47: 0.13 | AD47: 0.13 | AE47: 0.13 | AF47: 0.13 | AG47: 0.13 | AH47: 0.13 | AI47: 0.13 | AJ47: 0.13 | AK47: 0.13 | AL47: 0.13 | AM47: 0.13 | AN47: 0.13 | AO47: 0.13 | AP47: 0.13 | AQ47: 0.13 | AR47: 0.13 | AS47: 0.13 | AT47: 0.13 | AU47: 0.13 | AV47: 0.13 | AW47: 0.13 | AX47: 0.13 | AY47: 0.13 | AZ47: 0.13 | BA47: 0.13 | BB47: 0.13 | BC47: 0.13 | BD47: 0.13 | BE47: 0.13 | BF47: 0.13 | BG47: 0.13 | BH47: 0.13
D48: ='Efficiency Levels'!C33 -> EL3 | E48: ='Efficiency Levels'!D33 -> 0.657 | G48: 0.15 | H48: 0.15 | I48: 0.15 | J48: 0.15 | K48: 0.15 | L48: 0.15 | M48: 0.15 | N48: 0.15 | O48: 0.15 | P48: 0.15 | Q48: 0.15 | R48: 0.15 | S48: 0.15 | T48: 0.15 | U48: 0.15 | V48: 0.15 | W48: 0.15 | X48: 0.15 | Y48: 0.15 | Z48: 0.15 | AA48: 0.15 | AB48: 0.15 | AC48: 0.15 | AD48: 0.15 | AE48: 0.15 | AF48: 0.15 | AG48: 0.15 | AH48: 0.15 | AI48: 0.15 | AJ48: 0.15 | AK48: 0.15 | AL48: 0.15 | AM48: 0.15 | AN48: 0.15 | AO48: 0.15 | AP48: 0.15 | AQ48: 0.15 | AR48: 0.15 | AS48: 0.15 | AT48: 0.15 | AU48: 0.15 | AV48: 0.15 | AW48: 0.15 | AX48: 0.15 | AY48: 0.15 | AZ48: 0.15 | BA48: 0.15 | BB48: 0.15 | BC48: 0.15 | BD48: 0.15 | BE48: 0.15 | BF48: 0.15 | BG48: 0.15 | BH48: 0.15
D49: ='Efficiency Levels'!C34 -> EL4 | E49: ='Efficiency Levels'!D34 -> 0.705 | G49: 0.02 | H49: 0.02 | I49: 0.02 | J49: 0.02 | K49: 0.02 | L49: 0.02 | M49: 0.02 | N49: 0.02 | O49: 0.02 | P49: 0.02 | Q49: 0.02 | R49: 0.02 | S49: 0.02 | T49: 0.02 | U49: 0.02 | V49: 0.02 | W49: 0.02 | X49: 0.02 | Y49: 0.02 | Z49: 0.02 | AA49: 0.02 | AB49: 0.02 | AC49: 0.02 | AD49: 0.02 | AE49: 0.02 | AF49: 0.02 | AG49: 0.02 | AH49: 0.02 | AI49: 0.02 | AJ49: 0.02 | AK49: 0.02 | AL49: 0.02 | AM49: 0.02 | AN49: 0.02 | AO49: 0.02 | AP49: 0.02 | AQ49: 0.02 | AR49: 0.02 | AS49: 0.02 | AT49: 0.02 | AU49: 0.02 | AV49: 0.02 | AW49: 0.02 | AX49: 0.02 | AY49: 0.02 | AZ49: 0.02 | BA49: 0.02 | BB49: 0.02 | BC49: 0.02 | BD49: 0.02 | BE49: 0.02 | BF49: 0.02 | BG49: 0.02 | BH49: 0.02
D50: ='Efficiency Levels'!C35 -> EL5 | E50: ='Efficiency Levels'!D35 -> 0.718 | G50: 0 | H50: 0 | I50: 0 | J50: 0 | K50: 0 | L50: 0 | M50: 0 | N50: 0 | O50: 0 | P50: 0 | Q50: 0 | R50: 0 | S50: 0 | T50: 0 | U50: 0 | V50: 0 | W50: 0 | X50: 0 | Y50: 0 | Z50: 0 | AA50: 0 | AB50: 0 | AC50: 0 | AD50: 0 | AE50: 0 | AF50: 0 | AG50: 0 | AH50: 0 | AI50: 0 | AJ50: 0 | AK50: 0 | AL50: 0 | AM50: 0 | AN50: 0 | AO50: 0 | AP50: 0 | AQ50: 0 | AR50: 0 | AS50: 0 | AT50: 0 | AU50: 0 | AV50: 0 | AW50: 0 | AX50: 0 | AY50: 0 | AZ50: 0 | BA50: 0 | BB50: 0 | BC50: 0 | BD50: 0 | BE50: 0 | BF50: 0 | BG50: 0 | BH50: 0
D51: ='Efficiency Levels'!C36 -> EL6 | E51: ='Efficiency Levels'!D36 -> 0.731 | G51: 0 | H51: 0 | I51: 0 | J51: 0 | K51: 0 | L51: 0 | M51: 0 | N51: 0 | O51: 0 | P51: 0 | Q51: 0 | R51: 0 | S51: 0 | T51: 0 | U51: 0 | V51: 0 | W51: 0 | X51: 0 | Y51: 0 | Z51: 0 | AA51: 0 | AB51: 0 | AC51: 0 | AD51: 0 | AE51: 0 | AF51: 0 | AG51: 0 | AH51: 0 | AI51: 0 | AJ51: 0 | AK51: 0 | AL51: 0 | AM51: 0 | AN51: 0 | AO51: 0 | AP51: 0 | AQ51: 0 | AR51: 0 | AS51: 0 | AT51: 0 | AU51: 0 | AV51: 0 | AW51: 0 | AX51: 0 | AY51: 0 | AZ51: 0 | BA51: 0 | BB51: 0 | BC51: 0 | BD51: 0 | BE51: 0 | BF51: 0 | BG51: 0 | BH51: 0
D52: ='Efficiency Levels'!C37 -> EL7 | E52: ='Efficiency Levels'!D37 -> 0.776 | G52: 0 | H52: 0 | I52: 0 | J52: 0 | K52: 0 | L52: 0 | M52: 0 | N52: 0 | O52: 0 | P52: 0 | Q52: 0 | R52: 0 | S52: 0 | T52: 0 | U52: 0 | V52: 0 | W52: 0 | X52: 0 | Y52: 0 | Z52: 0 | AA52: 0 | AB52: 0 | AC52: 0 | AD52: 0 | AE52: 0 | AF52: 0 | AG52: 0 | AH52: 0 | AI52: 0 | AJ52: 0 | AK52: 0 | AL52: 0 | AM52: 0 | AN52: 0 | AO52: 0 | AP52: 0 | AQ52: 0 | AR52: 0 | AS52: 0 | AT52: 0 | AU52: 0 | AV52: 0 | AW52: 0 | AX52: 0 | AY52: 0 | AZ52: 0 | BA52: 0 | BB52: 0 | BC52: 0 | BD52: 0 | BE52: 0 | BF52: 0 | BG52: 0 | BH52: 0
D53: TOTAL | G53: =SUM(G45:G52) -> 1 | H53: =SUM(H45:H52) -> 1 | I53: 1 | J53: 1 | K53: 1 | L53: 1 | M53: 1 | N53: 1 | O53: 1 | P53: 1 | Q53: =SUM(Q45:Q52) -> 1 | R53: 1 | S53: 1 | T53: 1 | U53: 1 | V53: 1 | W53: 1 | X53: 1 | Y53: 1 | Z53: 1 | AA53: 1 | AB53: 1 | AC53: 1 | AD53: 1 | AE53: 1 | AF53: 1 | AG53: 1 | AH53: 1 | AI53: 1 | AJ53: 1 | AK53: 1 | AL53: 1 | AM53: 1 | AN53: 1 | AO53: 1 | AP53: 1 | AQ53: 1 | AR53: 1 | AS53: 1 | AT53: 1 | AU53: 1 | AV53: 1 | AW53: 1 | AX53: 1 | AY53: 1 | AZ53: 1 | BA53: 1 | BB53: 1 | BC53: 1 | BD53: 1 | BE53: 1 | BF53: 1 | BG53: =SUM(BG45:BG52) -> 1 | BH53: 1
D55: POST-Case
D56: Efficiency Level | E56: Full-Load Efficiency | G56: 1981 | H56: =G56+1 -> 1982 | I56: =H56+1 -> 1983 | J56: 1984 | K56: 1985 | L56: 1986 | M56: 1987 | N56: 1988 | O56: 1989 | P56: 1990 | Q56: 1991 | R56: 1992 | S56: 1993 | T56: 1994 | U56: 1995 | V56: 1996 | W56: 1997 | X56: 1998 | Y56: 1999 | Z56: 2000 | AA56: 2001 | AB56: 2002 | AC56: 2003 | AD56: 2004 | AE56: 2005 | AF56: 2006 | AG56: 2007 | AH56: 2008 | AI56: 2009 | AJ56: 2010 | AK56: 2011 | AL56: 2012 | AM56: 2013 | AN56: 2014 | AO56: 2015 | AP56: 2016 | AQ56: 2017 | AR56: 2018 | AS56: 2019 | AT56: 2020 | AU56: 2021 | AV56: 2022 | AW56: 2023 | AX56: 2024 | AY56: 2025 | AZ56: 2026 | BA56: 2027 | BB56: 2028 | BC56: 2029 | BD56: 2030 | BE56: 2031 | BF56: 2032 | BG56: =BF56+1 -> 2033 | BH56: 2034
D57: ='Efficiency Levels'!C30 -> EL0 | E57: ='Efficiency Levels'!D30 -> 0.579 | G57: 0.4 | H57: 0.4 | I57: 0.4 | J57: 0.4 | K57: 0.4 | L57: 0.4 | M57: 0.4 | N57: 0.4 | O57: 0.4 | P57: 0.4 | Q57: 0.4 | R57: 0.4 | S57: 0.4 | T57: 0.4 | U57: 0.4 | V57: 0.4 | W57: 0.4 | X57: 0.4 | Y57: 0.4 | Z57: 0.4 | AA57: 0.4 | AB57: 0.4 | AC57: 0.4 | AD57: 0.4 | AE57: 0.4 | AF57: 0.4 | AG57: 0.4 | AH57: 0.4 | AI57: 0.4 | AJ57: 0.4 | AK57: 0.4 | AL57: 0.4 | AM57: 0.4 | AN57: 0.4 | AO57: 0 | AP57: 0 | AQ57: 0 | AR57: 0 | AS57: 0 | AT57: 0 | AU57: 0 | AV57: 0 | AW57: 0 | AX57: 0 | AY57: 0 | AZ57: 0 | BA57: 0 | BB57: 0 | BC57: 0 | BD57: 0 | BE57: 0 | BF57: 0 | BG57: 0 | BH57: 0
D58: ='Efficiency Levels'!C31 -> EL1 | E58: ='Efficiency Levels'!D31 -> 0.611 | G58: 0.3 | H58: 0.3 | I58: 0.3 | J58: 0.3 | K58: 0.3 | L58: 0.3 | M58: 0.3 | N58: 0.3 | O58: 0.3 | P58: 0.3 | Q58: 0.3 | R58: 0.3 | S58: 0.3 | T58: 0.3 | U58: 0.3 | V58: 0.3 | W58: 0.3 | X58: 0.3 | Y58: 0.3 | Z58: 0.3 | AA58: 0.3 | AB58: 0.3 | AC58: 0.3 | AD58: 0.3 | AE58: 0.3 | AF58: 0.3 | AG58: 0.3 | AH58: 0.3 | AI58: 0.3 | AJ58: 0.3 | AK58: 0.3 | AL58: 0.3 | AM58: 0.3 | AN58: 0.3 | AO58: 0 | AP58: 0 | AQ58: 0 | AR58: 0 | AS58: 0 | AT58: 0 | AU58: 0 | AV58: 0 | AW58: 0 | AX58: 0 | AY58: 0 | AZ58: 0 | BA58: 0 | BB58: 0 | BC58: 0 | BD58: 0 | BE58: 0 | BF58: 0 | BG58: 0 | BH58: 0
D59: ='Efficiency Levels'!C32 -> EL2 | E59: ='Efficiency Levels'!D32 -> 0.635 | G59: 0.13 | H59: 0.13 | I59: 0.13 | J59: 0.13 | K59: 0.13 | L59: 0.13 | M59: 0.13 | N59: 0.13 | O59: 0.13 | P59: 0.13 | Q59: 0.13 | R59: 0.13 | S59: 0.13 | T59: 0.13 | U59: 0.13 | V59: 0.13 | W59: 0.13 | X59: 0.13 | Y59: 0.13 | Z59: 0.13 | AA59: 0.13 | AB59: 0.13 | AC59: 0.13 | AD59: 0.13 | AE59: 0.13 | AF59: 0.13 | AG59: 0.13 | AH59: 0.13 | AI59: 0.13 | AJ59: 0.13 | AK59: 0.13 | AL59: 0.13 | AM59: 0.13 | AN59: 0.13 | AO59: 0 | AP59: 0 | AQ59: 0 | AR59: 0 | AS59: 0 | AT59: 0 | AU59: 0 | AV59: 0 | AW59: 0 | AX59: 0 | AY59: 0 | AZ59: 0 | BA59: 0 | BB59: 0 | BC59: 0 | BD59: 0 | BE59: 0 | BF59: 0 | BG59: 0 | BH59: 0
D60: ='Efficiency Levels'!C33 -> EL3 | E60: ='Efficiency Levels'!D33 -> 0.657 | G60: 0.15 | H60: 0.15 | I60: 0.15 | J60: 0.15 | K60: 0.15 | L60: 0.15 | M60: 0.15 | N60: 0.15 | O60: 0.15 | P60: 0.15 | Q60: 0.15 | R60: 0.15 | S60: 0.15 | T60: 0.15 | U60: 0.15 | V60: 0.15 | W60: 0.15 | X60: 0.15 | Y60: 0.15 | Z60: 0.15 | AA60: 0.15 | AB60: 0.15 | AC60: 0.15 | AD60: 0.15 | AE60: 0.15 | AF60: 0.15 | AG60: 0.15 | AH60: 0.15 | AI60: 0.15 | AJ60: 0.15 | AK60: 0.15 | AL60: 0.15 | AM60: 0.15 | AN60: 0.15 | AO60: 0 | AP60: 0 | AQ60: 0 | AR60: 0 | AS60: 0 | AT60: 0 | AU60: 0 | AV60: 0 | AW60: 0 | AX60: 0 | AY60: 0 | AZ60: 0 | BA60: 0 | BB60: 0 | BC60: 0 | BD60: 0 | BE60: 0 | BF60: 0 | BG60: 0 | BH60: 0
D61: ='Efficiency Levels'!C34 -> EL4 | E61: ='Efficiency Levels'!D34 -> 0.705 | G61: 0.02 | H61: 0.02 | I61: 0.02 | J61: 0.02 | K61: 0.02 | L61: 0.02 | M61: 0.02 | N61: 0.02 | O61: 0.02 | P61: 0.02 | Q61: 0.02 | R61: 0.02 | S61: 0.02 | T61: 0.02 | U61: 0.02 | V61: 0.02 | W61: 0.02 | X61: 0.02 | Y61: 0.02 | Z61: 0.02 | AA61: 0.02 | AB61: 0.02 | AC61: 0.02 | AD61: 0.02 | AE61: 0.02 | AF61: 0.02 | AG61: 0.02 | AH61: 0.02 | AI61: 0.02 | AJ61: 0.02 | AK61: 0.02 | AL61: 0.02 | AM61: 0.02 | AN61: 0.02 | AO61: 0 | AP61: 0 | AQ61: 0 | AR61: 0 | AS61: 0 | AT61: 0 | AU61: 0 | AV61: 0 | AW61: 0 | AX61: 0 | AY61: 0 | AZ61: 0 | BA61: 0 | BB61: 0 | BC61: 0 | BD61: 0 | BE61: 0 | BF61: 0 | BG61: 0 | BH61: 0
D62: ='Efficiency Levels'!C35 -> EL5 | E62: ='Efficiency Levels'!D35 -> 0.718 | G62: 0 | H62: 0 | I62: 0 | J62: 0 | K62: 0 | L62: 0 | M62: 0 | N62: 0 | O62: 0 | P62: 0 | Q62: 0 | R62: 0 | S62: 0 | T62: 0 | U62: 0 | V62: 0 | W62: 0 | X62: 0 | Y62: 0 | Z62: 0 | AA62: 0 | AB62: 0 | AC62: 0 | AD62: 0 | AE62: 0 | AF62: 0 | AG62: 0 | AH62: 0 | AI62: 0 | AJ62: 0 | AK62: 0 | AL62: 0 | AM62: 0 | AN62: 0 | AO62: 0 | AP62: 0 | AQ62: 0 | AR62: 0 | AS62: 0 | AT62: 0 | AU62: 0 | AV62: 0 | AW62: 0 | AX62: 0 | AY62: 0 | AZ62: 0 | BA62: 0 | BB62: 0 | BC62: 0 | BD62: 0 | BE62: 0 | BF62: 0 | BG62: 0 | BH62: 0
D63: ='Efficiency Levels'!C36 -> EL6 | E63: ='Efficiency Levels'!D36 -> 0.731 | G63: 0 | H63: 0 | I63: 0 | J63: 0 | K63: 0 | L63: 0 | M63: 0 | N63: 0 | O63: 0 | P63: 0 | Q63: 0 | R63: 0 | S63: 0 | T63: 0 | U63: 0 | V63: 0 | W63: 0 | X63: 0 | Y63: 0 | Z63: 0 | AA63: 0 | AB63: 0 | AC63: 0 | AD63: 0 | AE63: 0 | AF63: 0 | AG63: 0 | AH63: 0 | AI63: 0 | AJ63: 0 | AK63: 0 | AL63: 0 | AM63: 0 | AN63: 0 | AO63: 0 | AP63: 0 | AQ63: 0 | AR63: 0 | AS63: 0 | AT63: 0 | AU63: 0 | AV63: 0 | AW63: 0 | AX63: 0 | AY63: 0 | AZ63: 0 | BA63: 0 | BB63: 0 | BC63: 0 | BD63: 0 | BE63: 0 | BF63: 0 | BG63: 0 | BH63: 0
D64: ='Efficiency Levels'!C37 -> EL7 | E64: ='Efficiency Levels'!D37 -> 0.776 | G64: 0 | H64: 0 | I64: 0 | J64: 0 | K64: 0 | L64: 0 | M64: 0 | N64: 0 | O64: 0 | P64: 0 | Q64: 0 | R64: 0 | S64: 0 | T64: 0 | U64: 0 | V64: 0 | W64: 0 | X64: 0 | Y64: 0 | Z64: 0 | AA64: 0 | AB64: 0 | AC64: 0 | AD64: 0 | AE64: 0 | AF64: 0 | AG64: 0 | AH64: 0 | AI64: 0 | AJ64: 0 | AK64: 0 | AL64: 0 | AM64: 0 | AN64: 0 | AO64: 1 | AP64: 1 | AQ64: 1 | AR64: 1 | AS64: 1 | AT64: 1 | AU64: 1 | AV64: 1 | AW64: 1 | AX64: 1 | AY64: 1 | AZ64: 1 | BA64: 1 | BB64: 1 | BC64: 1 | BD64: 1 | BE64: 1 | BF64: 1 | BG64: 1 | BH64: 1
D65: TOTAL | G65: =SUM(G57:G64) -> 1 | H65: =SUM(H57:H64) -> 1 | I65: 1 | J65: 1 | K65: 1 | L65: 1 | M65: 1 | N65: 1 | O65: 1 | P65: 1 | Q65: =SUM(Q57:Q64) -> 1 | R65: 1 | S65: 1 | T65: 1 | U65: 1 | V65: 1 | W65: 1 | X65: 1 | Y65: 1 | Z65: 1 | AA65: 1 | AB65: 1 | AC65: 1 | AD65: 1 | AE65: 1 | AF65: 1 | AG65: 1 | AH65: 1 | AI65: 1 | AJ65: 1 | AK65: 1 | AL65: 1 | AM65: 1 | AN65: =SUM(AN57:AN64) -> 1 | AO65: 1 | AP65: 1 | AQ65: 1 | AR65: 1 | AS65: 1 | AT65: 1 | AU65: 1 | AV65: 1 | AW65: 1 | AX65: 1 | AY65: 1 | AZ65: 1 | BA65: 1 | BB65: 1 | BC65: 1 | BD65: 1 | BE65: 1 | BF65: 1 | BG65: =SUM(BG57:BG64) -> 1 | BH65: 1
D67: Sources | E67: DOE Small Electric Motors 2010 Final Rule, Technical Support Document, Chapter 10: National Impact Analysis, Table 10.2.3 CSIR Motor Efficiency Market Shares in the Base and Standards Cases (page 10-4)
D71: ='Product Classes'!I12&" - "&OFFSET('Product Classes'!$C$9,MATCH('Product Classes'!I12,MODEL_PCS,0),0) -> PC3 - Capacitor-Start, Capacitor-Run Motors
D73: PRE-Case
D74: Efficiency Level | E74: Full-Load Efficiency | G74: 1981 | H74: =G74+1 -> 1982 | I74: =H74+1 -> 1983 | J74: 1984 | K74: 1985 | L74: 1986 | M74: 1987 | N74: 1988 | O74: 1989 | P74: 1990 | Q74: 1991 | R74: 1992 | S74: 1993 | T74: 1994 | U74: 1995 | V74: 1996 | W74: 1997 | X74: 1998 | Y74: 1999 | Z74: 2000 | AA74: 2001 | AB74: 2002 | AC74: 2003 | AD74: 2004 | AE74: 2005 | AF74: 2006 | AG74: 2007 | AH74: 2008 | AI74: 2009 | AJ74: 2010 | AK74: 2011 | AL74: 2012 | AM74: 2013 | AN74: 2014 | AO74: 2015 | AP74: 2016 | AQ74: 2017 | AR74: 2018 | AS74: 2019 | AT74: 2020 | AU74: 2021 | AV74: 2022 | AW74: 2023 | AX74: 2024 | AY74: 2025 | AZ74: 2026 | BA74: 2027 | BB74: 2028 | BC74: 2029 | BD74: 2030 | BE74: 2031 | BF74: 2032 | BG74: =BF74+1 -> 2033 | BH74: 2034
D75: ='Efficiency Levels'!C47 -> EL0 | E75: ='Efficiency Levels'!D47 -> 0.714 | G75: 0.37 | H75: 0.37 | I75: 0.37 | J75: 0.37 | K75: 0.37 | L75: 0.37 | M75: 0.37 | N75: 0.37 | O75: 0.37 | P75: 0.37 | Q75: 0.37 | R75: 0.37 | S75: 0.37 | T75: 0.37 | U75: 0.37 | V75: 0.37 | W75: 0.37 | X75: 0.37 | Y75: 0.37 | Z75: 0.37 | AA75: 0.37 | AB75: 0.37 | AC75: 0.37 | AD75: 0.37 | AE75: 0.37 | AF75: 0.37 | AG75: 0.37 | AH75: 0.37 | AI75: 0.37 | AJ75: 0.37 | AK75: 0.37 | AL75: 0.37 | AM75: 0.37 | AN75: 0.37 | AO75: 0.37 | AP75: 0.37 | AQ75: 0.37 | AR75: 0.37 | AS75: 0.37 | AT75: 0.37 | AU75: 0.37 | AV75: 0.37 | AW75: 0.37 | AX75: 0.37 | AY75: 0.37 | AZ75: 0.37 | BA75: 0.37 | BB75: 0.37 | BC75: 0.37 | BD75: 0.37 | BE75: 0.37 | BF75: 0.37 | BG75: 0.37 | BH75: 0.37
D76: ='Efficiency Levels'!C48 -> EL1 | E76: ='Efficiency Levels'!D48 -> 0.751 | G76: 0.33 | H76: 0.33 | I76: 0.33 | J76: 0.33 | K76: 0.33 | L76: 0.33 | M76: 0.33 | N76: 0.33 | O76: 0.33 | P76: 0.33 | Q76: 0.33 | R76: 0.33 | S76: 0.33 | T76: 0.33 | U76: 0.33 | V76: 0.33 | W76: 0.33 | X76: 0.33 | Y76: 0.33 | Z76: 0.33 | AA76: 0.33 | AB76: 0.33 | AC76: 0.33 | AD76: 0.33 | AE76: 0.33 | AF76: 0.33 | AG76: 0.33 | AH76: 0.33 | AI76: 0.33 | AJ76: 0.33 | AK76: 0.33 | AL76: 0.33 | AM76: 0.33 | AN76: 0.33 | AO76: 0.33 | AP76: 0.33 | AQ76: 0.33 | AR76: 0.33 | AS76: 0.33 | AT76: 0.33 | AU76: 0.33 | AV76: 0.33 | AW76: 0.33 | AX76: 0.33 | AY76: 0.33 | AZ76: 0.33 | BA76: 0.33 | BB76: 0.33 | BC76: 0.33 | BD76: 0.33 | BE76: 0.33 | BF76: 0.33 | BG76: 0.33 | BH76: 0.33
D77: ='Efficiency Levels'!C49 -> EL2 | E77: ='Efficiency Levels'!D49 -> 0.795 | G77: 0.04 | H77: 0.04 | I77: 0.04 | J77: 0.04 | K77: 0.04 | L77: 0.04 | M77: 0.04 | N77: 0.04 | O77: 0.04 | P77: 0.04 | Q77: 0.04 | R77: 0.04 | S77: 0.04 | T77: 0.04 | U77: 0.04 | V77: 0.04 | W77: 0.04 | X77: 0.04 | Y77: 0.04 | Z77: 0.04 | AA77: 0.04 | AB77: 0.04 | AC77: 0.04 | AD77: 0.04 | AE77: 0.04 | AF77: 0.04 | AG77: 0.04 | AH77: 0.04 | AI77: 0.04 | AJ77: 0.04 | AK77: 0.04 | AL77: 0.04 | AM77: 0.04 | AN77: 0.04 | AO77: 0.04 | AP77: 0.04 | AQ77: 0.04 | AR77: 0.04 | AS77: 0.04 | AT77: 0.04 | AU77: 0.04 | AV77: 0.04 | AW77: 0.04 | AX77: 0.04 | AY77: 0.04 | AZ77: 0.04 | BA77: 0.04 | BB77: 0.04 | BC77: 0.04 | BD77: 0.04 | BE77: 0.04 | BF77: 0.04 | BG77: 0.04 | BH77: 0.04
D78: ='Efficiency Levels'!C50 -> EL3 | E78: ='Efficiency Levels'!D50 -> 0.817 | G78: 0.11 | H78: 0.11 | I78: 0.11 | J78: 0.11 | K78: 0.11 | L78: 0.11 | M78: 0.11 | N78: 0.11 | O78: 0.11 | P78: 0.11 | Q78: 0.11 | R78: 0.11 | S78: 0.11 | T78: 0.11 | U78: 0.11 | V78: 0.11 | W78: 0.11 | X78: 0.11 | Y78: 0.11 | Z78: 0.11 | AA78: 0.11 | AB78: 0.11 | AC78: 0.11 | AD78: 0.11 | AE78: 0.11 | AF78: 0.11 | AG78: 0.11 | AH78: 0.11 | AI78: 0.11 | AJ78: 0.11 | AK78: 0.11 | AL78: 0.11 | AM78: 0.11 | AN78: 0.11 | AO78: 0.11 | AP78: 0.11 | AQ78: 0.11 | AR78: 0.11 | AS78: 0.11 | AT78: 0.11 | AU78: 0.11 | AV78: 0.11 | AW78: 0.11 | AX78: 0.11 | AY78: 0.11 | AZ78: 0.11 | BA78: 0.11 | BB78: 0.11 | BC78: 0.11 | BD78: 0.11 | BE78: 0.11 | BF78: 0.11 | BG78: 0.11 | BH78: 0.11
D79: ='Efficiency Levels'!C51 -> EL4 | E79: ='Efficiency Levels'!D51 -> 0.828 | G79: 0.11 | H79: 0.11 | I79: 0.11 | J79: 0.11 | K79: 0.11 | L79: 0.11 | M79: 0.11 | N79: 0.11 | O79: 0.11 | P79: 0.11 | Q79: 0.11 | R79: 0.11 | S79: 0.11 | T79: 0.11 | U79: 0.11 | V79: 0.11 | W79: 0.11 | X79: 0.11 | Y79: 0.11 | Z79: 0.11 | AA79: 0.11 | AB79: 0.11 | AC79: 0.11 | AD79: 0.11 | AE79: 0.11 | AF79: 0.11 | AG79: 0.11 | AH79: 0.11 | AI79: 0.11 | AJ79: 0.11 | AK79: 0.11 | AL79: 0.11 | AM79: 0.11 | AN79: 0.11 | AO79: 0.11 | AP79: 0.11 | AQ79: 0.11 | AR79: 0.11 | AS79: 0.11 | AT79: 0.11 | AU79: 0.11 | AV79: 0.11 | AW79: 0.11 | AX79: 0.11 | AY79: 0.11 | AZ79: 0.11 | BA79: 0.11 | BB79: 0.11 | BC79: 0.11 | BD79: 0.11 | BE79: 0.11 | BF79: 0.11 | BG79: 0.11 | BH79: 0.11
D80: ='Efficiency Levels'!C52 -> EL5 | E80: ='Efficiency Levels'!D52 -> 0.84 | G80: 0 | H80: 0 | I80: 0 | J80: 0 | K80: 0 | L80: 0 | M80: 0 | N80: 0 | O80: 0 | P80: 0 | Q80: 0 | R80: 0 | S80: 0 | T80: 0 | U80: 0 | V80: 0 | W80: 0 | X80: 0 | Y80: 0 | Z80: 0 | AA80: 0 | AB80: 0 | AC80: 0 | AD80: 0 | AE80: 0 | AF80: 0 | AG80: 0 | AH80: 0 | AI80: 0 | AJ80: 0 | AK80: 0 | AL80: 0 | AM80: 0 | AN80: 0 | AO80: 0 | AP80: 0 | AQ80: 0 | AR80: 0 | AS80: 0 | AT80: 0 | AU80: 0 | AV80: 0 | AW80: 0 | AX80: 0 | AY80: 0 | AZ80: 0 | BA80: 0 | BB80: 0 | BC80: 0 | BD80: 0 | BE80: 0 | BF80: 0 | BG80: 0 | BH80: 0
D81: ='Efficiency Levels'!C53 -> EL6 | E81: ='Efficiency Levels'!D53 -> 0.846 | G81: 0.04 | H81: 0.04 | I81: 0.04 | J81: 0.04 | K81: 0.04 | L81: 0.04 | M81: 0.04 | N81: 0.04 | O81: 0.04 | P81: 0.04 | Q81: 0.04 | R81: 0.04 | S81: 0.04 | T81: 0.04 | U81: 0.04 | V81: 0.04 | W81: 0.04 | X81: 0.04 | Y81: 0.04 | Z81: 0.04 | AA81: 0.04 | AB81: 0.04 | AC81: 0.04 | AD81: 0.04 | AE81: 0.04 | AF81: 0.04 | AG81: 0.04 | AH81: 0.04 | AI81: 0.04 | AJ81: 0.04 | AK81: 0.04 | AL81: 0.04 | AM81: 0.04 | AN81: 0.04 | AO81: 0.04 | AP81: 0.04 | AQ81: 0.04 | AR81: 0.04 | AS81: 0.04 | AT81: 0.04 | AU81: 0.04 | AV81: 0.04 | AW81: 0.04 | AX81: 0.04 | AY81: 0.04 | AZ81: 0.04 | BA81: 0.04 | BB81: 0.04 | BC81: 0.04 | BD81: 0.04 | BE81: 0.04 | BF81: 0.04 | BG81: 0.04 | BH81: 0.04
D82: ='Efficiency Levels'!C54 -> EL7 | E82: ='Efficiency Levels'!D54 -> 0.867 | G82: 0 | H82: 0 | I82: 0 | J82: 0 | K82: 0 | L82: 0 | M82: 0 | N82: 0 | O82: 0 | P82: 0 | Q82: 0 | R82: 0 | S82: 0 | T82: 0 | U82: 0 | V82: 0 | W82: 0 | X82: 0 | Y82: 0 | Z82: 0 | AA82: 0 | AB82: 0 | AC82: 0 | AD82: 0 | AE82: 0 | AF82: 0 | AG82: 0 | AH82: 0 | AI82: 0 | AJ82: 0 | AK82: 0 | AL82: 0 | AM82: 0 | AN82: 0 | AO82: 0 | AP82: 0 | AQ82: 0 | AR82: 0 | AS82: 0 | AT82: 0 | AU82: 0 | AV82: 0 | AW82: 0 | AX82: 0 | AY82: 0 | AZ82: 0 | BA82: 0 | BB82: 0 | BC82: 0 | BD82: 0 | BE82: 0 | BF82: 0 | BG82: 0 | BH82: 0
D83: ='Efficiency Levels'!C55 -> EL8 | E83: ='Efficiency Levels'!D55 -> 0.879 | G83: 0 | H83: 0 | I83: 0 | J83: 0 | K83: 0 | L83: 0 | M83: 0 | N83: 0 | O83: 0 | P83: 0 | Q83: 0 | R83: 0 | S83: 0 | T83: 0 | U83: 0 | V83: 0 | W83: 0 | X83: 0 | Y83: 0 | Z83: 0 | AA83: 0 | AB83: 0 | AC83: 0 | AD83: 0 | AE83: 0 | AF83: 0 | AG83: 0 | AH83: 0 | AI83: 0 | AJ83: 0 | AK83: 0 | AL83: 0 | AM83: 0 | AN83: 0 | AO83: 0 | AP83: 0 | AQ83: 0 | AR83: 0 | AS83: 0 | AT83: 0 | AU83: 0 | AV83: 0 | AW83: 0 | AX83: 0 | AY83: 0 | AZ83: 0 | BA83: 0 | BB83: 0 | BC83: 0 | BD83: 0 | BE83: 0 | BF83: 0 | BG83: 0 | BH83: 0
D84: TOTAL | G84: =SUM(G75:G83) -> 1 | H84: =SUM(H75:H83) -> 1 | I84: 1 | J84: 1 | K84: 1 | L84: 1 | M84: 1 | N84: 1 | O84: 1 | P84: 1 | Q84: =SUM(Q75:Q83) -> 1 | R84: 1 | S84: 1 | T84: 1 | U84: 1 | V84: 1 | W84: 1 | X84: 1 | Y84: 1 | Z84: 1 | AA84: 1 | AB84: 1 | AC84: 1 | AD84: 1 | AE84: 1 | AF84: 1 | AG84: 1 | AH84: 1 | AI84: 1 | AJ84: 1 | AK84: 1 | AL84: 1 | AM84: 1 | AN84: 1 | AO84: 1 | AP84: 1 | AQ84: 1 | AR84: 1 | AS84: 1 | AT84: 1 | AU84: 1 | AV84: 1 | AW84: 1 | AX84: 1 | AY84: 1 | AZ84: 1 | BA84: 1 | BB84: 1 | BC84: 1 | BD84: 1 | BE84: 1 | BF84: 1 | BG84: =SUM(BG75:BG83) -> 1 | BH84: 1
D86: POST-Case
D87: Efficiency Level | E87: Full-Load Efficiency | G87: 1981 | H87: =G87+1 -> 1982 | I87: =H87+1 -> 1983 | J87: 1984 | K87: 1985 | L87: 1986 | M87: 1987 | N87: 1988 | O87: 1989 | P87: 1990 | Q87: 1991 | R87: 1992 | S87: 1993 | T87: 1994 | U87: 1995 | V87: 1996 | W87: 1997 | X87: 1998 | Y87: 1999 | Z87: 2000 | AA87: 2001 | AB87: 2002 | AC87: 2003 | AD87: 2004 | AE87: 2005 | AF87: 2006 | AG87: 2007 | AH87: 2008 | AI87: 2009 | AJ87: 2010 | AK87: 2011 | AL87: 2012 | AM87: 2013 | AN87: 2014 | AO87: 2015 | AP87: 2016 | AQ87: 2017 | AR87: 2018 | AS87: 2019 | AT87: 2020 | AU87: 2021 | AV87: 2022 | AW87: 2023 | AX87: 2024 | AY87: 2025 | AZ87: 2026 | BA87: 2027 | BB87: 2028 | BC87: 2029 | BD87: 2030 | BE87: 2031 | BF87: 2032 | BG87: =BF87+1 -> 2033 | BH87: 2034
D88: ='Efficiency Levels'!C47 -> EL0 | E88: ='Efficiency Levels'!D47 -> 0.714 | G88: 0.37 | H88: 0.37 | I88: 0.37 | J88: 0.37 | K88: 0.37 | L88: 0.37 | M88: 0.37 | N88: 0.37 | O88: 0.37 | P88: 0.37 | Q88: 0.37 | R88: 0.37 | S88: 0.37 | T88: 0.37 | U88: 0.37 | V88: 0.37 | W88: 0.37 | X88: 0.37 | Y88: 0.37 | Z88: 0.37 | AA88: 0.37 | AB88: 0.37 | AC88: 0.37 | AD88: 0.37 | AE88: 0.37 | AF88: 0.37 | AG88: 0.37 | AH88: 0.37 | AI88: 0.37 | AJ88: 0.37 | AK88: 0.37 | AL88: 0.37 | AM88: 0.37 | AN88: 0.37 | AO88: 0 | AP88: 0 | AQ88: 0 | AR88: 0 | AS88: 0 | AT88: 0 | AU88: 0 | AV88: 0 | AW88: 0 | AX88: 0 | AY88: 0 | AZ88: 0 | BA88: 0 | BB88: 0 | BC88: 0 | BD88: 0 | BE88: 0 | BF88: 0 | BG88: 0 | BH88: 0
D89: ='Efficiency Levels'!C48 -> EL1 | E89: ='Efficiency Levels'!D48 -> 0.751 | G89: 0.33 | H89: 0.33 | I89: 0.33 | J89: 0.33 | K89: 0.33 | L89: 0.33 | M89: 0.33 | N89: 0.33 | O89: 0.33 | P89: 0.33 | Q89: 0.33 | R89: 0.33 | S89: 0.33 | T89: 0.33 | U89: 0.33 | V89: 0.33 | W89: 0.33 | X89: 0.33 | Y89: 0.33 | Z89: 0.33 | AA89: 0.33 | AB89: 0.33 | AC89: 0.33 | AD89: 0.33 | AE89: 0.33 | AF89: 0.33 | AG89: 0.33 | AH89: 0.33 | AI89: 0.33 | AJ89: 0.33 | AK89: 0.33 | AL89: 0.33 | AM89: 0.33 | AN89: 0.33 | AO89: 0 | AP89: 0 | AQ89: 0 | AR89: 0 | AS89: 0 | AT89: 0 | AU89: 0 | AV89: 0 | AW89: 0 | AX89: 0 | AY89: 0 | AZ89: 0 | BA89: 0 | BB89: 0 | BC89: 0 | BD89: 0 | BE89: 0 | BF89: 0 | BG89: 0 | BH89: 0
D90: ='Efficiency Levels'!C49 -> EL2 | E90: ='Efficiency Levels'!D49 -> 0.795 | G90: 0.04 | H90: 0.04 | I90: 0.04 | J90: 0.04 | K90: 0.04 | L90: 0.04 | M90: 0.04 | N90: 0.04 | O90: 0.04 | P90: 0.04 | Q90: 0.04 | R90: 0.04 | S90: 0.04 | T90: 0.04 | U90: 0.04 | V90: 0.04 | W90: 0.04 | X90: 0.04 | Y90: 0.04 | Z90: 0.04 | AA90: 0.04 | AB90: 0.04 | AC90: 0.04 | AD90: 0.04 | AE90: 0.04 | AF90: 0.04 | AG90: 0.04 | AH90: 0.04 | AI90: 0.04 | AJ90: 0.04 | AK90: 0.04 | AL90: 0.04 | AM90: 0.04 | AN90: 0.04 | AO90: 0 | AP90: 0 | AQ90: 0 | AR90: 0 | AS90: 0 | AT90: 0 | AU90: 0 | AV90: 0 | AW90: 0 | AX90: 0 | AY90: 0 | AZ90: 0 | BA90: 0 | BB90: 0 | BC90: 0 | BD90: 0 | BE90: 0 | BF90: 0 | BG90: 0 | BH90: 0
D91: ='Efficiency Levels'!C50 -> EL3 | E91: ='Efficiency Levels'!D50 -> 0.817 | G91: 0.11 | H91: 0.11 | I91: 0.11 | J91: 0.11 | K91: 0.11 | L91: 0.11 | M91: 0.11 | N91: 0.11 | O91: 0.11 | P91: 0.11 | Q91: 0.11 | R91: 0.11 | S91: 0.11 | T91: 0.11 | U91: 0.11 | V91: 0.11 | W91: 0.11 | X91: 0.11 | Y91: 0.11 | Z91: 0.11 | AA91: 0.11 | AB91: 0.11 | AC91: 0.11 | AD91: 0.11 | AE91: 0.11 | AF91: 0.11 | AG91: 0.11 | AH91: 0.11 | AI91: 0.11 | AJ91: 0.11 | AK91: 0.11 | AL91: 0.11 | AM91: 0.11 | AN91: 0.11 | AO91: 0.85 | AP91: 0.85 | AQ91: 0.85 | AR91: 0.85 | AS91: 0.85 | AT91: 0.85 | AU91: 0.85 | AV91: 0.85 | AW91: 0.85 | AX91: 0.85 | AY91: 0.85 | AZ91: 0.85 | BA91: 0.85 | BB91: 0.85 | BC91: 0.85 | BD91: 0.85 | BE91: 0.85 | BF91: 0.85 | BG91: 0.85 | BH91: 0.85
D92: ='Efficiency Levels'!C51 -> EL4 | E92: ='Efficiency Levels'!D51 -> 0.828 | G92: 0.11 | H92: 0.11 | I92: 0.11 | J92: 0.11 | K92: 0.11 | L92: 0.11 | M92: 0.11 | N92: 0.11 | O92: 0.11 | P92: 0.11 | Q92: 0.11 | R92: 0.11 | S92: 0.11 | T92: 0.11 | U92: 0.11 | V92: 0.11 | W92: 0.11 | X92: 0.11 | Y92: 0.11 | Z92: 0.11 | AA92: 0.11 | AB92: 0.11 | AC92: 0.11 | AD92: 0.11 | AE92: 0.11 | AF92: 0.11 | AG92: 0.11 | AH92: 0.11 | AI92: 0.11 | AJ92: 0.11 | AK92: 0.11 | AL92: 0.11 | AM92: 0.11 | AN92: 0.11 | AO92: 0.11 | AP92: 0.11 | AQ92: 0.11 | AR92: 0.11 | AS92: 0.11 | AT92: 0.11 | AU92: 0.11 | AV92: 0.11 | AW92: 0.11 | AX92: 0.11 | AY92: 0.11 | AZ92: 0.11 | BA92: 0.11 | BB92: 0.11 | BC92: 0.11 | BD92: 0.11 | BE92: 0.11 | BF92: 0.11 | BG92: 0.11 | BH92: 0.11
D93: ='Efficiency Levels'!C52 -> EL5 | E93: ='Efficiency Levels'!D52 -> 0.84 | G93: 0 | H93: 0 | I93: 0 | J93: 0 | K93: 0 | L93: 0 | M93: 0 | N93: 0 | O93: 0 | P93: 0 | Q93: 0 | R93: 0 | S93: 0 | T93: 0 | U93: 0 | V93: 0 | W93: 0 | X93: 0 | Y93: 0 | Z93: 0 | AA93: 0 | AB93: 0 | AC93: 0 | AD93: 0 | AE93: 0 | AF93: 0 | AG93: 0 | AH93: 0 | AI93: 0 | AJ93: 0 | AK93: 0 | AL93: 0 | AM93: 0 | AN93: 0 | AO93: 0 | AP93: 0 | AQ93: 0 | AR93: 0 | AS93: 0 | AT93: 0 | AU93: 0 | AV93: 0 | AW93: 0 | AX93: 0 | AY93: 0 | AZ93: 0 | BA93: 0 | BB93: 0 | BC93: 0 | BD93: 0 | BE93: 0 | BF93: 0 | BG93: 0 | BH93: 0
D94: ='Efficiency Levels'!C53 -> EL6 | E94: ='Efficiency Levels'!D53 -> 0.846 | G94: 0.04 | H94: 0.04 | I94: 0.04 | J94: 0.04 | K94: 0.04 | L94: 0.04 | M94: 0.04 | N94: 0.04 | O94: 0.04 | P94: 0.04 | Q94: 0.04 | R94: 0.04 | S94: 0.04 | T94: 0.04 | U94: 0.04 | V94: 0.04 | W94: 0.04 | X94: 0.04 | Y94: 0.04 | Z94: 0.04 | AA94: 0.04 | AB94: 0.04 | AC94: 0.04 | AD94: 0.04 | AE94: 0.04 | AF94: 0.04 | AG94: 0.04 | AH94: 0.04 | AI94: 0.04 | AJ94: 0.04 | AK94: 0.04 | AL94: 0.04 | AM94: 0.04 | AN94: 0.04 | AO94: 0.04 | AP94: 0.04 | AQ94: 0.04 | AR94: 0.04 | AS94: 0.04 | AT94: 0.04 | AU94: 0.04 | AV94: 0.04 | AW94: 0.04 | AX94: 0.04 | AY94: 0.04 | AZ94: 0.04 | BA94: 0.04 | BB94: 0.04 | BC94: 0.04 | BD94: 0.04 | BE94: 0.04 | BF94: 0.04 | BG94: 0.04 | BH94: 0.04
D95: ='Efficiency Levels'!C54 -> EL7 | E95: ='Efficiency Levels'!D54 -> 0.867 | G95: 0 | H95: 0 | I95: 0 | J95: 0 | K95: 0 | L95: 0 | M95: 0 | N95: 0 | O95: 0 | P95: 0 | Q95: 0 | R95: 0 | S95: 0 | T95: 0 | U95: 0 | V95: 0 | W95: 0 | X95: 0 | Y95: 0 | Z95: 0 | AA95: 0 | AB95: 0 | AC95: 0 | AD95: 0 | AE95: 0 | AF95: 0 | AG95: 0 | AH95: 0 | AI95: 0 | AJ95: 0 | AK95: 0 | AL95: 0 | AM95: 0 | AN95: 0 | AO95: 0 | AP95: 0 | AQ95: 0 | AR95: 0 | AS95: 0 | AT95: 0 | AU95: 0 | AV95: 0 | AW95: 0 | AX95: 0 | AY95: 0 | AZ95: 0 | BA95: 0 | BB95: 0 | BC95: 0 | BD95: 0 | BE95: 0 | BF95: 0 | BG95: 0 | BH95: 0
D96: ='Efficiency Levels'!C55 -> EL8 | E96: ='Efficiency Levels'!D55 -> 0.879 | G96: 0 | H96: 0 | I96: 0 | J96: 0 | K96: 0 | L96: 0 | M96: 0 | N96: 0 | O96: 0 | P96: 0 | Q96: 0 | R96: 0 | S96: 0 | T96: 0 | U96: 0 | V96: 0 | W96: 0 | X96: 0 | Y96: 0 | Z96: 0 | AA96: 0 | AB96: 0 | AC96: 0 | AD96: 0 | AE96: 0 | AF96: 0 | AG96: 0 | AH96: 0 | AI96: 0 | AJ96: 0 | AK96: 0 | AL96: 0 | AM96: 0 | AN96: 0 | AO96: 0 | AP96: 0 | AQ96: 0 | AR96: 0 | AS96: 0 | AT96: 0 | AU96: 0 | AV96: 0 | AW96: 0 | AX96: 0 | AY96: 0 | AZ96: 0 | BA96: 0 | BB96: 0 | BC96: 0 | BD96: 0 | BE96: 0 | BF96: 0 | BG96: 0 | BH96: 0
D97: TOTAL | G97: =SUM(G88:G96) -> 1 | H97: =SUM(H88:H96) -> 1 | I97: 1 | J97: 1 | K97: 1 | L97: 1 | M97: 1 | N97: 1 | O97: 1 | P97: 1 | Q97: =SUM(Q88:Q96) -> 1 | R97: 1 | S97: 1 | T97: 1 | U97: 1 | V97: 1 | W97: 1 | X97: 1 | Y97: 1 | Z97: 1 | AA97: 1 | AB97: 1 | AC97: 1 | AD97: 1 | AE97: 1 | AF97: 1 | AG97: 1 | AH97: 1 | AI97: 1 | AJ97: 1 | AK97: 1 | AL97: 1 | AM97: 1 | AN97: =SUM(AN88:AN96) -> 1 | AO97: 1 | AP97: 1 | AQ97: 1 | AR97: 1 | AS97: 1 | AT97: 1 | AU97: 1 | AV97: 1 | AW97: 1 | AX97: 1 | AY97: 1 | AZ97: 1 | BA97: 1 | BB97: 1 | BC97: 1 | BD97: 1 | BE97: 1 | BF97: 1 | BG97: =SUM(BG88:BG96) -> 1 | BH97: 1
D99: Sources | E99: DOE Small Electric Motors 2010 Final Rule, Technical Support Document, Chapter 10: National Impact Analysis, Table 10.2.4 CSCR Motor Efficiency Market Shares in the Base and Standards Cases (page 10-4)

Sheet Stock Model - Polyphase
C2: Stock Model - Polyphase Motors
C4: NAVIGATION
C6: COMMENTS
D9: Initial Year | E9: Product
D10: 1981 | E10: SEM
C12: Quantity of Stock by AGE and YEAR
D13: Unit Age in Years
C14: Year | D14: 18 | E14: 17 | F14: 16 | G14: 15 | H14: 14 | I14: 13 | J14: 12 | K14: 11 | L14: 10 | M14: 9 | N14: 8 | O14: 7 | P14: 6 | Q14: 5 | R14: 4 | S14: 3 | T14: 2 | U14: 1 | W14: Year | X14: New Shipments | Y14: Stock | Z14: Replacements for Retiring Units | AA14: Shipment due to New Construction | AB14: Shipment due to Stock Buildout | AC14: Total Shipments
C15: =C16-1 -> 1981 | D15: =IF(AND(Year-Age+1>=Initial_Year,Age <=PolyphaseLife),OFFSET($X15,1-Age,0),0) -> 0 | E15: 0 | F15: 0 | G15: 0 | H15: 0 | I15: 0 | J15: 0 | K15: 0 | L15: 0 | M15: 0 | N15: 0 | O15: 0 | P15: 0 | Q15: 0 | R15: 0 | S15: 0 | T15: =IF(AND(Year-Age+1>=Initial_Year,Age <=PolyphaseLife),OFFSET($X15,1-Age,0),0) -> 0 | U15: 18404.05887 | W15: =W16-1 -> 1981 | X15: =TRANSPOSE('Product Class Dist'!$D$10:$BE$10)*NorthwestScalingFactor -> 18404.05887 | Y15: =SUM(D15:U15) -> 18404.05887 | Z15: 0 | AA15: 0 | AB15: =IF(W15-$W$24<=PolyphaseLife,X15-AA15,0) -> 18404.05887 | AC15: =Z15+AA15+AB15 -> 18404.05887
C16: 1982 | D16: 0 | E16: 0 | F16: 0 | G16: 0 | H16: 0 | I16: 0 | J16: 0 | K16: 0 | L16: 0 | M16: 0 | N16: 0 | O16: 0 | P16: 0 | Q16: 0 | R16: 0 | S16: 0 | T16: 18404.05887 | U16: 18740.15403 | W16: 1982 | X16: 18740.15403 | Y16: 37144.21289 | Z16: 0 | AA16: =Y15*ShipmentGrowthRate -> 336.0951561 | AB16: 18404.05887 | AC16: 18740.15403
C17: 1983 | D17: 0 | E17: 0 | F17: 0 | G17: 0 | H17: 0 | I17: 0 | J17: 0 | K17: 0 | L17: 0 | M17: 0 | N17: 0 | O17: 0 | P17: 0 | Q17: 0 | R17: 0 | S17: 18404.05887 | T17: 18740.15403 | U17: 19082.38696 | W17: 1983 | X17: 19082.38696 | Y17: 56226.59985 | Z17: 0 | AA17: 678.3280863 | AB17: 18404.05887 | AC17: 19082.38696
C18: =C19-1 -> 1984 | D18: 0 | E18: 0 | F18: 0 | G18: 0 | H18: 0 | I18: 0 | J18: 0 | K18: 0 | L18: 0 | M18: 0 | N18: 0 | O18: 0 | P18: 0 | Q18: 0 | R18: 18404.05887 | S18: 18740.15403 | T18: 19082.38696 | U18: 19430.86975 | W18: 1984 | X18: 19430.86975 | Y18: 75657.4696 | Z18: 0 | AA18: 1026.810879 | AB18: 18404.05887 | AC18: 19430.86975
C19: 1985 | D19: 0 | E19: 0 | F19: 0 | G19: 0 | H19: 0 | I19: 0 | J19: 0 | K19: 0 | L19: 0 | M19: 0 | N19: 0 | O19: 0 | P19: 0 | Q19: 18404.05887 | R19: 18740.15403 | S19: 19082.38696 | T19: 19430.86975 | U19: 19785.71654 | W19: 1985 | X19: 19785.71654 | Y19: 95443.18613 | Z19: 0 | AA19: 1381.657668 | AB19: 18404.05887 | AC19: 19785.71654
C20: 1986 | D20: 0 | E20: 0 | F20: 0 | G20: 0 | H20: 0 | I20: 0 | J20: 0 | K20: 0 | L20: 0 | M20: 0 | N20: 0 | O20: 0 | P20: 18404.05887 | Q20: 18740.15403 | R20: 19082.38696 | S20: 19430.86975 | T20: 19785.71654 | U20: 20147.04354 | W20: 1986 | X20: 20147.04354 | Y20: 115590.2297 | Z20: 0 | AA20: 1742.984674 | AB20: 18404.05887 | AC20: 20147.04354
C21: 1987 | D21: 0 | E21: 0 | F21: 0 | G21: 0 | H21: 0 | I21: 0 | J21: 0 | K21: 0 | L21: 0 | M21: 0 | N21: 0 | O21: 18404.05887 | P21: 18740.15403 | Q21: 19082.38696 | R21: 19430.86975 | S21: 19785.71654 | T21: 20147.04354 | U21: 20514.96911 | W21: 1987 | X21: 20514.96911 | Y21: 136105.1988 | Z21: 0 | AA21: 2110.910238 | AB21: 18404.05887 | AC21: 20514.96911
C22: 1988 | D22: 0 | E22: 0 | F22: 0 | G22: 0 | H22: 0 | I22: 0 | J22: 0 | K22: 0 | L22: 0 | M22: 0 | N22: 18404.05887 | O22: 18740.15403 | P22: 19082.38696 | Q22: 19430.86975 | R22: 19785.71654 | S22: 20147.04354 | T22: 20514.96911 | U22: 20889.61373 | W22: 1988 | X22: 20889.61373 | Y22: 156994.8125 | Z22: =IF(W22-$W$24>PolyphaseLife,OFFSET(X22,-PolyphaseLife,0),0) -> 0 | AA22: 2485.554864 | AB22: 18404.05887 | AC22: =Z22+AA22+AB22 -> 20889.61373
C23: =C24-1 -> 1989 | D23: 0 | E23: 0 | F23: 0 | G23: 0 | H23: 0 | I23: 0 | J23: 0 | K23: 0 | L23: 0 | M23: 18404.05887 | N23: 18740.15403 | O23: 19082.38696 | P23: 19430.86975 | Q23: 19785.71654 | R23: 20147.04354 | S23: 20514.96911 | T23: 20889.61373 | U23: 21271.10012 | W23: =W24-1 -> 1989 | X23: 21271.10012 | Y23: 178265.9126 | Z23: 0 | AA23: 2867.041254 | AB23: 18404.05887 | AC23: 21271.10012
C24: 1990 | D24: =IF(AND(Year-Age+1>=Initial_Year,Age <=PolyphaseLife),OFFSET($X24,1-Age,0),0) -> 0 | E24: 0 | F24: 0 | G24: 0 | H24: 0 | I24: 0 | J24: 0 | K24: 0 | L24: 0 | M24: 18740.15403 | N24: =IF(AND(Year-Age+1>=Initial_Year,Age <=PolyphaseLife),OFFSET($X24,1-Age,0),0) -> 19082.38696 | O24: 19430.86975 | P24: 19785.71654 | Q24: 20147.04354 | R24: 20514.96911 | S24: 20889.61373 | T24: 21271.10012 | U24: 21659.55322 | W24: 1990 | X24: 21659.55322 | Y24: =SUM(D24:U24) -> 181521.407 | Z24: 0 | AA24: 3255.494354 | AB24: =IF(W24-$W$24<=PolyphaseLife,X24-AA24,0) -> 18404.05887 | AC24: 21659.55322
C25: 1991 | D25: 0 | E25: 0 | F25: 0 | G25: 0 | H25: 0 | I25: 0 | J25: 0 | K25: 0 | L25: 0 | M25: 19082.38696 | N25: 19430.86975 | O25: 19785.71654 | P25: 20147.04354 | Q25: 20514.96911 | R25: 20889.61373 | S25: 21271.10012 | T25: 21659.55322 | U25: 22055.10026 | W25: 1991 | X25: 22055.10026 | Y25: 184836.3532 | Z25: =IF(W25-$W$24>PolyphaseLife,OFFSET(X25,-PolyphaseLife,0),0) -> 0 | AA25: =Y24*ShipmentGrowthRate -> 3314.946233 | AB25: 18740.15403 | AC25: =Z25+AA25+AB25 -> 22055.10026
C26: 1992 | D26: 0 | E26: 0 | F26: 0 | G26: 0 | H26: 0 | I26: 0 | J26: 0 | K26: 0 | L26: 0 | M26: 19430.86975 | N26: 19785.71654 | O26: 20147.04354 | P26: 20514.96911 | Q26: 20889.61373 | R26: 21271.10012 | S26: 21659.55322 | T26: 22055.10026 | U26: 22457.87078 | W26: 1992 | X26: 22457.87078 | Y26: 188211.8371 | Z26: 0 | AA26: 3375.483824 | AB26: 19082.38696 | AC26: =Z26+AA26+AB26 -> 22457.87078
C27: =C28-1 -> 1993 | D27: 0 | E27: 0 | F27: 0 | G27: 0 | H27: 0 | I27: 0 | J27: 0 | K27: 0 | L27: 0 | M27: 19785.71654 | N27: 20147.04354 | O27: 20514.96911 | P27: 20889.61373 | Q27: 21271.10012 | R27: 21659.55322 | S27: 22055.10026 | T27: 22457.87078 | U27: 22867.9967 | W27: =W28-1 -> 1993 | X27: 22867.9967 | Y27: 191648.964 | Z27: 0 | AA27: 3437.126952 | AB27: 19430.86975 | AC27: 22867.9967
C28: 1994 | D28: 0 | E28: 0 | F28: 0 | G28: 0 | H28: 0 | I28: 0 | J28: 0 | K28: 0 | L28: 0 | M28: 20147.04354 | N28: 20514.96911 | O28: 20889.61373 | P28: 21271.10012 | Q28: 21659.55322 | R28: 22055.10026 | S28: 22457.87078 | T28: 22867.9967 | U28: 23285.61234 | W28: 1994 | X28: 23285.61234 | Y28: 195148.8598 | Z28: 0 | AA28: 3499.895808 | AB28: 19785.71654 | AC28: 23285.61234
C29: 1995 | D29: 0 | E29: 0 | F29: 0 | G29: 0 | H29: 0 | I29: 0 | J29: 0 | K29: 0 | L29: 0 | M29: 20514.96911 | N29: 20889.61373 | O29: 21271.10012 | P29: 21659.55322 | Q29: 22055.10026 | R29: 22457.87078 | S29: 22867.9967 | T29: 23285.61234 | U29: 23710.85449 | W29: 1995 | X29: 23710.85449 | Y29: 198712.6708 | Z29: 0 | AA29: 3563.810949 | AB29: 20147.04354 | AC29: 23710.85449
C30: 1996 | D30: 0 | E30: 0 | F30: 0 | G30: 0 | H30: 0 | I30: 0 | J30: 0 | K30: 0 | L30: 0 | M30: 20889.61373 | N30: 21271.10012 | O30: 21659.55322 | P30: 22055.10026 | Q30: 22457.87078 | R30: 22867.9967 | S30: 23285.61234 | T30: 23710.85449 | U30: 24143.86242 | W30: 1996 | X30: 24143.86242 | Y30: 202341.5641 | Z30: 0 | AA30: 3628.89331 | AB30: 20514.96911 | AC30: 24143.86242
C31: =C32-1 -> 1997 | D31: 0 | E31: 0 | F31: 0 | G31: 0 | H31: 0 | I31: 0 | J31: 0 | K31: 0 | L31: 0 | M31: 21271.10012 | N31: 21659.55322 | O31: 22055.10026 | P31: 22457.87078 | Q31: 22867.9967 | R31: 23285.61234 | S31: 23710.85449 | T31: 24143.86242 | U31: 24584.77794 | W31: 1997 | X31: 24584.77794 | Y31: 206036.7283 | Z31: 0 | AA31: 3695.164206 | AB31: 20889.61373 | AC31: 24584.77794
C32: 1998 | D32: 0 | E32: 0 | F32: 0 | G32: 0 | H32: 0 | I32: 0 | J32: 0 | K32: 0 | L32: 0 | M32: 21659.55322 | N32: 22055.10026 | O32: 22457.87078 | P32: 22867.9967 | Q32: 23285.61234 | R32: 23710.85449 | S32: 24143.86242 | T32: 24584.77794 | U32: 25033.74546 | W32: 1998 | X32: 25033.74546 | Y32: 209799.3736 | Z32: 0 | AA32: 3762.645341 | AB32: 21271.10012 | AC32: 25033.74546
C33: 1999 | D33: 0 | E33: 0 | F33: 0 | G33: 0 | H33: 0 | I33: 0 | J33: 0 | K33: 0 | L33: 0 | M33: 22055.10026 | N33: 22457.87078 | O33: 22867.9967 | P33: 23285.61234 | Q33: 23710.85449 | R33: 24143.86242 | S33: 24584.77794 | T33: 25033.74546 | U33: 25490.91204 | W33: 1999 | X33: 25490.91204 | Y33: 213630.7324 | Z33: 0 | AA33: 3831.358818 | AB33: 21659.55322 | AC33: 25490.91204
C34: 2000 | D34: =IF(AND(Year-Age+1>=Initial_Year,Age <=PolyphaseLife),OFFSET($X34,1-Age,0),0) -> 0 | E34: 0 | F34: 0 | G34: 0 | H34: 0 | I34: 0 | J34: 0 | K34: 0 | L34: 0 | M34: 22457.87078 | N34: =IF(AND(Year-Age+1>=Initial_Year,Age <=PolyphaseLife),OFFSET($X34,1-Age,0),0) -> 22867.9967 | O34: 23285.61234 | P34: 23710.85449 | Q34: 24143.86242 | R34: 24584.77794 | S34: 25033.74546 | T34: 25490.91204 | U34: 25956.4274 | W34: 2000 | X34: 25956.4274 | Y34: 217532.0596 | Z34: 22055.10026 | AA34: 3901.327141 | AB34: 0 | AC34: 25956.4274
C35: 2001 | D35: 0 | E35: 0 | F35: 0 | G35: 0 | H35: 0 | I35: 0 | J35: 0 | K35: 0 | L35: 0 | M35: 22867.9967 | N35: 23285.61234 | O35: 23710.85449 | P35: 24143.86242 | Q35: 24584.77794 | R35: 25033.74546 | S35: 25490.91204 | T35: 25956.4274 | U35: 26430.44401 | W35: 2001 | X35: 26430.44401 | Y35: 221504.6328 | Z35: 22457.87078 | AA35: 3972.573227 | AB35: 0 | AC35: 26430.44401
C36: 2002 | D36: 0 | E36: 0 | F36: 0 | G36: 0 | H36: 0 | I36: 0 | J36: 0 | K36: 0 | L36: 0 | M36: 23285.61234 | N36: 23710.85449 | O36: 24143.86242 | P36: 24584.77794 | Q36: 25033.74546 | R36: 25490.91204 | S36: 25956.4274 | T36: 26430.44401 | U36: 26913.11711 | W36: 2002 | X36: 26913.11711 | Y36: 225549.7532 | Z36: 22867.9967 | AA36: 4045.12041 | AB36: 0 | AC36: 26913.11711
C37: 2003 | D37: 0 | E37: 0 | F37: 0 | G37: 0 | H37: 0 | I37: 0 | J37: 0 | K37: 0 | L37: 0 | M37: 23710.85449 | N37: 24143.86242 | O37: 24584.77794 | P37: 25033.74546 | Q37: 25490.91204 | R37: 25956.4274 | S37: 26430.44401 | T37: 26913.11711 | U37: 27404.60479 | W37: 2003 | X37: 27404.60479 | Y37: 229668.7457 | Z37: 23285.61234 | AA37: 4118.99245 | AB37: 0 | AC37: 27404.60479
C38: =C39-1 -> 2004 | D38: 0 | E38: 0 | F38: 0 | G38: 0 | H38: 0 | I38: 0 | J38: 0 | K38: 0 | L38: 0 | M38: 24143.86242 | N38: 24584.77794 | O38: 25033.74546 | P38: 25490.91204 | Q38: 25956.4274 | R38: 26430.44401 | S38: 26913.11711 | T38: 27404.60479 | U38: 27905.06803 | W38: =W39-1 -> 2004 | X38: 27905.06803 | Y38: 233862.9592 | Z38: 23710.85449 | AA38: 4194.213542 | AB38: 0 | AC38: 27905.06803
C39: 2005 | D39: 0 | E39: 0 | F39: 0 | G39: 0 | H39: 0 | I39: 0 | J39: 0 | K39: 0 | L39: 0 | M39: 24584.77794 | N39: 25033.74546 | O39: 25490.91204 | P39: 25956.4274 | Q39: 26430.44401 | R39: 26913.11711 | S39: 27404.60479 | T39: 27905.06803 | U39: 28414.67074 | W39: 2005 | X39: 28414.67074 | Y39: 238133.7675 | Z39: 24143.86242 | AA39: 4270.808323 | AB39: 0 | AC39: 28414.67074
C40: =C39+1 -> 2006 | D40: 0 | E40: 0 | F40: 0 | G40: 0 | H40: 0 | I40: 0 | J40: 0 | K40: 0 | L40: 0 | M40: 25033.74546 | N40: 25490.91204 | O40: 25956.4274 | P40: 26430.44401 | Q40: 26913.11711 | R40: 27404.60479 | S40: 27905.06803 | T40: 28414.67074 | U40: 28933.57982 | W40: =W39+1 -> 2006 | X40: 28933.57982 | Y40: 242482.5694 | Z40: 24584.77794 | AA40: 4348.801878 | AB40: 0 | AC40: 28933.57982
C41: 2007 | D41: 0 | E41: 0 | F41: 0 | G41: 0 | H41: 0 | I41: 0 | J41: 0 | K41: 0 | L41: 0 | M41: 25490.91204 | N41: 25956.4274 | O41: 26430.44401 | P41: 26913.11711 | Q41: 27404.60479 | R41: 27905.06803 | S41: 28414.67074 | T41: 28933.57982 | U41: 29461.96522 | W41: 2007 | X41: 29461.96522 | Y41: 246910.7892 | Z41: 25033.74546 | AA41: 4428.219753 | AB41: 0 | AC41: 29461.96522
C42: 2008 | D42: 0 | E42: 0 | F42: 0 | G42: 0 | H42: 0 | I42: 0 | J42: 0 | K42: 0 | L42: 0 | M42: 25956.4274 | N42: 26430.44401 | O42: 26913.11711 | P42: 27404.60479 | Q42: 27905.06803 | R42: 28414.67074 | S42: 28933.57982 | T42: 29461.96522 | U42: 30000 | W42: 2008 | X42: 30000 | Y42: 251419.8771 | Z42: 25490.91204 | AA42: 4509.087959 | AB42: 0 | AC42: 30000
C43: 2009 | D43: 0 | E43: 0 | F43: 0 | G43: 0 | H43: 0 | I43: 0 | J43: 0 | K43: 0 | L43: 0 | M43: 26430.44401 | N43: 26913.11711 | O43: 27404.60479 | P43: 27905.06803 | Q43: 28414.67074 | R43: 28933.57982 | S43: 29461.96522 | T43: 30000 | U43: 30547.86038 | W43: 2009 | X43: 30547.86038 | Y43: 256011.3101 | Z43: 25956.4274 | AA43: 4591.43298 | AB43: 0 | AC43: 30547.86038
C44: 2010 | D44: =IF(AND(Year-Age+1>=Initial_Year,Age <=PolyphaseLife),OFFSET($X44,1-Age,0),0) -> 0 | E44: 0 | F44: 0 | G44: 0 | H44: 0 | I44: 0 | J44: 0 | K44: 0 | L44: 0 | M44: 26913.11711 | N44: =IF(AND(Year-Age+1>=Initial_Year,Age <=PolyphaseLife),OFFSET($X44,1-Age,0),0) -> 27404.60479 | O44: 27905.06803 | P44: 28414.67074 | Q44: 28933.57982 | R44: 29461.96522 | S44: 30000 | T44: 30547.86038 | U44: 31105.72579 | W44: 2010 | X44: 31105.72579 | Y44: 260686.5919 | Z44: 26430.44401 | AA44: 4675.281787 | AB44: 0 | AC44: 31105.72579
C45: 2011 | D45: 0 | E45: 0 | F45: 0 | G45: 0 | H45: 0 | I45: 0 | J45: 0 | K45: 0 | L45: 0 | M45: 27404.60479 | N45: 27905.06803 | O45: 28414.67074 | P45: 28933.57982 | Q45: 29461.96522 | R45: 30000 | S45: 30547.86038 | T45: 31105.72579 | U45: 31673.77895 | W45: 2011 | X45: 31673.77895 | Y45: 265447.2537 | Z45: 26913.11711 | AA45: 4760.661843 | AB45: 0 | AC45: 31673.77895
C46: 2012 | D46: 0 | E46: 0 | F46: 0 | G46: 0 | H46: 0 | I46: 0 | J46: 0 | K46: 0 | L46: 0 | M46: 27905.06803 | N46: 28414.67074 | O46: 28933.57982 | P46: 29461.96522 | Q46: 30000 | R46: 30547.86038 | S46: 31105.72579 | T46: 31673.77895 | U46: 32252.2059 | W46: 2012 | X46: 32252.2059 | Y46: 270294.8548 | Z46: 27404.60479 | AA46: 4847.601109 | AB46: 0 | AC46: 32252.2059
C47: 2013 | D47: 0 | E47: 0 | F47: 0 | G47: 0 | H47: 0 | I47: 0 | J47: 0 | K47: 0 | L47: 0 | M47: 28414.67074 | N47: 28933.57982 | O47: 29461.96522 | P47: 30000 | Q47: 30547.86038 | R47: 31105.72579 | S47: 31673.77895 | T47: 32252.2059 | U47: 32841.1961 | W47: 2013 | X47: 32841.1961 | Y47: 275230.9829 | Z47: 27905.06803 | AA47: 4936.128062 | AB47: 0 | AC47: 32841.1961
C48: 2014 | D48: 0 | E48: 0 | F48: 0 | G48: 0 | H48: 0 | I48: 0 | J48: 0 | K48: 0 | L48: 0 | M48: 28933.57982 | N48: 29461.96522 | O48: 30000 | P48: 30547.86038 | Q48: 31105.72579 | R48: 31673.77895 | S48: 32252.2059 | T48: 32841.1961 | U48: 33440.94244 | W48: 2014 | X48: 33440.94244 | Y48: 280257.2546 | Z48: 28414.67074 | AA48: 5026.271695 | AB48: 0 | AC48: 33440.94244
C49: 2015 | D49: 0 | E49: 0 | F49: 0 | G49: 0 | H49: 0 | I49: 0 | J49: 0 | K49: 0 | L49: 0 | M49: 29461.96522 | N49: 30000 | O49: 30547.86038 | P49: 31105.72579 | Q49: 31673.77895 | R49: 32252.2059 | S49: 32841.1961 | T49: 33440.94244 | U49: 34051.64135 | W49: 2015 | X49: 34051.64135 | Y49: 285375.3161 | Z49: 28933.57982 | AA49: 5118.061533 | AB49: 0 | AC49: 34051.64135
C50: 2016 | D50: 0 | E50: 0 | F50: 0 | G50: 0 | H50: 0 | I50: 0 | J50: 0 | K50: 0 | L50: 0 | M50: 30000 | N50: 30547.86038 | O50: 31105.72579 | P50: 31673.77895 | Q50: 32252.2059 | R50: 32841.1961 | S50: 33440.94244 | T50: 34051.64135 | U50: 34673.49286 | W50: 2016 | X50: 34673.49286 | Y50: 290586.8438 | Z50: 29461.96522 | AA50: 5211.527637 | AB50: 0 | AC50: 34673.49286
C51: 2017 | D51: 0 | E51: 0 | F51: 0 | G51: 0 | H51: 0 | I51: 0 | J51: 0 | K51: 0 | L51: 0 | M51: 30547.86038 | N51: 31105.72579 | O51: 31673.77895 | P51: 32252.2059 | Q51: 32841.1961 | R51: 33440.94244 | S51: 34051.64135 | T51: 34673.49286 | U51: 35306.70062 | W51: 2017 | X51: 35306.70062 | Y51: 295893.5444 | Z51: 30000 | AA51: 5306.700621 | AB51: 0 | AC51: 35306.70062
C52: 2018 | D52: 0 | E52: 0 | F52: 0 | G52: 0 | H52: 0 | I52: 0 | J52: 0 | K52: 0 | L52: 0 | M52: 31105.72579 | N52: 31673.77895 | O52: 32252.2059 | P52: 32841.1961 | Q52: 33440.94244 | R52: 34051.64135 | S52: 34673.49286 | T52: 35306.70062 | U52: 35951.47203 | W52: 2018 | X52: 35951.47203 | Y52: 301297.156 | Z52: 30547.86038 | AA52: 5403.611655 | AB52: 0 | AC52: 35951.47203
C53: 2019 | D53: 0 | E53: 0 | F53: 0 | G53: 0 | H53: 0 | I53: 0 | J53: 0 | K53: 0 | L53: 0 | M53: 31673.77895 | N53: 32252.2059 | O53: 32841.1961 | P53: 33440.94244 | Q53: 34051.64135 | R53: 34673.49286 | S53: 35306.70062 | T53: 35951.47203 | U53: 36608.01827 | W53: 2019 | X53: 36608.01827 | Y53: 306799.4485 | Z53: 31105.72579 | AA53: 5502.292479 | AB53: 0 | AC53: 36608.01827
C54: 2020 | D54: =IF(AND(Year-Age+1>=Initial_Year,Age <=PolyphaseLife),OFFSET($X54,1-Age,0),0) -> 0 | E54: 0 | F54: 0 | G54: 0 | H54: 0 | I54: 0 | J54: 0 | K54: 0 | L54: 0 | M54: 32252.2059 | N54: =IF(AND(Year-Age+1>=Initial_Year,Age <=PolyphaseLife),OFFSET($X54,1-Age,0),0) -> 32841.1961 | O54: 33440.94244 | P54: 34051.64135 | Q54: 34673.49286 | R54: 35306.70062 | S54: 35951.47203 | T54: 36608.01827 | U54: 37276.55437 | W54: 2020 | X54: 37276.55437 | Y54: 312402.2239 | Z54: 31673.77895 | AA54: 5602.775414 | AB54: 0 | AC54: 37276.55437
C55: 2021 | D55: 0 | E55: 0 | F55: 0 | G55: 0 | H55: 0 | I55: 0 | J55: 0 | K55: 0 | L55: 0 | M55: 32841.1961 | N55: 33440.94244 | O55: 34051.64135 | P55: 34673.49286 | Q55: 35306.70062 | R55: 35951.47203 | S55: 36608.01827 | T55: 37276.55437 | U55: 37957.29927 | W55: 2021 | X55: 37957.29927 | Y55: 318107.3173 | Z55: 32252.2059 | AA55: 5705.09337 | AB55: 0 | AC55: 37957.29927
C56: 2022 | D56: 0 | E56: 0 | F56: 0 | G56: 0 | H56: 0 | I56: 0 | J56: 0 | K56: 0 | L56: 0 | M56: 33440.94244 | N56: 34051.64135 | O56: 34673.49286 | P56: 35306.70062 | Q56: 35951.47203 | R56: 36608.01827 | S56: 37276.55437 | T56: 37957.29927 | U56: 38650.47595 | W56: 2022 | X56: 38650.47595 | Y56: 323916.5972 | Z56: 32841.1961 | AA56: 5809.279857 | AB56: 0 | AC56: 38650.47595
C57: 2023 | D57: 0 | E57: 0 | F57: 0 | G57: 0 | H57: 0 | I57: 0 | J57: 0 | K57: 0 | L57: 0 | M57: 34051.64135 | N57: 34673.49286 | O57: 35306.70062 | P57: 35951.47203 | Q57: 36608.01827 | R57: 37276.55437 | S57: 37957.29927 | T57: 38650.47595 | U57: 39356.31144 | W57: 2023 | X57: 39356.31144 | Y57: 329831.9662 | Z57: 33440.94244 | AA57: 5915.369 | AB57: 0 | AC57: 39356.31144
C58: 2024 | D58: 0 | E58: 0 | F58: 0 | G58: 0 | H58: 0 | I58: 0 | J58: 0 | K58: 0 | L58: 0 | M58: 34673.49286 | N58: 35306.70062 | O58: 35951.47203 | P58: 36608.01827 | Q58: 37276.55437 | R58: 37957.29927 | S58: 38650.47595 | T58: 39356.31144 | U58: 40075.03689 | W58: 2024 | X58: 40075.03689 | Y58: 335855.3617 | Z58: 34051.64135 | AA58: 6023.395543 | AB58: 0 | AC58: 40075.03689
C59: 2025 | D59: 0 | E59: 0 | F59: 0 | G59: 0 | H59: 0 | I59: 0 | J59: 0 | K59: 0 | L59: 0 | M59: 35306.70062 | N59: 35951.47203 | O59: 36608.01827 | P59: 37276.55437 | Q59: 37957.29927 | R59: 38650.47595 | S59: 39356.31144 | T59: 40075.03689 | U59: 40806.88772 | W59: 2025 | X59: 40806.88772 | Y59: 341988.7566 | Z59: 34673.49286 | AA59: 6133.394869 | AB59: 0 | AC59: 40806.88772
C60: 2026 | D60: 0 | E60: 0 | F60: 0 | G60: 0 | H60: 0 | I60: 0 | J60: 0 | K60: 0 | L60: 0 | M60: 35951.47203 | N60: 36608.01827 | O60: 37276.55437 | P60: 37957.29927 | Q60: 38650.47595 | R60: 39356.31144 | S60: 40075.03689 | T60: 40806.88772 | U60: 41552.10362 | W60: 2026 | X60: 41552.10362 | Y60: 348234.1596 | Z60: 35306.70062 | AA60: 6245.403004 | AB60: 0 | AC60: 41552.10362
C61: 2027 | D61: 0 | E61: 0 | F61: 0 | G61: 0 | H61: 0 | I61: 0 | J61: 0 | K61: 0 | L61: 0 | M61: 36608.01827 | N61: 37276.55437 | O61: 37957.29927 | P61: 38650.47595 | Q61: 39356.31144 | R61: 40075.03689 | S61: 40806.88772 | T61: 41552.10362 | U61: 42310.92867 | W61: 2027 | X61: 42310.92867 | Y61: 354593.6162 | Z61: 35951.47203 | AA61: 6359.456633 | AB61: 0 | AC61: 42310.92867
C62: 2028 | D62: 0 | E62: 0 | F62: 0 | G62: 0 | H62: 0 | I62: 0 | J62: 0 | K62: 0 | L62: 0 | M62: 37276.55437 | N62: 37957.29927 | O62: 38650.47595 | P62: 39356.31144 | Q62: 40075.03689 | R62: 40806.88772 | S62: 41552.10362 | T62: 42310.92867 | U62: 43083.61138 | W62: 2028 | X62: 43083.61138 | Y62: 361069.2093 | Z62: 36608.01827 | AA62: 6475.59311 | AB62: 0 | AC62: 43083.61138
C63: 2029 | D63: 0 | E63: 0 | F63: 0 | G63: 0 | H63: 0 | I63: 0 | J63: 0 | K63: 0 | L63: 0 | M63: 37957.29927 | N63: 38650.47595 | O63: 39356.31144 | P63: 40075.03689 | Q63: 40806.88772 | R63: 41552.10362 | S63: 42310.92867 | T63: 43083.61138 | U63: 43870.40484 | W63: 2029 | X63: 43870.40484 | Y63: 367663.0598 | Z63: 37276.55437 | AA63: 6593.850473 | AB63: 0 | AC63: 43870.40484
C64: 2030 | D64: 0 | E64: 0 | F64: 0 | G64: 0 | H64: 0 | I64: 0 | J64: 0 | K64: 0 | L64: 0 | M64: 38650.47595 | N64: 39356.31144 | O64: 40075.03689 | P64: 40806.88772 | Q64: 41552.10362 | R64: 42310.92867 | S64: 43083.61138 | T64: 43870.40484 | U64: 44671.56673 | W64: 2030 | X64: 44671.56673 | Y64: 374377.3272 | Z64: 37957.29927 | AA64: 6714.267454 | AB64: 0 | AC64: 44671.56673
C65: 2031 | D65: 0 | E65: 0 | F65: 0 | G65: 0 | H65: 0 | I65: 0 | J65: 0 | K65: 0 | L65: 0 | M65: 39356.31144 | N65: 40075.03689 | O65: 40806.88772 | P65: 41552.10362 | Q65: 42310.92867 | R65: 43083.61138 | S65: 43870.40484 | T65: 44671.56673 | U65: 45487.35945 | W65: 2031 | X65: 45487.35945 | Y65: 381214.2107 | Z65: 38650.47595 | AA65: 6836.883492 | AB65: 0 | AC65: 45487.35945
C66: 2032 | D66: 0 | E66: 0 | F66: 0 | G66: 0 | H66: 0 | I66: 0 | J66: 0 | K66: 0 | L66: 0 | M66: 40075.03689 | N66: 40806.88772 | O66: 41552.10362 | P66: 42310.92867 | Q66: 43083.61138 | R66: 43870.40484 | S66: 44671.56673 | T66: 45487.35945 | U66: 46318.05018 | W66: 2032 | X66: 46318.05018 | Y66: 388175.9495 | Z66: 39356.31144 | AA66: 6961.738745 | AB66: 0 | AC66: 46318.05018
C67: 2033 | D67: 0 | E67: 0 | F67: 0 | G67: 0 | H67: 0 | I67: 0 | J67: 0 | K67: 0 | L67: 0 | M67: 40806.88772 | N67: 41552.10362 | O67: 42310.92867 | P67: 43083.61138 | Q67: 43870.40484 | R67: 44671.56673 | S67: 45487.35945 | T67: 46318.05018 | U67: 47163.911 | W67: 2033 | X67: 47163.911 | Y67: 395264.8236 | Z67: 40075.03689 | AA67: 7088.874106 | AB67: 0 | AC67: 47163.911
C68: 2034 | D68: 0 | E68: 0 | F68: 0 | G68: 0 | H68: 0 | I68: 0 | J68: 0 | K68: 0 | L68: 0 | M68: 41552.10362 | N68: 42310.92867 | O68: 43083.61138 | P68: 43870.40484 | Q68: 44671.56673 | R68: 45487.35945 | S68: 46318.05018 | T68: 47163.911 | U68: 48025.21894 | W68: 2034 | X68: 48025.21894 | Y68: 402483.1548 | Z68: 40806.88772 | AA68: 7218.331214 | AB68: 0 | AC68: 48025.21894

Sheet Stock Model - CSIR
C2: Stock Model - CSIR Motors
C4: NAVIGATION
C6: COMMENTS
D9: Initial Year | E9: Product
D10: 1981 | E10: SEM
C12: Quantity of Stock by AGE and YEAR
D13: Unit Age in Years
C14: Year | D14: 18 | E14: 17 | F14: 16 | G14: 15 | H14: 14 | I14: 13 | J14: 12 | K14: 11 | L14: 10 | M14: 9 | N14: 8 | O14: 7 | P14: 6 | Q14: 5 | R14: 4 | S14: 3 | T14: 2 | U14: 1 | W14: Year | X14: New Shipments | Y14: Stock | Z14: Replacements for Retiring Units | AA14: Shipment due to New Construction | AB14: Shipment due to Stock Buildout | AC14: Total Shipments
C15: =C16-1 -> 1981 | D15: =IF(AND(Year-Age+1>=Initial_Year,Age <=CSIRLife),OFFSET($X15,1-Age,0),0) -> 0 | E15: 0 | F15: 0 | G15: 0 | H15: 0 | I15: 0 | J15: 0 | K15: 0 | L15: 0 | M15: 0 | N15: 0 | O15: 0 | P15: 0 | Q15: 0 | R15: 0 | S15: 0 | T15: =IF(AND(Year-Age+1>=Initial_Year,Age <=CSIRLife),OFFSET($X15,1-Age,0),0) -> 0 | U15: 76070.10999 | W15: 1981 | X15: =TRANSPOSE('Product Class Dist'!$D$11:$BE$11)*NorthwestScalingFactor -> 76070.10999 | Y15: =SUM(D15:U15) -> 76070.10999 | Z15: 0 | AA15: 0 | AB15: =IF(W15-$W$24<=CSIRLife,X15-AA15,0) -> 76070.10999 | AC15: =Z15+AA15+AB15 -> 76070.10999
C16: 1982 | D16: 0 | E16: 0 | F16: 0 | G16: 0 | H16: 0 | I16: 0 | J16: 0 | K16: 0 | L16: 0 | M16: 0 | N16: 0 | O16: 0 | P16: 0 | Q16: 0 | R16: 0 | S16: 0 | T16: 76070.10999 | U16: 77459.3033 | W16: 1982 | X16: 77459.3033 | Y16: 153529.4133 | Z16: 0 | AA16: =Y15*ShipmentGrowthRate -> 1389.193312 | AB16: 76070.10999 | AC16: =Z16+AA16+AB16 -> 77459.3033
C17: 1983 | D17: 0 | E17: 0 | F17: 0 | G17: 0 | H17: 0 | I17: 0 | J17: 0 | K17: 0 | L17: 0 | M17: 0 | N17: 0 | O17: 0 | P17: 0 | Q17: 0 | R17: 0 | S17: 76070.10999 | T17: 77459.3033 | U17: 78873.86608 | W17: 1983 | X17: 78873.86608 | Y17: 232403.2794 | Z17: 0 | AA17: 2803.75609 | AB17: 76070.10999 | AC17: 78873.86608
C18: 1984 | D18: 0 | E18: 0 | F18: 0 | G18: 0 | H18: 0 | I18: 0 | J18: 0 | K18: 0 | L18: 0 | M18: 0 | N18: 0 | O18: 0 | P18: 0 | Q18: 0 | R18: 76070.10999 | S18: 77459.3033 | T18: 78873.86608 | U18: 80314.26162 | W18: 1984 | X18: 80314.26162 | Y18: 312717.541 | Z18: 0 | AA18: 4244.151631 | AB18: 76070.10999 | AC18: 80314.26162
C19: 1985 | D19: 0 | E19: 0 | F19: 0 | G19: 0 | H19: 0 | I19: 0 | J19: 0 | K19: 0 | L19: 0 | M19: 0 | N19: 0 | O19: 0 | P19: 0 | Q19: 76070.10999 | R19: 77459.3033 | S19: 78873.86608 | T19: 80314.26162 | U19: 81780.96169 | W19: 1985 | X19: 81780.96169 | Y19: 394498.5027 | Z19: 0 | AA19: 5710.851694 | AB19: 76070.10999 | AC19: 81780.96169
C20: =C21-1 -> 1986 | D20: 0 | E20: 0 | F20: 0 | G20: 0 | H20: 0 | I20: 0 | J20: 0 | K20: 0 | L20: 0 | M20: 0 | N20: 0 | O20: 0 | P20: 76070.10999 | Q20: 77459.3033 | R20: 78873.86608 | S20: 80314.26162 | T20: 81780.96169 | U20: 83274.44664 | W20: 1986 | X20: 83274.44664 | Y20: 477772.9493 | Z20: 0 | AA20: 7204.336652 | AB20: 76070.10999 | AC20: 83274.44664
C21: 1987 | D21: 0 | E21: 0 | F21: 0 | G21: 0 | H21: 0 | I21: 0 | J21: 0 | K21: 0 | L21: 0 | M21: 0 | N21: 0 | O21: 76070.10999 | P21: 77459.3033 | Q21: 78873.86608 | R21: 80314.26162 | S21: 81780.96169 | T21: 83274.44664 | U21: 84795.20564 | W21: 1987 | X21: 84795.20564 | Y21: 562568.155 | Z21: 0 | AA21: 8725.095652 | AB21: 76070.10999 | AC21: 84795.20564
C22: 1988 | D22: 0 | E22: 0 | F22: 0 | G22: 0 | H22: 0 | I22: 0 | J22: 0 | K22: 0 | L22: 0 | M22: 0 | N22: 0 | O22: 77459.3033 | P22: 78873.86608 | Q22: 80314.26162 | R22: 81780.96169 | S22: 83274.44664 | T22: 84795.20564 | U22: 86343.73676 | W22: 1988 | X22: 86343.73676 | Y22: 572841.7817 | Z22: 0 | AA22: 10273.62677 | AB22: 76070.10999 | AC22: 86343.73676
C23: =C24-1 -> 1989 | D23: 0 | E23: 0 | F23: 0 | G23: 0 | H23: 0 | I23: 0 | J23: 0 | K23: 0 | L23: 0 | M23: 0 | N23: 0 | O23: 78873.86608 | P23: 80314.26162 | Q23: 81780.96169 | R23: 83274.44664 | S23: 84795.20564 | T23: 86343.73676 | U23: 87920.54718 | W23: 1989 | X23: 87920.54718 | Y23: 583303.0256 | Z23: 0 | AA23: 10461.24387 | AB23: 77459.3033 | AC23: 87920.54718
C24: 1990 | D24: =IF(AND(Year-Age+1>=Initial_Year,Age <=CSIRLife),OFFSET($X24,1-Age,0),0) -> 0 | E24: 0 | F24: 0 | G24: 0 | H24: 0 | I24: 0 | J24: 0 | K24: 0 | L24: 0 | M24: 0 | N24: =IF(AND(Year-Age+1>=Initial_Year,Age <=CSIRLife),OFFSET($X24,1-Age,0),0) -> 0 | O24: 80314.26162 | P24: 81780.96169 | Q24: 83274.44664 | R24: 84795.20564 | S24: 86343.73676 | T24: 87920.54718 | U24: 89526.15332 | W24: 1990 | X24: 89526.15332 | Y24: =SUM(D24:U24) -> 593955.3129 | Z24: 0 | AA24: 10652.28724 | AB24: =IF(W24-$W$24<=CSIRLife,X24-AA24,0) -> 78873.86608 | AC24: 89526.15332
C25: 1991 | D25: 0 | E25: 0 | F25: 0 | G25: 0 | H25: 0 | I25: 0 | J25: 0 | K25: 0 | L25: 0 | M25: 0 | N25: 0 | O25: 81780.96169 | P25: 83274.44664 | Q25: 84795.20564 | R25: 86343.73676 | S25: 87920.54718 | T25: 89526.15332 | U25: 91161.08107 | W25: 1991 | X25: 91161.08107 | Y25: =SUM(D25:U25) -> 604802.1323 | Z25: =IF(W25-$W$24>CSIRLife,OFFSET(X25,-CSIRLife,0),0) -> 0 | AA25: 10846.81945 | AB25: 80314.26162 | AC25: =Z25+AA25+AB25 -> 91161.08107
C26: 1992 | D26: 0 | E26: 0 | F26: 0 | G26: 0 | H26: 0 | I26: 0 | J26: 0 | K26: 0 | L26: 0 | M26: 0 | N26: 0 | O26: 83274.44664 | P26: 84795.20564 | Q26: 86343.73676 | R26: 87920.54718 | S26: 89526.15332 | T26: 91161.08107 | U26: 92825.86589 | W26: 1992 | X26: 92825.86589 | Y26: 615847.0365 | Z26: 0 | AA26: =Y25*ShipmentGrowthRate -> 11044.9042 | AB26: 81780.96169 | AC26: =Z26+AA26+AB26 -> 92825.86589
C27: =C28-1 -> 1993 | D27: 0 | E27: 0 | F27: 0 | G27: 0 | H27: 0 | I27: 0 | J27: 0 | K27: 0 | L27: 0 | M27: 0 | N27: 0 | O27: 84795.20564 | P27: 86343.73676 | Q27: 87920.54718 | R27: 89526.15332 | S27: 91161.08107 | T27: 92825.86589 | U27: 94521.05302 | W27: =W28-1 -> 1993 | X27: 94521.05302 | Y27: 627093.6429 | Z27: 0 | AA27: 11246.60638 | AB27: 83274.44664 | AC27: 94521.05302
C28: 1994 | D28: 0 | E28: 0 | F28: 0 | G28: 0 | H28: 0 | I28: 0 | J28: 0 | K28: 0 | L28: 0 | M28: 0 | N28: 0 | O28: 86343.73676 | P28: 87920.54718 | Q28: 89526.15332 | R28: 91161.08107 | S28: 92825.86589 | T28: 94521.05302 | U28: 96247.19769 | W28: 1994 | X28: 96247.19769 | Y28: 638545.6349 | Z28: 0 | AA28: 11451.99205 | AB28: 84795.20564 | AC28: 96247.19769
C29: 1995 | D29: 0 | E29: 0 | F29: 0 | G29: 0 | H29: 0 | I29: 0 | J29: 0 | K29: 0 | L29: 0 | M29: 0 | N29: 0 | O29: 87920.54718 | P29: 89526.15332 | Q29: 91161.08107 | R29: 92825.86589 | S29: 94521.05302 | T29: 96247.19769 | U29: 98004.86523 | W29: 1995 | X29: 98004.86523 | Y29: 650206.7634 | Z29: 0 | AA29: 11661.12847 | AB29: 86343.73676 | AC29: 98004.86523
C30: 1996 | D30: 0 | E30: 0 | F30: 0 | G30: 0 | H30: 0 | I30: 0 | J30: 0 | K30: 0 | L30: 0 | M30: 0 | N30: 0 | O30: 89526.15332 | P30: 91161.08107 | Q30: 92825.86589 | R30: 94521.05302 | S30: 96247.19769 | T30: 98004.86523 | U30: 99794.63132 | W30: 1996 | X30: 99794.63132 | Y30: 662080.8476 | Z30: 0 | AA30: 11874.08415 | AB30: 87920.54718 | AC30: 99794.63132
C31: 1997 | D31: 0 | E31: 0 | F31: 0 | G31: 0 | H31: 0 | I31: 0 | J31: 0 | K31: 0 | L31: 0 | M31: 0 | N31: 0 | O31: 91161.08107 | P31: 92825.86589 | Q31: 94521.05302 | R31: 96247.19769 | S31: 98004.86523 | T31: 99794.63132 | U31: 101617.0821 | W31: 1997 | X31: 101617.0821 | Y31: 674171.7764 | Z31: 0 | AA31: 12090.92882 | AB31: 89526.15332 | AC31: 101617.0821
C32: 1998 | D32: 0 | E32: 0 | F32: 0 | G32: 0 | H32: 0 | I32: 0 | J32: 0 | K32: 0 | L32: 0 | M32: 0 | N32: 0 | O32: 92825.86589 | P32: 94521.05302 | Q32: 96247.19769 | R32: 98004.86523 | S32: 99794.63132 | T32: 101617.0821 | U32: 103472.8146 | W32: 1998 | X32: 103472.8146 | Y32: 686483.5099 | Z32: 91161.08107 | AA32: 12311.73352 | AB32: 0 | AC32: 103472.8146
C33: 1999 | D33: 0 | E33: 0 | F33: 0 | G33: 0 | H33: 0 | I33: 0 | J33: 0 | K33: 0 | L33: 0 | M33: 0 | N33: 0 | O33: 94521.05302 | P33: 96247.19769 | Q33: 98004.86523 | R33: 99794.63132 | S33: 101617.0821 | T33: 103472.8146 | U33: 105362.4364 | W33: 1999 | X33: 105362.4364 | Y33: 699020.0804 | Z33: 92825.86589 | AA33: 12536.57055 | AB33: 0 | AC33: 105362.4364
C34: 2000 | D34: =IF(AND(Year-Age+1>=Initial_Year,Age <=CSIRLife),OFFSET($X34,1-Age,0),0) -> 0 | E34: 0 | F34: 0 | G34: 0 | H34: 0 | I34: 0 | J34: 0 | K34: 0 | L34: 0 | M34: 0 | N34: =IF(AND(Year-Age+1>=Initial_Year,Age <=CSIRLife),OFFSET($X34,1-Age,0),0) -> 0 | O34: 96247.19769 | P34: 98004.86523 | Q34: 99794.63132 | R34: 101617.0821 | S34: 103472.8146 | T34: 105362.4364 | U34: 107286.5666 | W34: 2000 | X34: 107286.5666 | Y34: 711785.594 | Z34: 94521.05302 | AA34: 12765.51356 | AB34: 0 | AC34: 107286.5666
C35: 2001 | D35: 0 | E35: 0 | F35: 0 | G35: 0 | H35: 0 | I35: 0 | J35: 0 | K35: 0 | L35: 0 | M35: 0 | N35: 0 | O35: 98004.86523 | P35: 99794.63132 | Q35: 101617.0821 | R35: 103472.8146 | S35: 105362.4364 | T35: 107286.5666 | U35: 109245.8352 | W35: 2001 | X35: 109245.8352 | Y35: 724784.2315 | Z35: 96247.19769 | AA35: 12998.63753 | AB35: 0 | AC35: 109245.8352
C36: 2002 | D36: 0 | E36: 0 | F36: 0 | G36: 0 | H36: 0 | I36: 0 | J36: 0 | K36: 0 | L36: 0 | M36: 0 | N36: 0 | O36: 99794.63132 | P36: 101617.0821 | Q36: 103472.8146 | R36: 105362.4364 | S36: 107286.5666 | T36: 109245.8352 | U36: 111240.8841 | W36: 2002 | X36: 111240.8841 | Y36: 738020.2504 | Z36: 98004.86523 | AA36: 13236.01882 | AB36: 0 | AC36: 111240.8841
C37: 2003 | D37: 0 | E37: 0 | F37: 0 | G37: 0 | H37: 0 | I37: 0 | J37: 0 | K37: 0 | L37: 0 | M37: 0 | N37: 0 | O37: 101617.0821 | P37: 103472.8146 | Q37: 105362.4364 | R37: 107286.5666 | S37: 109245.8352 | T37: 111240.8841 | U37: 113272.3665 | W37: 2003 | X37: 113272.3665 | Y37: 751497.9855 | Z37: 99794.63132 | AA37: 13477.73516 | AB37: 0 | AC37: 113272.3665
C38: =C39-1 -> 2004 | D38: 0 | E38: 0 | F38: 0 | G38: 0 | H38: 0 | I38: 0 | J38: 0 | K38: 0 | L38: 0 | M38: 0 | N38: 0 | O38: 103472.8146 | P38: 105362.4364 | Q38: 107286.5666 | R38: 109245.8352 | S38: 111240.8841 | T38: 113272.3665 | U38: 115340.9479 | W38: =W39-1 -> 2004 | X38: 115340.9479 | Y38: 765221.8512 | Z38: 101617.0821 | AA38: 13723.86573 | AB38: 0 | AC38: 115340.9479
C39: 2005 | D39: 0 | E39: 0 | F39: 0 | G39: 0 | H39: 0 | I39: 0 | J39: 0 | K39: 0 | L39: 0 | M39: 0 | N39: 0 | O39: 105362.4364 | P39: 107286.5666 | Q39: 109245.8352 | R39: 111240.8841 | S39: 113272.3665 | T39: 115340.9479 | U39: 117447.3057 | W39: 2005 | X39: 117447.3057 | Y39: 779196.3424 | Z39: 103472.8146 | AA39: 13974.49114 | AB39: 0 | AC39: 117447.3057
C40: =C39+1 -> 2006 | D40: 0 | E40: 0 | F40: 0 | G40: 0 | H40: 0 | I40: 0 | J40: 0 | K40: 0 | L40: 0 | M40: 0 | N40: 0 | O40: 107286.5666 | P40: 109245.8352 | Q40: 111240.8841 | R40: 113272.3665 | S40: 115340.9479 | T40: 117447.3057 | U40: 119592.1299 | W40: =W39+1 -> 2006 | X40: 119592.1299 | Y40: 793426.0359 | Z40: 105362.4364 | AA40: 14229.69347 | AB40: 0 | AC40: 119592.1299
C41: 2007 | D41: 0 | E41: 0 | F41: 0 | G41: 0 | H41: 0 | I41: 0 | J41: 0 | K41: 0 | L41: 0 | M41: 0 | N41: 0 | O41: 109245.8352 | P41: 111240.8841 | Q41: 113272.3665 | R41: 115340.9479 | S41: 117447.3057 | T41: 119592.1299 | U41: 121776.1229 | W41: 2007 | X41: 121776.1229 | Y41: 807915.5922 | Z41: 107286.5666 | AA41: 14489.55632 | AB41: 0 | AC41: 121776.1229
C42: 2008 | D42: 0 | E42: 0 | F42: 0 | G42: 0 | H42: 0 | I42: 0 | J42: 0 | K42: 0 | L42: 0 | M42: 0 | N42: 0 | O42: 111240.8841 | P42: 113272.3665 | Q42: 115340.9479 | R42: 117447.3057 | S42: 119592.1299 | T42: 121776.1229 | U42: 124000 | W42: 2008 | X42: 124000 | Y42: 822669.7569 | Z42: 109245.8352 | AA42: 14754.16478 | AB42: 0 | AC42: 124000
C43: 2009 | D43: 0 | E43: 0 | F43: 0 | G43: 0 | H43: 0 | I43: 0 | J43: 0 | K43: 0 | L43: 0 | M43: 0 | N43: 0 | O43: 113272.3665 | P43: 115340.9479 | Q43: 117447.3057 | R43: 119592.1299 | S43: 121776.1229 | T43: 124000 | U43: 126264.4896 | W43: 2009 | X43: 126264.4896 | Y43: 837693.3625 | Z43: 111240.8841 | AA43: 15023.60552 | AB43: 0 | AC43: 126264.4896
C44: 2010 | D44: =IF(AND(Year-Age+1>=Initial_Year,Age <=CSIRLife),OFFSET($X44,1-Age,0),0) -> 0 | E44: 0 | F44: 0 | G44: 0 | H44: 0 | I44: 0 | J44: 0 | K44: 0 | L44: 0 | M44: 0 | N44: =IF(AND(Year-Age+1>=Initial_Year,Age <=CSIRLife),OFFSET($X44,1-Age,0),0) -> 0 | O44: 115340.9479 | P44: 117447.3057 | Q44: 119592.1299 | R44: 121776.1229 | S44: 124000 | T44: 126264.4896 | U44: 128570.3333 | W44: 2010 | X44: 128570.3333 | Y44: 852991.3293 | Z44: 113272.3665 | AA44: 15297.96679 | AB44: 0 | AC44: 128570.3333
C45: 2011 | D45: 0 | E45: 0 | F45: 0 | G45: 0 | H45: 0 | I45: 0 | J45: 0 | K45: 0 | L45: 0 | M45: 0 | N45: 0 | O45: 117447.3057 | P45: 119592.1299 | Q45: 121776.1229 | R45: 124000 | S45: 126264.4896 | T45: 128570.3333 | U45: 130918.2863 | W45: 2011 | X45: 130918.2863 | Y45: 868568.6677 | Z45: 115340.9479 | AA45: 15577.33846 | AB45: 0 | AC45: 130918.2863
C46: 2012 | D46: 0 | E46: 0 | F46: 0 | G46: 0 | H46: 0 | I46: 0 | J46: 0 | K46: 0 | L46: 0 | M46: 0 | N46: 0 | O46: 119592.1299 | P46: 121776.1229 | Q46: 124000 | R46: 126264.4896 | S46: 128570.3333 | T46: 130918.2863 | U46: 133309.1177 | W46: 2012 | X46: 133309.1177 | Y46: 884430.4797 | Z46: 117447.3057 | AA46: 15861.81201 | AB46: 0 | AC46: 133309.1177
C47: 2013 | D47: 0 | E47: 0 | F47: 0 | G47: 0 | H47: 0 | I47: 0 | J47: 0 | K47: 0 | L47: 0 | M47: 0 | N47: 0 | O47: 121776.1229 | P47: 124000 | Q47: 126264.4896 | R47: 128570.3333 | S47: 130918.2863 | T47: 133309.1177 | U47: 135743.6105 | W47: 2013 | X47: 135743.6105 | Y47: 900581.9604 | Z47: 119592.1299 | AA47: 16151.48062 | AB47: 0 | AC47: 135743.6105
C48: 2014 | D48: 0 | E48: 0 | F48: 0 | G48: 0 | H48: 0 | I48: 0 | J48: 0 | K48: 0 | L48: 0 | M48: 0 | N48: 0 | O48: 124000 | P48: 126264.4896 | Q48: 128570.3333 | R48: 130918.2863 | S48: 133309.1177 | T48: 135743.6105 | U48: 138222.5621 | W48: 2014 | X48: 138222.5621 | Y48: 917028.3995 | Z48: 121776.1229 | AA48: 16446.43917 | AB48: 0 | AC48: 138222.5621
C49: 2015 | D49: 0 | E49: 0 | F49: 0 | G49: 0 | H49: 0 | I49: 0 | J49: 0 | K49: 0 | L49: 0 | M49: 0 | N49: 0 | O49: 126264.4896 | P49: 128570.3333 | Q49: 130918.2863 | R49: 133309.1177 | S49: 135743.6105 | T49: 138222.5621 | U49: 140746.7842 | W49: 2015 | X49: 140746.7842 | Y49: 933775.1838 | Z49: 124000 | AA49: 16746.78425 | AB49: 0 | AC49: 140746.7842
C50: 2016 | D50: 0 | E50: 0 | F50: 0 | G50: 0 | H50: 0 | I50: 0 | J50: 0 | K50: 0 | L50: 0 | M50: 0 | N50: 0 | O50: 128570.3333 | P50: 130918.2863 | Q50: 133309.1177 | R50: 135743.6105 | S50: 138222.5621 | T50: 140746.7842 | U50: 143317.1038 | W50: 2016 | X50: 143317.1038 | Y50: 950827.798 | Z50: 126264.4896 | AA50: 17052.61423 | AB50: 0 | AC50: 143317.1038
C51: 2017 | D51: 0 | E51: 0 | F51: 0 | G51: 0 | H51: 0 | I51: 0 | J51: 0 | K51: 0 | L51: 0 | M51: 0 | N51: 0 | O51: 130918.2863 | P51: 133309.1177 | Q51: 135743.6105 | R51: 138222.5621 | S51: 140746.7842 | T51: 143317.1038 | U51: 145934.3626 | W51: 2017 | X51: 145934.3626 | Y51: 968191.8273 | Z51: 128570.3333 | AA51: 17364.02929 | AB51: 0 | AC51: 145934.3626
C52: 2018 | D52: 0 | E52: 0 | F52: 0 | G52: 0 | H52: 0 | I52: 0 | J52: 0 | K52: 0 | L52: 0 | M52: 0 | N52: 0 | O52: 133309.1177 | P52: 135743.6105 | Q52: 138222.5621 | R52: 140746.7842 | S52: 143317.1038 | T52: 145934.3626 | U52: 148599.4177 | W52: 2018 | X52: 148599.4177 | Y52: 985872.9587 | Z52: 130918.2863 | AA52: 17681.13141 | AB52: 0 | AC52: 148599.4177
C53: 2019 | D53: 0 | E53: 0 | F53: 0 | G53: 0 | H53: 0 | I53: 0 | J53: 0 | K53: 0 | L53: 0 | M53: 0 | N53: 0 | O53: 135743.6105 | P53: 138222.5621 | Q53: 140746.7842 | R53: 143317.1038 | S53: 145934.3626 | T53: 148599.4177 | U53: 151313.1422 | W53: 2019 | X53: 151313.1422 | Y53: 1003876.983 | Z53: 133309.1177 | AA53: 18004.02446 | AB53: 0 | AC53: 151313.1422
C54: 2020 | D54: =IF(AND(Year-Age+1>=Initial_Year,Age <=CSIRLife),OFFSET($X54,1-Age,0),0) -> 0 | E54: 0 | F54: 0 | G54: 0 | H54: 0 | I54: 0 | J54: 0 | K54: 0 | L54: 0 | M54: 0 | N54: =IF(AND(Year-Age+1>=Initial_Year,Age <=CSIRLife),OFFSET($X54,1-Age,0),0) -> 0 | O54: 138222.5621 | P54: 140746.7842 | Q54: 143317.1038 | R54: 145934.3626 | S54: 148599.4177 | T54: 151313.1422 | U54: 154076.4247 | W54: 2020 | X54: 154076.4247 | Y54: 1022209.797 | Z54: 135743.6105 | AA54: 18332.81418 | AB54: 0 | AC54: 154076.4247
C55: 2021 | D55: 0 | E55: 0 | F55: 0 | G55: 0 | H55: 0 | I55: 0 | J55: 0 | K55: 0 | L55: 0 | M55: 0 | N55: 0 | O55: 140746.7842 | P55: 143317.1038 | Q55: 145934.3626 | R55: 148599.4177 | S55: 151313.1422 | T55: 154076.4247 | U55: 156890.1703 | W55: 2021 | X55: 156890.1703 | Y55: 1040877.406 | Z55: 138222.5621 | AA55: 18667.60826 | AB55: 0 | AC55: 156890.1703
C56: 2022 | D56: 0 | E56: 0 | F56: 0 | G56: 0 | H56: 0 | I56: 0 | J56: 0 | K56: 0 | L56: 0 | M56: 0 | N56: 0 | O56: 143317.1038 | P56: 145934.3626 | Q56: 148599.4177 | R56: 151313.1422 | S56: 154076.4247 | T56: 156890.1703 | U56: 159755.3006 | W56: 2022 | X56: 159755.3006 | Y56: 1059885.922 | Z56: 140746.7842 | AA56: 19008.51636 | AB56: 0 | AC56: 159755.3006
C57: 2023 | D57: 0 | E57: 0 | F57: 0 | G57: 0 | H57: 0 | I57: 0 | J57: 0 | K57: 0 | L57: 0 | M57: 0 | N57: 0 | O57: 145934.3626 | P57: 148599.4177 | Q57: 151313.1422 | R57: 154076.4247 | S57: 156890.1703 | T57: 159755.3006 | U57: 162672.7539 | W57: 2023 | X57: 162672.7539 | Y57: 1079241.572 | Z57: 143317.1038 | AA57: 19355.65013 | AB57: 0 | AC57: 162672.7539
C58: 2024 | D58: 0 | E58: 0 | F58: 0 | G58: 0 | H58: 0 | I58: 0 | J58: 0 | K58: 0 | L58: 0 | M58: 0 | N58: 0 | O58: 148599.4177 | P58: 151313.1422 | Q58: 154076.4247 | R58: 156890.1703 | S58: 159755.3006 | T58: 162672.7539 | U58: 165643.4858 | W58: 2024 | X58: 165643.4858 | Y58: 1098950.695 | Z58: 145934.3626 | AA58: 19709.12326 | AB58: 0 | AC58: 165643.4858
C59: 2025 | D59: 0 | E59: 0 | F59: 0 | G59: 0 | H59: 0 | I59: 0 | J59: 0 | K59: 0 | L59: 0 | M59: 0 | N59: 0 | O59: 151313.1422 | P59: 154076.4247 | Q59: 156890.1703 | R59: 159755.3006 | S59: 162672.7539 | T59: 165643.4858 | U59: 168668.4693 | W59: 2025 | X59: 168668.4693 | Y59: 1119019.747 | Z59: 148599.4177 | AA59: 20069.05152 | AB59: 0 | AC59: 168668.4693
C60: 2026 | D60: 0 | E60: 0 | F60: 0 | G60: 0 | H60: 0 | I60: 0 | J60: 0 | K60: 0 | L60: 0 | M60: 0 | N60: 0 | O60: 154076.4247 | P60: 156890.1703 | Q60: 159755.3006 | R60: 162672.7539 | S60: 165643.4858 | T60: 168668.4693 | U60: 171748.695 | W60: 2026 | X60: 171748.695 | Y60: 1139455.3 | Z60: 151313.1422 | AA60: 20435.55279 | AB60: 0 | AC60: 171748.695
C61: 2027 | D61: 0 | E61: 0 | F61: 0 | G61: 0 | H61: 0 | I61: 0 | J61: 0 | K61: 0 | L61: 0 | M61: 0 | N61: 0 | O61: 156890.1703 | P61: 159755.3006 | Q61: 162672.7539 | R61: 165643.4858 | S61: 168668.4693 | T61: 171748.695 | U61: 174885.1718 | W61: 2027 | X61: 174885.1718 | Y61: 1160264.047 | Z61: 154076.4247 | AA61: 20808.74711 | AB61: 0 | AC61: 174885.1718
C62: 2028 | D62: 0 | E62: 0 | F62: 0 | G62: 0 | H62: 0 | I62: 0 | J62: 0 | K62: 0 | L62: 0 | M62: 0 | N62: 0 | O62: 159755.3006 | P62: 162672.7539 | Q62: 165643.4858 | R62: 168668.4693 | S62: 171748.695 | T62: 174885.1718 | U62: 178078.927 | W62: 2028 | X62: 178078.927 | Y62: 1181452.803 | Z62: 156890.1703 | AA62: 21188.75672 | AB62: 0 | AC62: 178078.927
C63: 2029 | D63: 0 | E63: 0 | F63: 0 | G63: 0 | H63: 0 | I63: 0 | J63: 0 | K63: 0 | L63: 0 | M63: 0 | N63: 0 | O63: 162672.7539 | P63: 165643.4858 | Q63: 168668.4693 | R63: 171748.695 | S63: 174885.1718 | T63: 178078.927 | U63: 181331.0067 | W63: 2029 | X63: 181331.0067 | Y63: 1203028.51 | Z63: 159755.3006 | AA63: 21575.70606 | AB63: 0 | AC63: 181331.0067
C64: 2030 | D64: 0 | E64: 0 | F64: 0 | G64: 0 | H64: 0 | I64: 0 | J64: 0 | K64: 0 | L64: 0 | M64: 0 | N64: 0 | O64: 165643.4858 | P64: 168668.4693 | Q64: 171748.695 | R64: 174885.1718 | S64: 178078.927 | T64: 181331.0067 | U64: 184642.4758 | W64: 2030 | X64: 184642.4758 | Y64: 1224998.231 | Z64: 162672.7539 | AA64: 21969.72188 | AB64: 0 | AC64: 184642.4758
C65: 2031 | D65: 0 | E65: 0 | F65: 0 | G65: 0 | H65: 0 | I65: 0 | J65: 0 | K65: 0 | L65: 0 | M65: 0 | N65: 0 | O65: 168668.4693 | P65: 171748.695 | Q65: 174885.1718 | R65: 178078.927 | S65: 181331.0067 | T65: 184642.4758 | U65: 188014.419 | W65: 2031 | X65: 188014.419 | Y65: 1247369.165 | Z65: 165643.4858 | AA65: 22370.93322 | AB65: 0 | AC65: 188014.419
C66: 2032 | D66: 0 | E66: 0 | F66: 0 | G66: 0 | H66: 0 | I66: 0 | J66: 0 | K66: 0 | L66: 0 | M66: 0 | N66: 0 | O66: 171748.695 | P66: 174885.1718 | Q66: 178078.927 | R66: 181331.0067 | S66: 184642.4758 | T66: 188014.419 | U66: 191447.9407 | W66: 2032 | X66: 191447.9407 | Y66: 1270148.636 | Z66: 168668.4693 | AA66: 22779.47148 | AB66: 0 | AC66: 191447.9407
C67: 2033 | D67: 0 | E67: 0 | F67: 0 | G67: 0 | H67: 0 | I67: 0 | J67: 0 | K67: 0 | L67: 0 | M67: 0 | N67: 0 | O67: 174885.1718 | P67: 178078.927 | Q67: 181331.0067 | R67: 184642.4758 | S67: 188014.419 | T67: 191447.9407 | U67: 194944.1655 | W67: 2033 | X67: 194944.1655 | Y67: 1293344.107 | Z67: 171748.695 | AA67: 23195.47048 | AB67: 0 | AC67: 194944.1655
C68: 2034 | D68: 0 | E68: 0 | F68: 0 | G68: 0 | H68: 0 | I68: 0 | J68: 0 | K68: 0 | L68: 0 | M68: 0 | N68: 0 | O68: 178078.927 | P68: 181331.0067 | Q68: 184642.4758 | R68: 188014.419 | S68: 191447.9407 | T68: 194944.1655 | U68: 198504.2383 | W68: 2034 | X68: 198504.2383 | Y68: 1316963.173 | Z68: 174885.1718 | AA68: 23619.06645 | AB68: 0 | AC68: 198504.2383

Sheet Stock Model - CSCR
C2: Stock Model - CSCR Motors
C4: NAVIGATION
C6: COMMENTS
D9: Initial Year | E9: Product
D10: 1981 | E10: SEM
C12: Quantity of Stock by AGE and YEAR
D13: Unit Age in Years
C14: Year | D14: 18 | E14: 17 | F14: 16 | G14: 15 | H14: 14 | I14: 13 | J14: 12 | K14: 11 | L14: 10 | M14: 9 | N14: 8 | O14: 7 | P14: 6 | Q14: 5 | R14: 4 | S14: 3 | T14: 2 | U14: 1 | W14: Year | X14: New Shipments | Y14: Stock | Z14: Replacements for Retiring Units | AA14: Shipment due to New Construction | AB14: Shipment due to Stock Buildout | AC14: Total Shipments
C15: =C16-1 -> 1981 | D15: =IF(AND(Year-Age+1>=Initial_Year,Age <=CSCRLife),OFFSET($X15,1-Age,0),0) -> 0 | E15: 0 | F15: 0 | G15: 0 | H15: 0 | I15: 0 | J15: 0 | K15: 0 | L15: 0 | M15: 0 | N15: 0 | O15: 0 | P15: 0 | Q15: 0 | R15: 0 | S15: 0 | T15: =IF(AND(Year-Age+1>=Initial_Year,Age <=CSCRLife),OFFSET($X15,1-Age,0),0) -> 0 | U15: 4003.69 | W15: =W16-1 -> 1981 | X15: =TRANSPOSE('Product Class Dist'!$D$12:$BE$12)*NorthwestScalingFactor -> 4003.69 | Y15: =SUM(D15:U15) -> 4003.69 | Z15: 0 | AA15: 0 | AB15: =IF(W15-$W$24<=CSCRLife,X15-AA15,0) -> 4003.69 | AC15: =Z15+AA15+AB15 -> 4003.69
C16: 1982 | D16: 0 | E16: 0 | F16: 0 | G16: 0 | H16: 0 | I16: 0 | J16: 0 | K16: 0 | L16: 0 | M16: 0 | N16: 0 | O16: 0 | P16: 0 | Q16: 0 | R16: 0 | S16: 0 | T16: 4003.69 | U16: 4076.805437 | W16: 1982 | X16: 4076.805437 | Y16: 8080.495437 | Z16: 0 | AA16: =Y15*ShipmentGrowthRate -> 73.11543748 | AB16: 4003.69 | AC16: =Z16+AA16+AB16 -> 4076.805437
C17: 1983 | D17: 0 | E17: 0 | F17: 0 | G17: 0 | H17: 0 | I17: 0 | J17: 0 | K17: 0 | L17: 0 | M17: 0 | N17: 0 | O17: 0 | P17: 0 | Q17: 0 | R17: 0 | S17: 4003.69 | T17: 4076.805437 | U17: 4151.25611 | W17: 1983 | X17: 4151.25611 | Y17: 12231.75155 | Z17: 0 | AA17: 147.56611 | AB17: 4003.69 | AC17: 4151.25611
C18: 1984 | D18: 0 | E18: 0 | F18: 0 | G18: 0 | H18: 0 | I18: 0 | J18: 0 | K18: 0 | L18: 0 | M18: 0 | N18: 0 | O18: 0 | P18: 0 | Q18: 0 | R18: 4003.69 | S18: 4076.805437 | T18: 4151.25611 | U18: 4227.066401 | W18: 1984 | X18: 4227.066401 | Y18: 16458.81795 | Z18: 0 | AA18: 223.3764016 | AB18: 4003.69 | AC18: 4227.066401
C19: 1985 | D19: 0 | E19: 0 | F19: 0 | G19: 0 | H19: 0 | I19: 0 | J19: 0 | K19: 0 | L19: 0 | M19: 0 | N19: 0 | O19: 0 | P19: 0 | Q19: 4003.69 | R19: 4076.805437 | S19: 4151.25611 | T19: 4227.066401 | U19: 4304.261141 | W19: 1985 | X19: 4304.261141 | Y19: 20763.07909 | Z19: 0 | AA19: 300.5711418 | AB19: 4003.69 | AC19: 4304.261141
C20: 1986 | D20: 0 | E20: 0 | F20: 0 | G20: 0 | H20: 0 | I20: 0 | J20: 0 | K20: 0 | L20: 0 | M20: 0 | N20: 0 | O20: 0 | P20: 4003.69 | Q20: 4076.805437 | R20: 4151.25611 | S20: 4227.066401 | T20: 4304.261141 | U20: 4382.865613 | W20: 1986 | X20: 4382.865613 | Y20: 25145.9447 | Z20: 0 | AA20: 379.1756133 | AB20: 4003.69 | AC20: 4382.865613
C21: 1987 | D21: 0 | E21: 0 | F21: 0 | G21: 0 | H21: 0 | I21: 0 | J21: 0 | K21: 0 | L21: 0 | M21: 0 | N21: 0 | O21: 4003.69 | P21: 4076.805437 | Q21: 4151.25611 | R21: 4227.066401 | S21: 4304.261141 | T21: 4382.865613 | U21: 4462.90556 | W21: 1987 | X21: 4462.90556 | Y21: 29608.85026 | Z21: 0 | AA21: 459.2155606 | AB21: 4003.69 | AC21: 4462.90556
C22: 1988 | D22: 0 | E22: 0 | F22: 0 | G22: 0 | H22: 0 | I22: 0 | J22: 0 | K22: 0 | L22: 0 | M22: 0 | N22: 0 | O22: 4076.805437 | P22: 4151.25611 | Q22: 4227.066401 | R22: 4304.261141 | S22: 4382.865613 | T22: 4462.90556 | U22: 4544.407198 | W22: 1988 | X22: 4544.407198 | Y22: 30149.56746 | Z22: 0 | AA22: 540.7171985 | AB22: 4003.69 | AC22: 4544.407198
C23: =C24-1 -> 1989 | D23: 0 | E23: 0 | F23: 0 | G23: 0 | H23: 0 | I23: 0 | J23: 0 | K23: 0 | L23: 0 | M23: 0 | N23: 0 | O23: 4151.25611 | P23: 4227.066401 | Q23: 4304.261141 | R23: 4382.865613 | S23: 4462.90556 | T23: 4544.407198 | U23: 4627.39722 | W23: =W24-1 -> 1989 | X23: 4627.39722 | Y23: 30700.15924 | Z23: 0 | AA23: 550.5917828 | AB23: 4076.805437 | AC23: 4627.39722
C24: 1990 | D24: =IF(AND(Year-Age+1>=Initial_Year,Age <=CSCRLife),OFFSET($X24,1-Age,0),0) -> 0 | E24: 0 | F24: 0 | G24: 0 | H24: 0 | I24: 0 | J24: 0 | K24: 0 | L24: 0 | M24: 0 | N24: =IF(AND(Year-Age+1>=Initial_Year,Age <=CSCRLife),OFFSET($X24,1-Age,0),0) -> 0 | O24: 4227.066401 | P24: 4304.261141 | Q24: 4382.865613 | R24: 4462.90556 | S24: 4544.407198 | T24: 4627.39722 | U24: 4711.902806 | W24: 1990 | X24: 4711.902806 | Y24: =SUM(D24:U24) -> 31260.80594 | Z24: 0 | AA24: 560.6466969 | AB24: =IF(W24-$W$24<=CSCRLife,X24-AA24,0) -> 4151.25611 | AC24: 4711.902806
C25: 1991 | D25: 0 | E25: 0 | F25: 0 | G25: 0 | H25: 0 | I25: 0 | J25: 0 | K25: 0 | L25: 0 | M25: 0 | N25: 0 | O25: 4304.261141 | P25: 4382.865613 | Q25: 4462.90556 | R25: 4544.407198 | S25: 4627.39722 | T25: 4711.902806 | U25: 4797.951635 | W25: 1991 | X25: 4797.951635 | Y25: =SUM(D25:U25) -> 31831.69117 | Z25: =IF(W25-$W$24>CSCRLife,OFFSET(X25,-CSCRLife,0),0) -> 0 | AA25: =Y24*ShipmentGrowthRate -> 570.885234 | AB25: 4227.066401 | AC25: =Z25+AA25+AB25 -> 4797.951635
C26: 1992 | D26: 0 | E26: 0 | F26: 0 | G26: 0 | H26: 0 | I26: 0 | J26: 0 | K26: 0 | L26: 0 | M26: 0 | N26: 0 | O26: 4382.865613 | P26: 4462.90556 | Q26: 4544.407198 | R26: 4627.39722 | S26: 4711.902806 | T26: 4797.951635 | U26: 4885.571889 | W26: 1992 | X26: 4885.571889 | Y26: 32413.00192 | Z26: 0 | AA26: 581.3107474 | AB26: 4304.261141 | AC26: =Z26+AA26+AB26 -> 4885.571889
C27: =C28-1 -> 1993 | D27: 0 | E27: 0 | F27: 0 | G27: 0 | H27: 0 | I27: 0 | J27: 0 | K27: 0 | L27: 0 | M27: 0 | N27: 0 | O27: 4462.90556 | P27: 4544.407198 | Q27: 4627.39722 | R27: 4711.902806 | S27: 4797.951635 | T27: 4885.571889 | U27: 4974.792264 | W27: =W28-1 -> 1993 | X27: 4974.792264 | Y27: 33004.92857 | Z27: 0 | AA27: 591.9266516 | AB27: 4382.865613 | AC27: 4974.792264
C28: 1994 | D28: 0 | E28: 0 | F28: 0 | G28: 0 | H28: 0 | I28: 0 | J28: 0 | K28: 0 | L28: 0 | M28: 0 | N28: 0 | O28: 4544.407198 | P28: 4627.39722 | Q28: 4711.902806 | R28: 4797.951635 | S28: 4885.571889 | T28: 4974.792264 | U28: 5065.641984 | W28: 1994 | X28: 5065.641984 | Y28: 33607.665 | Z28: 0 | AA28: 602.7364236 | AB28: 4462.90556 | AC28: 5065.641984
C29: 1995 | D29: 0 | E29: 0 | F29: 0 | G29: 0 | H29: 0 | I29: 0 | J29: 0 | K29: 0 | L29: 0 | M29: 0 | N29: 0 | O29: 4627.39722 | P29: 4711.902806 | Q29: 4797.951635 | R29: 4885.571889 | S29: 4974.792264 | T29: 5065.641984 | U29: 5158.150802 | W29: 1995 | X29: 5158.150802 | Y29: 34221.4086 | Z29: 0 | AA29: 613.7436038 | AB29: 4544.407198 | AC29: 5158.150802
C30: 1996 | D30: 0 | E30: 0 | F30: 0 | G30: 0 | H30: 0 | I30: 0 | J30: 0 | K30: 0 | L30: 0 | M30: 0 | N30: 0 | O30: 4711.902806 | P30: 4797.951635 | Q30: 4885.571889 | R30: 4974.792264 | S30: 5065.641984 | T30: 5158.150802 | U30: 5252.349017 | W30: 1996 | X30: 5252.349017 | Y30: 34846.3604 | Z30: 0 | AA30: 624.9517973 | AB30: 4627.39722 | AC30: 5252.349017
C31: 1997 | D31: 0 | E31: 0 | F31: 0 | G31: 0 | H31: 0 | I31: 0 | J31: 0 | K31: 0 | L31: 0 | M31: 0 | N31: 0 | O31: 4797.951635 | P31: 4885.571889 | Q31: 4974.792264 | R31: 5065.641984 | S31: 5158.150802 | T31: 5252.349017 | U31: 5348.267481 | W31: 1997 | X31: 5348.267481 | Y31: 35482.72507 | Z31: 0 | AA31: 636.3646749 | AB31: 4711.902806 | AC31: 5348.267481
C32: 1998 | D32: 0 | E32: 0 | F32: 0 | G32: 0 | H32: 0 | I32: 0 | J32: 0 | K32: 0 | L32: 0 | M32: 0 | N32: 0 | O32: 4885.571889 | P32: 4974.792264 | Q32: 5065.641984 | R32: 5158.150802 | S32: 5252.349017 | T32: 5348.267481 | U32: 5445.93761 | W32: 1998 | X32: 5445.93761 | Y32: 36130.71105 | Z32: 4797.951635 | AA32: 647.9859747 | AB32: 0 | AC32: 5445.93761
C33: 1999 | D33: 0 | E33: 0 | F33: 0 | G33: 0 | H33: 0 | I33: 0 | J33: 0 | K33: 0 | L33: 0 | M33: 0 | N33: 0 | O33: 4974.792264 | P33: 5065.641984 | Q33: 5158.150802 | R33: 5252.349017 | S33: 5348.267481 | T33: 5445.93761 | U33: 5545.391391 | W33: 1999 | X33: 5545.391391 | Y33: 36790.53055 | Z33: 4885.571889 | AA33: 659.8195027 | AB33: 0 | AC33: 5545.391391
C34: 2000 | D34: =IF(AND(Year-Age+1>=Initial_Year,Age <=CSCRLife),OFFSET($X34,1-Age,0),0) -> 0 | E34: 0 | F34: 0 | G34: 0 | H34: 0 | I34: 0 | J34: 0 | K34: 0 | L34: 0 | M34: 0 | N34: =IF(AND(Year-Age+1>=Initial_Year,Age <=CSCRLife),OFFSET($X34,1-Age,0),0) -> 0 | O34: 5065.641984 | P34: 5158.150802 | Q34: 5252.349017 | R34: 5348.267481 | S34: 5445.93761 | T34: 5545.391391 | U34: 5646.661399 | W34: 2000 | X34: 5646.661399 | Y34: 37462.39968 | Z34: 4974.792264 | AA34: 671.8691348 | AB34: 0 | AC34: 5646.661399
C35: 2001 | D35: 0 | E35: 0 | F35: 0 | G35: 0 | H35: 0 | I35: 0 | J35: 0 | K35: 0 | L35: 0 | M35: 0 | N35: 0 | O35: 5158.150802 | P35: 5252.349017 | Q35: 5348.267481 | R35: 5445.93761 | S35: 5545.391391 | T35: 5646.661399 | U35: 5749.780801 | W35: 2001 | X35: 5749.780801 | Y35: 38146.5385 | Z35: 5065.641984 | AA35: 684.1388175 | AB35: 0 | AC35: 5749.780801
C36: 2002 | D36: 0 | E36: 0 | F36: 0 | G36: 0 | H36: 0 | I36: 0 | J36: 0 | K36: 0 | L36: 0 | M36: 0 | N36: 0 | O36: 5252.349017 | P36: 5348.267481 | Q36: 5445.93761 | R36: 5545.391391 | S36: 5646.661399 | T36: 5749.780801 | U36: 5854.783371 | W36: 2002 | X36: 5854.783371 | Y36: 38843.17107 | Z36: 5158.150802 | AA36: 696.6325692 | AB36: 0 | AC36: 5854.783371
C37: 2003 | D37: 0 | E37: 0 | F37: 0 | G37: 0 | H37: 0 | I37: 0 | J37: 0 | K37: 0 | L37: 0 | M37: 0 | N37: 0 | O37: 5348.267481 | P37: 5445.93761 | Q37: 5545.391391 | R37: 5646.661399 | S37: 5749.780801 | T37: 5854.783371 | U37: 5961.703499 | W37: 2003 | X37: 5961.703499 | Y37: 39552.52555 | Z37: 5252.349017 | AA37: 709.354482 | AB37: 0 | AC37: 5961.703499
C38: =C39-1 -> 2004 | D38: 0 | E38: 0 | F38: 0 | G38: 0 | H38: 0 | I38: 0 | J38: 0 | K38: 0 | L38: 0 | M38: 0 | N38: 0 | O38: 5445.93761 | P38: 5545.391391 | Q38: 5646.661399 | R38: 5749.780801 | S38: 5854.783371 | T38: 5961.703499 | U38: 6070.576204 | W38: =W39-1 -> 2004 | X38: 6070.576204 | Y38: 40274.83428 | Z38: 5348.267481 | AA38: 722.3087226 | AB38: 0 | AC38: 6070.576204
C39: 2005 | D39: 0 | E39: 0 | F39: 0 | G39: 0 | H39: 0 | I39: 0 | J39: 0 | K39: 0 | L39: 0 | M39: 0 | N39: 0 | O39: 5545.391391 | P39: 5646.661399 | Q39: 5749.780801 | R39: 5854.783371 | S39: 5961.703499 | T39: 6070.576204 | U39: 6181.437143 | W39: 2005 | X39: 6181.437143 | Y39: 41010.33381 | Z39: 5445.93761 | AA39: 735.4995336 | AB39: 0 | AC39: 6181.437143
C40: =C39+1 -> 2006 | D40: 0 | E40: 0 | F40: 0 | G40: 0 | H40: 0 | I40: 0 | J40: 0 | K40: 0 | L40: 0 | M40: 0 | N40: 0 | O40: 5646.661399 | P40: 5749.780801 | Q40: 5854.783371 | R40: 5961.703499 | S40: 6070.576204 | T40: 6181.437143 | U40: 6294.322627 | W40: =W39+1 -> 2006 | X40: 6294.322627 | Y40: 41759.26504 | Z40: 5545.391391 | AA40: 748.9312354 | AB40: 0 | AC40: 6294.322627
C41: 2007 | D41: 0 | E41: 0 | F41: 0 | G41: 0 | H41: 0 | I41: 0 | J41: 0 | K41: 0 | L41: 0 | M41: 0 | N41: 0 | O41: 5749.780801 | P41: 5854.783371 | Q41: 5961.703499 | R41: 6070.576204 | S41: 6181.437143 | T41: 6294.322627 | U41: 6409.269626 | W41: 2007 | X41: 6409.269626 | Y41: 42521.87327 | Z41: 5646.661399 | AA41: 762.6082271 | AB41: 0 | AC41: 6409.269626
C42: 2008 | D42: 0 | E42: 0 | F42: 0 | G42: 0 | H42: 0 | I42: 0 | J42: 0 | K42: 0 | L42: 0 | M42: 0 | N42: 0 | O42: 5854.783371 | P42: 5961.703499 | Q42: 6070.576204 | R42: 6181.437143 | S42: 6294.322627 | T42: 6409.269626 | U42: 6526.315789 | W42: 2008 | X42: 6526.315789 | Y42: 43298.40826 | Z42: 5749.780801 | AA42: 776.5349882 | AB42: 0 | AC42: 6526.315789
C43: 2009 | D43: 0 | E43: 0 | F43: 0 | G43: 0 | H43: 0 | I43: 0 | J43: 0 | K43: 0 | L43: 0 | M43: 0 | N43: 0 | O43: 5961.703499 | P43: 6070.576204 | Q43: 6181.437143 | R43: 6294.322627 | S43: 6409.269626 | T43: 6526.315789 | U43: 6645.499451 | W43: 2009 | X43: 6645.499451 | Y43: 44089.12434 | Z43: 5854.783371 | AA43: 790.71608 | AB43: 0 | AC43: 6645.499451
C44: 2010 | D44: =IF(AND(Year-Age+1>=Initial_Year,Age <=CSCRLife),OFFSET($X44,1-Age,0),0) -> 0 | E44: 0 | F44: 0 | G44: 0 | H44: 0 | I44: 0 | J44: 0 | K44: 0 | L44: 0 | M44: 0 | N44: =IF(AND(Year-Age+1>=Initial_Year,Age <=CSCRLife),OFFSET($X44,1-Age,0),0) -> 0 | O44: 6070.576204 | P44: 6181.437143 | Q44: 6294.322627 | R44: 6409.269626 | S44: 6526.315789 | T44: 6645.499451 | U44: 6766.859646 | W44: 2010 | X44: 6766.859646 | Y44: 44894.28049 | Z44: 5961.703499 | AA44: 805.1561471 | AB44: 0 | AC44: 6766.859646
C45: 2011 | D45: 0 | E45: 0 | F45: 0 | G45: 0 | H45: 0 | I45: 0 | J45: 0 | K45: 0 | L45: 0 | M45: 0 | N45: 0 | O45: 6181.437143 | P45: 6294.322627 | Q45: 6409.269626 | R45: 6526.315789 | S45: 6645.499451 | T45: 6766.859646 | U45: 6890.436123 | W45: 2011 | X45: 6890.436123 | Y45: 45714.14041 | Z45: 6070.576204 | AA45: 819.8599188 | AB45: 0 | AC45: 6890.436123
C46: 2012 | D46: 0 | E46: 0 | F46: 0 | G46: 0 | H46: 0 | I46: 0 | J46: 0 | K46: 0 | L46: 0 | M46: 0 | N46: 0 | O46: 6294.322627 | P46: 6409.269626 | Q46: 6526.315789 | R46: 6645.499451 | S46: 6766.859646 | T46: 6890.436123 | U46: 7016.269355 | W46: 2012 | X46: 7016.269355 | Y46: 46548.97262 | Z46: 6181.437143 | AA46: 834.8322111 | AB46: 0 | AC46: 7016.269355
C47: 2013 | D47: 0 | E47: 0 | F47: 0 | G47: 0 | H47: 0 | I47: 0 | J47: 0 | K47: 0 | L47: 0 | M47: 0 | N47: 0 | O47: 6409.269626 | P47: 6526.315789 | Q47: 6645.499451 | R47: 6766.859646 | S47: 6890.436123 | T47: 7016.269355 | U47: 7144.400554 | W47: 2013 | X47: 7144.400554 | Y47: 47399.05054 | Z47: 6294.322627 | AA47: 850.0779275 | AB47: 0 | AC47: 7144.400554
C48: 2014 | D48: 0 | E48: 0 | F48: 0 | G48: 0 | H48: 0 | I48: 0 | J48: 0 | K48: 0 | L48: 0 | M48: 0 | N48: 0 | O48: 6526.315789 | P48: 6645.499451 | Q48: 6766.859646 | R48: 6890.436123 | S48: 7016.269355 | T48: 7144.400554 | U48: 7274.871688 | W48: 2014 | X48: 7274.871688 | Y48: 48264.65261 | Z48: 6409.269626 | AA48: 865.6020613 | AB48: 0 | AC48: 7274.871688
C49: 2015 | D49: 0 | E49: 0 | F49: 0 | G49: 0 | H49: 0 | I49: 0 | J49: 0 | K49: 0 | L49: 0 | M49: 0 | N49: 0 | O49: 6645.499451 | P49: 6766.859646 | Q49: 6890.436123 | R49: 7016.269355 | S49: 7144.400554 | T49: 7274.871688 | U49: 7407.725487 | W49: 2015 | X49: 7407.725487 | Y49: 49146.0623 | Z49: 6526.315789 | AA49: 881.4096972 | AB49: 0 | AC49: 7407.725487
C50: 2016 | D50: 0 | E50: 0 | F50: 0 | G50: 0 | H50: 0 | I50: 0 | J50: 0 | K50: 0 | L50: 0 | M50: 0 | N50: 0 | O50: 6766.859646 | P50: 6890.436123 | Q50: 7016.269355 | R50: 7144.400554 | S50: 7274.871688 | T50: 7407.725487 | U50: 7543.005463 | W50: 2016 | X50: 7543.005463 | Y50: 50043.56832 | Z50: 6645.499451 | AA50: 897.5060122 | AB50: 0 | AC50: 7543.005463
C51: 2017 | D51: 0 | E51: 0 | F51: 0 | G51: 0 | H51: 0 | I51: 0 | J51: 0 | K51: 0 | L51: 0 | M51: 0 | N51: 0 | O51: 6890.436123 | P51: 7016.269355 | Q51: 7144.400554 | R51: 7274.871688 | S51: 7407.725487 | T51: 7543.005463 | U51: 7680.755925 | W51: 2017 | X51: 7680.755925 | Y51: 50957.46459 | Z51: 6766.859646 | AA51: 913.8962784 | AB51: 0 | AC51: 7680.755925
C52: 2018 | D52: 0 | E52: 0 | F52: 0 | G52: 0 | H52: 0 | I52: 0 | J52: 0 | K52: 0 | L52: 0 | M52: 0 | N52: 0 | O52: 7016.269355 | P52: 7144.400554 | Q52: 7274.871688 | R52: 7407.725487 | S52: 7543.005463 | T52: 7680.755925 | U52: 7821.021987 | W52: 2018 | X52: 7821.021987 | Y52: 51888.05046 | Z52: 6890.436123 | AA52: 930.5858638 | AB52: 0 | AC52: 7821.021987
C53: 2019 | D53: 0 | E53: 0 | F53: 0 | G53: 0 | H53: 0 | I53: 0 | J53: 0 | K53: 0 | L53: 0 | M53: 0 | N53: 0 | O53: 7144.400554 | P53: 7274.871688 | Q53: 7407.725487 | R53: 7543.005463 | S53: 7680.755925 | T53: 7821.021987 | U53: 7963.849589 | W53: 2019 | X53: 7963.849589 | Y53: 52835.63069 | Z53: 7016.269355 | AA53: 947.5802346 | AB53: 0 | AC53: 7963.849589
C54: 2020 | D54: =IF(AND(Year-Age+1>=Initial_Year,Age <=CSCRLife),OFFSET($X54,1-Age,0),0) -> 0 | E54: 0 | F54: 0 | G54: 0 | H54: 0 | I54: 0 | J54: 0 | K54: 0 | L54: 0 | M54: 0 | N54: =IF(AND(Year-Age+1>=Initial_Year,Age <=CSCRLife),OFFSET($X54,1-Age,0),0) -> 0 | O54: 7274.871688 | P54: 7407.725487 | Q54: 7543.005463 | R54: 7680.755925 | S54: 7821.021987 | T54: 7963.849589 | U54: 8109.285511 | W54: 2020 | X54: 8109.285511 | Y54: 53800.51565 | Z54: 7144.400554 | AA54: 964.8849569 | AB54: 0 | AC54: 8109.285511
C55: 2021 | D55: 0 | E55: 0 | F55: 0 | G55: 0 | H55: 0 | I55: 0 | J55: 0 | K55: 0 | L55: 0 | M55: 0 | N55: 0 | O55: 7407.725487 | P55: 7543.005463 | Q55: 7680.755925 | R55: 7821.021987 | S55: 7963.849589 | T55: 8109.285511 | U55: 8257.377386 | W55: 2021 | X55: 8257.377386 | Y55: 54783.02135 | Z55: 7274.871688 | AA55: 982.5056982 | AB55: 0 | AC55: 8257.377386
C56: 2022 | D56: 0 | E56: 0 | F56: 0 | G56: 0 | H56: 0 | I56: 0 | J56: 0 | K56: 0 | L56: 0 | M56: 0 | N56: 0 | O56: 7543.005463 | P56: 7680.755925 | Q56: 7821.021987 | R56: 7963.849589 | S56: 8109.285511 | T56: 8257.377386 | U56: 8408.173716 | W56: 2022 | X56: 8408.173716 | Y56: 55783.46958 | Z56: 7407.725487 | AA56: 1000.44823 | AB56: 0 | AC56: 8408.173716
C57: 2023 | D57: 0 | E57: 0 | F57: 0 | G57: 0 | H57: 0 | I57: 0 | J57: 0 | K57: 0 | L57: 0 | M57: 0 | N57: 0 | O57: 7680.755925 | P57: 7821.021987 | Q57: 7963.849589 | R57: 8109.285511 | S57: 8257.377386 | T57: 8408.173716 | U57: 8561.723891 | W57: 2023 | X57: 8561.723891 | Y57: 56802.188 | Z57: 7543.005463 | AA57: 1018.718428 | AB57: 0 | AC57: 8561.723891
C58: 2024 | D58: 0 | E58: 0 | F58: 0 | G58: 0 | H58: 0 | I58: 0 | J58: 0 | K58: 0 | L58: 0 | M58: 0 | N58: 0 | O58: 7821.021987 | P58: 7963.849589 | Q58: 8109.285511 | R58: 8257.377386 | S58: 8408.173716 | T58: 8561.723891 | U58: 8718.078201 | W58: 2024 | X58: 8718.078201 | Y58: 57839.51028 | Z58: 7680.755925 | AA58: 1037.322277 | AB58: 0 | AC58: 8718.078201
C59: 2025 | D59: 0 | E59: 0 | F59: 0 | G59: 0 | H59: 0 | I59: 0 | J59: 0 | K59: 0 | L59: 0 | M59: 0 | N59: 0 | O59: 7963.849589 | P59: 8109.285511 | Q59: 8257.377386 | R59: 8408.173716 | S59: 8561.723891 | T59: 8718.078201 | U59: 8877.287856 | W59: 2025 | X59: 8877.287856 | Y59: 58895.77615 | Z59: 7821.021987 | AA59: 1056.265869 | AB59: 0 | AC59: 8877.287856
C60: 2026 | D60: 0 | E60: 0 | F60: 0 | G60: 0 | H60: 0 | I60: 0 | J60: 0 | K60: 0 | L60: 0 | M60: 0 | N60: 0 | O60: 8109.285511 | P60: 8257.377386 | Q60: 8408.173716 | R60: 8561.723891 | S60: 8718.078201 | T60: 8877.287856 | U60: 9039.404999 | W60: 2026 | X60: 9039.404999 | Y60: 59971.33156 | Z60: 7963.849589 | AA60: 1075.55541 | AB60: 0 | AC60: 9039.404999
C61: 2027 | D61: 0 | E61: 0 | F61: 0 | G61: 0 | H61: 0 | I61: 0 | J61: 0 | K61: 0 | L61: 0 | M61: 0 | N61: 0 | O61: 8257.377386 | P61: 8408.173716 | Q61: 8561.723891 | R61: 8718.078201 | S61: 8877.287856 | T61: 9039.404999 | U61: 9204.482728 | W61: 2027 | X61: 9204.482728 | Y61: 61066.52878 | Z61: 8109.285511 | AA61: 1095.197216 | AB61: 0 | AC61: 9204.482728
C62: 2028 | D62: 0 | E62: 0 | F62: 0 | G62: 0 | H62: 0 | I62: 0 | J62: 0 | K62: 0 | L62: 0 | M62: 0 | N62: 0 | O62: 8408.173716 | P62: 8561.723891 | Q62: 8718.078201 | R62: 8877.287856 | S62: 9039.404999 | T62: 9204.482728 | U62: 9372.575108 | W62: 2028 | X62: 9372.575108 | Y62: 62181.7265 | Z62: 8257.377386 | AA62: 1115.197722 | AB62: 0 | AC62: 9372.575108
C63: 2029 | D63: 0 | E63: 0 | F63: 0 | G63: 0 | H63: 0 | I63: 0 | J63: 0 | K63: 0 | L63: 0 | M63: 0 | N63: 0 | O63: 8561.723891 | P63: 8718.078201 | Q63: 8877.287856 | R63: 9039.404999 | S63: 9204.482728 | T63: 9372.575108 | U63: 9543.737193 | W63: 2029 | X63: 9543.737193 | Y63: 63317.28998 | Z63: 8408.173716 | AA63: 1135.563477 | AB63: 0 | AC63: 9543.737193
C64: 2030 | D64: 0 | E64: 0 | F64: 0 | G64: 0 | H64: 0 | I64: 0 | J64: 0 | K64: 0 | L64: 0 | M64: 0 | N64: 0 | O64: 8718.078201 | P64: 8877.287856 | Q64: 9039.404999 | R64: 9204.482728 | S64: 9372.575108 | T64: 9543.737193 | U64: 9718.025043 | W64: 2030 | X64: 9718.025043 | Y64: 64473.59113 | Z64: 8561.723891 | AA64: 1156.301151 | AB64: 0 | AC64: 9718.025043
C65: 2031 | D65: 0 | E65: 0 | F65: 0 | G65: 0 | H65: 0 | I65: 0 | J65: 0 | K65: 0 | L65: 0 | M65: 0 | N65: 0 | O65: 8877.287856 | P65: 9039.404999 | Q65: 9204.482728 | R65: 9372.575108 | S65: 9543.737193 | T65: 9718.025043 | U65: 9895.495739 | W65: 2031 | X65: 9895.495739 | Y65: 65651.00867 | Z65: 8718.078201 | AA65: 1177.417538 | AB65: 0 | AC65: 9895.495739
C66: 2032 | D66: 0 | E66: 0 | F66: 0 | G66: 0 | H66: 0 | I66: 0 | J66: 0 | K66: 0 | L66: 0 | M66: 0 | N66: 0 | O66: 9039.404999 | P66: 9204.482728 | Q66: 9372.575108 | R66: 9543.737193 | S66: 9718.025043 | T66: 9895.495739 | U66: 10076.20741 | W66: 2032 | X66: 10076.20741 | Y66: 66849.92822 | Z66: 8877.287856 | AA66: 1198.919552 | AB66: 0 | AC66: 10076.20741
C67: 2033 | D67: 0 | E67: 0 | F67: 0 | G67: 0 | H67: 0 | I67: 0 | J67: 0 | K67: 0 | L67: 0 | M67: 0 | N67: 0 | O67: 9204.482728 | P67: 9372.575108 | Q67: 9543.737193 | R67: 9718.025043 | S67: 9895.495739 | T67: 10076.20741 | U67: 10260.21923 | W67: 2033 | X67: 10260.21923 | Y67: 68070.74245 | Z67: 9039.404999 | AA67: 1220.814236 | AB67: 0 | AC67: 10260.21923
C68: 2034 | D68: 0 | E68: 0 | F68: 0 | G68: 0 | H68: 0 | I68: 0 | J68: 0 | K68: 0 | L68: 0 | M68: 0 | N68: 0 | O68: 9372.575108 | P68: 9543.737193 | Q68: 9718.025043 | R68: 9895.495739 | S68: 10076.20741 | T68: 10260.21923 | U68: 10447.59149 | W68: 2034 | X68: 10447.59149 | Y68: 69313.85121 | Z68: 9204.482728 | AA68: 1243.108761 | AB68: 0 | AC68: 10447.59149

Sheet UEC Development
C2: UEC Development
C4: NAVIGATION
C6: COMMENTS
C9: ='Product Classes'!I10&" - "&OFFSET('Product Classes'!$C$9,MATCH('Product Classes'!I10,MODEL_PCS,0),0) -> PC1 - Polyphase Motors
C11: Efficiency Level | D11: Full-Load Efficiency | E11: Yearly
D12: % | E12: kWh/year
C13: ='Efficiency Levels'!C12&" - "&'Efficiency Levels'!D12 -> EL0 - 0.753 | D13: ='Efficiency Levels'!D12 -> 0.753 | E13: ='Efficiency Levels'!E12 -> 1934
C14: ='Efficiency Levels'!C13&" - "&'Efficiency Levels'!D13 -> EL1 - 0.773 | D14: ='Efficiency Levels'!D13 -> 0.773 | E14: ='Efficiency Levels'!E13 -> 1883
C15: ='Efficiency Levels'!C14&" - "&'Efficiency Levels'!D14 -> EL2 - 0.788 | D15: ='Efficiency Levels'!D14 -> 0.788 | E15: ='Efficiency Levels'!E14 -> 1836
C16: ='Efficiency Levels'!C15&" - "&'Efficiency Levels'!D15 -> EL3 - 0.805 | D16: ='Efficiency Levels'!D15 -> 0.805 | E16: ='Efficiency Levels'!E15 -> 1775
C17: ='Efficiency Levels'!C16&" - "&'Efficiency Levels'!D16 -> EL4 - 0.811 | D17: ='Efficiency Levels'!D16 -> 0.811 | E17: ='Efficiency Levels'!E16 -> 1759
C18: ='Efficiency Levels'!C17&" - "&'Efficiency Levels'!D17 -> EL5 - 0.835 | D18: ='Efficiency Levels'!D17 -> 0.835 | E18: ='Efficiency Levels'!E17 -> 1678
C19: ='Efficiency Levels'!C18&" - "&'Efficiency Levels'!D18 -> EL6 - 0.852 | D19: ='Efficiency Levels'!D18 -> 0.852 | E19: ='Efficiency Levels'!E18 -> 1643
C20: ='Efficiency Levels'!C19&" - "&'Efficiency Levels'!D19 -> EL7 - 0.862 | D20: ='Efficiency Levels'!D19 -> 0.862 | E20: ='Efficiency Levels'!E19 -> 1622
C21: ='Efficiency Levels'!C20&" - "&'Efficiency Levels'!D20 -> EL8 - 0.877 | D21: ='Efficiency Levels'!D20 -> 0.877 | E21: ='Efficiency Levels'!E20 -> 1594
C23: Source | D23: DOE Small Electric Motors 2010 Final Rule, Chapter 6: Energy Use Characterization, Table 6.3.1 Average Annual Electricity Use by Efficiency Level for Small Electric Motors (Using National Shipment-Weighted Distribution of Product Class Shipments) (page 6-8)
C28: ='Product Classes'!I11&" - "&OFFSET('Product Classes'!$C$9,MATCH('Product Classes'!I11,MODEL_PCS,0),0) -> PC2 - Capacitor-Start, Induction-Run Motors
C30: Efficiency Level | D30: Full-Load Efficiency | E30: Yearly
D31: % | E31: kWh/year
C32: ='Efficiency Levels'!C30&" - "&'Efficiency Levels'!D30 -> EL0 - 0.579 | D32: ='Efficiency Levels'!D30 -> 0.579 | E32: ='Efficiency Levels'!E30 -> 1265
C33: ='Efficiency Levels'!C31&" - "&'Efficiency Levels'!D31 -> EL1 - 0.611 | D33: ='Efficiency Levels'!D31 -> 0.611 | E33: ='Efficiency Levels'!E31 -> 1182
C34: ='Efficiency Levels'!C32&" - "&'Efficiency Levels'!D32 -> EL2 - 0.635 | D34: ='Efficiency Levels'!D32 -> 0.635 | E34: ='Efficiency Levels'!E32 -> 1125
C35: ='Efficiency Levels'!C33&" - "&'Efficiency Levels'!D33 -> EL3 - 0.657 | D35: ='Efficiency Levels'!D33 -> 0.657 | E35: ='Efficiency Levels'!E33 -> 1071
C36: ='Efficiency Levels'!C34&" - "&'Efficiency Levels'!D34 -> EL4 - 0.705 | D36: ='Efficiency Levels'!D34 -> 0.705 | E36: ='Efficiency Levels'!E34 -> 979
C37: ='Efficiency Levels'!C35&" - "&'Efficiency Levels'!D35 -> EL5 - 0.718 | D37: ='Efficiency Levels'!D35 -> 0.718 | E37: ='Efficiency Levels'!E35 -> 953
C38: ='Efficiency Levels'!C36&" - "&'Efficiency Levels'!D36 -> EL6 - 0.731 | D38: ='Efficiency Levels'!D36 -> 0.731 | E38: ='Efficiency Levels'!E36 -> 920
C39: ='Efficiency Levels'!C37&" - "&'Efficiency Levels'!D37 -> EL7 - 0.776 | D39: ='Efficiency Levels'!D37 -> 0.776 | E39: ='Efficiency Levels'!E37 -> 858
C41: Source | D41: DOE Small Electric Motors 2010 Final Rule, Chapter 6: Energy Use Characterization, Table 6.3.1 Average Annual Electricity Use by Efficiency Level for Small Electric Motors (Using National Shipment-Weighted Distribution of Product Class Shipments) (page 6-8)
C46: ='Product Classes'!I12&" - "&OFFSET('Product Classes'!$C$9,MATCH('Product Classes'!I12,MODEL_PCS,0),0) -> PC3 - Capacitor-Start, Capacitor-Run Motors
C48: Efficiency Level | D48: Full-Load Efficiency | E48: Yearly
D49: % | E49: kWh/year
C50: ='Efficiency Levels'!C47&" - "&'Efficiency Levels'!D47 -> EL0 - 0.714 | D50: ='Efficiency Levels'!D47 -> 0.714 | E50: ='Efficiency Levels'!E47 -> 2310
C51: ='Efficiency Levels'!C48&" - "&'Efficiency Levels'!D48 -> EL1 - 0.751 | D51: ='Efficiency Levels'!D48 -> 0.751 | E51: ='Efficiency Levels'!E48 -> 2208
C52: ='Efficiency Levels'!C49&" - "&'Efficiency Levels'!D49 -> EL2 - 0.795 | D52: ='Efficiency Levels'!D49 -> 0.795 | E52: ='Efficiency Levels'!E49 -> 2036
C53: ='Efficiency Levels'!C50&" - "&'Efficiency Levels'!D50 -> EL3 - 0.817 | D53: ='Efficiency Levels'!D50 -> 0.817 | E53: ='Efficiency Levels'!E50 -> 1965
C54: ='Efficiency Levels'!C51&" - "&'Efficiency Levels'!D51 -> EL4 - 0.828 | D54: ='Efficiency Levels'!D51 -> 0.828 | E54: ='Efficiency Levels'!E51 -> 1979
C55: ='Efficiency Levels'!C52&" - "&'Efficiency Levels'!D52 -> EL5 - 0.84 | D55: ='Efficiency Levels'!D52 -> 0.84 | E55: ='Efficiency Levels'!E52 -> 1959
C56: ='Efficiency Levels'!C53&" - "&'Efficiency Levels'!D53 -> EL6 - 0.846 | D56: ='Efficiency Levels'!D53 -> 0.846 | E56: ='Efficiency Levels'!E53 -> 1923
C57: ='Efficiency Levels'!C54&" - "&'Efficiency Levels'!D54 -> EL7 - 0.867 | D57: ='Efficiency Levels'!D54 -> 0.867 | E57: ='Efficiency Levels'!E54 -> 1873
C58: ='Efficiency Levels'!C55&" - "&'Efficiency Levels'!D55 -> EL8 - 0.879 | D58: ='Efficiency Levels'!D55 -> 0.879 | E58: ='Efficiency Levels'!E55 -> 1824
C60: Source | D60: DOE Small Electric Motors 2010 Final Rule, Chapter 6: Energy Use Characterization, Table 6.3.1 Average Annual Electricity Use by Efficiency Level for Small Electric Motors (Using National Shipment-Weighted Distribution of Product Class Shipments) (page 6-8)

Sheet UEC - Polyphase
R2: Weighted Annual UEC - Polyphase Motors
R4: NAVIGATION
R6: COMMENTS
R9: Market UEC (Shipment Weighted Average)
S10: 1981 | T10: =S10+1 -> 1982 | U10: =T10+1 -> 1983 | V10: 1984 | W10: 1985 | X10: 1986 | Y10: 1987 | Z10: 1988 | AA10: 1989 | AB10: 1990 | AC10: 1991 | AD10: 1992 | AE10: 1993 | AF10: 1994 | AG10: 1995 | AH10: 1996 | AI10: 1997 | AJ10: 1998 | AK10: 1999 | AL10: 2000 | AM10: 2001 | AN10: 2002 | AO10: 2003 | AP10: 2004 | AQ10: 2005 | AR10: 2006 | AS10: 2007 | AT10: 2008 | AU10: 2009 | AV10: 2010 | AW10: 2011 | AX10: 2012 | AY10: 2013 | AZ10: 2014 | BA10: 2015 | BB10: 2016 | BC10: 2017 | BD10: 2018 | BE10: 2019 | BF10: 2020 | BG10: 2021 | BH10: 2022 | BI10: 2023 | BJ10: 2024 | BK10: 2025 | BL10: 2026 | BM10: 2027 | BN10: 2028 | BO10: 2029 | BP10: 2030 | BQ10: 2031 | BR10: 2032 | BS10: =BR10+1 -> 2033 | BT10: 2034
R11: PRE-Case UEC | S11: =SUMPRODUCT('Efficiency Dist'!G13:G21,'UEC Development'!$E$13:$E$21) -> 1864.54 | T11: =SUMPRODUCT('Efficiency Dist'!H13:H21,'UEC Development'!$E$13:$E$21) -> 1864.54 | U11: =SUMPRODUCT('Efficiency Dist'!I13:I21,'UEC Development'!$E$13:$E$21) -> 1864.54 | V11: =SUMPRODUCT('Efficiency Dist'!J13:J21,'UEC Development'!$E$13:$E$21) -> 1864.54 | W11: =SUMPRODUCT('Efficiency Dist'!K13:K21,'UEC Development'!$E$13:$E$21) -> 1864.54 | X11: =SUMPRODUCT('Efficiency Dist'!L13:L21,'UEC Development'!$E$13:$E$21) -> 1864.54 | Y11: =SUMPRODUCT('Efficiency Dist'!M13:M21,'UEC Development'!$E$13:$E$21) -> 1864.54 | Z11: =SUMPRODUCT('Efficiency Dist'!N13:N21,'UEC Development'!$E$13:$E$21) -> 1864.54 | AA11: =SUMPRODUCT('Efficiency Dist'!O13:O21,'UEC Development'!$E$13:$E$21) -> 1864.54 | AB11: =SUMPRODUCT('Efficiency Dist'!P13:P21,'UEC Development'!$E$13:$E$21) -> 1864.54 | AC11: =SUMPRODUCT('Efficiency Dist'!Q13:Q21,'UEC Development'!$E$13:$E$21) -> 1864.54 | AD11: =SUMPRODUCT('Efficiency Dist'!R13:R21,'UEC Development'!$E$13:$E$21) -> 1864.54 | AE11: =SUMPRODUCT('Efficiency Dist'!S13:S21,'UEC Development'!$E$13:$E$21) -> 1864.54 | AF11: =SUMPRODUCT('Efficiency Dist'!T13:T21,'UEC Development'!$E$13:$E$21) -> 1864.54 | AG11: =SUMPRODUCT('Efficiency Dist'!U13:U21,'UEC Development'!$E$13:$E$21) -> 1864.54 | AH11: =SUMPRODUCT('Efficiency Dist'!V13:V21,'UEC Development'!$E$13:$E$21) -> 1864.54 | AI11: =SUMPRODUCT('Efficiency Dist'!W13:W21,'UEC Development'!$E$13:$E$21) -> 1864.54 | AJ11: =SUMPRODUCT('Efficiency Dist'!X13:X21,'UEC Development'!$E$13:$E$21) -> 1864.54 | AK11: =SUMPRODUCT('Efficiency Dist'!Y13:Y21,'UEC Development'!$E$13:$E$21) -> 1864.54 | AL11: =SUMPRODUCT('Efficiency Dist'!Z13:Z21,'UEC Development'!$E$13:$E$21) -> 1864.54 | AM11: =SUMPRODUCT('Efficiency Dist'!AA13:AA21,'UEC Development'!$E$13:$E$21) -> 1864.54 | AN11: =SUMPRODUCT('Efficiency Dist'!AB13:AB21,'UEC Development'!$E$13:$E$21) -> 1864.54 | AO11: =SUMPRODUCT('Efficiency Dist'!AC13:AC21,'UEC Development'!$E$13:$E$21) -> 1864.54 | AP11: =SUMPRODUCT('Efficiency Dist'!AD13:AD21,'UEC Development'!$E$13:$E$21) -> 1864.54 | AQ11: =SUMPRODUCT('Efficiency Dist'!AE13:AE21,'UEC Development'!$E$13:$E$21) -> 1864.54 | AR11: =SUMPRODUCT('Efficiency Dist'!AF13:AF21,'UEC Development'!$E$13:$E$21) -> 1864.54 | AS11: =SUMPRODUCT('Efficiency Dist'!AG13:AG21,'UEC Development'!$E$13:$E$21) -> 1864.54 | AT11: =SUMPRODUCT('Efficiency Dist'!AH13:AH21,'UEC Development'!$E$13:$E$21) -> 1864.54 | AU11: =SUMPRODUCT('Efficiency Dist'!AI13:AI21,'UEC Development'!$E$13:$E$21) -> 1864.54 | AV11: =SUMPRODUCT('Efficiency Dist'!AJ13:AJ21,'UEC Development'!$E$13:$E$21) -> 1864.54 | AW11: =SUMPRODUCT('Efficiency Dist'!AK13:AK21,'UEC Development'!$E$13:$E$21) -> 1864.54 | AX11: =SUMPRODUCT('Efficiency Dist'!AL13:AL21,'UEC Development'!$E$13:$E$21) -> 1864.54 | AY11: =SUMPRODUCT('Efficiency Dist'!AM13:AM21,'UEC Development'!$E$13:$E$21) -> 1864.54 | AZ11: =SUMPRODUCT('Efficiency Dist'!AN13:AN21,'UEC Development'!$E$13:$E$21) -> 1864.54 | BA11: =SUMPRODUCT('Efficiency Dist'!AO13:AO21,'UEC Development'!$E$13:$E$21) -> 1864.54 | BB11: =SUMPRODUCT('Efficiency Dist'!AP13:AP21,'UEC Development'!$E$13:$E$21) -> 1864.54 | BC11: =SUMPRODUCT('Efficiency Dist'!AQ13:AQ21,'UEC Development'!$E$13:$E$21) -> 1864.54 | BD11: =SUMPRODUCT('Efficiency Dist'!AR13:AR21,'UEC Development'!$E$13:$E$21) -> 1864.54 | BE11: =SUMPRODUCT('Efficiency Dist'!AS13:AS21,'UEC Development'!$E$13:$E$21) -> 1864.54 | BF11: =SUMPRODUCT('Efficiency Dist'!AT13:AT21,'UEC Development'!$E$13:$E$21) -> 1864.54 | BG11: =SUMPRODUCT('Efficiency Dist'!AU13:AU21,'UEC Development'!$E$13:$E$21) -> 1864.54 | BH11: =SUMPRODUCT('Efficiency Dist'!AV13:AV21,'UEC Development'!$E$13:$E$21) -> 1864.54 | BI11: =SUMPRODUCT('Efficiency Dist'!AW13:AW21,'UEC Development'!$E$13:$E$21) -> 1864.54 | BJ11: =SUMPRODUCT('Efficiency Dist'!AX13:AX21,'UEC Development'!$E$13:$E$21) -> 1864.54 | BK11: =SUMPRODUCT('Efficiency Dist'!AY13:AY21,'UEC Development'!$E$13:$E$21) -> 1864.54 | BL11: =SUMPRODUCT('Efficiency Dist'!AZ13:AZ21,'UEC Development'!$E$13:$E$21) -> 1864.54 | BM11: =SUMPRODUCT('Efficiency Dist'!BA13:BA21,'UEC Development'!$E$13:$E$21) -> 1864.54 | BN11: =SUMPRODUCT('Efficiency Dist'!BB13:BB21,'UEC Development'!$E$13:$E$21) -> 1864.54 | BO11: =SUMPRODUCT('Efficiency Dist'!BC13:BC21,'UEC Development'!$E$13:$E$21) -> 1864.54 | BP11: =SUMPRODUCT('Efficiency Dist'!BD13:BD21,'UEC Development'!$E$13:$E$21) -> 1864.54 | BQ11: =SUMPRODUCT('Efficiency Dist'!BE13:BE21,'UEC Development'!$E$13:$E$21) -> 1864.54 | BR11: =SUMPRODUCT('Efficiency Dist'!BF13:BF21,'UEC Development'!$E$13:$E$21) -> 1864.54 | BS11: =SUMPRODUCT('Efficiency Dist'!BG13:BG21,'UEC Development'!$E$13:$E$21) -> 1864.54 | BT11: =SUMPRODUCT('Efficiency Dist'!BH13:BH21,'UEC Development'!$E$13:$E$21) -> 1864.54
R12: POST-Case UEC | S12: =SUMPRODUCT('Efficiency Dist'!G26:G34,'UEC Development'!$E$13:$E$21) -> 1864.54 | T12: =SUMPRODUCT('Efficiency Dist'!H26:H34,'UEC Development'!$E$13:$E$21) -> 1864.54 | U12: =SUMPRODUCT('Efficiency Dist'!I26:I34,'UEC Development'!$E$13:$E$21) -> 1864.54 | V12: =SUMPRODUCT('Efficiency Dist'!J26:J34,'UEC Development'!$E$13:$E$21) -> 1864.54 | W12: =SUMPRODUCT('Efficiency Dist'!K26:K34,'UEC Development'!$E$13:$E$21) -> 1864.54 | X12: =SUMPRODUCT('Efficiency Dist'!L26:L34,'UEC Development'!$E$13:$E$21) -> 1864.54 | Y12: =SUMPRODUCT('Efficiency Dist'!M26:M34,'UEC Development'!$E$13:$E$21) -> 1864.54 | Z12: =SUMPRODUCT('Efficiency Dist'!N26:N34,'UEC Development'!$E$13:$E$21) -> 1864.54 | AA12: =SUMPRODUCT('Efficiency Dist'!O26:O34,'UEC Development'!$E$13:$E$21) -> 1864.54 | AB12: =SUMPRODUCT('Efficiency Dist'!P26:P34,'UEC Development'!$E$13:$E$21) -> 1864.54 | AC12: =SUMPRODUCT('Efficiency Dist'!Q26:Q34,'UEC Development'!$E$13:$E$21) -> 1864.54 | AD12: =SUMPRODUCT('Efficiency Dist'!R26:R34,'UEC Development'!$E$13:$E$21) -> 1864.54 | AE12: =SUMPRODUCT('Efficiency Dist'!S26:S34,'UEC Development'!$E$13:$E$21) -> 1864.54 | AF12: =SUMPRODUCT('Efficiency Dist'!T26:T34,'UEC Development'!$E$13:$E$21) -> 1864.54 | AG12: =SUMPRODUCT('Efficiency Dist'!U26:U34,'UEC Development'!$E$13:$E$21) -> 1864.54 | AH12: =SUMPRODUCT('Efficiency Dist'!V26:V34,'UEC Development'!$E$13:$E$21) -> 1864.54 | AI12: =SUMPRODUCT('Efficiency Dist'!W26:W34,'UEC Development'!$E$13:$E$21) -> 1864.54 | AJ12: =SUMPRODUCT('Efficiency Dist'!X26:X34,'UEC Development'!$E$13:$E$21) -> 1864.54 | AK12: =SUMPRODUCT('Efficiency Dist'!Y26:Y34,'UEC Development'!$E$13:$E$21) -> 1864.54 | AL12: =SUMPRODUCT('Efficiency Dist'!Z26:Z34,'UEC Development'!$E$13:$E$21) -> 1864.54 | AM12: =SUMPRODUCT('Efficiency Dist'!AA26:AA34,'UEC Development'!$E$13:$E$21) -> 1864.54 | AN12: =SUMPRODUCT('Efficiency Dist'!AB26:AB34,'UEC Development'!$E$13:$E$21) -> 1864.54 | AO12: =SUMPRODUCT('Efficiency Dist'!AC26:AC34,'UEC Development'!$E$13:$E$21) -> 1864.54 | AP12: =SUMPRODUCT('Efficiency Dist'!AD26:AD34,'UEC Development'!$E$13:$E$21) -> 1864.54 | AQ12: =SUMPRODUCT('Efficiency Dist'!AE26:AE34,'UEC Development'!$E$13:$E$21) -> 1864.54 | AR12: =SUMPRODUCT('Efficiency Dist'!AF26:AF34,'UEC Development'!$E$13:$E$21) -> 1864.54 | AS12: =SUMPRODUCT('Efficiency Dist'!AG26:AG34,'UEC Development'!$E$13:$E$21) -> 1864.54 | AT12: =SUMPRODUCT('Efficiency Dist'!AH26:AH34,'UEC Development'!$E$13:$E$21) -> 1864.54 | AU12: =SUMPRODUCT('Efficiency Dist'!AI26:AI34,'UEC Development'!$E$13:$E$21) -> 1864.54 | AV12: =SUMPRODUCT('Efficiency Dist'!AJ26:AJ34,'UEC Development'!$E$13:$E$21) -> 1864.54 | AW12: =SUMPRODUCT('Efficiency Dist'!AK26:AK34,'UEC Development'!$E$13:$E$21) -> 1864.54 | AX12: =SUMPRODUCT('Efficiency Dist'!AL26:AL34,'UEC Development'!$E$13:$E$21) -> 1864.54 | AY12: =SUMPRODUCT('Efficiency Dist'!AM26:AM34,'UEC Development'!$E$13:$E$21) -> 1864.54 | AZ12: =SUMPRODUCT('Efficiency Dist'!AN26:AN34,'UEC Development'!$E$13:$E$21) -> 1864.54 | BA12: =SUMPRODUCT('Efficiency Dist'!AO26:AO34,'UEC Development'!$E$13:$E$21) -> 1676.95 | BB12: =SUMPRODUCT('Efficiency Dist'!AP26:AP34,'UEC Development'!$E$13:$E$21) -> 1676.95 | BC12: =SUMPRODUCT('Efficiency Dist'!AQ26:AQ34,'UEC Development'!$E$13:$E$21) -> 1676.95 | BD12: =SUMPRODUCT('Efficiency Dist'!AR26:AR34,'UEC Development'!$E$13:$E$21) -> 1676.95 | BE12: =SUMPRODUCT('Efficiency Dist'!AS26:AS34,'UEC Development'!$E$13:$E$21) -> 1676.95 | BF12: =SUMPRODUCT('Efficiency Dist'!AT26:AT34,'UEC Development'!$E$13:$E$21) -> 1676.95 | BG12: =SUMPRODUCT('Efficiency Dist'!AU26:AU34,'UEC Development'!$E$13:$E$21) -> 1676.95 | BH12: =SUMPRODUCT('Efficiency Dist'!AV26:AV34,'UEC Development'!$E$13:$E$21) -> 1676.95 | BI12: =SUMPRODUCT('Efficiency Dist'!AW26:AW34,'UEC Development'!$E$13:$E$21) -> 1676.95 | BJ12: =SUMPRODUCT('Efficiency Dist'!AX26:AX34,'UEC Development'!$E$13:$E$21) -> 1676.95 | BK12: =SUMPRODUCT('Efficiency Dist'!AY26:AY34,'UEC Development'!$E$13:$E$21) -> 1676.95 | BL12: =SUMPRODUCT('Efficiency Dist'!AZ26:AZ34,'UEC Development'!$E$13:$E$21) -> 1676.95 | BM12: =SUMPRODUCT('Efficiency Dist'!BA26:BA34,'UEC Development'!$E$13:$E$21) -> 1676.95 | BN12: =SUMPRODUCT('Efficiency Dist'!BB26:BB34,'UEC Development'!$E$13:$E$21) -> 1676.95 | BO12: =SUMPRODUCT('Efficiency Dist'!BC26:BC34,'UEC Development'!$E$13:$E$21) -> 1676.95 | BP12: =SUMPRODUCT('Efficiency Dist'!BD26:BD34,'UEC Development'!$E$13:$E$21) -> 1676.95 | BQ12: =SUMPRODUCT('Efficiency Dist'!BE26:BE34,'UEC Development'!$E$13:$E$21) -> 1676.95 | BR12: =SUMPRODUCT('Efficiency Dist'!BF26:BF34,'UEC Development'!$E$13:$E$21) -> 1676.95 | BS12: =SUMPRODUCT('Efficiency Dist'!BG26:BG34,'UEC Development'!$E$13:$E$21) -> 1676.95 | BT12: =SUMPRODUCT('Efficiency Dist'!BH26:BH34,'UEC Development'!$E$13:$E$21) -> 1676.95
R15: Installed UEC (Vintage Weighted Average)
S16: 1981 | T16: =S16+1 -> 1982 | U16: =T16+1 -> 1983 | V16: 1984 | W16: 1985 | X16: 1986 | Y16: 1987 | Z16: 1988 | AA16: 1989 | AB16: 1990 | AC16: 1991 | AD16: 1992 | AE16: 1993 | AF16: 1994 | AG16: 1995 | AH16: 1996 | AI16: 1997 | AJ16: 1998 | AK16: 1999 | AL16: 2000 | AM16: 2001 | AN16: 2002 | AO16: 2003 | AP16: 2004 | AQ16: 2005 | AR16: 2006 | AS16: 2007 | AT16: 2008 | AU16: 2009 | AV16: 2010 | AW16: 2011 | AX16: 2012 | AY16: 2013 | AZ16: 2014 | BA16: 2015 | BB16: 2016 | BC16: 2017 | BD16: 2018 | BE16: 2019 | BF16: 2020 | BG16: 2021 | BH16: 2022 | BI16: 2023 | BJ16: 2024 | BK16: 2025 | BL16: 2026 | BM16: 2027 | BN16: 2028 | BO16: 2029 | BP16: 2030 | BQ16: 2031 | BR16: 2032 | BS16: 2033 | BT16: 2034
R17: PRE-Case UEC | S17: =SUMPRODUCT(OFFSET('Stock Model - Polyphase'!$C$14,MATCH(S$16,$S$16:$BT$16,0),1,1,18)/SUM(OFFSET('Stock Model - Polyphase'!$C$14,MATCH(S$16,$S$16:$BT$16,0),1,1,18)),OFFSET(S$10,1,-18+1,1,18)) -> 1864.54 | T17: =SUMPRODUCT(OFFSET('Stock Model - Polyphase'!$C$14,MATCH(T$16,$S$16:$BT$16,0),1,1,18)/SUM(OFFSET('Stock Model - Polyphase'!$C$14,MATCH(T$16,$S$16:$BT$16,0),1,1,18)),OFFSET(T$10,1,-18+1,1,18)) -> 1864.54 | U17: =SUMPRODUCT(OFFSET('Stock Model - Polyphase'!$C$14,MATCH(U$16,$S$16:$BT$16,0),1,1,18)/SUM(OFFSET('Stock Model - Polyphase'!$C$14,MATCH(U$16,$S$16:$BT$16,0),1,1,18)),OFFSET(U$10,1,-18+1,1,18)) -> 1864.54 | V17: =SUMPRODUCT(OFFSET('Stock Model - Polyphase'!$C$14,MATCH(V$16,$S$16:$BT$16,0),1,1,18)/SUM(OFFSET('Stock Model - Polyphase'!$C$14,MATCH(V$16,$S$16:$BT$16,0),1,1,18)),OFFSET(V$10,1,-18+1,1,18)) -> 1864.54 | W17: =SUMPRODUCT(OFFSET('Stock Model - Polyphase'!$C$14,MATCH(W$16,$S$16:$BT$16,0),1,1,18)/SUM(OFFSET('Stock Model - Polyphase'!$C$14,MATCH(W$16,$S$16:$BT$16,0),1,1,18)),OFFSET(W$10,1,-18+1,1,18)) -> 1864.54 | X17: =SUMPRODUCT(OFFSET('Stock Model - Polyphase'!$C$14,MATCH(X$16,$S$16:$BT$16,0),1,1,18)/SUM(OFFSET('Stock Model - Polyphase'!$C$14,MATCH(X$16,$S$16:$BT$16,0),1,1,18)),OFFSET(X$10,1,-18+1,1,18)) -> 1864.54 | Y17: =SUMPRODUCT(OFFSET('Stock Model - Polyphase'!$C$14,MATCH(Y$16,$S$16:$BT$16,0),1,1,18)/SUM(OFFSET('Stock Model - Polyphase'!$C$14,MATCH(Y$16,$S$16:$BT$16,0),1,1,18)),OFFSET(Y$10,1,-18+1,1,18)) -> 1864.54 | Z17: =SUMPRODUCT(OFFSET('Stock Model - Polyphase'!$C$14,MATCH(Z$16,$S$16:$BT$16,0),1,1,18)/SUM(OFFSET('Stock Model - Polyphase'!$C$14,MATCH(Z$16,$S$16:$BT$16,0),1,1,18)),OFFSET(Z$10,1,-18+1,1,18)) -> 1864.54 | AA17: =SUMPRODUCT(OFFSET('Stock Model - Polyphase'!$C$14,MATCH(AA$16,$S$16:$BT$16,0),1,1,18)/SUM(OFFSET('Stock Model - Polyphase'!$C$14,MATCH(AA$16,$S$16:$BT$16,0),1,1,18)),OFFSET(AA$10,1,-18+1,1,18)) -> 1864.54 | AB17: =SUMPRODUCT(OFFSET('Stock Model - Polyphase'!$C$14,MATCH(AB$16,$S$16:$BT$16,0),1,1,18)/SUM(OFFSET('Stock Model - Polyphase'!$C$14,MATCH(AB$16,$S$16:$BT$16,0),1,1,18)),OFFSET(AB$10,1,-18+1,1,18)) -> 1864.54 | AC17: =SUMPRODUCT(OFFSET('Stock Model - Polyphase'!$C$14,MATCH(AC$16,$S$16:$BT$16,0),1,1,18)/SUM(OFFSET('Stock Model - Polyphase'!$C$14,MATCH(AC$16,$S$16:$BT$16,0),1,1,18)),OFFSET(AC$10,1,-18+1,1,18)) -> 1864.54 | AD17: =SUMPRODUCT(OFFSET('Stock Model - Polyphase'!$C$14,MATCH(AD$16,$S$16:$BT$16,0),1,1,18)/SUM(OFFSET('Stock Model - Polyphase'!$C$14,MATCH(AD$16,$S$16:$BT$16,0),1,1,18)),OFFSET(AD$10,1,-18+1,1,18)) -> 1864.54 | AE17: =SUMPRODUCT(OFFSET('Stock Model - Polyphase'!$C$14,MATCH(AE$16,$S$16:$BT$16,0),1,1,18)/SUM(OFFSET('Stock Model - Polyphase'!$C$14,MATCH(AE$16,$S$16:$BT$16,0),1,1,18)),OFFSET(AE$10,1,-18+1,1,18)) -> 1864.54 | AF17: =SUMPRODUCT(OFFSET('Stock Model - Polyphase'!$C$14,MATCH(AF$16,$S$16:$BT$16,0),1,1,18)/SUM(OFFSET('Stock Model - Polyphase'!$C$14,MATCH(AF$16,$S$16:$BT$16,0),1,1,18)),OFFSET(AF$10,1,-18+1,1,18)) -> 1864.54 | AG17: =SUMPRODUCT(OFFSET('Stock Model - Polyphase'!$C$14,MATCH(AG$16,$S$16:$BT$16,0),1,1,18)/SUM(OFFSET('Stock Model - Polyphase'!$C$14,MATCH(AG$16,$S$16:$BT$16,0),1,1,18)),OFFSET(AG$10,1,-18+1,1,18)) -> 1864.54 | AH17: =SUMPRODUCT(OFFSET('Stock Model - Polyphase'!$C$14,MATCH(AH$16,$S$16:$BT$16,0),1,1,18)/SUM(OFFSET('Stock Model - Polyphase'!$C$14,MATCH(AH$16,$S$16:$BT$16,0),1,1,18)),OFFSET(AH$10,1,-18+1,1,18)) -> 1864.54 | AI17: =SUMPRODUCT(OFFSET('Stock Model - Polyphase'!$C$14,MATCH(AI$16,$S$16:$BT$16,0),1,1,18)/SUM(OFFSET('Stock Model - Polyphase'!$C$14,MATCH(AI$16,$S$16:$BT$16,0),1,1,18)),OFFSET(AI$10,1,-18+1,1,18)) -> 1864.54 | AJ17: =SUMPRODUCT(OFFSET('Stock Model - Polyphase'!$C$14,MATCH(AJ$16,$S$16:$BT$16,0),1,1,18)/SUM(OFFSET('Stock Model - Polyphase'!$C$14,MATCH(AJ$16,$S$16:$BT$16,0),1,1,18)),OFFSET(AJ$10,1,-18+1,1,18)) -> 1864.54 | AK17: =SUMPRODUCT(OFFSET('Stock Model - Polyphase'!$C$14,MATCH(AK$16,$S$16:$BT$16,0),1,1,18)/SUM(OFFSET('Stock Model - Polyphase'!$C$14,MATCH(AK$16,$S$16:$BT$16,0),1,1,18)),OFFSET(AK$10,1,-18+1,1,18)) -> 1864.54 | AL17: =SUMPRODUCT(OFFSET('Stock Model - Polyphase'!$C$14,MATCH(AL$16,$S$16:$BT$16,0),1,1,18)/SUM(OFFSET('Stock Model - Polyphase'!$C$14,MATCH(AL$16,$S$16:$BT$16,0),1,1,18)),OFFSET(AL$10,1,-18+1,1,18)) -> 1864.54 | AM17: =SUMPRODUCT(OFFSET('Stock Model - Polyphase'!$C$14,MATCH(AM$16,$S$16:$BT$16,0),1,1,18)/SUM(OFFSET('Stock Model - Polyphase'!$C$14,MATCH(AM$16,$S$16:$BT$16,0),1,1,18)),OFFSET(AM$10,1,-18+1,1,18)) -> 1864.54 | AN17: =SUMPRODUCT(OFFSET('Stock Model - Polyphase'!$C$14,MATCH(AN$16,$S$16:$BT$16,0),1,1,18)/SUM(OFFSET('Stock Model - Polyphase'!$C$14,MATCH(AN$16,$S$16:$BT$16,0),1,1,18)),OFFSET(AN$10,1,-18+1,1,18)) -> 1864.54 | AO17: =SUMPRODUCT(OFFSET('Stock Model - Polyphase'!$C$14,MATCH(AO$16,$S$16:$BT$16,0),1,1,18)/SUM(OFFSET('Stock Model - Polyphase'!$C$14,MATCH(AO$16,$S$16:$BT$16,0),1,1,18)),OFFSET(AO$10,1,-18+1,1,18)) -> 1864.54 | AP17: =SUMPRODUCT(OFFSET('Stock Model - Polyphase'!$C$14,MATCH(AP$16,$S$16:$BT$16,0),1,1,18)/SUM(OFFSET('Stock Model - Polyphase'!$C$14,MATCH(AP$16,$S$16:$BT$16,0),1,1,18)),OFFSET(AP$10,1,-18+1,1,18)) -> 1864.54 | AQ17: =SUMPRODUCT(OFFSET('Stock Model - Polyphase'!$C$14,MATCH(AQ$16,$S$16:$BT$16,0),1,1,18)/SUM(OFFSET('Stock Model - Polyphase'!$C$14,MATCH(AQ$16,$S$16:$BT$16,0),1,1,18)),OFFSET(AQ$10,1,-18+1,1,18)) -> 1864.54 | AR17: =SUMPRODUCT(OFFSET('Stock Model - Polyphase'!$C$14,MATCH(AR$16,$S$16:$BT$16,0),1,1,18)/SUM(OFFSET('Stock Model - Polyphase'!$C$14,MATCH(AR$16,$S$16:$BT$16,0),1,1,18)),OFFSET(AR$10,1,-18+1,1,18)) -> 1864.54 | AS17: =SUMPRODUCT(OFFSET('Stock Model - Polyphase'!$C$14,MATCH(AS$16,$S$16:$BT$16,0),1,1,18)/SUM(OFFSET('Stock Model - Polyphase'!$C$14,MATCH(AS$16,$S$16:$BT$16,0),1,1,18)),OFFSET(AS$10,1,-18+1,1,18)) -> 1864.54 | AT17: =SUMPRODUCT(OFFSET('Stock Model - Polyphase'!$C$14,MATCH(AT$16,$S$16:$BT$16,0),1,1,18)/SUM(OFFSET('Stock Model - Polyphase'!$C$14,MATCH(AT$16,$S$16:$BT$16,0),1,1,18)),OFFSET(AT$10,1,-18+1,1,18)) -> 1864.54 | AU17: =SUMPRODUCT(OFFSET('Stock Model - Polyphase'!$C$14,MATCH(AU$16,$S$16:$BT$16,0),1,1,18)/SUM(OFFSET('Stock Model - Polyphase'!$C$14,MATCH(AU$16,$S$16:$BT$16,0),1,1,18)),OFFSET(AU$10,1,-18+1,1,18)) -> 1864.54 | AV17: =SUMPRODUCT(OFFSET('Stock Model - Polyphase'!$C$14,MATCH(AV$16,$S$16:$BT$16,0),1,1,18)/SUM(OFFSET('Stock Model - Polyphase'!$C$14,MATCH(AV$16,$S$16:$BT$16,0),1,1,18)),OFFSET(AV$10,1,-18+1,1,18)) -> 1864.54 | AW17: =SUMPRODUCT(OFFSET('Stock Model - Polyphase'!$C$14,MATCH(AW$16,$S$16:$BT$16,0),1,1,18)/SUM(OFFSET('Stock Model - Polyphase'!$C$14,MATCH(AW$16,$S$16:$BT$16,0),1,1,18)),OFFSET(AW$10,1,-18+1,1,18)) -> 1864.54 | AX17: =SUMPRODUCT(OFFSET('Stock Model - Polyphase'!$C$14,MATCH(AX$16,$S$16:$BT$16,0),1,1,18)/SUM(OFFSET('Stock Model - Polyphase'!$C$14,MATCH(AX$16,$S$16:$BT$16,0),1,1,18)),OFFSET(AX$10,1,-18+1,1,18)) -> 1864.54 | AY17: =SUMPRODUCT(OFFSET('Stock Model - Polyphase'!$C$14,MATCH(AY$16,$S$16:$BT$16,0),1,1,18)/SUM(OFFSET('Stock Model - Polyphase'!$C$14,MATCH(AY$16,$S$16:$BT$16,0),1,1,18)),OFFSET(AY$10,1,-18+1,1,18)) -> 1864.54 | AZ17: =SUMPRODUCT(OFFSET('Stock Model - Polyphase'!$C$14,MATCH(AZ$16,$S$16:$BT$16,0),1,1,18)/SUM(OFFSET('Stock Model - Polyphase'!$C$14,MATCH(AZ$16,$S$16:$BT$16,0),1,1,18)),OFFSET(AZ$10,1,-18+1,1,18)) -> 1864.54 | BA17: =SUMPRODUCT(OFFSET('Stock Model - Polyphase'!$C$14,MATCH(BA$16,$S$16:$BT$16,0),1,1,18)/SUM(OFFSET('Stock Model - Polyphase'!$C$14,MATCH(BA$16,$S$16:$BT$16,0),1,1,18)),OFFSET(BA$10,1,-18+1,1,18)) -> 1864.54 | BB17: =SUMPRODUCT(OFFSET('Stock Model - Polyphase'!$C$14,MATCH(BB$16,$S$16:$BT$16,0),1,1,18)/SUM(OFFSET('Stock Model - Polyphase'!$C$14,MATCH(BB$16,$S$16:$BT$16,0),1,1,18)),OFFSET(BB$10,1,-18+1,1,18)) -> 1864.54 | BC17: =SUMPRODUCT(OFFSET('Stock Model - Polyphase'!$C$14,MATCH(BC$16,$S$16:$BT$16,0),1,1,18)/SUM(OFFSET('Stock Model - Polyphase'!$C$14,MATCH(BC$16,$S$16:$BT$16,0),1,1,18)),OFFSET(BC$10,1,-18+1,1,18)) -> 1864.54 | BD17: =SUMPRODUCT(OFFSET('Stock Model - Polyphase'!$C$14,MATCH(BD$16,$S$16:$BT$16,0),1,1,18)/SUM(OFFSET('Stock Model - Polyphase'!$C$14,MATCH(BD$16,$S$16:$BT$16,0),1,1,18)),OFFSET(BD$10,1,-18+1,1,18)) -> 1864.54 | BE17: =SUMPRODUCT(OFFSET('Stock Model - Polyphase'!$C$14,MATCH(BE$16,$S$16:$BT$16,0),1,1,18)/SUM(OFFSET('Stock Model - Polyphase'!$C$14,MATCH(BE$16,$S$16:$BT$16,0),1,1,18)),OFFSET(BE$10,1,-18+1,1,18)) -> 1864.54 | BF17: =SUMPRODUCT(OFFSET('Stock Model - Polyphase'!$C$14,MATCH(BF$16,$S$16:$BT$16,0),1,1,18)/SUM(OFFSET('Stock Model - Polyphase'!$C$14,MATCH(BF$16,$S$16:$BT$16,0),1,1,18)),OFFSET(BF$10,1,-18+1,1,18)) -> 1864.54 | BG17: =SUMPRODUCT(OFFSET('Stock Model - Polyphase'!$C$14,MATCH(BG$16,$S$16:$BT$16,0),1,1,18)/SUM(OFFSET('Stock Model - Polyphase'!$C$14,MATCH(BG$16,$S$16:$BT$16,0),1,1,18)),OFFSET(BG$10,1,-18+1,1,18)) -> 1864.54 | BH17: =SUMPRODUCT(OFFSET('Stock Model - Polyphase'!$C$14,MATCH(BH$16,$S$16:$BT$16,0),1,1,18)/SUM(OFFSET('Stock Model - Polyphase'!$C$14,MATCH(BH$16,$S$16:$BT$16,0),1,1,18)),OFFSET(BH$10,1,-18+1,1,18)) -> 1864.54 | BI17: =SUMPRODUCT(OFFSET('Stock Model - Polyphase'!$C$14,MATCH(BI$16,$S$16:$BT$16,0),1,1,18)/SUM(OFFSET('Stock Model - Polyphase'!$C$14,MATCH(BI$16,$S$16:$BT$16,0),1,1,18)),OFFSET(BI$10,1,-18+1,1,18)) -> 1864.54 | BJ17: =SUMPRODUCT(OFFSET('Stock Model - Polyphase'!$C$14,MATCH(BJ$16,$S$16:$BT$16,0),1,1,18)/SUM(OFFSET('Stock Model - Polyphase'!$C$14,MATCH(BJ$16,$S$16:$BT$16,0),1,1,18)),OFFSET(BJ$10,1,-18+1,1,18)) -> 1864.54 | BK17: =SUMPRODUCT(OFFSET('Stock Model - Polyphase'!$C$14,MATCH(BK$16,$S$16:$BT$16,0),1,1,18)/SUM(OFFSET('Stock Model - Polyphase'!$C$14,MATCH(BK$16,$S$16:$BT$16,0),1,1,18)),OFFSET(BK$10,1,-18+1,1,18)) -> 1864.54 | BL17: =SUMPRODUCT(OFFSET('Stock Model - Polyphase'!$C$14,MATCH(BL$16,$S$16:$BT$16,0),1,1,18)/SUM(OFFSET('Stock Model - Polyphase'!$C$14,MATCH(BL$16,$S$16:$BT$16,0),1,1,18)),OFFSET(BL$10,1,-18+1,1,18)) -> 1864.54 | BM17: =SUMPRODUCT(OFFSET('Stock Model - Polyphase'!$C$14,MATCH(BM$16,$S$16:$BT$16,0),1,1,18)/SUM(OFFSET('Stock Model - Polyphase'!$C$14,MATCH(BM$16,$S$16:$BT$16,0),1,1,18)),OFFSET(BM$10,1,-18+1,1,18)) -> 1864.54 | BN17: =SUMPRODUCT(OFFSET('Stock Model - Polyphase'!$C$14,MATCH(BN$16,$S$16:$BT$16,0),1,1,18)/SUM(OFFSET('Stock Model - Polyphase'!$C$14,MATCH(BN$16,$S$16:$BT$16,0),1,1,18)),OFFSET(BN$10,1,-18+1,1,18)) -> 1864.54 | BO17: =SUMPRODUCT(OFFSET('Stock Model - Polyphase'!$C$14,MATCH(BO$16,$S$16:$BT$16,0),1,1,18)/SUM(OFFSET('Stock Model - Polyphase'!$C$14,MATCH(BO$16,$S$16:$BT$16,0),1,1,18)),OFFSET(BO$10,1,-18+1,1,18)) -> 1864.54 | BP17: =SUMPRODUCT(OFFSET('Stock Model - Polyphase'!$C$14,MATCH(BP$16,$S$16:$BT$16,0),1,1,18)/SUM(OFFSET('Stock Model - Polyphase'!$C$14,MATCH(BP$16,$S$16:$BT$16,0),1,1,18)),OFFSET(BP$10,1,-18+1,1,18)) -> 1864.54 | BQ17: =SUMPRODUCT(OFFSET('Stock Model - Polyphase'!$C$14,MATCH(BQ$16,$S$16:$BT$16,0),1,1,18)/SUM(OFFSET('Stock Model - Polyphase'!$C$14,MATCH(BQ$16,$S$16:$BT$16,0),1,1,18)),OFFSET(BQ$10,1,-18+1,1,18)) -> 1864.54 | BR17: =SUMPRODUCT(OFFSET('Stock Model - Polyphase'!$C$14,MATCH(BR$16,$S$16:$BT$16,0),1,1,18)/SUM(OFFSET('Stock Model - Polyphase'!$C$14,MATCH(BR$16,$S$16:$BT$16,0),1,1,18)),OFFSET(BR$10,1,-18+1,1,18)) -> 1864.54 | BS17: =SUMPRODUCT(OFFSET('Stock Model - Polyphase'!$C$14,MATCH(BS$16,$S$16:$BT$16,0),1,1,18)/SUM(OFFSET('Stock Model - Polyphase'!$C$14,MATCH(BS$16,$S$16:$BT$16,0),1,1,18)),OFFSET(BS$10,1,-18+1,1,18)) -> 1864.54 | BT17: =SUMPRODUCT(OFFSET('Stock Model - Polyphase'!$C$14,MATCH(BT$16,$S$16:$BT$16,0),1,1,18)/SUM(OFFSET('Stock Model - Polyphase'!$C$14,MATCH(BT$16,$S$16:$BT$16,0),1,1,18)),OFFSET(BT$10,1,-18+1,1,18)) -> 1864.54
R18: POST-Case UEC | S18: =SUMPRODUCT(OFFSET('Stock Model - Polyphase'!$C$14,MATCH(S$16,$S$16:$BT$16,0),1,1,18)/SUM(OFFSET('Stock Model - Polyphase'!$C$14,MATCH(S$16,$S$16:$BT$16,0),1,1,18)),OFFSET(S$10,2,-18+1,1,18)) -> 1864.54 | T18: =SUMPRODUCT(OFFSET('Stock Model - Polyphase'!$C$14,MATCH(T$16,$S$16:$BT$16,0),1,1,18)/SUM(OFFSET('Stock Model - Polyphase'!$C$14,MATCH(T$16,$S$16:$BT$16,0),1,1,18)),OFFSET(T$10,2,-18+1,1,18)) -> 1864.54 | U18: =SUMPRODUCT(OFFSET('Stock Model - Polyphase'!$C$14,MATCH(U$16,$S$16:$BT$16,0),1,1,18)/SUM(OFFSET('Stock Model - Polyphase'!$C$14,MATCH(U$16,$S$16:$BT$16,0),1,1,18)),OFFSET(U$10,2,-18+1,1,18)) -> 1864.54 | V18: =SUMPRODUCT(OFFSET('Stock Model - Polyphase'!$C$14,MATCH(V$16,$S$16:$BT$16,0),1,1,18)/SUM(OFFSET('Stock Model - Polyphase'!$C$14,MATCH(V$16,$S$16:$BT$16,0),1,1,18)),OFFSET(V$10,2,-18+1,1,18)) -> 1864.54 | W18: =SUMPRODUCT(OFFSET('Stock Model - Polyphase'!$C$14,MATCH(W$16,$S$16:$BT$16,0),1,1,18)/SUM(OFFSET('Stock Model - Polyphase'!$C$14,MATCH(W$16,$S$16:$BT$16,0),1,1,18)),OFFSET(W$10,2,-18+1,1,18)) -> 1864.54 | X18: =SUMPRODUCT(OFFSET('Stock Model - Polyphase'!$C$14,MATCH(X$16,$S$16:$BT$16,0),1,1,18)/SUM(OFFSET('Stock Model - Polyphase'!$C$14,MATCH(X$16,$S$16:$BT$16,0),1,1,18)),OFFSET(X$10,2,-18+1,1,18)) -> 1864.54 | Y18: =SUMPRODUCT(OFFSET('Stock Model - Polyphase'!$C$14,MATCH(Y$16,$S$16:$BT$16,0),1,1,18)/SUM(OFFSET('Stock Model - Polyphase'!$C$14,MATCH(Y$16,$S$16:$BT$16,0),1,1,18)),OFFSET(Y$10,2,-18+1,1,18)) -> 1864.54 | Z18: =SUMPRODUCT(OFFSET('Stock Model - Polyphase'!$C$14,MATCH(Z$16,$S$16:$BT$16,0),1,1,18)/SUM(OFFSET('Stock Model - Polyphase'!$C$14,MATCH(Z$16,$S$16:$BT$16,0),1,1,18)),OFFSET(Z$10,2,-18+1,1,18)) -> 1864.54 | AA18: =SUMPRODUCT(OFFSET('Stock Model - Polyphase'!$C$14,MATCH(AA$16,$S$16:$BT$16,0),1,1,18)/SUM(OFFSET('Stock Model - Polyphase'!$C$14,MATCH(AA$16,$S$16:$BT$16,0),1,1,18)),OFFSET(AA$10,2,-18+1,1,18)) -> 1864.54 | AB18: =SUMPRODUCT(OFFSET('Stock Model - Polyphase'!$C$14,MATCH(AB$16,$S$16:$BT$16,0),1,1,18)/SUM(OFFSET('Stock Model - Polyphase'!$C$14,MATCH(AB$16,$S$16:$BT$16,0),1,1,18)),OFFSET(AB$10,2,-18+1,1,18)) -> 1864.54 | AC18: =SUMPRODUCT(OFFSET('Stock Model - Polyphase'!$C$14,MATCH(AC$16,$S$16:$BT$16,0),1,1,18)/SUM(OFFSET('Stock Model - Polyphase'!$C$14,MATCH(AC$16,$S$16:$BT$16,0),1,1,18)),OFFSET(AC$10,2,-18+1,1,18)) -> 1864.54 | AD18: =SUMPRODUCT(OFFSET('Stock Model - Polyphase'!$C$14,MATCH(AD$16,$S$16:$BT$16,0),1,1,18)/SUM(OFFSET('Stock Model - Polyphase'!$C$14,MATCH(AD$16,$S$16:$BT$16,0),1,1,18)),OFFSET(AD$10,2,-18+1,1,18)) -> 1864.54 | AE18: =SUMPRODUCT(OFFSET('Stock Model - Polyphase'!$C$14,MATCH(AE$16,$S$16:$BT$16,0),1,1,18)/SUM(OFFSET('Stock Model - Polyphase'!$C$14,MATCH(AE$16,$S$16:$BT$16,0),1,1,18)),OFFSET(AE$10,2,-18+1,1,18)) -> 1864.54 | AF18: =SUMPRODUCT(OFFSET('Stock Model - Polyphase'!$C$14,MATCH(AF$16,$S$16:$BT$16,0),1,1,18)/SUM(OFFSET('Stock Model - Polyphase'!$C$14,MATCH(AF$16,$S$16:$BT$16,0),1,1,18)),OFFSET(AF$10,2,-18+1,1,18)) -> 1864.54 | AG18: =SUMPRODUCT(OFFSET('Stock Model - Polyphase'!$C$14,MATCH(AG$16,$S$16:$BT$16,0),1,1,18)/SUM(OFFSET('Stock Model - Polyphase'!$C$14,MATCH(AG$16,$S$16:$BT$16,0),1,1,18)),OFFSET(AG$10,2,-18+1,1,18)) -> 1864.54 | AH18: =SUMPRODUCT(OFFSET('Stock Model - Polyphase'!$C$14,MATCH(AH$16,$S$16:$BT$16,0),1,1,18)/SUM(OFFSET('Stock Model - Polyphase'!$C$14,MATCH(AH$16,$S$16:$BT$16,0),1,1,18)),OFFSET(AH$10,2,-18+1,1,18)) -> 1864.54 | AI18: =SUMPRODUCT(OFFSET('Stock Model - Polyphase'!$C$14,MATCH(AI$16,$S$16:$BT$16,0),1,1,18)/SUM(OFFSET('Stock Model - Polyphase'!$C$14,MATCH(AI$16,$S$16:$BT$16,0),1,1,18)),OFFSET(AI$10,2,-18+1,1,18)) -> 1864.54 | AJ18: =SUMPRODUCT(OFFSET('Stock Model - Polyphase'!$C$14,MATCH(AJ$16,$S$16:$BT$16,0),1,1,18)/SUM(OFFSET('Stock Model - Polyphase'!$C$14,MATCH(AJ$16,$S$16:$BT$16,0),1,1,18)),OFFSET(AJ$10,2,-18+1,1,18)) -> 1864.54 | AK18: =SUMPRODUCT(OFFSET('Stock Model - Polyphase'!$C$14,MATCH(AK$16,$S$16:$BT$16,0),1,1,18)/SUM(OFFSET('Stock Model - Polyphase'!$C$14,MATCH(AK$16,$S$16:$BT$16,0),1,1,18)),OFFSET(AK$10,2,-18+1,1,18)) -> 1864.54 | AL18: =SUMPRODUCT(OFFSET('Stock Model - Polyphase'!$C$14,MATCH(AL$16,$S$16:$BT$16,0),1,1,18)/SUM(OFFSET('Stock Model - Polyphase'!$C$14,MATCH(AL$16,$S$16:$BT$16,0),1,1,18)),OFFSET(AL$10,2,-18+1,1,18)) -> 1864.54 | AM18: =SUMPRODUCT(OFFSET('Stock Model - Polyphase'!$C$14,MATCH(AM$16,$S$16:$BT$16,0),1,1,18)/SUM(OFFSET('Stock Model - Polyphase'!$C$14,MATCH(AM$16,$S$16:$BT$16,0),1,1,18)),OFFSET(AM$10,2,-18+1,1,18)) -> 1864.54 | AN18: =SUMPRODUCT(OFFSET('Stock Model - Polyphase'!$C$14,MATCH(AN$16,$S$16:$BT$16,0),1,1,18)/SUM(OFFSET('Stock Model - Polyphase'!$C$14,MATCH(AN$16,$S$16:$BT$16,0),1,1,18)),OFFSET(AN$10,2,-18+1,1,18)) -> 1864.54 | AO18: =SUMPRODUCT(OFFSET('Stock Model - Polyphase'!$C$14,MATCH(AO$16,$S$16:$BT$16,0),1,1,18)/SUM(OFFSET('Stock Model - Polyphase'!$C$14,MATCH(AO$16,$S$16:$BT$16,0),1,1,18)),OFFSET(AO$10,2,-18+1,1,18)) -> 1864.54 | AP18: =SUMPRODUCT(OFFSET('Stock Model - Polyphase'!$C$14,MATCH(AP$16,$S$16:$BT$16,0),1,1,18)/SUM(OFFSET('Stock Model - Polyphase'!$C$14,MATCH(AP$16,$S$16:$BT$16,0),1,1,18)),OFFSET(AP$10,2,-18+1,1,18)) -> 1864.54 | AQ18: =SUMPRODUCT(OFFSET('Stock Model - Polyphase'!$C$14,MATCH(AQ$16,$S$16:$BT$16,0),1,1,18)/SUM(OFFSET('Stock Model - Polyphase'!$C$14,MATCH(AQ$16,$S$16:$BT$16,0),1,1,18)),OFFSET(AQ$10,2,-18+1,1,18)) -> 1864.54 | AR18: =SUMPRODUCT(OFFSET('Stock Model - Polyphase'!$C$14,MATCH(AR$16,$S$16:$BT$16,0),1,1,18)/SUM(OFFSET('Stock Model - Polyphase'!$C$14,MATCH(AR$16,$S$16:$BT$16,0),1,1,18)),OFFSET(AR$10,2,-18+1,1,18)) -> 1864.54 | AS18: =SUMPRODUCT(OFFSET('Stock Model - Polyphase'!$C$14,MATCH(AS$16,$S$16:$BT$16,0),1,1,18)/SUM(OFFSET('Stock Model - Polyphase'!$C$14,MATCH(AS$16,$S$16:$BT$16,0),1,1,18)),OFFSET(AS$10,2,-18+1,1,18)) -> 1864.54 | AT18: =SUMPRODUCT(OFFSET('Stock Model - Polyphase'!$C$14,MATCH(AT$16,$S$16:$BT$16,0),1,1,18)/SUM(OFFSET('Stock Model - Polyphase'!$C$14,MATCH(AT$16,$S$16:$BT$16,0),1,1,18)),OFFSET(AT$10,2,-18+1,1,18)) -> 1864.54 | AU18: =SUMPRODUCT(OFFSET('Stock Model - Polyphase'!$C$14,MATCH(AU$16,$S$16:$BT$16,0),1,1,18)/SUM(OFFSET('Stock Model - Polyphase'!$C$14,MATCH(AU$16,$S$16:$BT$16,0),1,1,18)),OFFSET(AU$10,2,-18+1,1,18)) -> 1864.54 | AV18: =SUMPRODUCT(OFFSET('Stock Model - Polyphase'!$C$14,MATCH(AV$16,$S$16:$BT$16,0),1,1,18)/SUM(OFFSET('Stock Model - Polyphase'!$C$14,MATCH(AV$16,$S$16:$BT$16,0),1,1,18)),OFFSET(AV$10,2,-18+1,1,18)) -> 1864.54 | AW18: =SUMPRODUCT(OFFSET('Stock Model - Polyphase'!$C$14,MATCH(AW$16,$S$16:$BT$16,0),1,1,18)/SUM(OFFSET('Stock Model - Polyphase'!$C$14,MATCH(AW$16,$S$16:$BT$16,0),1,1,18)),OFFSET(AW$10,2,-18+1,1,18)) -> 1864.54 | AX18: =SUMPRODUCT(OFFSET('Stock Model - Polyphase'!$C$14,MATCH(AX$16,$S$16:$BT$16,0),1,1,18)/SUM(OFFSET('Stock Model - Polyphase'!$C$14,MATCH(AX$16,$S$16:$BT$16,0),1,1,18)),OFFSET(AX$10,2,-18+1,1,18)) -> 1864.54 | AY18: =SUMPRODUCT(OFFSET('Stock Model - Polyphase'!$C$14,MATCH(AY$16,$S$16:$BT$16,0),1,1,18)/SUM(OFFSET('Stock Model - Polyphase'!$C$14,MATCH(AY$16,$S$16:$BT$16,0),1,1,18)),OFFSET(AY$10,2,-18+1,1,18)) -> 1864.54 | AZ18: =SUMPRODUCT(OFFSET('Stock Model - Polyphase'!$C$14,MATCH(AZ$16,$S$16:$BT$16,0),1,1,18)/SUM(OFFSET('Stock Model - Polyphase'!$C$14,MATCH(AZ$16,$S$16:$BT$16,0),1,1,18)),OFFSET(AZ$10,2,-18+1,1,18)) -> 1864.54 | BA18: =SUMPRODUCT(OFFSET('Stock Model - Polyphase'!$C$14,MATCH(BA$16,$S$16:$BT$16,0),1,1,18)/SUM(OFFSET('Stock Model - Polyphase'!$C$14,MATCH(BA$16,$S$16:$BT$16,0),1,1,18)),OFFSET(BA$10,2,-18+1,1,18)) -> 1842.156328 | BB18: =SUMPRODUCT(OFFSET('Stock Model - Polyphase'!$C$14,MATCH(BB$16,$S$16:$BT$16,0),1,1,18)/SUM(OFFSET('Stock Model - Polyphase'!$C$14,MATCH(BB$16,$S$16:$BT$16,0),1,1,18)),OFFSET(BB$10,2,-18+1,1,18)) -> 1820.174096 | BC18: =SUMPRODUCT(OFFSET('Stock Model - Polyphase'!$C$14,MATCH(BC$16,$S$16:$BT$16,0),1,1,18)/SUM(OFFSET('Stock Model - Polyphase'!$C$14,MATCH(BC$16,$S$16:$BT$16,0),1,1,18)),OFFSET(BC$10,2,-18+1,1,18)) -> 1798.586105 | BD18: =SUMPRODUCT(OFFSET('Stock Model - Polyphase'!$C$14,MATCH(BD$16,$S$16:$BT$16,0),1,1,18)/SUM(OFFSET('Stock Model - Polyphase'!$C$14,MATCH(BD$16,$S$16:$BT$16,0),1,1,18)),OFFSET(BD$10,2,-18+1,1,18)) -> 1777.385282 | BE18: =SUMPRODUCT(OFFSET('Stock Model - Polyphase'!$C$14,MATCH(BE$16,$S$16:$BT$16,0),1,1,18)/SUM(OFFSET('Stock Model - Polyphase'!$C$14,MATCH(BE$16,$S$16:$BT$16,0),1,1,18)),OFFSET(BE$10,2,-18+1,1,18)) -> 1756.564686 | BF18: =SUMPRODUCT(OFFSET('Stock Model - Polyphase'!$C$14,MATCH(BF$16,$S$16:$BT$16,0),1,1,18)/SUM(OFFSET('Stock Model - Polyphase'!$C$14,MATCH(BF$16,$S$16:$BT$16,0),1,1,18)),OFFSET(BF$10,2,-18+1,1,18)) -> 1736.117497 | BG18: =SUMPRODUCT(OFFSET('Stock Model - Polyphase'!$C$14,MATCH(BG$16,$S$16:$BT$16,0),1,1,18)/SUM(OFFSET('Stock Model - Polyphase'!$C$14,MATCH(BG$16,$S$16:$BT$16,0),1,1,18)),OFFSET(BG$10,2,-18+1,1,18)) -> 1716.037018 | BH18: =SUMPRODUCT(OFFSET('Stock Model - Polyphase'!$C$14,MATCH(BH$16,$S$16:$BT$16,0),1,1,18)/SUM(OFFSET('Stock Model - Polyphase'!$C$14,MATCH(BH$16,$S$16:$BT$16,0),1,1,18)),OFFSET(BH$10,2,-18+1,1,18)) -> 1696.316672 | BI18: =SUMPRODUCT(OFFSET('Stock Model - Polyphase'!$C$14,MATCH(BI$16,$S$16:$BT$16,0),1,1,18)/SUM(OFFSET('Stock Model - Polyphase'!$C$14,MATCH(BI$16,$S$16:$BT$16,0),1,1,18)),OFFSET(BI$10,2,-18+1,1,18)) -> 1676.95 | BJ18: =SUMPRODUCT(OFFSET('Stock Model - Polyphase'!$C$14,MATCH(BJ$16,$S$16:$BT$16,0),1,1,18)/SUM(OFFSET('Stock Model - Polyphase'!$C$14,MATCH(BJ$16,$S$16:$BT$16,0),1,1,18)),OFFSET(BJ$10,2,-18+1,1,18)) -> 1676.95 | BK18: =SUMPRODUCT(OFFSET('Stock Model - Polyphase'!$C$14,MATCH(BK$16,$S$16:$BT$16,0),1,1,18)/SUM(OFFSET('Stock Model - Polyphase'!$C$14,MATCH(BK$16,$S$16:$BT$16,0),1,1,18)),OFFSET(BK$10,2,-18+1,1,18)) -> 1676.95 | BL18: =SUMPRODUCT(OFFSET('Stock Model - Polyphase'!$C$14,MATCH(BL$16,$S$16:$BT$16,0),1,1,18)/SUM(OFFSET('Stock Model - Polyphase'!$C$14,MATCH(BL$16,$S$16:$BT$16,0),1,1,18)),OFFSET(BL$10,2,-18+1,1,18)) -> 1676.95 | BM18: =SUMPRODUCT(OFFSET('Stock Model - Polyphase'!$C$14,MATCH(BM$16,$S$16:$BT$16,0),1,1,18)/SUM(OFFSET('Stock Model - Polyphase'!$C$14,MATCH(BM$16,$S$16:$BT$16,0),1,1,18)),OFFSET(BM$10,2,-18+1,1,18)) -> 1676.95 | BN18: =SUMPRODUCT(OFFSET('Stock Model - Polyphase'!$C$14,MATCH(BN$16,$S$16:$BT$16,0),1,1,18)/SUM(OFFSET('Stock Model - Polyphase'!$C$14,MATCH(BN$16,$S$16:$BT$16,0),1,1,18)),OFFSET(BN$10,2,-18+1,1,18)) -> 1676.95 | BO18: =SUMPRODUCT(OFFSET('Stock Model - Polyphase'!$C$14,MATCH(BO$16,$S$16:$BT$16,0),1,1,18)/SUM(OFFSET('Stock Model - Polyphase'!$C$14,MATCH(BO$16,$S$16:$BT$16,0),1,1,18)),OFFSET(BO$10,2,-18+1,1,18)) -> 1676.95 | BP18: =SUMPRODUCT(OFFSET('Stock Model - Polyphase'!$C$14,MATCH(BP$16,$S$16:$BT$16,0),1,1,18)/SUM(OFFSET('Stock Model - Polyphase'!$C$14,MATCH(BP$16,$S$16:$BT$16,0),1,1,18)),OFFSET(BP$10,2,-18+1,1,18)) -> 1676.95 | BQ18: =SUMPRODUCT(OFFSET('Stock Model - Polyphase'!$C$14,MATCH(BQ$16,$S$16:$BT$16,0),1,1,18)/SUM(OFFSET('Stock Model - Polyphase'!$C$14,MATCH(BQ$16,$S$16:$BT$16,0),1,1,18)),OFFSET(BQ$10,2,-18+1,1,18)) -> 1676.95 | BR18: =SUMPRODUCT(OFFSET('Stock Model - Polyphase'!$C$14,MATCH(BR$16,$S$16:$BT$16,0),1,1,18)/SUM(OFFSET('Stock Model - Polyphase'!$C$14,MATCH(BR$16,$S$16:$BT$16,0),1,1,18)),OFFSET(BR$10,2,-18+1,1,18)) -> 1676.95 | BS18: =SUMPRODUCT(OFFSET('Stock Model - Polyphase'!$C$14,MATCH(BS$16,$S$16:$BT$16,0),1,1,18)/SUM(OFFSET('Stock Model - Polyphase'!$C$14,MATCH(BS$16,$S$16:$BT$16,0),1,1,18)),OFFSET(BS$10,2,-18+1,1,18)) -> 1676.95 | BT18: =SUMPRODUCT(OFFSET('Stock Model - Polyphase'!$C$14,MATCH(BT$16,$S$16:$BT$16,0),1,1,18)/SUM(OFFSET('Stock Model - Polyphase'!$C$14,MATCH(BT$16,$S$16:$BT$16,0),1,1,18)),OFFSET(BT$10,2,-18+1,1,18)) -> 1676.95

Sheet UEC - CSIR
R2: Weighted Annual UEC - CSIR Motors
R4: NAVIGATION
R6: COMMENTS
R9: Market UEC (Shipment Weighted Average)
S10: 1981 | T10: =S10+1 -> 1982 | U10: =T10+1 -> 1983 | V10: 1984 | W10: 1985 | X10: 1986 | Y10: 1987 | Z10: 1988 | AA10: 1989 | AB10: 1990 | AC10: 1991 | AD10: 1992 | AE10: 1993 | AF10: 1994 | AG10: 1995 | AH10: 1996 | AI10: 1997 | AJ10: 1998 | AK10: 1999 | AL10: 2000 | AM10: 2001 | AN10: 2002 | AO10: 2003 | AP10: 2004 | AQ10: 2005 | AR10: 2006 | AS10: 2007 | AT10: 2008 | AU10: 2009 | AV10: 2010 | AW10: 2011 | AX10: 2012 | AY10: 2013 | AZ10: 2014 | BA10: 2015 | BB10: 2016 | BC10: 2017 | BD10: 2018 | BE10: 2019 | BF10: 2020 | BG10: 2021 | BH10: 2022 | BI10: 2023 | BJ10: 2024 | BK10: 2025 | BL10: 2026 | BM10: 2027 | BN10: 2028 | BO10: 2029 | BP10: 2030 | BQ10: 2031 | BR10: 2032 | BS10: 2033 | BT10: 2034
R11: PRE-Case UEC | S11: =SUMPRODUCT('Efficiency Dist'!G45:G52,'UEC Development'!$E$32:$E$39) -> 1187.08 | T11: =SUMPRODUCT('Efficiency Dist'!H45:H52,'UEC Development'!$E$32:$E$39) -> 1187.08 | U11: =SUMPRODUCT('Efficiency Dist'!I45:I52,'UEC Development'!$E$32:$E$39) -> 1187.08 | V11: =SUMPRODUCT('Efficiency Dist'!J45:J52,'UEC Development'!$E$32:$E$39) -> 1187.08 | W11: =SUMPRODUCT('Efficiency Dist'!K45:K52,'UEC Development'!$E$32:$E$39) -> 1187.08 | X11: =SUMPRODUCT('Efficiency Dist'!L45:L52,'UEC Development'!$E$32:$E$39) -> 1187.08 | Y11: =SUMPRODUCT('Efficiency Dist'!M45:M52,'UEC Development'!$E$32:$E$39) -> 1187.08 | Z11: =SUMPRODUCT('Efficiency Dist'!N45:N52,'UEC Development'!$E$32:$E$39) -> 1187.08 | AA11: =SUMPRODUCT('Efficiency Dist'!O45:O52,'UEC Development'!$E$32:$E$39) -> 1187.08 | AB11: =SUMPRODUCT('Efficiency Dist'!P45:P52,'UEC Development'!$E$32:$E$39) -> 1187.08 | AC11: =SUMPRODUCT('Efficiency Dist'!Q45:Q52,'UEC Development'!$E$32:$E$39) -> 1187.08 | AD11: =SUMPRODUCT('Efficiency Dist'!Q45:Q52,'UEC Development'!$E$32:$E$39) -> 1187.08 | AE11: =SUMPRODUCT('Efficiency Dist'!R45:R52,'UEC Development'!$E$32:$E$39) -> 1187.08 | AF11: =SUMPRODUCT('Efficiency Dist'!S45:S52,'UEC Development'!$E$32:$E$39) -> 1187.08 | AG11: =SUMPRODUCT('Efficiency Dist'!T45:T52,'UEC Development'!$E$32:$E$39) -> 1187.08 | AH11: =SUMPRODUCT('Efficiency Dist'!U45:U52,'UEC Development'!$E$32:$E$39) -> 1187.08 | AI11: =SUMPRODUCT('Efficiency Dist'!V45:V52,'UEC Development'!$E$32:$E$39) -> 1187.08 | AJ11: =SUMPRODUCT('Efficiency Dist'!W45:W52,'UEC Development'!$E$32:$E$39) -> 1187.08 | AK11: =SUMPRODUCT('Efficiency Dist'!X45:X52,'UEC Development'!$E$32:$E$39) -> 1187.08 | AL11: =SUMPRODUCT('Efficiency Dist'!Y45:Y52,'UEC Development'!$E$32:$E$39) -> 1187.08 | AM11: =SUMPRODUCT('Efficiency Dist'!Z45:Z52,'UEC Development'!$E$32:$E$39) -> 1187.08 | AN11: =SUMPRODUCT('Efficiency Dist'!AA45:AA52,'UEC Development'!$E$32:$E$39) -> 1187.08 | AO11: =SUMPRODUCT('Efficiency Dist'!AB45:AB52,'UEC Development'!$E$32:$E$39) -> 1187.08 | AP11: =SUMPRODUCT('Efficiency Dist'!AC45:AC52,'UEC Development'!$E$32:$E$39) -> 1187.08 | AQ11: =SUMPRODUCT('Efficiency Dist'!AD45:AD52,'UEC Development'!$E$32:$E$39) -> 1187.08 | AR11: =SUMPRODUCT('Efficiency Dist'!AE45:AE52,'UEC Development'!$E$32:$E$39) -> 1187.08 | AS11: =SUMPRODUCT('Efficiency Dist'!AF45:AF52,'UEC Development'!$E$32:$E$39) -> 1187.08 | AT11: =SUMPRODUCT('Efficiency Dist'!AG45:AG52,'UEC Development'!$E$32:$E$39) -> 1187.08 | AU11: =SUMPRODUCT('Efficiency Dist'!AH45:AH52,'UEC Development'!$E$32:$E$39) -> 1187.08 | AV11: =SUMPRODUCT('Efficiency Dist'!AI45:AI52,'UEC Development'!$E$32:$E$39) -> 1187.08 | AW11: =SUMPRODUCT('Efficiency Dist'!AJ45:AJ52,'UEC Development'!$E$32:$E$39) -> 1187.08 | AX11: =SUMPRODUCT('Efficiency Dist'!AK45:AK52,'UEC Development'!$E$32:$E$39) -> 1187.08 | AY11: =SUMPRODUCT('Efficiency Dist'!AL45:AL52,'UEC Development'!$E$32:$E$39) -> 1187.08 | AZ11: =SUMPRODUCT('Efficiency Dist'!AM45:AM52,'UEC Development'!$E$32:$E$39) -> 1187.08 | BA11: =SUMPRODUCT('Efficiency Dist'!AN45:AN52,'UEC Development'!$E$32:$E$39) -> 1187.08 | BB11: =SUMPRODUCT('Efficiency Dist'!AO45:AO52,'UEC Development'!$E$32:$E$39) -> 1187.08 | BC11: =SUMPRODUCT('Efficiency Dist'!AP45:AP52,'UEC Development'!$E$32:$E$39) -> 1187.08 | BD11: =SUMPRODUCT('Efficiency Dist'!AQ45:AQ52,'UEC Development'!$E$32:$E$39) -> 1187.08 | BE11: =SUMPRODUCT('Efficiency Dist'!AR45:AR52,'UEC Development'!$E$32:$E$39) -> 1187.08 | BF11: =SUMPRODUCT('Efficiency Dist'!AS45:AS52,'UEC Development'!$E$32:$E$39) -> 1187.08 | BG11: =SUMPRODUCT('Efficiency Dist'!AT45:AT52,'UEC Development'!$E$32:$E$39) -> 1187.08 | BH11: =SUMPRODUCT('Efficiency Dist'!AU45:AU52,'UEC Development'!$E$32:$E$39) -> 1187.08 | BI11: =SUMPRODUCT('Efficiency Dist'!AV45:AV52,'UEC Development'!$E$32:$E$39) -> 1187.08 | BJ11: =SUMPRODUCT('Efficiency Dist'!AW45:AW52,'UEC Development'!$E$32:$E$39) -> 1187.08 | BK11: =SUMPRODUCT('Efficiency Dist'!AX45:AX52,'UEC Development'!$E$32:$E$39) -> 1187.08 | BL11: =SUMPRODUCT('Efficiency Dist'!AY45:AY52,'UEC Development'!$E$32:$E$39) -> 1187.08 | BM11: =SUMPRODUCT('Efficiency Dist'!AZ45:AZ52,'UEC Development'!$E$32:$E$39) -> 1187.08 | BN11: =SUMPRODUCT('Efficiency Dist'!BA45:BA52,'UEC Development'!$E$32:$E$39) -> 1187.08 | BO11: =SUMPRODUCT('Efficiency Dist'!BB45:BB52,'UEC Development'!$E$32:$E$39) -> 1187.08 | BP11: =SUMPRODUCT('Efficiency Dist'!BC45:BC52,'UEC Development'!$E$32:$E$39) -> 1187.08 | BQ11: =SUMPRODUCT('Efficiency Dist'!BD45:BD52,'UEC Development'!$E$32:$E$39) -> 1187.08 | BR11: =SUMPRODUCT('Efficiency Dist'!BE45:BE52,'UEC Development'!$E$32:$E$39) -> 1187.08 | BS11: =SUMPRODUCT('Efficiency Dist'!BF45:BF52,'UEC Development'!$E$32:$E$39) -> 1187.08 | BT11: =SUMPRODUCT('Efficiency Dist'!BH45:BH52,'UEC Development'!$E$32:$E$39) -> 1187.08
R12: POST-Case UEC | S12: =SUMPRODUCT('Efficiency Dist'!G57:G64,'UEC Development'!$E$32:$E$39) -> 1187.08 | T12: =SUMPRODUCT('Efficiency Dist'!H57:H64,'UEC Development'!$E$32:$E$39) -> 1187.08 | U12: =SUMPRODUCT('Efficiency Dist'!I57:I64,'UEC Development'!$E$32:$E$39) -> 1187.08 | V12: =SUMPRODUCT('Efficiency Dist'!J57:J64,'UEC Development'!$E$32:$E$39) -> 1187.08 | W12: =SUMPRODUCT('Efficiency Dist'!K57:K64,'UEC Development'!$E$32:$E$39) -> 1187.08 | X12: =SUMPRODUCT('Efficiency Dist'!L57:L64,'UEC Development'!$E$32:$E$39) -> 1187.08 | Y12: =SUMPRODUCT('Efficiency Dist'!M57:M64,'UEC Development'!$E$32:$E$39) -> 1187.08 | Z12: =SUMPRODUCT('Efficiency Dist'!N57:N64,'UEC Development'!$E$32:$E$39) -> 1187.08 | AA12: =SUMPRODUCT('Efficiency Dist'!O57:O64,'UEC Development'!$E$32:$E$39) -> 1187.08 | AB12: =SUMPRODUCT('Efficiency Dist'!P57:P64,'UEC Development'!$E$32:$E$39) -> 1187.08 | AC12: =SUMPRODUCT('Efficiency Dist'!Q57:Q64,'UEC Development'!$E$32:$E$39) -> 1187.08 | AD12: =SUMPRODUCT('Efficiency Dist'!R57:R64,'UEC Development'!$E$32:$E$39) -> 1187.08 | AE12: =SUMPRODUCT('Efficiency Dist'!S57:S64,'UEC Development'!$E$32:$E$39) -> 1187.08 | AF12: =SUMPRODUCT('Efficiency Dist'!T57:T64,'UEC Development'!$E$32:$E$39) -> 1187.08 | AG12: =SUMPRODUCT('Efficiency Dist'!U57:U64,'UEC Development'!$E$32:$E$39) -> 1187.08 | AH12: =SUMPRODUCT('Efficiency Dist'!V57:V64,'UEC Development'!$E$32:$E$39) -> 1187.08 | AI12: =SUMPRODUCT('Efficiency Dist'!W57:W64,'UEC Development'!$E$32:$E$39) -> 1187.08 | AJ12: =SUMPRODUCT('Efficiency Dist'!X57:X64,'UEC Development'!$E$32:$E$39) -> 1187.08 | AK12: =SUMPRODUCT('Efficiency Dist'!Y57:Y64,'UEC Development'!$E$32:$E$39) -> 1187.08 | AL12: =SUMPRODUCT('Efficiency Dist'!Z57:Z64,'UEC Development'!$E$32:$E$39) -> 1187.08 | AM12: =SUMPRODUCT('Efficiency Dist'!AA57:AA64,'UEC Development'!$E$32:$E$39) -> 1187.08 | AN12: =SUMPRODUCT('Efficiency Dist'!AB57:AB64,'UEC Development'!$E$32:$E$39) -> 1187.08 | AO12: =SUMPRODUCT('Efficiency Dist'!AC57:AC64,'UEC Development'!$E$32:$E$39) -> 1187.08 | AP12: =SUMPRODUCT('Efficiency Dist'!AD57:AD64,'UEC Development'!$E$32:$E$39) -> 1187.08 | AQ12: =SUMPRODUCT('Efficiency Dist'!AE57:AE64,'UEC Development'!$E$32:$E$39) -> 1187.08 | AR12: =SUMPRODUCT('Efficiency Dist'!AF57:AF64,'UEC Development'!$E$32:$E$39) -> 1187.08 | AS12: =SUMPRODUCT('Efficiency Dist'!AG57:AG64,'UEC Development'!$E$32:$E$39) -> 1187.08 | AT12: =SUMPRODUCT('Efficiency Dist'!AH57:AH64,'UEC Development'!$E$32:$E$39) -> 1187.08 | AU12: =SUMPRODUCT('Efficiency Dist'!AI57:AI64,'UEC Development'!$E$32:$E$39) -> 1187.08 | AV12: =SUMPRODUCT('Efficiency Dist'!AJ57:AJ64,'UEC Development'!$E$32:$E$39) -> 1187.08 | AW12: =SUMPRODUCT('Efficiency Dist'!AK57:AK64,'UEC Development'!$E$32:$E$39) -> 1187.08 | AX12: =SUMPRODUCT('Efficiency Dist'!AL57:AL64,'UEC Development'!$E$32:$E$39) -> 1187.08 | AY12: =SUMPRODUCT('Efficiency Dist'!AM57:AM64,'UEC Development'!$E$32:$E$39) -> 1187.08 | AZ12: =SUMPRODUCT('Efficiency Dist'!AN57:AN64,'UEC Development'!$E$32:$E$39) -> 1187.08 | BA12: =SUMPRODUCT('Efficiency Dist'!AO57:AO64,'UEC Development'!$E$32:$E$39) -> 858 | BB12: =SUMPRODUCT('Efficiency Dist'!AP57:AP64,'UEC Development'!$E$32:$E$39) -> 858 | BC12: =SUMPRODUCT('Efficiency Dist'!AQ57:AQ64,'UEC Development'!$E$32:$E$39) -> 858 | BD12: =SUMPRODUCT('Efficiency Dist'!AR57:AR64,'UEC Development'!$E$32:$E$39) -> 858 | BE12: =SUMPRODUCT('Efficiency Dist'!AS57:AS64,'UEC Development'!$E$32:$E$39) -> 858 | BF12: =SUMPRODUCT('Efficiency Dist'!AT57:AT64,'UEC Development'!$E$32:$E$39) -> 858 | BG12: =SUMPRODUCT('Efficiency Dist'!AU57:AU64,'UEC Development'!$E$32:$E$39) -> 858 | BH12: =SUMPRODUCT('Efficiency Dist'!AV57:AV64,'UEC Development'!$E$32:$E$39) -> 858 | BI12: =SUMPRODUCT('Efficiency Dist'!AW57:AW64,'UEC Development'!$E$32:$E$39) -> 858 | BJ12: =SUMPRODUCT('Efficiency Dist'!AX57:AX64,'UEC Development'!$E$32:$E$39) -> 858 | BK12: =SUMPRODUCT('Efficiency Dist'!AY57:AY64,'UEC Development'!$E$32:$E$39) -> 858 | BL12: =SUMPRODUCT('Efficiency Dist'!AZ57:AZ64,'UEC Development'!$E$32:$E$39) -> 858 | BM12: =SUMPRODUCT('Efficiency Dist'!BA57:BA64,'UEC Development'!$E$32:$E$39) -> 858 | BN12: =SUMPRODUCT('Efficiency Dist'!BB57:BB64,'UEC Development'!$E$32:$E$39) -> 858 | BO12: =SUMPRODUCT('Efficiency Dist'!BC57:BC64,'UEC Development'!$E$32:$E$39) -> 858 | BP12: =SUMPRODUCT('Efficiency Dist'!BD57:BD64,'UEC Development'!$E$32:$E$39) -> 858 | BQ12: =SUMPRODUCT('Efficiency Dist'!BE57:BE64,'UEC Development'!$E$32:$E$39) -> 858 | BR12: =SUMPRODUCT('Efficiency Dist'!BF57:BF64,'UEC Development'!$E$32:$E$39) -> 858 | BS12: =SUMPRODUCT('Efficiency Dist'!BG57:BG64,'UEC Development'!$E$32:$E$39) -> 858 | BT12: =SUMPRODUCT('Efficiency Dist'!BH57:BH64,'UEC Development'!$E$32:$E$39) -> 858
R15: Installed UEC (Vintage Weighted Average)
S16: 1981 | T16: =S16+1 -> 1982 | U16: =T16+1 -> 1983 | V16: 1984 | W16: 1985 | X16: 1986 | Y16: 1987 | Z16: 1988 | AA16: 1989 | AB16: 1990 | AC16: 1991 | AD16: 1992 | AE16: 1993 | AF16: 1994 | AG16: 1995 | AH16: 1996 | AI16: 1997 | AJ16: 1998 | AK16: 1999 | AL16: 2000 | AM16: 2001 | AN16: 2002 | AO16: 2003 | AP16: 2004 | AQ16: 2005 | AR16: 2006 | AS16: 2007 | AT16: 2008 | AU16: 2009 | AV16: 2010 | AW16: 2011 | AX16: 2012 | AY16: 2013 | AZ16: 2014 | BA16: 2015 | BB16: 2016 | BC16: 2017 | BD16: 2018 | BE16: 2019 | BF16: 2020 | BG16: 2021 | BH16: 2022 | BI16: 2023 | BJ16: 2024 | BK16: 2025 | BL16: 2026 | BM16: 2027 | BN16: 2028 | BO16: 2029 | BP16: 2030 | BQ16: 2031 | BR16: 2032 | BS16: 2033 | BT16: 2034
R17: PRE-Case UEC | S17: =SUMPRODUCT(OFFSET('Stock Model - CSIR'!$C$14,MATCH(S$16,$S$16:$BT$16,0),1,1,18)/SUM(OFFSET('Stock Model - CSIR'!$C$14,MATCH(S$16,$S$16:$BT$16,0),1,1,18)),OFFSET(S$10,1,-18+1,1,18)) -> 1187.08 | T17: =SUMPRODUCT(OFFSET('Stock Model - CSIR'!$C$14,MATCH(T$16,$S$16:$BT$16,0),1,1,18)/SUM(OFFSET('Stock Model - CSIR'!$C$14,MATCH(T$16,$S$16:$BT$16,0),1,1,18)),OFFSET(T$10,1,-18+1,1,18)) -> 1187.08 | U17: =SUMPRODUCT(OFFSET('Stock Model - CSIR'!$C$14,MATCH(U$16,$S$16:$BT$16,0),1,1,18)/SUM(OFFSET('Stock Model - CSIR'!$C$14,MATCH(U$16,$S$16:$BT$16,0),1,1,18)),OFFSET(U$10,1,-18+1,1,18)) -> 1187.08 | V17: =SUMPRODUCT(OFFSET('Stock Model - CSIR'!$C$14,MATCH(V$16,$S$16:$BT$16,0),1,1,18)/SUM(OFFSET('Stock Model - CSIR'!$C$14,MATCH(V$16,$S$16:$BT$16,0),1,1,18)),OFFSET(V$10,1,-18+1,1,18)) -> 1187.08 | W17: =SUMPRODUCT(OFFSET('Stock Model - CSIR'!$C$14,MATCH(W$16,$S$16:$BT$16,0),1,1,18)/SUM(OFFSET('Stock Model - CSIR'!$C$14,MATCH(W$16,$S$16:$BT$16,0),1,1,18)),OFFSET(W$10,1,-18+1,1,18)) -> 1187.08 | X17: =SUMPRODUCT(OFFSET('Stock Model - CSIR'!$C$14,MATCH(X$16,$S$16:$BT$16,0),1,1,18)/SUM(OFFSET('Stock Model - CSIR'!$C$14,MATCH(X$16,$S$16:$BT$16,0),1,1,18)),OFFSET(X$10,1,-18+1,1,18)) -> 1187.08 | Y17: =SUMPRODUCT(OFFSET('Stock Model - CSIR'!$C$14,MATCH(Y$16,$S$16:$BT$16,0),1,1,18)/SUM(OFFSET('Stock Model - CSIR'!$C$14,MATCH(Y$16,$S$16:$BT$16,0),1,1,18)),OFFSET(Y$10,1,-18+1,1,18)) -> 1187.08 | Z17: =SUMPRODUCT(OFFSET('Stock Model - CSIR'!$C$14,MATCH(Z$16,$S$16:$BT$16,0),1,1,18)/SUM(OFFSET('Stock Model - CSIR'!$C$14,MATCH(Z$16,$S$16:$BT$16,0),1,1,18)),OFFSET(Z$10,1,-18+1,1,18)) -> 1187.08 | AA17: =SUMPRODUCT(OFFSET('Stock Model - CSIR'!$C$14,MATCH(AA$16,$S$16:$BT$16,0),1,1,18)/SUM(OFFSET('Stock Model - CSIR'!$C$14,MATCH(AA$16,$S$16:$BT$16,0),1,1,18)),OFFSET(AA$10,1,-18+1,1,18)) -> 1187.08 | AB17: =SUMPRODUCT(OFFSET('Stock Model - CSIR'!$C$14,MATCH(AB$16,$S$16:$BT$16,0),1,1,18)/SUM(OFFSET('Stock Model - CSIR'!$C$14,MATCH(AB$16,$S$16:$BT$16,0),1,1,18)),OFFSET(AB$10,1,-18+1,1,18)) -> 1187.08 | AC17: =SUMPRODUCT(OFFSET('Stock Model - CSIR'!$C$14,MATCH(AC$16,$S$16:$BT$16,0),1,1,18)/SUM(OFFSET('Stock Model - CSIR'!$C$14,MATCH(AC$16,$S$16:$BT$16,0),1,1,18)),OFFSET(AC$10,1,-18+1,1,18)) -> 1187.08 | AD17: =SUMPRODUCT(OFFSET('Stock Model - CSIR'!$C$14,MATCH(AD$16,$S$16:$BT$16,0),1,1,18)/SUM(OFFSET('Stock Model - CSIR'!$C$14,MATCH(AD$16,$S$16:$BT$16,0),1,1,18)),OFFSET(AD$10,1,-18+1,1,18)) -> 1187.08 | AE17: =SUMPRODUCT(OFFSET('Stock Model - CSIR'!$C$14,MATCH(AE$16,$S$16:$BT$16,0),1,1,18)/SUM(OFFSET('Stock Model - CSIR'!$C$14,MATCH(AE$16,$S$16:$BT$16,0),1,1,18)),OFFSET(AE$10,1,-18+1,1,18)) -> 1187.08 | AF17: =SUMPRODUCT(OFFSET('Stock Model - CSIR'!$C$14,MATCH(AF$16,$S$16:$BT$16,0),1,1,18)/SUM(OFFSET('Stock Model - CSIR'!$C$14,MATCH(AF$16,$S$16:$BT$16,0),1,1,18)),OFFSET(AF$10,1,-18+1,1,18)) -> 1187.08 | AG17: =SUMPRODUCT(OFFSET('Stock Model - CSIR'!$C$14,MATCH(AG$16,$S$16:$BT$16,0),1,1,18)/SUM(OFFSET('Stock Model - CSIR'!$C$14,MATCH(AG$16,$S$16:$BT$16,0),1,1,18)),OFFSET(AG$10,1,-18+1,1,18)) -> 1187.08 | AH17: =SUMPRODUCT(OFFSET('Stock Model - CSIR'!$C$14,MATCH(AH$16,$S$16:$BT$16,0),1,1,18)/SUM(OFFSET('Stock Model - CSIR'!$C$14,MATCH(AH$16,$S$16:$BT$16,0),1,1,18)),OFFSET(AH$10,1,-18+1,1,18)) -> 1187.08 | AI17: =SUMPRODUCT(OFFSET('Stock Model - CSIR'!$C$14,MATCH(AI$16,$S$16:$BT$16,0),1,1,18)/SUM(OFFSET('Stock Model - CSIR'!$C$14,MATCH(AI$16,$S$16:$BT$16,0),1,1,18)),OFFSET(AI$10,1,-18+1,1,18)) -> 1187.08 | AJ17: =SUMPRODUCT(OFFSET('Stock Model - CSIR'!$C$14,MATCH(AJ$16,$S$16:$BT$16,0),1,1,18)/SUM(OFFSET('Stock Model - CSIR'!$C$14,MATCH(AJ$16,$S$16:$BT$16,0),1,1,18)),OFFSET(AJ$10,1,-18+1,1,18)) -> 1187.08 | AK17: =SUMPRODUCT(OFFSET('Stock Model - CSIR'!$C$14,MATCH(AK$16,$S$16:$BT$16,0),1,1,18)/SUM(OFFSET('Stock Model - CSIR'!$C$14,MATCH(AK$16,$S$16:$BT$16,0),1,1,18)),OFFSET(AK$10,1,-18+1,1,18)) -> 1187.08 | AL17: =SUMPRODUCT(OFFSET('Stock Model - CSIR'!$C$14,MATCH(AL$16,$S$16:$BT$16,0),1,1,18)/SUM(OFFSET('Stock Model - CSIR'!$C$14,MATCH(AL$16,$S$16:$BT$16,0),1,1,18)),OFFSET(AL$10,1,-18+1,1,18)) -> 1187.08 | AM17: =SUMPRODUCT(OFFSET('Stock Model - CSIR'!$C$14,MATCH(AM$16,$S$16:$BT$16,0),1,1,18)/SUM(OFFSET('Stock Model - CSIR'!$C$14,MATCH(AM$16,$S$16:$BT$16,0),1,1,18)),OFFSET(AM$10,1,-18+1,1,18)) -> 1187.08 | AN17: =SUMPRODUCT(OFFSET('Stock Model - CSIR'!$C$14,MATCH(AN$16,$S$16:$BT$16,0),1,1,18)/SUM(OFFSET('Stock Model - CSIR'!$C$14,MATCH(AN$16,$S$16:$BT$16,0),1,1,18)),OFFSET(AN$10,1,-18+1,1,18)) -> 1187.08 | AO17: =SUMPRODUCT(OFFSET('Stock Model - CSIR'!$C$14,MATCH(AO$16,$S$16:$BT$16,0),1,1,18)/SUM(OFFSET('Stock Model - CSIR'!$C$14,MATCH(AO$16,$S$16:$BT$16,0),1,1,18)),OFFSET(AO$10,1,-18+1,1,18)) -> 1187.08 | AP17: =SUMPRODUCT(OFFSET('Stock Model - CSIR'!$C$14,MATCH(AP$16,$S$16:$BT$16,0),1,1,18)/SUM(OFFSET('Stock Model - CSIR'!$C$14,MATCH(AP$16,$S$16:$BT$16,0),1,1,18)),OFFSET(AP$10,1,-18+1,1,18)) -> 1187.08 | AQ17: =SUMPRODUCT(OFFSET('Stock Model - CSIR'!$C$14,MATCH(AQ$16,$S$16:$BT$16,0),1,1,18)/SUM(OFFSET('Stock Model - CSIR'!$C$14,MATCH(AQ$16,$S$16:$BT$16,0),1,1,18)),OFFSET(AQ$10,1,-18+1,1,18)) -> 1187.08 | AR17: =SUMPRODUCT(OFFSET('Stock Model - CSIR'!$C$14,MATCH(AR$16,$S$16:$BT$16,0),1,1,18)/SUM(OFFSET('Stock Model - CSIR'!$C$14,MATCH(AR$16,$S$16:$BT$16,0),1,1,18)),OFFSET(AR$10,1,-18+1,1,18)) -> 1187.08 | AS17: =SUMPRODUCT(OFFSET('Stock Model - CSIR'!$C$14,MATCH(AS$16,$S$16:$BT$16,0),1,1,18)/SUM(OFFSET('Stock Model - CSIR'!$C$14,MATCH(AS$16,$S$16:$BT$16,0),1,1,18)),OFFSET(AS$10,1,-18+1,1,18)) -> 1187.08 | AT17: =SUMPRODUCT(OFFSET('Stock Model - CSIR'!$C$14,MATCH(AT$16,$S$16:$BT$16,0),1,1,18)/SUM(OFFSET('Stock Model - CSIR'!$C$14,MATCH(AT$16,$S$16:$BT$16,0),1,1,18)),OFFSET(AT$10,1,-18+1,1,18)) -> 1187.08 | AU17: =SUMPRODUCT(OFFSET('Stock Model - CSIR'!$C$14,MATCH(AU$16,$S$16:$BT$16,0),1,1,18)/SUM(OFFSET('Stock Model - CSIR'!$C$14,MATCH(AU$16,$S$16:$BT$16,0),1,1,18)),OFFSET(AU$10,1,-18+1,1,18)) -> 1187.08 | AV17: =SUMPRODUCT(OFFSET('Stock Model - CSIR'!$C$14,MATCH(AV$16,$S$16:$BT$16,0),1,1,18)/SUM(OFFSET('Stock Model - CSIR'!$C$14,MATCH(AV$16,$S$16:$BT$16,0),1,1,18)),OFFSET(AV$10,1,-18+1,1,18)) -> 1187.08 | AW17: =SUMPRODUCT(OFFSET('Stock Model - CSIR'!$C$14,MATCH(AW$16,$S$16:$BT$16,0),1,1,18)/SUM(OFFSET('Stock Model - CSIR'!$C$14,MATCH(AW$16,$S$16:$BT$16,0),1,1,18)),OFFSET(AW$10,1,-18+1,1,18)) -> 1187.08 | AX17: =SUMPRODUCT(OFFSET('Stock Model - CSIR'!$C$14,MATCH(AX$16,$S$16:$BT$16,0),1,1,18)/SUM(OFFSET('Stock Model - CSIR'!$C$14,MATCH(AX$16,$S$16:$BT$16,0),1,1,18)),OFFSET(AX$10,1,-18+1,1,18)) -> 1187.08 | AY17: =SUMPRODUCT(OFFSET('Stock Model - CSIR'!$C$14,MATCH(AY$16,$S$16:$BT$16,0),1,1,18)/SUM(OFFSET('Stock Model - CSIR'!$C$14,MATCH(AY$16,$S$16:$BT$16,0),1,1,18)),OFFSET(AY$10,1,-18+1,1,18)) -> 1187.08 | AZ17: =SUMPRODUCT(OFFSET('Stock Model - CSIR'!$C$14,MATCH(AZ$16,$S$16:$BT$16,0),1,1,18)/SUM(OFFSET('Stock Model - CSIR'!$C$14,MATCH(AZ$16,$S$16:$BT$16,0),1,1,18)),OFFSET(AZ$10,1,-18+1,1,18)) -> 1187.08 | BA17: =SUMPRODUCT(OFFSET('Stock Model - CSIR'!$C$14,MATCH(BA$16,$S$16:$BT$16,0),1,1,18)/SUM(OFFSET('Stock Model - CSIR'!$C$14,MATCH(BA$16,$S$16:$BT$16,0),1,1,18)),OFFSET(BA$10,1,-18+1,1,18)) -> 1187.08 | BB17: =SUMPRODUCT(OFFSET('Stock Model - CSIR'!$C$14,MATCH(BB$16,$S$16:$BT$16,0),1,1,18)/SUM(OFFSET('Stock Model - CSIR'!$C$14,MATCH(BB$16,$S$16:$BT$16,0),1,1,18)),OFFSET(BB$10,1,-18+1,1,18)) -> 1187.08 | BC17: =SUMPRODUCT(OFFSET('Stock Model - CSIR'!$C$14,MATCH(BC$16,$S$16:$BT$16,0),1,1,18)/SUM(OFFSET('Stock Model - CSIR'!$C$14,MATCH(BC$16,$S$16:$BT$16,0),1,1,18)),OFFSET(BC$10,1,-18+1,1,18)) -> 1187.08 | BD17: =SUMPRODUCT(OFFSET('Stock Model - CSIR'!$C$14,MATCH(BD$16,$S$16:$BT$16,0),1,1,18)/SUM(OFFSET('Stock Model - CSIR'!$C$14,MATCH(BD$16,$S$16:$BT$16,0),1,1,18)),OFFSET(BD$10,1,-18+1,1,18)) -> 1187.08 | BE17: =SUMPRODUCT(OFFSET('Stock Model - CSIR'!$C$14,MATCH(BE$16,$S$16:$BT$16,0),1,1,18)/SUM(OFFSET('Stock Model - CSIR'!$C$14,MATCH(BE$16,$S$16:$BT$16,0),1,1,18)),OFFSET(BE$10,1,-18+1,1,18)) -> 1187.08 | BF17: =SUMPRODUCT(OFFSET('Stock Model - CSIR'!$C$14,MATCH(BF$16,$S$16:$BT$16,0),1,1,18)/SUM(OFFSET('Stock Model - CSIR'!$C$14,MATCH(BF$16,$S$16:$BT$16,0),1,1,18)),OFFSET(BF$10,1,-18+1,1,18)) -> 1187.08 | BG17: =SUMPRODUCT(OFFSET('Stock Model - CSIR'!$C$14,MATCH(BG$16,$S$16:$BT$16,0),1,1,18)/SUM(OFFSET('Stock Model - CSIR'!$C$14,MATCH(BG$16,$S$16:$BT$16,0),1,1,18)),OFFSET(BG$10,1,-18+1,1,18)) -> 1187.08 | BH17: =SUMPRODUCT(OFFSET('Stock Model - CSIR'!$C$14,MATCH(BH$16,$S$16:$BT$16,0),1,1,18)/SUM(OFFSET('Stock Model - CSIR'!$C$14,MATCH(BH$16,$S$16:$BT$16,0),1,1,18)),OFFSET(BH$10,1,-18+1,1,18)) -> 1187.08 | BI17: =SUMPRODUCT(OFFSET('Stock Model - CSIR'!$C$14,MATCH(BI$16,$S$16:$BT$16,0),1,1,18)/SUM(OFFSET('Stock Model - CSIR'!$C$14,MATCH(BI$16,$S$16:$BT$16,0),1,1,18)),OFFSET(BI$10,1,-18+1,1,18)) -> 1187.08 | BJ17: =SUMPRODUCT(OFFSET('Stock Model - CSIR'!$C$14,MATCH(BJ$16,$S$16:$BT$16,0),1,1,18)/SUM(OFFSET('Stock Model - CSIR'!$C$14,MATCH(BJ$16,$S$16:$BT$16,0),1,1,18)),OFFSET(BJ$10,1,-18+1,1,18)) -> 1187.08 | BK17: =SUMPRODUCT(OFFSET('Stock Model - CSIR'!$C$14,MATCH(BK$16,$S$16:$BT$16,0),1,1,18)/SUM(OFFSET('Stock Model - CSIR'!$C$14,MATCH(BK$16,$S$16:$BT$16,0),1,1,18)),OFFSET(BK$10,1,-18+1,1,18)) -> 1187.08 | BL17: =SUMPRODUCT(OFFSET('Stock Model - CSIR'!$C$14,MATCH(BL$16,$S$16:$BT$16,0),1,1,18)/SUM(OFFSET('Stock Model - CSIR'!$C$14,MATCH(BL$16,$S$16:$BT$16,0),1,1,18)),OFFSET(BL$10,1,-18+1,1,18)) -> 1187.08 | BM17: =SUMPRODUCT(OFFSET('Stock Model - CSIR'!$C$14,MATCH(BM$16,$S$16:$BT$16,0),1,1,18)/SUM(OFFSET('Stock Model - CSIR'!$C$14,MATCH(BM$16,$S$16:$BT$16,0),1,1,18)),OFFSET(BM$10,1,-18+1,1,18)) -> 1187.08 | BN17: =SUMPRODUCT(OFFSET('Stock Model - CSIR'!$C$14,MATCH(BN$16,$S$16:$BT$16,0),1,1,18)/SUM(OFFSET('Stock Model - CSIR'!$C$14,MATCH(BN$16,$S$16:$BT$16,0),1,1,18)),OFFSET(BN$10,1,-18+1,1,18)) -> 1187.08 | BO17: =SUMPRODUCT(OFFSET('Stock Model - CSIR'!$C$14,MATCH(BO$16,$S$16:$BT$16,0),1,1,18)/SUM(OFFSET('Stock Model - CSIR'!$C$14,MATCH(BO$16,$S$16:$BT$16,0),1,1,18)),OFFSET(BO$10,1,-18+1,1,18)) -> 1187.08 | BP17: =SUMPRODUCT(OFFSET('Stock Model - CSIR'!$C$14,MATCH(BP$16,$S$16:$BT$16,0),1,1,18)/SUM(OFFSET('Stock Model - CSIR'!$C$14,MATCH(BP$16,$S$16:$BT$16,0),1,1,18)),OFFSET(BP$10,1,-18+1,1,18)) -> 1187.08 | BQ17: =SUMPRODUCT(OFFSET('Stock Model - CSIR'!$C$14,MATCH(BQ$16,$S$16:$BT$16,0),1,1,18)/SUM(OFFSET('Stock Model - CSIR'!$C$14,MATCH(BQ$16,$S$16:$BT$16,0),1,1,18)),OFFSET(BQ$10,1,-18+1,1,18)) -> 1187.08 | BR17: =SUMPRODUCT(OFFSET('Stock Model - CSIR'!$C$14,MATCH(BR$16,$S$16:$BT$16,0),1,1,18)/SUM(OFFSET('Stock Model - CSIR'!$C$14,MATCH(BR$16,$S$16:$BT$16,0),1,1,18)),OFFSET(BR$10,1,-18+1,1,18)) -> 1187.08 | BS17: =SUMPRODUCT(OFFSET('Stock Model - CSIR'!$C$14,MATCH(BS$16,$S$16:$BT$16,0),1,1,18)/SUM(OFFSET('Stock Model - CSIR'!$C$14,MATCH(BS$16,$S$16:$BT$16,0),1,1,18)),OFFSET(BS$10,1,-18+1,1,18)) -> 1187.08 | BT17: =SUMPRODUCT(OFFSET('Stock Model - CSIR'!$C$14,MATCH(BT$16,$S$16:$BT$16,0),1,1,18)/SUM(OFFSET('Stock Model - CSIR'!$C$14,MATCH(BT$16,$S$16:$BT$16,0),1,1,18)),OFFSET(BT$10,1,-18+1,1,18)) -> 1187.08
R18: POST-Case UEC | S18: =SUMPRODUCT(OFFSET('Stock Model - CSIR'!$C$14,MATCH(S$16,$S$16:$BT$16,0),1,1,18)/SUM(OFFSET('Stock Model - CSIR'!$C$14,MATCH(S$16,$S$16:$BT$16,0),1,1,18)),OFFSET(S$10,2,-18+1,1,18)) -> 1187.08 | T18: =SUMPRODUCT(OFFSET('Stock Model - CSIR'!$C$14,MATCH(T$16,$S$16:$BT$16,0),1,1,18)/SUM(OFFSET('Stock Model - CSIR'!$C$14,MATCH(T$16,$S$16:$BT$16,0),1,1,18)),OFFSET(T$10,2,-18+1,1,18)) -> 1187.08 | U18: =SUMPRODUCT(OFFSET('Stock Model - CSIR'!$C$14,MATCH(U$16,$S$16:$BT$16,0),1,1,18)/SUM(OFFSET('Stock Model - CSIR'!$C$14,MATCH(U$16,$S$16:$BT$16,0),1,1,18)),OFFSET(U$10,2,-18+1,1,18)) -> 1187.08 | V18: =SUMPRODUCT(OFFSET('Stock Model - CSIR'!$C$14,MATCH(V$16,$S$16:$BT$16,0),1,1,18)/SUM(OFFSET('Stock Model - CSIR'!$C$14,MATCH(V$16,$S$16:$BT$16,0),1,1,18)),OFFSET(V$10,2,-18+1,1,18)) -> 1187.08 | W18: =SUMPRODUCT(OFFSET('Stock Model - CSIR'!$C$14,MATCH(W$16,$S$16:$BT$16,0),1,1,18)/SUM(OFFSET('Stock Model - CSIR'!$C$14,MATCH(W$16,$S$16:$BT$16,0),1,1,18)),OFFSET(W$10,2,-18+1,1,18)) -> 1187.08 | X18: =SUMPRODUCT(OFFSET('Stock Model - CSIR'!$C$14,MATCH(X$16,$S$16:$BT$16,0),1,1,18)/SUM(OFFSET('Stock Model - CSIR'!$C$14,MATCH(X$16,$S$16:$BT$16,0),1,1,18)),OFFSET(X$10,2,-18+1,1,18)) -> 1187.08 | Y18: =SUMPRODUCT(OFFSET('Stock Model - CSIR'!$C$14,MATCH(Y$16,$S$16:$BT$16,0),1,1,18)/SUM(OFFSET('Stock Model - CSIR'!$C$14,MATCH(Y$16,$S$16:$BT$16,0),1,1,18)),OFFSET(Y$10,2,-18+1,1,18)) -> 1187.08 | Z18: =SUMPRODUCT(OFFSET('Stock Model - CSIR'!$C$14,MATCH(Z$16,$S$16:$BT$16,0),1,1,18)/SUM(OFFSET('Stock Model - CSIR'!$C$14,MATCH(Z$16,$S$16:$BT$16,0),1,1,18)),OFFSET(Z$10,2,-18+1,1,18)) -> 1187.08 | AA18: =SUMPRODUCT(OFFSET('Stock Model - CSIR'!$C$14,MATCH(AA$16,$S$16:$BT$16,0),1,1,18)/SUM(OFFSET('Stock Model - CSIR'!$C$14,MATCH(AA$16,$S$16:$BT$16,0),1,1,18)),OFFSET(AA$10,2,-18+1,1,18)) -> 1187.08 | AB18: =SUMPRODUCT(OFFSET('Stock Model - CSIR'!$C$14,MATCH(AB$16,$S$16:$BT$16,0),1,1,18)/SUM(OFFSET('Stock Model - CSIR'!$C$14,MATCH(AB$16,$S$16:$BT$16,0),1,1,18)),OFFSET(AB$10,2,-18+1,1,18)) -> 1187.08 | AC18: =SUMPRODUCT(OFFSET('Stock Model - CSIR'!$C$14,MATCH(AC$16,$S$16:$BT$16,0),1,1,18)/SUM(OFFSET('Stock Model - CSIR'!$C$14,MATCH(AC$16,$S$16:$BT$16,0),1,1,18)),OFFSET(AC$10,2,-18+1,1,18)) -> 1187.08 | AD18: =SUMPRODUCT(OFFSET('Stock Model - CSIR'!$C$14,MATCH(AD$16,$S$16:$BT$16,0),1,1,18)/SUM(OFFSET('Stock Model - CSIR'!$C$14,MATCH(AD$16,$S$16:$BT$16,0),1,1,18)),OFFSET(AD$10,2,-18+1,1,18)) -> 1187.08 | AE18: =SUMPRODUCT(OFFSET('Stock Model - CSIR'!$C$14,MATCH(AE$16,$S$16:$BT$16,0),1,1,18)/SUM(OFFSET('Stock Model - CSIR'!$C$14,MATCH(AE$16,$S$16:$BT$16,0),1,1,18)),OFFSET(AE$10,2,-18+1,1,18)) -> 1187.08 | AF18: =SUMPRODUCT(OFFSET('Stock Model - CSIR'!$C$14,MATCH(AF$16,$S$16:$BT$16,0),1,1,18)/SUM(OFFSET('Stock Model - CSIR'!$C$14,MATCH(AF$16,$S$16:$BT$16,0),1,1,18)),OFFSET(AF$10,2,-18+1,1,18)) -> 1187.08 | AG18: =SUMPRODUCT(OFFSET('Stock Model - CSIR'!$C$14,MATCH(AG$16,$S$16:$BT$16,0),1,1,18)/SUM(OFFSET('Stock Model - CSIR'!$C$14,MATCH(AG$16,$S$16:$BT$16,0),1,1,18)),OFFSET(AG$10,2,-18+1,1,18)) -> 1187.08 | AH18: =SUMPRODUCT(OFFSET('Stock Model - CSIR'!$C$14,MATCH(AH$16,$S$16:$BT$16,0),1,1,18)/SUM(OFFSET('Stock Model - CSIR'!$C$14,MATCH(AH$16,$S$16:$BT$16,0),1,1,18)),OFFSET(AH$10,2,-18+1,1,18)) -> 1187.08 | AI18: =SUMPRODUCT(OFFSET('Stock Model - CSIR'!$C$14,MATCH(AI$16,$S$16:$BT$16,0),1,1,18)/SUM(OFFSET('Stock Model - CSIR'!$C$14,MATCH(AI$16,$S$16:$BT$16,0),1,1,18)),OFFSET(AI$10,2,-18+1,1,18)) -> 1187.08 | AJ18: =SUMPRODUCT(OFFSET('Stock Model - CSIR'!$C$14,MATCH(AJ$16,$S$16:$BT$16,0),1,1,18)/SUM(OFFSET('Stock Model - CSIR'!$C$14,MATCH(AJ$16,$S$16:$BT$16,0),1,1,18)),OFFSET(AJ$10,2,-18+1,1,18)) -> 1187.08 | AK18: =SUMPRODUCT(OFFSET('Stock Model - CSIR'!$C$14,MATCH(AK$16,$S$16:$BT$16,0),1,1,18)/SUM(OFFSET('Stock Model - CSIR'!$C$14,MATCH(AK$16,$S$16:$BT$16,0),1,1,18)),OFFSET(AK$10,2,-18+1,1,18)) -> 1187.08 | AL18: =SUMPRODUCT(OFFSET('Stock Model - CSIR'!$C$14,MATCH(AL$16,$S$16:$BT$16,0),1,1,18)/SUM(OFFSET('Stock Model - CSIR'!$C$14,MATCH(AL$16,$S$16:$BT$16,0),1,1,18)),OFFSET(AL$10,2,-18+1,1,18)) -> 1187.08 | AM18: =SUMPRODUCT(OFFSET('Stock Model - CSIR'!$C$14,MATCH(AM$16,$S$16:$BT$16,0),1,1,18)/SUM(OFFSET('Stock Model - CSIR'!$C$14,MATCH(AM$16,$S$16:$BT$16,0),1,1,18)),OFFSET(AM$10,2,-18+1,1,18)) -> 1187.08 | AN18: =SUMPRODUCT(OFFSET('Stock Model - CSIR'!$C$14,MATCH(AN$16,$S$16:$BT$16,0),1,1,18)/SUM(OFFSET('Stock Model - CSIR'!$C$14,MATCH(AN$16,$S$16:$BT$16,0),1,1,18)),OFFSET(AN$10,2,-18+1,1,18)) -> 1187.08 | AO18: =SUMPRODUCT(OFFSET('Stock Model - CSIR'!$C$14,MATCH(AO$16,$S$16:$BT$16,0),1,1,18)/SUM(OFFSET('Stock Model - CSIR'!$C$14,MATCH(AO$16,$S$16:$BT$16,0),1,1,18)),OFFSET(AO$10,2,-18+1,1,18)) -> 1187.08 | AP18: =SUMPRODUCT(OFFSET('Stock Model - CSIR'!$C$14,MATCH(AP$16,$S$16:$BT$16,0),1,1,18)/SUM(OFFSET('Stock Model - CSIR'!$C$14,MATCH(AP$16,$S$16:$BT$16,0),1,1,18)),OFFSET(AP$10,2,-18+1,1,18)) -> 1187.08 | AQ18: =SUMPRODUCT(OFFSET('Stock Model - CSIR'!$C$14,MATCH(AQ$16,$S$16:$BT$16,0),1,1,18)/SUM(OFFSET('Stock Model - CSIR'!$C$14,MATCH(AQ$16,$S$16:$BT$16,0),1,1,18)),OFFSET(AQ$10,2,-18+1,1,18)) -> 1187.08 | AR18: =SUMPRODUCT(OFFSET('Stock Model - CSIR'!$C$14,MATCH(AR$16,$S$16:$BT$16,0),1,1,18)/SUM(OFFSET('Stock Model - CSIR'!$C$14,MATCH(AR$16,$S$16:$BT$16,0),1,1,18)),OFFSET(AR$10,2,-18+1,1,18)) -> 1187.08 | AS18: =SUMPRODUCT(OFFSET('Stock Model - CSIR'!$C$14,MATCH(AS$16,$S$16:$BT$16,0),1,1,18)/SUM(OFFSET('Stock Model - CSIR'!$C$14,MATCH(AS$16,$S$16:$BT$16,0),1,1,18)),OFFSET(AS$10,2,-18+1,1,18)) -> 1187.08 | AT18: =SUMPRODUCT(OFFSET('Stock Model - CSIR'!$C$14,MATCH(AT$16,$S$16:$BT$16,0),1,1,18)/SUM(OFFSET('Stock Model - CSIR'!$C$14,MATCH(AT$16,$S$16:$BT$16,0),1,1,18)),OFFSET(AT$10,2,-18+1,1,18)) -> 1187.08 | AU18: =SUMPRODUCT(OFFSET('Stock Model - CSIR'!$C$14,MATCH(AU$16,$S$16:$BT$16,0),1,1,18)/SUM(OFFSET('Stock Model - CSIR'!$C$14,MATCH(AU$16,$S$16:$BT$16,0),1,1,18)),OFFSET(AU$10,2,-18+1,1,18)) -> 1187.08 | AV18: =SUMPRODUCT(OFFSET('Stock Model - CSIR'!$C$14,MATCH(AV$16,$S$16:$BT$16,0),1,1,18)/SUM(OFFSET('Stock Model - CSIR'!$C$14,MATCH(AV$16,$S$16:$BT$16,0),1,1,18)),OFFSET(AV$10,2,-18+1,1,18)) -> 1187.08 | AW18: =SUMPRODUCT(OFFSET('Stock Model - CSIR'!$C$14,MATCH(AW$16,$S$16:$BT$16,0),1,1,18)/SUM(OFFSET('Stock Model - CSIR'!$C$14,MATCH(AW$16,$S$16:$BT$16,0),1,1,18)),OFFSET(AW$10,2,-18+1,1,18)) -> 1187.08 | AX18: =SUMPRODUCT(OFFSET('Stock Model - CSIR'!$C$14,MATCH(AX$16,$S$16:$BT$16,0),1,1,18)/SUM(OFFSET('Stock Model - CSIR'!$C$14,MATCH(AX$16,$S$16:$BT$16,0),1,1,18)),OFFSET(AX$10,2,-18+1,1,18)) -> 1187.08 | AY18: =SUMPRODUCT(OFFSET('Stock Model - CSIR'!$C$14,MATCH(AY$16,$S$16:$BT$16,0),1,1,18)/SUM(OFFSET('Stock Model - CSIR'!$C$14,MATCH(AY$16,$S$16:$BT$16,0),1,1,18)),OFFSET(AY$10,2,-18+1,1,18)) -> 1187.08 | AZ18: =SUMPRODUCT(OFFSET('Stock Model - CSIR'!$C$14,MATCH(AZ$16,$S$16:$BT$16,0),1,1,18)/SUM(OFFSET('Stock Model - CSIR'!$C$14,MATCH(AZ$16,$S$16:$BT$16,0),1,1,18)),OFFSET(AZ$10,2,-18+1,1,18)) -> 1187.08 | BA18: =SUMPRODUCT(OFFSET('Stock Model - CSIR'!$C$14,MATCH(BA$16,$S$16:$BT$16,0),1,1,18)/SUM(OFFSET('Stock Model - CSIR'!$C$14,MATCH(BA$16,$S$16:$BT$16,0),1,1,18)),OFFSET(BA$10,2,-18+1,1,18)) -> 1137.478177 | BB18: =SUMPRODUCT(OFFSET('Stock Model - CSIR'!$C$14,MATCH(BB$16,$S$16:$BT$16,0),1,1,18)/SUM(OFFSET('Stock Model - CSIR'!$C$14,MATCH(BB$16,$S$16:$BT$16,0),1,1,18)),OFFSET(BB$10,2,-18+1,1,18)) -> 1088.765937 | BC18: =SUMPRODUCT(OFFSET('Stock Model - CSIR'!$C$14,MATCH(BC$16,$S$16:$BT$16,0),1,1,18)/SUM(OFFSET('Stock Model - CSIR'!$C$14,MATCH(BC$16,$S$16:$BT$16,0),1,1,18)),OFFSET(BC$10,2,-18+1,1,18)) -> 1040.927326 | BD18: =SUMPRODUCT(OFFSET('Stock Model - CSIR'!$C$14,MATCH(BD$16,$S$16:$BT$16,0),1,1,18)/SUM(OFFSET('Stock Model - CSIR'!$C$14,MATCH(BD$16,$S$16:$BT$16,0),1,1,18)),OFFSET(BD$10,2,-18+1,1,18)) -> 993.9466769 | BE18: =SUMPRODUCT(OFFSET('Stock Model - CSIR'!$C$14,MATCH(BE$16,$S$16:$BT$16,0),1,1,18)/SUM(OFFSET('Stock Model - CSIR'!$C$14,MATCH(BE$16,$S$16:$BT$16,0),1,1,18)),OFFSET(BE$10,2,-18+1,1,18)) -> 947.8086016 | BF18: =SUMPRODUCT(OFFSET('Stock Model - CSIR'!$C$14,MATCH(BF$16,$S$16:$BT$16,0),1,1,18)/SUM(OFFSET('Stock Model - CSIR'!$C$14,MATCH(BF$16,$S$16:$BT$16,0),1,1,18)),OFFSET(BF$10,2,-18+1,1,18)) -> 902.4979894 | BG18: =SUMPRODUCT(OFFSET('Stock Model - CSIR'!$C$14,MATCH(BG$16,$S$16:$BT$16,0),1,1,18)/SUM(OFFSET('Stock Model - CSIR'!$C$14,MATCH(BG$16,$S$16:$BT$16,0),1,1,18)),OFFSET(BG$10,2,-18+1,1,18)) -> 858 | BH18: =SUMPRODUCT(OFFSET('Stock Model - CSIR'!$C$14,MATCH(BH$16,$S$16:$BT$16,0),1,1,18)/SUM(OFFSET('Stock Model - CSIR'!$C$14,MATCH(BH$16,$S$16:$BT$16,0),1,1,18)),OFFSET(BH$10,2,-18+1,1,18)) -> 858 | BI18: =SUMPRODUCT(OFFSET('Stock Model - CSIR'!$C$14,MATCH(BI$16,$S$16:$BT$16,0),1,1,18)/SUM(OFFSET('Stock Model - CSIR'!$C$14,MATCH(BI$16,$S$16:$BT$16,0),1,1,18)),OFFSET(BI$10,2,-18+1,1,18)) -> 858 | BJ18: =SUMPRODUCT(OFFSET('Stock Model - CSIR'!$C$14,MATCH(BJ$16,$S$16:$BT$16,0),1,1,18)/SUM(OFFSET('Stock Model - CSIR'!$C$14,MATCH(BJ$16,$S$16:$BT$16,0),1,1,18)),OFFSET(BJ$10,2,-18+1,1,18)) -> 858 | BK18: =SUMPRODUCT(OFFSET('Stock Model - CSIR'!$C$14,MATCH(BK$16,$S$16:$BT$16,0),1,1,18)/SUM(OFFSET('Stock Model - CSIR'!$C$14,MATCH(BK$16,$S$16:$BT$16,0),1,1,18)),OFFSET(BK$10,2,-18+1,1,18)) -> 858 | BL18: =SUMPRODUCT(OFFSET('Stock Model - CSIR'!$C$14,MATCH(BL$16,$S$16:$BT$16,0),1,1,18)/SUM(OFFSET('Stock Model - CSIR'!$C$14,MATCH(BL$16,$S$16:$BT$16,0),1,1,18)),OFFSET(BL$10,2,-18+1,1,18)) -> 858 | BM18: =SUMPRODUCT(OFFSET('Stock Model - CSIR'!$C$14,MATCH(BM$16,$S$16:$BT$16,0),1,1,18)/SUM(OFFSET('Stock Model - CSIR'!$C$14,MATCH(BM$16,$S$16:$BT$16,0),1,1,18)),OFFSET(BM$10,2,-18+1,1,18)) -> 858 | BN18: =SUMPRODUCT(OFFSET('Stock Model - CSIR'!$C$14,MATCH(BN$16,$S$16:$BT$16,0),1,1,18)/SUM(OFFSET('Stock Model - CSIR'!$C$14,MATCH(BN$16,$S$16:$BT$16,0),1,1,18)),OFFSET(BN$10,2,-18+1,1,18)) -> 858 | BO18: =SUMPRODUCT(OFFSET('Stock Model - CSIR'!$C$14,MATCH(BO$16,$S$16:$BT$16,0),1,1,18)/SUM(OFFSET('Stock Model - CSIR'!$C$14,MATCH(BO$16,$S$16:$BT$16,0),1,1,18)),OFFSET(BO$10,2,-18+1,1,18)) -> 858 | BP18: =SUMPRODUCT(OFFSET('Stock Model - CSIR'!$C$14,MATCH(BP$16,$S$16:$BT$16,0),1,1,18)/SUM(OFFSET('Stock Model - CSIR'!$C$14,MATCH(BP$16,$S$16:$BT$16,0),1,1,18)),OFFSET(BP$10,2,-18+1,1,18)) -> 858 | BQ18: =SUMPRODUCT(OFFSET('Stock Model - CSIR'!$C$14,MATCH(BQ$16,$S$16:$BT$16,0),1,1,18)/SUM(OFFSET('Stock Model - CSIR'!$C$14,MATCH(BQ$16,$S$16:$BT$16,0),1,1,18)),OFFSET(BQ$10,2,-18+1,1,18)) -> 858 | BR18: =SUMPRODUCT(OFFSET('Stock Model - CSIR'!$C$14,MATCH(BR$16,$S$16:$BT$16,0),1,1,18)/SUM(OFFSET('Stock Model - CSIR'!$C$14,MATCH(BR$16,$S$16:$BT$16,0),1,1,18)),OFFSET(BR$10,2,-18+1,1,18)) -> 858 | BS18: =SUMPRODUCT(OFFSET('Stock Model - CSIR'!$C$14,MATCH(BS$16,$S$16:$BT$16,0),1,1,18)/SUM(OFFSET('Stock Model - CSIR'!$C$14,MATCH(BS$16,$S$16:$BT$16,0),1,1,18)),OFFSET(BS$10,2,-18+1,1,18)) -> 858 | BT18: =SUMPRODUCT(OFFSET('Stock Model - CSIR'!$C$14,MATCH(BT$16,$S$16:$BT$16,0),1,1,18)/SUM(OFFSET('Stock Model - CSIR'!$C$14,MATCH(BT$16,$S$16:$BT$16,0),1,1,18)),OFFSET(BT$10,2,-18+1,1,18)) -> 858

Sheet UEC - CSCR
R2: Weighted Annual UEC - CSCR Motors
R4: NAVIGATION
R6: COMMENTS
R9: Market UEC (Shipment Weighted Average)
S10: 1981 | T10: =S10+1 -> 1982 | U10: =T10+1 -> 1983 | V10: 1984 | W10: 1985 | X10: 1986 | Y10: 1987 | Z10: 1988 | AA10: 1989 | AB10: 1990 | AC10: 1991 | AD10: 1992 | AE10: 1993 | AF10: 1994 | AG10: 1995 | AH10: 1996 | AI10: 1997 | AJ10: 1998 | AK10: 1999 | AL10: 2000 | AM10: 2001 | AN10: 2002 | AO10: 2003 | AP10: 2004 | AQ10: 2005 | AR10: 2006 | AS10: 2007 | AT10: 2008 | AU10: 2009 | AV10: 2010 | AW10: 2011 | AX10: 2012 | AY10: 2013 | AZ10: 2014 | BA10: 2015 | BB10: 2016 | BC10: 2017 | BD10: 2018 | BE10: 2019 | BF10: 2020 | BG10: 2021 | BH10: 2022 | BI10: 2023 | BJ10: 2024 | BK10: 2025 | BL10: 2026 | BM10: 2027 | BN10: 2028 | BO10: 2029 | BP10: 2030 | BQ10: 2031 | BR10: 2032 | BS10: 2033 | BT10: 2034
R11: PRE-Case UEC | S11: =SUMPRODUCT('Efficiency Dist'!G75:G83,'UEC Development'!$E$50:$E$58) -> 2175.54 | T11: =SUMPRODUCT('Efficiency Dist'!H75:H83,'UEC Development'!$E$50:$E$58) -> 2175.54 | U11: =SUMPRODUCT('Efficiency Dist'!I75:I83,'UEC Development'!$E$50:$E$58) -> 2175.54 | V11: =SUMPRODUCT('Efficiency Dist'!J75:J83,'UEC Development'!$E$50:$E$58) -> 2175.54 | W11: =SUMPRODUCT('Efficiency Dist'!K75:K83,'UEC Development'!$E$50:$E$58) -> 2175.54 | X11: =SUMPRODUCT('Efficiency Dist'!L75:L83,'UEC Development'!$E$50:$E$58) -> 2175.54 | Y11: =SUMPRODUCT('Efficiency Dist'!M75:M83,'UEC Development'!$E$50:$E$58) -> 2175.54 | Z11: =SUMPRODUCT('Efficiency Dist'!N75:N83,'UEC Development'!$E$50:$E$58) -> 2175.54 | AA11: =SUMPRODUCT('Efficiency Dist'!O75:O83,'UEC Development'!$E$50:$E$58) -> 2175.54 | AB11: =SUMPRODUCT('Efficiency Dist'!P75:P83,'UEC Development'!$E$50:$E$58) -> 2175.54 | AC11: =SUMPRODUCT('Efficiency Dist'!Q75:Q83,'UEC Development'!$E$50:$E$58) -> 2175.54 | AD11: =SUMPRODUCT('Efficiency Dist'!R75:R83,'UEC Development'!$E$50:$E$58) -> 2175.54 | AE11: =SUMPRODUCT('Efficiency Dist'!S75:S83,'UEC Development'!$E$50:$E$58) -> 2175.54 | AF11: =SUMPRODUCT('Efficiency Dist'!T75:T83,'UEC Development'!$E$50:$E$58) -> 2175.54 | AG11: =SUMPRODUCT('Efficiency Dist'!U75:U83,'UEC Development'!$E$50:$E$58) -> 2175.54 | AH11: =SUMPRODUCT('Efficiency Dist'!V75:V83,'UEC Development'!$E$50:$E$58) -> 2175.54 | AI11: =SUMPRODUCT('Efficiency Dist'!W75:W83,'UEC Development'!$E$50:$E$58) -> 2175.54 | AJ11: =SUMPRODUCT('Efficiency Dist'!X75:X83,'UEC Development'!$E$50:$E$58) -> 2175.54 | AK11: =SUMPRODUCT('Efficiency Dist'!Y75:Y83,'UEC Development'!$E$50:$E$58) -> 2175.54 | AL11: =SUMPRODUCT('Efficiency Dist'!Z75:Z83,'UEC Development'!$E$50:$E$58) -> 2175.54 | AM11: =SUMPRODUCT('Efficiency Dist'!AA75:AA83,'UEC Development'!$E$50:$E$58) -> 2175.54 | AN11: =SUMPRODUCT('Efficiency Dist'!AB75:AB83,'UEC Development'!$E$50:$E$58) -> 2175.54 | AO11: =SUMPRODUCT('Efficiency Dist'!AC75:AC83,'UEC Development'!$E$50:$E$58) -> 2175.54 | AP11: =SUMPRODUCT('Efficiency Dist'!AD75:AD83,'UEC Development'!$E$50:$E$58) -> 2175.54 | AQ11: =SUMPRODUCT('Efficiency Dist'!AE75:AE83,'UEC Development'!$E$50:$E$58) -> 2175.54 | AR11: =SUMPRODUCT('Efficiency Dist'!AF75:AF83,'UEC Development'!$E$50:$E$58) -> 2175.54 | AS11: =SUMPRODUCT('Efficiency Dist'!AG75:AG83,'UEC Development'!$E$50:$E$58) -> 2175.54 | AT11: =SUMPRODUCT('Efficiency Dist'!AH75:AH83,'UEC Development'!$E$50:$E$58) -> 2175.54 | AU11: =SUMPRODUCT('Efficiency Dist'!AI75:AI83,'UEC Development'!$E$50:$E$58) -> 2175.54 | AV11: =SUMPRODUCT('Efficiency Dist'!AJ75:AJ83,'UEC Development'!$E$50:$E$58) -> 2175.54 | AW11: =SUMPRODUCT('Efficiency Dist'!AK75:AK83,'UEC Development'!$E$50:$E$58) -> 2175.54 | AX11: =SUMPRODUCT('Efficiency Dist'!AL75:AL83,'UEC Development'!$E$50:$E$58) -> 2175.54 | AY11: =SUMPRODUCT('Efficiency Dist'!AM75:AM83,'UEC Development'!$E$50:$E$58) -> 2175.54 | AZ11: =SUMPRODUCT('Efficiency Dist'!AN75:AN83,'UEC Development'!$E$50:$E$58) -> 2175.54 | BA11: =SUMPRODUCT('Efficiency Dist'!AO75:AO83,'UEC Development'!$E$50:$E$58) -> 2175.54 | BB11: =SUMPRODUCT('Efficiency Dist'!AP75:AP83,'UEC Development'!$E$50:$E$58) -> 2175.54 | BC11: =SUMPRODUCT('Efficiency Dist'!AQ75:AQ83,'UEC Development'!$E$50:$E$58) -> 2175.54 | BD11: =SUMPRODUCT('Efficiency Dist'!AR75:AR83,'UEC Development'!$E$50:$E$58) -> 2175.54 | BE11: =SUMPRODUCT('Efficiency Dist'!AS75:AS83,'UEC Development'!$E$50:$E$58) -> 2175.54 | BF11: =SUMPRODUCT('Efficiency Dist'!AT75:AT83,'UEC Development'!$E$50:$E$58) -> 2175.54 | BG11: =SUMPRODUCT('Efficiency Dist'!AU75:AU83,'UEC Development'!$E$50:$E$58) -> 2175.54 | BH11: =SUMPRODUCT('Efficiency Dist'!AV75:AV83,'UEC Development'!$E$50:$E$58) -> 2175.54 | BI11: =SUMPRODUCT('Efficiency Dist'!AW75:AW83,'UEC Development'!$E$50:$E$58) -> 2175.54 | BJ11: =SUMPRODUCT('Efficiency Dist'!AX75:AX83,'UEC Development'!$E$50:$E$58) -> 2175.54 | BK11: =SUMPRODUCT('Efficiency Dist'!AY75:AY83,'UEC Development'!$E$50:$E$58) -> 2175.54 | BL11: =SUMPRODUCT('Efficiency Dist'!AZ75:AZ83,'UEC Development'!$E$50:$E$58) -> 2175.54 | BM11: =SUMPRODUCT('Efficiency Dist'!BA75:BA83,'UEC Development'!$E$50:$E$58) -> 2175.54 | BN11: =SUMPRODUCT('Efficiency Dist'!BB75:BB83,'UEC Development'!$E$50:$E$58) -> 2175.54 | BO11: =SUMPRODUCT('Efficiency Dist'!BC75:BC83,'UEC Development'!$E$50:$E$58) -> 2175.54 | BP11: =SUMPRODUCT('Efficiency Dist'!BD75:BD83,'UEC Development'!$E$50:$E$58) -> 2175.54 | BQ11: =SUMPRODUCT('Efficiency Dist'!BE75:BE83,'UEC Development'!$E$50:$E$58) -> 2175.54 | BR11: =SUMPRODUCT('Efficiency Dist'!BF75:BF83,'UEC Development'!$E$50:$E$58) -> 2175.54 | BS11: =SUMPRODUCT('Efficiency Dist'!BG75:BG83,'UEC Development'!$E$50:$E$58) -> 2175.54 | BT11: =SUMPRODUCT('Efficiency Dist'!BH75:BH83,'UEC Development'!$E$50:$E$58) -> 2175.54
R12: POST-Case UEC | S12: =SUMPRODUCT('Efficiency Dist'!G88:G96,'UEC Development'!$E$50:$E$58) -> 2175.54 | T12: =SUMPRODUCT('Efficiency Dist'!H88:H96,'UEC Development'!$E$50:$E$58) -> 2175.54 | U12: =SUMPRODUCT('Efficiency Dist'!I88:I96,'UEC Development'!$E$50:$E$58) -> 2175.54 | V12: =SUMPRODUCT('Efficiency Dist'!J88:J96,'UEC Development'!$E$50:$E$58) -> 2175.54 | W12: =SUMPRODUCT('Efficiency Dist'!K88:K96,'UEC Development'!$E$50:$E$58) -> 2175.54 | X12: =SUMPRODUCT('Efficiency Dist'!L88:L96,'UEC Development'!$E$50:$E$58) -> 2175.54 | Y12: =SUMPRODUCT('Efficiency Dist'!M88:M96,'UEC Development'!$E$50:$E$58) -> 2175.54 | Z12: =SUMPRODUCT('Efficiency Dist'!N88:N96,'UEC Development'!$E$50:$E$58) -> 2175.54 | AA12: =SUMPRODUCT('Efficiency Dist'!O88:O96,'UEC Development'!$E$50:$E$58) -> 2175.54 | AB12: =SUMPRODUCT('Efficiency Dist'!P88:P96,'UEC Development'!$E$50:$E$58) -> 2175.54 | AC12: =SUMPRODUCT('Efficiency Dist'!Q88:Q96,'UEC Development'!$E$50:$E$58) -> 2175.54 | AD12: =SUMPRODUCT('Efficiency Dist'!R88:R96,'UEC Development'!$E$50:$E$58) -> 2175.54 | AE12: =SUMPRODUCT('Efficiency Dist'!S88:S96,'UEC Development'!$E$50:$E$58) -> 2175.54 | AF12: =SUMPRODUCT('Efficiency Dist'!T88:T96,'UEC Development'!$E$50:$E$58) -> 2175.54 | AG12: =SUMPRODUCT('Efficiency Dist'!U88:U96,'UEC Development'!$E$50:$E$58) -> 2175.54 | AH12: =SUMPRODUCT('Efficiency Dist'!V88:V96,'UEC Development'!$E$50:$E$58) -> 2175.54 | AI12: =SUMPRODUCT('Efficiency Dist'!W88:W96,'UEC Development'!$E$50:$E$58) -> 2175.54 | AJ12: =SUMPRODUCT('Efficiency Dist'!X88:X96,'UEC Development'!$E$50:$E$58) -> 2175.54 | AK12: =SUMPRODUCT('Efficiency Dist'!Y88:Y96,'UEC Development'!$E$50:$E$58) -> 2175.54 | AL12: =SUMPRODUCT('Efficiency Dist'!Z88:Z96,'UEC Development'!$E$50:$E$58) -> 2175.54 | AM12: =SUMPRODUCT('Efficiency Dist'!AA88:AA96,'UEC Development'!$E$50:$E$58) -> 2175.54 | AN12: =SUMPRODUCT('Efficiency Dist'!AB88:AB96,'UEC Development'!$E$50:$E$58) -> 2175.54 | AO12: =SUMPRODUCT('Efficiency Dist'!AC88:AC96,'UEC Development'!$E$50:$E$58) -> 2175.54 | AP12: =SUMPRODUCT('Efficiency Dist'!AD88:AD96,'UEC Development'!$E$50:$E$58) -> 2175.54 | AQ12: =SUMPRODUCT('Efficiency Dist'!AE88:AE96,'UEC Development'!$E$50:$E$58) -> 2175.54 | AR12: =SUMPRODUCT('Efficiency Dist'!AF88:AF96,'UEC Development'!$E$50:$E$58) -> 2175.54 | AS12: =SUMPRODUCT('Efficiency Dist'!AG88:AG96,'UEC Development'!$E$50:$E$58) -> 2175.54 | AT12: =SUMPRODUCT('Efficiency Dist'!AH88:AH96,'UEC Development'!$E$50:$E$58) -> 2175.54 | AU12: =SUMPRODUCT('Efficiency Dist'!AI88:AI96,'UEC Development'!$E$50:$E$58) -> 2175.54 | AV12: =SUMPRODUCT('Efficiency Dist'!AJ88:AJ96,'UEC Development'!$E$50:$E$58) -> 2175.54 | AW12: =SUMPRODUCT('Efficiency Dist'!AK88:AK96,'UEC Development'!$E$50:$E$58) -> 2175.54 | AX12: =SUMPRODUCT('Efficiency Dist'!AL88:AL96,'UEC Development'!$E$50:$E$58) -> 2175.54 | AY12: =SUMPRODUCT('Efficiency Dist'!AM88:AM96,'UEC Development'!$E$50:$E$58) -> 2175.54 | AZ12: =SUMPRODUCT('Efficiency Dist'!AN88:AN96,'UEC Development'!$E$50:$E$58) -> 2175.54 | BA12: =SUMPRODUCT('Efficiency Dist'!AO88:AO96,'UEC Development'!$E$50:$E$58) -> 1964.86 | BB12: =SUMPRODUCT('Efficiency Dist'!AP88:AP96,'UEC Development'!$E$50:$E$58) -> 1964.86 | BC12: =SUMPRODUCT('Efficiency Dist'!AQ88:AQ96,'UEC Development'!$E$50:$E$58) -> 1964.86 | BD12: =SUMPRODUCT('Efficiency Dist'!AR88:AR96,'UEC Development'!$E$50:$E$58) -> 1964.86 | BE12: =SUMPRODUCT('Efficiency Dist'!AS88:AS96,'UEC Development'!$E$50:$E$58) -> 1964.86 | BF12: =SUMPRODUCT('Efficiency Dist'!AT88:AT96,'UEC Development'!$E$50:$E$58) -> 1964.86 | BG12: =SUMPRODUCT('Efficiency Dist'!AU88:AU96,'UEC Development'!$E$50:$E$58) -> 1964.86 | BH12: =SUMPRODUCT('Efficiency Dist'!AV88:AV96,'UEC Development'!$E$50:$E$58) -> 1964.86 | BI12: =SUMPRODUCT('Efficiency Dist'!AW88:AW96,'UEC Development'!$E$50:$E$58) -> 1964.86 | BJ12: =SUMPRODUCT('Efficiency Dist'!AX88:AX96,'UEC Development'!$E$50:$E$58) -> 1964.86 | BK12: =SUMPRODUCT('Efficiency Dist'!AY88:AY96,'UEC Development'!$E$50:$E$58) -> 1964.86 | BL12: =SUMPRODUCT('Efficiency Dist'!AZ88:AZ96,'UEC Development'!$E$50:$E$58) -> 1964.86 | BM12: =SUMPRODUCT('Efficiency Dist'!BA88:BA96,'UEC Development'!$E$50:$E$58) -> 1964.86 | BN12: =SUMPRODUCT('Efficiency Dist'!BB88:BB96,'UEC Development'!$E$50:$E$58) -> 1964.86 | BO12: =SUMPRODUCT('Efficiency Dist'!BC88:BC96,'UEC Development'!$E$50:$E$58) -> 1964.86 | BP12: =SUMPRODUCT('Efficiency Dist'!BD88:BD96,'UEC Development'!$E$50:$E$58) -> 1964.86 | BQ12: =SUMPRODUCT('Efficiency Dist'!BE88:BE96,'UEC Development'!$E$50:$E$58) -> 1964.86 | BR12: =SUMPRODUCT('Efficiency Dist'!BF88:BF96,'UEC Development'!$E$50:$E$58) -> 1964.86 | BS12: =SUMPRODUCT('Efficiency Dist'!BG88:BG96,'UEC Development'!$E$50:$E$58) -> 1964.86 | BT12: =SUMPRODUCT('Efficiency Dist'!BH88:BH96,'UEC Development'!$E$50:$E$58) -> 1964.86
R15: Installed UEC (Vintage Weighted Average)
S16: 1981 | T16: =S16+1 -> 1982 | U16: =T16+1 -> 1983 | V16: 1984 | W16: 1985 | X16: 1986 | Y16: 1987 | Z16: 1988 | AA16: 1989 | AB16: 1990 | AC16: 1991 | AD16: 1992 | AE16: 1993 | AF16: 1994 | AG16: 1995 | AH16: 1996 | AI16: 1997 | AJ16: 1998 | AK16: 1999 | AL16: 2000 | AM16: 2001 | AN16: 2002 | AO16: 2003 | AP16: 2004 | AQ16: 2005 | AR16: 2006 | AS16: 2007 | AT16: 2008 | AU16: 2009 | AV16: 2010 | AW16: 2011 | AX16: 2012 | AY16: 2013 | AZ16: 2014 | BA16: 2015 | BB16: 2016 | BC16: 2017 | BD16: 2018 | BE16: 2019 | BF16: 2020 | BG16: 2021 | BH16: 2022 | BI16: 2023 | BJ16: 2024 | BK16: 2025 | BL16: 2026 | BM16: 2027 | BN16: 2028 | BO16: 2029 | BP16: 2030 | BQ16: 2031 | BR16: 2032 | BS16: 2033 | BT16: 2034
R17: PRE-Case UEC | S17: =SUMPRODUCT(OFFSET('Stock Model - CSCR'!$C$14,MATCH(S$16,$S$16:$BT$16,0),1,1,18)/SUM(OFFSET('Stock Model - CSCR'!$C$14,MATCH(S$16,$S$16:$BT$16,0),1,1,18)),OFFSET(S$10,1,-18+1,1,18)) -> 2175.54 | T17: =SUMPRODUCT(OFFSET('Stock Model - CSCR'!$C$14,MATCH(T$16,$S$16:$BT$16,0),1,1,18)/SUM(OFFSET('Stock Model - CSCR'!$C$14,MATCH(T$16,$S$16:$BT$16,0),1,1,18)),OFFSET(T$10,1,-18+1,1,18)) -> 2175.54 | U17: =SUMPRODUCT(OFFSET('Stock Model - CSCR'!$C$14,MATCH(U$16,$S$16:$BT$16,0),1,1,18)/SUM(OFFSET('Stock Model - CSCR'!$C$14,MATCH(U$16,$S$16:$BT$16,0),1,1,18)),OFFSET(U$10,1,-18+1,1,18)) -> 2175.54 | V17: =SUMPRODUCT(OFFSET('Stock Model - CSCR'!$C$14,MATCH(V$16,$S$16:$BT$16,0),1,1,18)/SUM(OFFSET('Stock Model - CSCR'!$C$14,MATCH(V$16,$S$16:$BT$16,0),1,1,18)),OFFSET(V$10,1,-18+1,1,18)) -> 2175.54 | W17: =SUMPRODUCT(OFFSET('Stock Model - CSCR'!$C$14,MATCH(W$16,$S$16:$BT$16,0),1,1,18)/SUM(OFFSET('Stock Model - CSCR'!$C$14,MATCH(W$16,$S$16:$BT$16,0),1,1,18)),OFFSET(W$10,1,-18+1,1,18)) -> 2175.54 | X17: =SUMPRODUCT(OFFSET('Stock Model - CSCR'!$C$14,MATCH(X$16,$S$16:$BT$16,0),1,1,18)/SUM(OFFSET('Stock Model - CSCR'!$C$14,MATCH(X$16,$S$16:$BT$16,0),1,1,18)),OFFSET(X$10,1,-18+1,1,18)) -> 2175.54 | Y17: =SUMPRODUCT(OFFSET('Stock Model - CSCR'!$C$14,MATCH(Y$16,$S$16:$BT$16,0),1,1,18)/SUM(OFFSET('Stock Model - CSCR'!$C$14,MATCH(Y$16,$S$16:$BT$16,0),1,1,18)),OFFSET(Y$10,1,-18+1,1,18)) -> 2175.54 | Z17: =SUMPRODUCT(OFFSET('Stock Model - CSCR'!$C$14,MATCH(Z$16,$S$16:$BT$16,0),1,1,18)/SUM(OFFSET('Stock Model - CSCR'!$C$14,MATCH(Z$16,$S$16:$BT$16,0),1,1,18)),OFFSET(Z$10,1,-18+1,1,18)) -> 2175.54 | AA17: =SUMPRODUCT(OFFSET('Stock Model - CSCR'!$C$14,MATCH(AA$16,$S$16:$BT$16,0),1,1,18)/SUM(OFFSET('Stock Model - CSCR'!$C$14,MATCH(AA$16,$S$16:$BT$16,0),1,1,18)),OFFSET(AA$10,1,-18+1,1,18)) -> 2175.54 | AB17: =SUMPRODUCT(OFFSET('Stock Model - CSCR'!$C$14,MATCH(AB$16,$S$16:$BT$16,0),1,1,18)/SUM(OFFSET('Stock Model - CSCR'!$C$14,MATCH(AB$16,$S$16:$BT$16,0),1,1,18)),OFFSET(AB$10,1,-18+1,1,18)) -> 2175.54 | AC17: =SUMPRODUCT(OFFSET('Stock Model - CSCR'!$C$14,MATCH(AC$16,$S$16:$BT$16,0),1,1,18)/SUM(OFFSET('Stock Model - CSCR'!$C$14,MATCH(AC$16,$S$16:$BT$16,0),1,1,18)),OFFSET(AC$10,1,-18+1,1,18)) -> 2175.54 | AD17: =SUMPRODUCT(OFFSET('Stock Model - CSCR'!$C$14,MATCH(AD$16,$S$16:$BT$16,0),1,1,18)/SUM(OFFSET('Stock Model - CSCR'!$C$14,MATCH(AD$16,$S$16:$BT$16,0),1,1,18)),OFFSET(AD$10,1,-18+1,1,18)) -> 2175.54 | AE17: =SUMPRODUCT(OFFSET('Stock Model - CSCR'!$C$14,MATCH(AE$16,$S$16:$BT$16,0),1,1,18)/SUM(OFFSET('Stock Model - CSCR'!$C$14,MATCH(AE$16,$S$16:$BT$16,0),1,1,18)),OFFSET(AE$10,1,-18+1,1,18)) -> 2175.54 | AF17: =SUMPRODUCT(OFFSET('Stock Model - CSCR'!$C$14,MATCH(AF$16,$S$16:$BT$16,0),1,1,18)/SUM(OFFSET('Stock Model - CSCR'!$C$14,MATCH(AF$16,$S$16:$BT$16,0),1,1,18)),OFFSET(AF$10,1,-18+1,1,18)) -> 2175.54 | AG17: =SUMPRODUCT(OFFSET('Stock Model - CSCR'!$C$14,MATCH(AG$16,$S$16:$BT$16,0),1,1,18)/SUM(OFFSET('Stock Model - CSCR'!$C$14,MATCH(AG$16,$S$16:$BT$16,0),1,1,18)),OFFSET(AG$10,1,-18+1,1,18)) -> 2175.54 | AH17: =SUMPRODUCT(OFFSET('Stock Model - CSCR'!$C$14,MATCH(AH$16,$S$16:$BT$16,0),1,1,18)/SUM(OFFSET('Stock Model - CSCR'!$C$14,MATCH(AH$16,$S$16:$BT$16,0),1,1,18)),OFFSET(AH$10,1,-18+1,1,18)) -> 2175.54 | AI17: =SUMPRODUCT(OFFSET('Stock Model - CSCR'!$C$14,MATCH(AI$16,$S$16:$BT$16,0),1,1,18)/SUM(OFFSET('Stock Model - CSCR'!$C$14,MATCH(AI$16,$S$16:$BT$16,0),1,1,18)),OFFSET(AI$10,1,-18+1,1,18)) -> 2175.54 | AJ17: =SUMPRODUCT(OFFSET('Stock Model - CSCR'!$C$14,MATCH(AJ$16,$S$16:$BT$16,0),1,1,18)/SUM(OFFSET('Stock Model - CSCR'!$C$14,MATCH(AJ$16,$S$16:$BT$16,0),1,1,18)),OFFSET(AJ$10,1,-18+1,1,18)) -> 2175.54 | AK17: =SUMPRODUCT(OFFSET('Stock Model - CSCR'!$C$14,MATCH(AK$16,$S$16:$BT$16,0),1,1,18)/SUM(OFFSET('Stock Model - CSCR'!$C$14,MATCH(AK$16,$S$16:$BT$16,0),1,1,18)),OFFSET(AK$10,1,-18+1,1,18)) -> 2175.54 | AL17: =SUMPRODUCT(OFFSET('Stock Model - CSCR'!$C$14,MATCH(AL$16,$S$16:$BT$16,0),1,1,18)/SUM(OFFSET('Stock Model - CSCR'!$C$14,MATCH(AL$16,$S$16:$BT$16,0),1,1,18)),OFFSET(AL$10,1,-18+1,1,18)) -> 2175.54 | AM17: =SUMPRODUCT(OFFSET('Stock Model - CSCR'!$C$14,MATCH(AM$16,$S$16:$BT$16,0),1,1,18)/SUM(OFFSET('Stock Model - CSCR'!$C$14,MATCH(AM$16,$S$16:$BT$16,0),1,1,18)),OFFSET(AM$10,1,-18+1,1,18)) -> 2175.54 | AN17: =SUMPRODUCT(OFFSET('Stock Model - CSCR'!$C$14,MATCH(AN$16,$S$16:$BT$16,0),1,1,18)/SUM(OFFSET('Stock Model - CSCR'!$C$14,MATCH(AN$16,$S$16:$BT$16,0),1,1,18)),OFFSET(AN$10,1,-18+1,1,18)) -> 2175.54 | AO17: =SUMPRODUCT(OFFSET('Stock Model - CSCR'!$C$14,MATCH(AO$16,$S$16:$BT$16,0),1,1,18)/SUM(OFFSET('Stock Model - CSCR'!$C$14,MATCH(AO$16,$S$16:$BT$16,0),1,1,18)),OFFSET(AO$10,1,-18+1,1,18)) -> 2175.54 | AP17: =SUMPRODUCT(OFFSET('Stock Model - CSCR'!$C$14,MATCH(AP$16,$S$16:$BT$16,0),1,1,18)/SUM(OFFSET('Stock Model - CSCR'!$C$14,MATCH(AP$16,$S$16:$BT$16,0),1,1,18)),OFFSET(AP$10,1,-18+1,1,18)) -> 2175.54 | AQ17: =SUMPRODUCT(OFFSET('Stock Model - CSCR'!$C$14,MATCH(AQ$16,$S$16:$BT$16,0),1,1,18)/SUM(OFFSET('Stock Model - CSCR'!$C$14,MATCH(AQ$16,$S$16:$BT$16,0),1,1,18)),OFFSET(AQ$10,1,-18+1,1,18)) -> 2175.54 | AR17: =SUMPRODUCT(OFFSET('Stock Model - CSCR'!$C$14,MATCH(AR$16,$S$16:$BT$16,0),1,1,18)/SUM(OFFSET('Stock Model - CSCR'!$C$14,MATCH(AR$16,$S$16:$BT$16,0),1,1,18)),OFFSET(AR$10,1,-18+1,1,18)) -> 2175.54 | AS17: =SUMPRODUCT(OFFSET('Stock Model - CSCR'!$C$14,MATCH(AS$16,$S$16:$BT$16,0),1,1,18)/SUM(OFFSET('Stock Model - CSCR'!$C$14,MATCH(AS$16,$S$16:$BT$16,0),1,1,18)),OFFSET(AS$10,1,-18+1,1,18)) -> 2175.54 | AT17: =SUMPRODUCT(OFFSET('Stock Model - CSCR'!$C$14,MATCH(AT$16,$S$16:$BT$16,0),1,1,18)/SUM(OFFSET('Stock Model - CSCR'!$C$14,MATCH(AT$16,$S$16:$BT$16,0),1,1,18)),OFFSET(AT$10,1,-18+1,1,18)) -> 2175.54 | AU17: =SUMPRODUCT(OFFSET('Stock Model - CSCR'!$C$14,MATCH(AU$16,$S$16:$BT$16,0),1,1,18)/SUM(OFFSET('Stock Model - CSCR'!$C$14,MATCH(AU$16,$S$16:$BT$16,0),1,1,18)),OFFSET(AU$10,1,-18+1,1,18)) -> 2175.54 | AV17: =SUMPRODUCT(OFFSET('Stock Model - CSCR'!$C$14,MATCH(AV$16,$S$16:$BT$16,0),1,1,18)/SUM(OFFSET('Stock Model - CSCR'!$C$14,MATCH(AV$16,$S$16:$BT$16,0),1,1,18)),OFFSET(AV$10,1,-18+1,1,18)) -> 2175.54 | AW17: =SUMPRODUCT(OFFSET('Stock Model - CSCR'!$C$14,MATCH(AW$16,$S$16:$BT$16,0),1,1,18)/SUM(OFFSET('Stock Model - CSCR'!$C$14,MATCH(AW$16,$S$16:$BT$16,0),1,1,18)),OFFSET(AW$10,1,-18+1,1,18)) -> 2175.54 | AX17: =SUMPRODUCT(OFFSET('Stock Model - CSCR'!$C$14,MATCH(AX$16,$S$16:$BT$16,0),1,1,18)/SUM(OFFSET('Stock Model - CSCR'!$C$14,MATCH(AX$16,$S$16:$BT$16,0),1,1,18)),OFFSET(AX$10,1,-18+1,1,18)) -> 2175.54 | AY17: =SUMPRODUCT(OFFSET('Stock Model - CSCR'!$C$14,MATCH(AY$16,$S$16:$BT$16,0),1,1,18)/SUM(OFFSET('Stock Model - CSCR'!$C$14,MATCH(AY$16,$S$16:$BT$16,0),1,1,18)),OFFSET(AY$10,1,-18+1,1,18)) -> 2175.54 | AZ17: =SUMPRODUCT(OFFSET('Stock Model - CSCR'!$C$14,MATCH(AZ$16,$S$16:$BT$16,0),1,1,18)/SUM(OFFSET('Stock Model - CSCR'!$C$14,MATCH(AZ$16,$S$16:$BT$16,0),1,1,18)),OFFSET(AZ$10,1,-18+1,1,18)) -> 2175.54 | BA17: =SUMPRODUCT(OFFSET('Stock Model - CSCR'!$C$14,MATCH(BA$16,$S$16:$BT$16,0),1,1,18)/SUM(OFFSET('Stock Model - CSCR'!$C$14,MATCH(BA$16,$S$16:$BT$16,0),1,1,18)),OFFSET(BA$10,1,-18+1,1,18)) -> 2175.54 | BB17: =SUMPRODUCT(OFFSET('Stock Model - CSCR'!$C$14,MATCH(BB$16,$S$16:$BT$16,0),1,1,18)/SUM(OFFSET('Stock Model - CSCR'!$C$14,MATCH(BB$16,$S$16:$BT$16,0),1,1,18)),OFFSET(BB$10,1,-18+1,1,18)) -> 2175.54 | BC17: =SUMPRODUCT(OFFSET('Stock Model - CSCR'!$C$14,MATCH(BC$16,$S$16:$BT$16,0),1,1,18)/SUM(OFFSET('Stock Model - CSCR'!$C$14,MATCH(BC$16,$S$16:$BT$16,0),1,1,18)),OFFSET(BC$10,1,-18+1,1,18)) -> 2175.54 | BD17: =SUMPRODUCT(OFFSET('Stock Model - CSCR'!$C$14,MATCH(BD$16,$S$16:$BT$16,0),1,1,18)/SUM(OFFSET('Stock Model - CSCR'!$C$14,MATCH(BD$16,$S$16:$BT$16,0),1,1,18)),OFFSET(BD$10,1,-18+1,1,18)) -> 2175.54 | BE17: =SUMPRODUCT(OFFSET('Stock Model - CSCR'!$C$14,MATCH(BE$16,$S$16:$BT$16,0),1,1,18)/SUM(OFFSET('Stock Model - CSCR'!$C$14,MATCH(BE$16,$S$16:$BT$16,0),1,1,18)),OFFSET(BE$10,1,-18+1,1,18)) -> 2175.54 | BF17: =SUMPRODUCT(OFFSET('Stock Model - CSCR'!$C$14,MATCH(BF$16,$S$16:$BT$16,0),1,1,18)/SUM(OFFSET('Stock Model - CSCR'!$C$14,MATCH(BF$16,$S$16:$BT$16,0),1,1,18)),OFFSET(BF$10,1,-18+1,1,18)) -> 2175.54 | BG17: =SUMPRODUCT(OFFSET('Stock Model - CSCR'!$C$14,MATCH(BG$16,$S$16:$BT$16,0),1,1,18)/SUM(OFFSET('Stock Model - CSCR'!$C$14,MATCH(BG$16,$S$16:$BT$16,0),1,1,18)),OFFSET(BG$10,1,-18+1,1,18)) -> 2175.54 | BH17: =SUMPRODUCT(OFFSET('Stock Model - CSCR'!$C$14,MATCH(BH$16,$S$16:$BT$16,0),1,1,18)/SUM(OFFSET('Stock Model - CSCR'!$C$14,MATCH(BH$16,$S$16:$BT$16,0),1,1,18)),OFFSET(BH$10,1,-18+1,1,18)) -> 2175.54 | BI17: =SUMPRODUCT(OFFSET('Stock Model - CSCR'!$C$14,MATCH(BI$16,$S$16:$BT$16,0),1,1,18)/SUM(OFFSET('Stock Model - CSCR'!$C$14,MATCH(BI$16,$S$16:$BT$16,0),1,1,18)),OFFSET(BI$10,1,-18+1,1,18)) -> 2175.54 | BJ17: =SUMPRODUCT(OFFSET('Stock Model - CSCR'!$C$14,MATCH(BJ$16,$S$16:$BT$16,0),1,1,18)/SUM(OFFSET('Stock Model - CSCR'!$C$14,MATCH(BJ$16,$S$16:$BT$16,0),1,1,18)),OFFSET(BJ$10,1,-18+1,1,18)) -> 2175.54 | BK17: =SUMPRODUCT(OFFSET('Stock Model - CSCR'!$C$14,MATCH(BK$16,$S$16:$BT$16,0),1,1,18)/SUM(OFFSET('Stock Model - CSCR'!$C$14,MATCH(BK$16,$S$16:$BT$16,0),1,1,18)),OFFSET(BK$10,1,-18+1,1,18)) -> 2175.54 | BL17: =SUMPRODUCT(OFFSET('Stock Model - CSCR'!$C$14,MATCH(BL$16,$S$16:$BT$16,0),1,1,18)/SUM(OFFSET('Stock Model - CSCR'!$C$14,MATCH(BL$16,$S$16:$BT$16,0),1,1,18)),OFFSET(BL$10,1,-18+1,1,18)) -> 2175.54 | BM17: =SUMPRODUCT(OFFSET('Stock Model - CSCR'!$C$14,MATCH(BM$16,$S$16:$BT$16,0),1,1,18)/SUM(OFFSET('Stock Model - CSCR'!$C$14,MATCH(BM$16,$S$16:$BT$16,0),1,1,18)),OFFSET(BM$10,1,-18+1,1,18)) -> 2175.54 | BN17: =SUMPRODUCT(OFFSET('Stock Model - CSCR'!$C$14,MATCH(BN$16,$S$16:$BT$16,0),1,1,18)/SUM(OFFSET('Stock Model - CSCR'!$C$14,MATCH(BN$16,$S$16:$BT$16,0),1,1,18)),OFFSET(BN$10,1,-18+1,1,18)) -> 2175.54 | BO17: =SUMPRODUCT(OFFSET('Stock Model - CSCR'!$C$14,MATCH(BO$16,$S$16:$BT$16,0),1,1,18)/SUM(OFFSET('Stock Model - CSCR'!$C$14,MATCH(BO$16,$S$16:$BT$16,0),1,1,18)),OFFSET(BO$10,1,-18+1,1,18)) -> 2175.54 | BP17: =SUMPRODUCT(OFFSET('Stock Model - CSCR'!$C$14,MATCH(BP$16,$S$16:$BT$16,0),1,1,18)/SUM(OFFSET('Stock Model - CSCR'!$C$14,MATCH(BP$16,$S$16:$BT$16,0),1,1,18)),OFFSET(BP$10,1,-18+1,1,18)) -> 2175.54 | BQ17: =SUMPRODUCT(OFFSET('Stock Model - CSCR'!$C$14,MATCH(BQ$16,$S$16:$BT$16,0),1,1,18)/SUM(OFFSET('Stock Model - CSCR'!$C$14,MATCH(BQ$16,$S$16:$BT$16,0),1,1,18)),OFFSET(BQ$10,1,-18+1,1,18)) -> 2175.54 | BR17: =SUMPRODUCT(OFFSET('Stock Model - CSCR'!$C$14,MATCH(BR$16,$S$16:$BT$16,0),1,1,18)/SUM(OFFSET('Stock Model - CSCR'!$C$14,MATCH(BR$16,$S$16:$BT$16,0),1,1,18)),OFFSET(BR$10,1,-18+1,1,18)) -> 2175.54 | BS17: =SUMPRODUCT(OFFSET('Stock Model - CSCR'!$C$14,MATCH(BS$16,$S$16:$BT$16,0),1,1,18)/SUM(OFFSET('Stock Model - CSCR'!$C$14,MATCH(BS$16,$S$16:$BT$16,0),1,1,18)),OFFSET(BS$10,1,-18+1,1,18)) -> 2175.54 | BT17: =SUMPRODUCT(OFFSET('Stock Model - CSCR'!$C$14,MATCH(BT$16,$S$16:$BT$16,0),1,1,18)/SUM(OFFSET('Stock Model - CSCR'!$C$14,MATCH(BT$16,$S$16:$BT$16,0),1,1,18)),OFFSET(BT$10,1,-18+1,1,18)) -> 2175.54
R18: POST-Case UEC | S18: =SUMPRODUCT(OFFSET('Stock Model - CSCR'!$C$14,MATCH(S$16,$S$16:$BT$16,0),1,1,18)/SUM(OFFSET('Stock Model - CSCR'!$C$14,MATCH(S$16,$S$16:$BT$16,0),1,1,18)),OFFSET(S$10,2,-18+1,1,18)) -> 2175.54 | T18: =SUMPRODUCT(OFFSET('Stock Model - CSCR'!$C$14,MATCH(T$16,$S$16:$BT$16,0),1,1,18)/SUM(OFFSET('Stock Model - CSCR'!$C$14,MATCH(T$16,$S$16:$BT$16,0),1,1,18)),OFFSET(T$10,2,-18+1,1,18)) -> 2175.54 | U18: =SUMPRODUCT(OFFSET('Stock Model - CSCR'!$C$14,MATCH(U$16,$S$16:$BT$16,0),1,1,18)/SUM(OFFSET('Stock Model - CSCR'!$C$14,MATCH(U$16,$S$16:$BT$16,0),1,1,18)),OFFSET(U$10,2,-18+1,1,18)) -> 2175.54 | V18: =SUMPRODUCT(OFFSET('Stock Model - CSCR'!$C$14,MATCH(V$16,$S$16:$BT$16,0),1,1,18)/SUM(OFFSET('Stock Model - CSCR'!$C$14,MATCH(V$16,$S$16:$BT$16,0),1,1,18)),OFFSET(V$10,2,-18+1,1,18)) -> 2175.54 | W18: =SUMPRODUCT(OFFSET('Stock Model - CSCR'!$C$14,MATCH(W$16,$S$16:$BT$16,0),1,1,18)/SUM(OFFSET('Stock Model - CSCR'!$C$14,MATCH(W$16,$S$16:$BT$16,0),1,1,18)),OFFSET(W$10,2,-18+1,1,18)) -> 2175.54 | X18: =SUMPRODUCT(OFFSET('Stock Model - CSCR'!$C$14,MATCH(X$16,$S$16:$BT$16,0),1,1,18)/SUM(OFFSET('Stock Model - CSCR'!$C$14,MATCH(X$16,$S$16:$BT$16,0),1,1,18)),OFFSET(X$10,2,-18+1,1,18)) -> 2175.54 | Y18: =SUMPRODUCT(OFFSET('Stock Model - CSCR'!$C$14,MATCH(Y$16,$S$16:$BT$16,0),1,1,18)/SUM(OFFSET('Stock Model - CSCR'!$C$14,MATCH(Y$16,$S$16:$BT$16,0),1,1,18)),OFFSET(Y$10,2,-18+1,1,18)) -> 2175.54 | Z18: =SUMPRODUCT(OFFSET('Stock Model - CSCR'!$C$14,MATCH(Z$16,$S$16:$BT$16,0),1,1,18)/SUM(OFFSET('Stock Model - CSCR'!$C$14,MATCH(Z$16,$S$16:$BT$16,0),1,1,18)),OFFSET(Z$10,2,-18+1,1,18)) -> 2175.54 | AA18: =SUMPRODUCT(OFFSET('Stock Model - CSCR'!$C$14,MATCH(AA$16,$S$16:$BT$16,0),1,1,18)/SUM(OFFSET('Stock Model - CSCR'!$C$14,MATCH(AA$16,$S$16:$BT$16,0),1,1,18)),OFFSET(AA$10,2,-18+1,1,18)) -> 2175.54 | AB18: =SUMPRODUCT(OFFSET('Stock Model - CSCR'!$C$14,MATCH(AB$16,$S$16:$BT$16,0),1,1,18)/SUM(OFFSET('Stock Model - CSCR'!$C$14,MATCH(AB$16,$S$16:$BT$16,0),1,1,18)),OFFSET(AB$10,2,-18+1,1,18)) -> 2175.54 | AC18: =SUMPRODUCT(OFFSET('Stock Model - CSCR'!$C$14,MATCH(AC$16,$S$16:$BT$16,0),1,1,18)/SUM(OFFSET('Stock Model - CSCR'!$C$14,MATCH(AC$16,$S$16:$BT$16,0),1,1,18)),OFFSET(AC$10,2,-18+1,1,18)) -> 2175.54 | AD18: =SUMPRODUCT(OFFSET('Stock Model - CSCR'!$C$14,MATCH(AD$16,$S$16:$BT$16,0),1,1,18)/SUM(OFFSET('Stock Model - CSCR'!$C$14,MATCH(AD$16,$S$16:$BT$16,0),1,1,18)),OFFSET(AD$10,2,-18+1,1,18)) -> 2175.54 | AE18: =SUMPRODUCT(OFFSET('Stock Model - CSCR'!$C$14,MATCH(AE$16,$S$16:$BT$16,0),1,1,18)/SUM(OFFSET('Stock Model - CSCR'!$C$14,MATCH(AE$16,$S$16:$BT$16,0),1,1,18)),OFFSET(AE$10,2,-18+1,1,18)) -> 2175.54 | AF18: =SUMPRODUCT(OFFSET('Stock Model - CSCR'!$C$14,MATCH(AF$16,$S$16:$BT$16,0),1,1,18)/SUM(OFFSET('Stock Model - CSCR'!$C$14,MATCH(AF$16,$S$16:$BT$16,0),1,1,18)),OFFSET(AF$10,2,-18+1,1,18)) -> 2175.54 | AG18: =SUMPRODUCT(OFFSET('Stock Model - CSCR'!$C$14,MATCH(AG$16,$S$16:$BT$16,0),1,1,18)/SUM(OFFSET('Stock Model - CSCR'!$C$14,MATCH(AG$16,$S$16:$BT$16,0),1,1,18)),OFFSET(AG$10,2,-18+1,1,18)) -> 2175.54 | AH18: =SUMPRODUCT(OFFSET('Stock Model - CSCR'!$C$14,MATCH(AH$16,$S$16:$BT$16,0),1,1,18)/SUM(OFFSET('Stock Model - CSCR'!$C$14,MATCH(AH$16,$S$16:$BT$16,0),1,1,18)),OFFSET(AH$10,2,-18+1,1,18)) -> 2175.54 | AI18: =SUMPRODUCT(OFFSET('Stock Model - CSCR'!$C$14,MATCH(AI$16,$S$16:$BT$16,0),1,1,18)/SUM(OFFSET('Stock Model - CSCR'!$C$14,MATCH(AI$16,$S$16:$BT$16,0),1,1,18)),OFFSET(AI$10,2,-18+1,1,18)) -> 2175.54 | AJ18: =SUMPRODUCT(OFFSET('Stock Model - CSCR'!$C$14,MATCH(AJ$16,$S$16:$BT$16,0),1,1,18)/SUM(OFFSET('Stock Model - CSCR'!$C$14,MATCH(AJ$16,$S$16:$BT$16,0),1,1,18)),OFFSET(AJ$10,2,-18+1,1,18)) -> 2175.54 | AK18: =SUMPRODUCT(OFFSET('Stock Model - CSCR'!$C$14,MATCH(AK$16,$S$16:$BT$16,0),1,1,18)/SUM(OFFSET('Stock Model - CSCR'!$C$14,MATCH(AK$16,$S$16:$BT$16,0),1,1,18)),OFFSET(AK$10,2,-18+1,1,18)) -> 2175.54 | AL18: =SUMPRODUCT(OFFSET('Stock Model - CSCR'!$C$14,MATCH(AL$16,$S$16:$BT$16,0),1,1,18)/SUM(OFFSET('Stock Model - CSCR'!$C$14,MATCH(AL$16,$S$16:$BT$16,0),1,1,18)),OFFSET(AL$10,2,-18+1,1,18)) -> 2175.54 | AM18: =SUMPRODUCT(OFFSET('Stock Model - CSCR'!$C$14,MATCH(AM$16,$S$16:$BT$16,0),1,1,18)/SUM(OFFSET('Stock Model - CSCR'!$C$14,MATCH(AM$16,$S$16:$BT$16,0),1,1,18)),OFFSET(AM$10,2,-18+1,1,18)) -> 2175.54 | AN18: =SUMPRODUCT(OFFSET('Stock Model - CSCR'!$C$14,MATCH(AN$16,$S$16:$BT$16,0),1,1,18)/SUM(OFFSET('Stock Model - CSCR'!$C$14,MATCH(AN$16,$S$16:$BT$16,0),1,1,18)),OFFSET(AN$10,2,-18+1,1,18)) -> 2175.54 | AO18: =SUMPRODUCT(OFFSET('Stock Model - CSCR'!$C$14,MATCH(AO$16,$S$16:$BT$16,0),1,1,18)/SUM(OFFSET('Stock Model - CSCR'!$C$14,MATCH(AO$16,$S$16:$BT$16,0),1,1,18)),OFFSET(AO$10,2,-18+1,1,18)) -> 2175.54 | AP18: =SUMPRODUCT(OFFSET('Stock Model - CSCR'!$C$14,MATCH(AP$16,$S$16:$BT$16,0),1,1,18)/SUM(OFFSET('Stock Model - CSCR'!$C$14,MATCH(AP$16,$S$16:$BT$16,0),1,1,18)),OFFSET(AP$10,2,-18+1,1,18)) -> 2175.54 | AQ18: =SUMPRODUCT(OFFSET('Stock Model - CSCR'!$C$14,MATCH(AQ$16,$S$16:$BT$16,0),1,1,18)/SUM(OFFSET('Stock Model - CSCR'!$C$14,MATCH(AQ$16,$S$16:$BT$16,0),1,1,18)),OFFSET(AQ$10,2,-18+1,1,18)) -> 2175.54 | AR18: =SUMPRODUCT(OFFSET('Stock Model - CSCR'!$C$14,MATCH(AR$16,$S$16:$BT$16,0),1,1,18)/SUM(OFFSET('Stock Model - CSCR'!$C$14,MATCH(AR$16,$S$16:$BT$16,0),1,1,18)),OFFSET(AR$10,2,-18+1,1,18)) -> 2175.54 | AS18: =SUMPRODUCT(OFFSET('Stock Model - CSCR'!$C$14,MATCH(AS$16,$S$16:$BT$16,0),1,1,18)/SUM(OFFSET('Stock Model - CSCR'!$C$14,MATCH(AS$16,$S$16:$BT$16,0),1,1,18)),OFFSET(AS$10,2,-18+1,1,18)) -> 2175.54 | AT18: =SUMPRODUCT(OFFSET('Stock Model - CSCR'!$C$14,MATCH(AT$16,$S$16:$BT$16,0),1,1,18)/SUM(OFFSET('Stock Model - CSCR'!$C$14,MATCH(AT$16,$S$16:$BT$16,0),1,1,18)),OFFSET(AT$10,2,-18+1,1,18)) -> 2175.54 | AU18: =SUMPRODUCT(OFFSET('Stock Model - CSCR'!$C$14,MATCH(AU$16,$S$16:$BT$16,0),1,1,18)/SUM(OFFSET('Stock Model - CSCR'!$C$14,MATCH(AU$16,$S$16:$BT$16,0),1,1,18)),OFFSET(AU$10,2,-18+1,1,18)) -> 2175.54 | AV18: =SUMPRODUCT(OFFSET('Stock Model - CSCR'!$C$14,MATCH(AV$16,$S$16:$BT$16,0),1,1,18)/SUM(OFFSET('Stock Model - CSCR'!$C$14,MATCH(AV$16,$S$16:$BT$16,0),1,1,18)),OFFSET(AV$10,2,-18+1,1,18)) -> 2175.54 | AW18: =SUMPRODUCT(OFFSET('Stock Model - CSCR'!$C$14,MATCH(AW$16,$S$16:$BT$16,0),1,1,18)/SUM(OFFSET('Stock Model - CSCR'!$C$14,MATCH(AW$16,$S$16:$BT$16,0),1,1,18)),OFFSET(AW$10,2,-18+1,1,18)) -> 2175.54 | AX18: =SUMPRODUCT(OFFSET('Stock Model - CSCR'!$C$14,MATCH(AX$16,$S$16:$BT$16,0),1,1,18)/SUM(OFFSET('Stock Model - CSCR'!$C$14,MATCH(AX$16,$S$16:$BT$16,0),1,1,18)),OFFSET(AX$10,2,-18+1,1,18)) -> 2175.54 | AY18: =SUMPRODUCT(OFFSET('Stock Model - CSCR'!$C$14,MATCH(AY$16,$S$16:$BT$16,0),1,1,18)/SUM(OFFSET('Stock Model - CSCR'!$C$14,MATCH(AY$16,$S$16:$BT$16,0),1,1,18)),OFFSET(AY$10,2,-18+1,1,18)) -> 2175.54 | AZ18: =SUMPRODUCT(OFFSET('Stock Model - CSCR'!$C$14,MATCH(AZ$16,$S$16:$BT$16,0),1,1,18)/SUM(OFFSET('Stock Model - CSCR'!$C$14,MATCH(AZ$16,$S$16:$BT$16,0),1,1,18)),OFFSET(AZ$10,2,-18+1,1,18)) -> 2175.54 | BA18: =SUMPRODUCT(OFFSET('Stock Model - CSCR'!$C$14,MATCH(BA$16,$S$16:$BT$16,0),1,1,18)/SUM(OFFSET('Stock Model - CSCR'!$C$14,MATCH(BA$16,$S$16:$BT$16,0),1,1,18)),OFFSET(BA$10,2,-18+1,1,18)) -> 2143.784463 | BB18: =SUMPRODUCT(OFFSET('Stock Model - CSCR'!$C$14,MATCH(BB$16,$S$16:$BT$16,0),1,1,18)/SUM(OFFSET('Stock Model - CSCR'!$C$14,MATCH(BB$16,$S$16:$BT$16,0),1,1,18)),OFFSET(BB$10,2,-18+1,1,18)) -> 2112.598445 | BC18: =SUMPRODUCT(OFFSET('Stock Model - CSCR'!$C$14,MATCH(BC$16,$S$16:$BT$16,0),1,1,18)/SUM(OFFSET('Stock Model - CSCR'!$C$14,MATCH(BC$16,$S$16:$BT$16,0),1,1,18)),OFFSET(BC$10,2,-18+1,1,18)) -> 2081.971733 | BD18: =SUMPRODUCT(OFFSET('Stock Model - CSCR'!$C$14,MATCH(BD$16,$S$16:$BT$16,0),1,1,18)/SUM(OFFSET('Stock Model - CSCR'!$C$14,MATCH(BD$16,$S$16:$BT$16,0),1,1,18)),OFFSET(BD$10,2,-18+1,1,18)) -> 2051.894295 | BE18: =SUMPRODUCT(OFFSET('Stock Model - CSCR'!$C$14,MATCH(BE$16,$S$16:$BT$16,0),1,1,18)/SUM(OFFSET('Stock Model - CSCR'!$C$14,MATCH(BE$16,$S$16:$BT$16,0),1,1,18)),OFFSET(BE$10,2,-18+1,1,18)) -> 2022.356281 | BF18: =SUMPRODUCT(OFFSET('Stock Model - CSCR'!$C$14,MATCH(BF$16,$S$16:$BT$16,0),1,1,18)/SUM(OFFSET('Stock Model - CSCR'!$C$14,MATCH(BF$16,$S$16:$BT$16,0),1,1,18)),OFFSET(BF$10,2,-18+1,1,18)) -> 1993.348016 | BG18: =SUMPRODUCT(OFFSET('Stock Model - CSCR'!$C$14,MATCH(BG$16,$S$16:$BT$16,0),1,1,18)/SUM(OFFSET('Stock Model - CSCR'!$C$14,MATCH(BG$16,$S$16:$BT$16,0),1,1,18)),OFFSET(BG$10,2,-18+1,1,18)) -> 1964.86 | BH18: =SUMPRODUCT(OFFSET('Stock Model - CSCR'!$C$14,MATCH(BH$16,$S$16:$BT$16,0),1,1,18)/SUM(OFFSET('Stock Model - CSCR'!$C$14,MATCH(BH$16,$S$16:$BT$16,0),1,1,18)),OFFSET(BH$10,2,-18+1,1,18)) -> 1964.86 | BI18: =SUMPRODUCT(OFFSET('Stock Model - CSCR'!$C$14,MATCH(BI$16,$S$16:$BT$16,0),1,1,18)/SUM(OFFSET('Stock Model - CSCR'!$C$14,MATCH(BI$16,$S$16:$BT$16,0),1,1,18)),OFFSET(BI$10,2,-18+1,1,18)) -> 1964.86 | BJ18: =SUMPRODUCT(OFFSET('Stock Model - CSCR'!$C$14,MATCH(BJ$16,$S$16:$BT$16,0),1,1,18)/SUM(OFFSET('Stock Model - CSCR'!$C$14,MATCH(BJ$16,$S$16:$BT$16,0),1,1,18)),OFFSET(BJ$10,2,-18+1,1,18)) -> 1964.86 | BK18: =SUMPRODUCT(OFFSET('Stock Model - CSCR'!$C$14,MATCH(BK$16,$S$16:$BT$16,0),1,1,18)/SUM(OFFSET('Stock Model - CSCR'!$C$14,MATCH(BK$16,$S$16:$BT$16,0),1,1,18)),OFFSET(BK$10,2,-18+1,1,18)) -> 1964.86 | BL18: =SUMPRODUCT(OFFSET('Stock Model - CSCR'!$C$14,MATCH(BL$16,$S$16:$BT$16,0),1,1,18)/SUM(OFFSET('Stock Model - CSCR'!$C$14,MATCH(BL$16,$S$16:$BT$16,0),1,1,18)),OFFSET(BL$10,2,-18+1,1,18)) -> 1964.86 | BM18: =SUMPRODUCT(OFFSET('Stock Model - CSCR'!$C$14,MATCH(BM$16,$S$16:$BT$16,0),1,1,18)/SUM(OFFSET('Stock Model - CSCR'!$C$14,MATCH(BM$16,$S$16:$BT$16,0),1,1,18)),OFFSET(BM$10,2,-18+1,1,18)) -> 1964.86 | BN18: =SUMPRODUCT(OFFSET('Stock Model - CSCR'!$C$14,MATCH(BN$16,$S$16:$BT$16,0),1,1,18)/SUM(OFFSET('Stock Model - CSCR'!$C$14,MATCH(BN$16,$S$16:$BT$16,0),1,1,18)),OFFSET(BN$10,2,-18+1,1,18)) -> 1964.86 | BO18: =SUMPRODUCT(OFFSET('Stock Model - CSCR'!$C$14,MATCH(BO$16,$S$16:$BT$16,0),1,1,18)/SUM(OFFSET('Stock Model - CSCR'!$C$14,MATCH(BO$16,$S$16:$BT$16,0),1,1,18)),OFFSET(BO$10,2,-18+1,1,18)) -> 1964.86 | BP18: =SUMPRODUCT(OFFSET('Stock Model - CSCR'!$C$14,MATCH(BP$16,$S$16:$BT$16,0),1,1,18)/SUM(OFFSET('Stock Model - CSCR'!$C$14,MATCH(BP$16,$S$16:$BT$16,0),1,1,18)),OFFSET(BP$10,2,-18+1,1,18)) -> 1964.86 | BQ18: =SUMPRODUCT(OFFSET('Stock Model - CSCR'!$C$14,MATCH(BQ$16,$S$16:$BT$16,0),1,1,18)/SUM(OFFSET('Stock Model - CSCR'!$C$14,MATCH(BQ$16,$S$16:$BT$16,0),1,1,18)),OFFSET(BQ$10,2,-18+1,1,18)) -> 1964.86 | BR18: =SUMPRODUCT(OFFSET('Stock Model - CSCR'!$C$14,MATCH(BR$16,$S$16:$BT$16,0),1,1,18)/SUM(OFFSET('Stock Model - CSCR'!$C$14,MATCH(BR$16,$S$16:$BT$16,0),1,1,18)),OFFSET(BR$10,2,-18+1,1,18)) -> 1964.86 | BS18: =SUMPRODUCT(OFFSET('Stock Model - CSCR'!$C$14,MATCH(BS$16,$S$16:$BT$16,0),1,1,18)/SUM(OFFSET('Stock Model - CSCR'!$C$14,MATCH(BS$16,$S$16:$BT$16,0),1,1,18)),OFFSET(BS$10,2,-18+1,1,18)) -> 1964.86 | BT18: =SUMPRODUCT(OFFSET('Stock Model - CSCR'!$C$14,MATCH(BT$16,$S$16:$BT$16,0),1,1,18)/SUM(OFFSET('Stock Model - CSCR'!$C$14,MATCH(BT$16,$S$16:$BT$16,0),1,1,18)),OFFSET(BT$10,2,-18+1,1,18)) -> 1964.86

Sheet Results - Polyphase
C2: RESULTS - Polyphase Motors
C4: NAVIGATION
C6: COMMENTS
C9: Unit Energy Consumption (kWh/year) | D9: 2005 | E9: =D9+1 -> 2006 | F9: =E9+1 -> 2007 | G9: 2008 | H9: 2009 | I9: 2010 | J9: 2011 | K9: 2012 | L9: 2013 | M9: 2014 | N9: 2015 | O9: 2016 | P9: 2017 | Q9: 2018 | R9: 2019 | S9: 2020 | T9: 2021 | U9: 2022 | V9: 2023 | W9: 2024 | X9: 2025 | Y9: 2026 | Z9: 2027 | AA9: 2028 | AB9: 2029 | AC9: 2030 | AD9: 2031 | AE9: 2032 | AF9: 2033 | AG9: 2034
C10: 6P Pre-case Shipment UEC* | D10: =D11 -> 1864.54 | E10: =E11 -> 1864.54 | F10: 1864.54 | G10: 1864.54 | H10: 1864.54 | I10: 1864.54 | J10: 1864.54 | K10: 1864.54 | L10: 1864.54 | M10: 1864.54 | N10: 1864.54 | O10: 1864.54 | P10: 1864.54 | Q10: 1864.54 | R10: 1864.54 | S10: 1864.54 | T10: 1864.54 | U10: 1864.54 | V10: 1864.54 | W10: 1864.54 | X10: 1864.54 | Y10: 1864.54 | Z10: 1864.54 | AA10: 1864.54 | AB10: 1864.54 | AC10: 1864.54 | AD10: 1864.54 | AE10: 1864.54 | AF10: 1864.54 | AG10: 1864.54
C11: ='UEC - Polyphase'!$R$9&" - "&'UEC - Polyphase'!R11 -> Market UEC (Shipment Weighted Average) - PRE-Case UEC | D11: =OFFSET('UEC - Polyphase'!$R11,0,MATCH(D$9,'UEC - Polyphase'!$S$10:$BT$10,0)) -> 1864.54 | E11: =OFFSET('UEC - Polyphase'!$R11,0,MATCH(E$9,'UEC - Polyphase'!$S$10:$BT$10,0)) -> 1864.54 | F11: =OFFSET('UEC - Polyphase'!$R11,0,MATCH(F$9,'UEC - Polyphase'!$S$10:$BT$10,0)) -> 1864.54 | G11: =OFFSET('UEC - Polyphase'!$R11,0,MATCH(G$9,'UEC - Polyphase'!$S$10:$BT$10,0)) -> 1864.54 | H11: =OFFSET('UEC - Polyphase'!$R11,0,MATCH(H$9,'UEC - Polyphase'!$S$10:$BT$10,0)) -> 1864.54 | I11: =OFFSET('UEC - Polyphase'!$R11,0,MATCH(I$9,'UEC - Polyphase'!$S$10:$BT$10,0)) -> 1864.54 | J11: =OFFSET('UEC - Polyphase'!$R11,0,MATCH(J$9,'UEC - Polyphase'!$S$10:$BT$10,0)) -> 1864.54 | K11: =OFFSET('UEC - Polyphase'!$R11,0,MATCH(K$9,'UEC - Polyphase'!$S$10:$BT$10,0)) -> 1864.54 | L11: =OFFSET('UEC - Polyphase'!$R11,0,MATCH(L$9,'UEC - Polyphase'!$S$10:$BT$10,0)) -> 1864.54 | M11: =OFFSET('UEC - Polyphase'!$R11,0,MATCH(M$9,'UEC - Polyphase'!$S$10:$BT$10,0)) -> 1864.54 | N11: =OFFSET('UEC - Polyphase'!$R11,0,MATCH(N$9,'UEC - Polyphase'!$S$10:$BT$10,0)) -> 1864.54 | O11: =OFFSET('UEC - Polyphase'!$R11,0,MATCH(O$9,'UEC - Polyphase'!$S$10:$BT$10,0)) -> 1864.54 | P11: =OFFSET('UEC - Polyphase'!$R11,0,MATCH(P$9,'UEC - Polyphase'!$S$10:$BT$10,0)) -> 1864.54 | Q11: =OFFSET('UEC - Polyphase'!$R11,0,MATCH(Q$9,'UEC - Polyphase'!$S$10:$BT$10,0)) -> 1864.54 | R11: =OFFSET('UEC - Polyphase'!$R11,0,MATCH(R$9,'UEC - Polyphase'!$S$10:$BT$10,0)) -> 1864.54 | S11: =OFFSET('UEC - Polyphase'!$R11,0,MATCH(S$9,'UEC - Polyphase'!$S$10:$BT$10,0)) -> 1864.54 | T11: =OFFSET('UEC - Polyphase'!$R11,0,MATCH(T$9,'UEC - Polyphase'!$S$10:$BT$10,0)) -> 1864.54 | U11: =OFFSET('UEC - Polyphase'!$R11,0,MATCH(U$9,'UEC - Polyphase'!$S$10:$BT$10,0)) -> 1864.54 | V11: =OFFSET('UEC - Polyphase'!$R11,0,MATCH(V$9,'UEC - Polyphase'!$S$10:$BT$10,0)) -> 1864.54 | W11: =OFFSET('UEC - Polyphase'!$R11,0,MATCH(W$9,'UEC - Polyphase'!$S$10:$BT$10,0)) -> 1864.54 | X11: =OFFSET('UEC - Polyphase'!$R11,0,MATCH(X$9,'UEC - Polyphase'!$S$10:$BT$10,0)) -> 1864.54 | Y11: =OFFSET('UEC - Polyphase'!$R11,0,MATCH(Y$9,'UEC - Polyphase'!$S$10:$BT$10,0)) -> 1864.54 | Z11: =OFFSET('UEC - Polyphase'!$R11,0,MATCH(Z$9,'UEC - Polyphase'!$S$10:$BT$10,0)) -> 1864.54 | AA11: =OFFSET('UEC - Polyphase'!$R11,0,MATCH(AA$9,'UEC - Polyphase'!$S$10:$BT$10,0)) -> 1864.54 | AB11: =OFFSET('UEC - Polyphase'!$R11,0,MATCH(AB$9,'UEC - Polyphase'!$S$10:$BT$10,0)) -> 1864.54 | AC11: =OFFSET('UEC - Polyphase'!$R11,0,MATCH(AC$9,'UEC - Polyphase'!$S$10:$BT$10,0)) -> 1864.54 | AD11: =OFFSET('UEC - Polyphase'!$R11,0,MATCH(AD$9,'UEC - Polyphase'!$S$10:$BT$10,0)) -> 1864.54 | AE11: =OFFSET('UEC - Polyphase'!$R11,0,MATCH(AE$9,'UEC - Polyphase'!$S$10:$BT$10,0)) -> 1864.54 | AF11: =OFFSET('UEC - Polyphase'!$R11,0,MATCH(AF$9,'UEC - Polyphase'!$S$10:$BT$10,0)) -> 1864.54 | AG11: =OFFSET('UEC - Polyphase'!$R11,0,MATCH(AG$9,'UEC - Polyphase'!$S$10:$BT$10,0)) -> 1864.54
C12: ='UEC - Polyphase'!$R$9&" - "&'UEC - Polyphase'!R12 -> Market UEC (Shipment Weighted Average) - POST-Case UEC | D12: =OFFSET('UEC - Polyphase'!$R12,0,MATCH(D$9,'UEC - Polyphase'!$S$10:$BT$10,0)) -> 1864.54 | E12: =OFFSET('UEC - Polyphase'!$R12,0,MATCH(E$9,'UEC - Polyphase'!$S$10:$BT$10,0)) -> 1864.54 | F12: =OFFSET('UEC - Polyphase'!$R12,0,MATCH(F$9,'UEC - Polyphase'!$S$10:$BT$10,0)) -> 1864.54 | G12: =OFFSET('UEC - Polyphase'!$R12,0,MATCH(G$9,'UEC - Polyphase'!$S$10:$BT$10,0)) -> 1864.54 | H12: =OFFSET('UEC - Polyphase'!$R12,0,MATCH(H$9,'UEC - Polyphase'!$S$10:$BT$10,0)) -> 1864.54 | I12: =OFFSET('UEC - Polyphase'!$R12,0,MATCH(I$9,'UEC - Polyphase'!$S$10:$BT$10,0)) -> 1864.54 | J12: =OFFSET('UEC - Polyphase'!$R12,0,MATCH(J$9,'UEC - Polyphase'!$S$10:$BT$10,0)) -> 1864.54 | K12: =OFFSET('UEC - Polyphase'!$R12,0,MATCH(K$9,'UEC - Polyphase'!$S$10:$BT$10,0)) -> 1864.54 | L12: =OFFSET('UEC - Polyphase'!$R12,0,MATCH(L$9,'UEC - Polyphase'!$S$10:$BT$10,0)) -> 1864.54 | M12: =OFFSET('UEC - Polyphase'!$R12,0,MATCH(M$9,'UEC - Polyphase'!$S$10:$BT$10,0)) -> 1864.54 | N12: =OFFSET('UEC - Polyphase'!$R12,0,MATCH(N$9,'UEC - Polyphase'!$S$10:$BT$10,0)) -> 1676.95 | O12: =OFFSET('UEC - Polyphase'!$R12,0,MATCH(O$9,'UEC - Polyphase'!$S$10:$BT$10,0)) -> 1676.95 | P12: =OFFSET('UEC - Polyphase'!$R12,0,MATCH(P$9,'UEC - Polyphase'!$S$10:$BT$10,0)) -> 1676.95 | Q12: =OFFSET('UEC - Polyphase'!$R12,0,MATCH(Q$9,'UEC - Polyphase'!$S$10:$BT$10,0)) -> 1676.95 | R12: =OFFSET('UEC - Polyphase'!$R12,0,MATCH(R$9,'UEC - Polyphase'!$S$10:$BT$10,0)) -> 1676.95 | S12: =OFFSET('UEC - Polyphase'!$R12,0,MATCH(S$9,'UEC - Polyphase'!$S$10:$BT$10,0)) -> 1676.95 | T12: =OFFSET('UEC - Polyphase'!$R12,0,MATCH(T$9,'UEC - Polyphase'!$S$10:$BT$10,0)) -> 1676.95 | U12: =OFFSET('UEC - Polyphase'!$R12,0,MATCH(U$9,'UEC - Polyphase'!$S$10:$BT$10,0)) -> 1676.95 | V12: =OFFSET('UEC - Polyphase'!$R12,0,MATCH(V$9,'UEC - Polyphase'!$S$10:$BT$10,0)) -> 1676.95 | W12: =OFFSET('UEC - Polyphase'!$R12,0,MATCH(W$9,'UEC - Polyphase'!$S$10:$BT$10,0)) -> 1676.95 | X12: =OFFSET('UEC - Polyphase'!$R12,0,MATCH(X$9,'UEC - Polyphase'!$S$10:$BT$10,0)) -> 1676.95 | Y12: =OFFSET('UEC - Polyphase'!$R12,0,MATCH(Y$9,'UEC - Polyphase'!$S$10:$BT$10,0)) -> 1676.95 | Z12: =OFFSET('UEC - Polyphase'!$R12,0,MATCH(Z$9,'UEC - Polyphase'!$S$10:$BT$10,0)) -> 1676.95 | AA12: =OFFSET('UEC - Polyphase'!$R12,0,MATCH(AA$9,'UEC - Polyphase'!$S$10:$BT$10,0)) -> 1676.95 | AB12: =OFFSET('UEC - Polyphase'!$R12,0,MATCH(AB$9,'UEC - Polyphase'!$S$10:$BT$10,0)) -> 1676.95 | AC12: =OFFSET('UEC - Polyphase'!$R12,0,MATCH(AC$9,'UEC - Polyphase'!$S$10:$BT$10,0)) -> 1676.95 | AD12: =OFFSET('UEC - Polyphase'!$R12,0,MATCH(AD$9,'UEC - Polyphase'!$S$10:$BT$10,0)) -> 1676.95 | AE12: =OFFSET('UEC - Polyphase'!$R12,0,MATCH(AE$9,'UEC - Polyphase'!$S$10:$BT$10,0)) -> 1676.95 | AF12: =OFFSET('UEC - Polyphase'!$R12,0,MATCH(AF$9,'UEC - Polyphase'!$S$10:$BT$10,0)) -> 1676.95 | AG12: =OFFSET('UEC - Polyphase'!$R12,0,MATCH(AG$9,'UEC - Polyphase'!$S$10:$BT$10,0)) -> 1676.95
C13: ='UEC - Polyphase'!$R$15&" - "&'UEC - Polyphase'!R17 -> Installed UEC (Vintage Weighted Average) - PRE-Case UEC | D13: =OFFSET('UEC - Polyphase'!$R17,0,MATCH(D$9,'UEC - Polyphase'!$S$10:$BT$10,0)) -> 1864.54 | E13: =OFFSET('UEC - Polyphase'!$R17,0,MATCH(E$9,'UEC - Polyphase'!$S$10:$BT$10,0)) -> 1864.54 | F13: =OFFSET('UEC - Polyphase'!$R17,0,MATCH(F$9,'UEC - Polyphase'!$S$10:$BT$10,0)) -> 1864.54 | G13: =OFFSET('UEC - Polyphase'!$R17,0,MATCH(G$9,'UEC - Polyphase'!$S$10:$BT$10,0)) -> 1864.54 | H13: =OFFSET('UEC - Polyphase'!$R17,0,MATCH(H$9,'UEC - Polyphase'!$S$10:$BT$10,0)) -> 1864.54 | I13: =OFFSET('UEC - Polyphase'!$R17,0,MATCH(I$9,'UEC - Polyphase'!$S$10:$BT$10,0)) -> 1864.54 | J13: =OFFSET('UEC - Polyphase'!$R17,0,MATCH(J$9,'UEC - Polyphase'!$S$10:$BT$10,0)) -> 1864.54 | K13: =OFFSET('UEC - Polyphase'!$R17,0,MATCH(K$9,'UEC - Polyphase'!$S$10:$BT$10,0)) -> 1864.54 | L13: =OFFSET('UEC - Polyphase'!$R17,0,MATCH(L$9,'UEC - Polyphase'!$S$10:$BT$10,0)) -> 1864.54 | M13: =OFFSET('UEC - Polyphase'!$R17,0,MATCH(M$9,'UEC - Polyphase'!$S$10:$BT$10,0)) -> 1864.54 | N13: =OFFSET('UEC - Polyphase'!$R17,0,MATCH(N$9,'UEC - Polyphase'!$S$10:$BT$10,0)) -> 1864.54 | O13: =OFFSET('UEC - Polyphase'!$R17,0,MATCH(O$9,'UEC - Polyphase'!$S$10:$BT$10,0)) -> 1864.54 | P13: =OFFSET('UEC - Polyphase'!$R17,0,MATCH(P$9,'UEC - Polyphase'!$S$10:$BT$10,0)) -> 1864.54 | Q13: =OFFSET('UEC - Polyphase'!$R17,0,MATCH(Q$9,'UEC - Polyphase'!$S$10:$BT$10,0)) -> 1864.54 | R13: =OFFSET('UEC - Polyphase'!$R17,0,MATCH(R$9,'UEC - Polyphase'!$S$10:$BT$10,0)) -> 1864.54 | S13: =OFFSET('UEC - Polyphase'!$R17,0,MATCH(S$9,'UEC - Polyphase'!$S$10:$BT$10,0)) -> 1864.54 | T13: =OFFSET('UEC - Polyphase'!$R17,0,MATCH(T$9,'UEC - Polyphase'!$S$10:$BT$10,0)) -> 1864.54 | U13: =OFFSET('UEC - Polyphase'!$R17,0,MATCH(U$9,'UEC - Polyphase'!$S$10:$BT$10,0)) -> 1864.54 | V13: =OFFSET('UEC - Polyphase'!$R17,0,MATCH(V$9,'UEC - Polyphase'!$S$10:$BT$10,0)) -> 1864.54 | W13: =OFFSET('UEC - Polyphase'!$R17,0,MATCH(W$9,'UEC - Polyphase'!$S$10:$BT$10,0)) -> 1864.54 | X13: =OFFSET('UEC - Polyphase'!$R17,0,MATCH(X$9,'UEC - Polyphase'!$S$10:$BT$10,0)) -> 1864.54 | Y13: =OFFSET('UEC - Polyphase'!$R17,0,MATCH(Y$9,'UEC - Polyphase'!$S$10:$BT$10,0)) -> 1864.54 | Z13: =OFFSET('UEC - Polyphase'!$R17,0,MATCH(Z$9,'UEC - Polyphase'!$S$10:$BT$10,0)) -> 1864.54 | AA13: =OFFSET('UEC - Polyphase'!$R17,0,MATCH(AA$9,'UEC - Polyphase'!$S$10:$BT$10,0)) -> 1864.54 | AB13: =OFFSET('UEC - Polyphase'!$R17,0,MATCH(AB$9,'UEC - Polyphase'!$S$10:$BT$10,0)) -> 1864.54 | AC13: =OFFSET('UEC - Polyphase'!$R17,0,MATCH(AC$9,'UEC - Polyphase'!$S$10:$BT$10,0)) -> 1864.54 | AD13: =OFFSET('UEC - Polyphase'!$R17,0,MATCH(AD$9,'UEC - Polyphase'!$S$10:$BT$10,0)) -> 1864.54 | AE13: =OFFSET('UEC - Polyphase'!$R17,0,MATCH(AE$9,'UEC - Polyphase'!$S$10:$BT$10,0)) -> 1864.54 | AF13: =OFFSET('UEC - Polyphase'!$R17,0,MATCH(AF$9,'UEC - Polyphase'!$S$10:$BT$10,0)) -> 1864.54 | AG13: =OFFSET('UEC - Polyphase'!$R17,0,MATCH(AG$9,'UEC - Polyphase'!$S$10:$BT$10,0)) -> 1864.54
C14: ='UEC - Polyphase'!$R$15&" - "&'UEC - Polyphase'!R18 -> Installed UEC (Vintage Weighted Average) - POST-Case UEC | D14: =OFFSET('UEC - Polyphase'!$R18,0,MATCH(D$9,'UEC - Polyphase'!$S$10:$BT$10,0)) -> 1864.54 | E14: =OFFSET('UEC - Polyphase'!$R18,0,MATCH(E$9,'UEC - Polyphase'!$S$10:$BT$10,0)) -> 1864.54 | F14: =OFFSET('UEC - Polyphase'!$R18,0,MATCH(F$9,'UEC - Polyphase'!$S$10:$BT$10,0)) -> 1864.54 | G14: =OFFSET('UEC - Polyphase'!$R18,0,MATCH(G$9,'UEC - Polyphase'!$S$10:$BT$10,0)) -> 1864.54 | H14: =OFFSET('UEC - Polyphase'!$R18,0,MATCH(H$9,'UEC - Polyphase'!$S$10:$BT$10,0)) -> 1864.54 | I14: =OFFSET('UEC - Polyphase'!$R18,0,MATCH(I$9,'UEC - Polyphase'!$S$10:$BT$10,0)) -> 1864.54 | J14: =OFFSET('UEC - Polyphase'!$R18,0,MATCH(J$9,'UEC - Polyphase'!$S$10:$BT$10,0)) -> 1864.54 | K14: =OFFSET('UEC - Polyphase'!$R18,0,MATCH(K$9,'UEC - Polyphase'!$S$10:$BT$10,0)) -> 1864.54 | L14: =OFFSET('UEC - Polyphase'!$R18,0,MATCH(L$9,'UEC - Polyphase'!$S$10:$BT$10,0)) -> 1864.54 | M14: =OFFSET('UEC - Polyphase'!$R18,0,MATCH(M$9,'UEC - Polyphase'!$S$10:$BT$10,0)) -> 1864.54 | N14: =OFFSET('UEC - Polyphase'!$R18,0,MATCH(N$9,'UEC - Polyphase'!$S$10:$BT$10,0)) -> 1842.156328 | O14: =OFFSET('UEC - Polyphase'!$R18,0,MATCH(O$9,'UEC - Polyphase'!$S$10:$BT$10,0)) -> 1820.174096 | P14: =OFFSET('UEC - Polyphase'!$R18,0,MATCH(P$9,'UEC - Polyphase'!$S$10:$BT$10,0)) -> 1798.586105 | Q14: =OFFSET('UEC - Polyphase'!$R18,0,MATCH(Q$9,'UEC - Polyphase'!$S$10:$BT$10,0)) -> 1777.385282 | R14: =OFFSET('UEC - Polyphase'!$R18,0,MATCH(R$9,'UEC - Polyphase'!$S$10:$BT$10,0)) -> 1756.564686 | S14: =OFFSET('UEC - Polyphase'!$R18,0,MATCH(S$9,'UEC - Polyphase'!$S$10:$BT$10,0)) -> 1736.117497 | T14: =OFFSET('UEC - Polyphase'!$R18,0,MATCH(T$9,'UEC - Polyphase'!$S$10:$BT$10,0)) -> 1716.037018 | U14: =OFFSET('UEC - Polyphase'!$R18,0,MATCH(U$9,'UEC - Polyphase'!$S$10:$BT$10,0)) -> 1696.316672 | V14: =OFFSET('UEC - Polyphase'!$R18,0,MATCH(V$9,'UEC - Polyphase'!$S$10:$BT$10,0)) -> 1676.95 | W14: =OFFSET('UEC - Polyphase'!$R18,0,MATCH(W$9,'UEC - Polyphase'!$S$10:$BT$10,0)) -> 1676.95 | X14: =OFFSET('UEC - Polyphase'!$R18,0,MATCH(X$9,'UEC - Polyphase'!$S$10:$BT$10,0)) -> 1676.95 | Y14: =OFFSET('UEC - Polyphase'!$R18,0,MATCH(Y$9,'UEC - Polyphase'!$S$10:$BT$10,0)) -> 1676.95 | Z14: =OFFSET('UEC - Polyphase'!$R18,0,MATCH(Z$9,'UEC - Polyphase'!$S$10:$BT$10,0)) -> 1676.95 | AA14: =OFFSET('UEC - Polyphase'!$R18,0,MATCH(AA$9,'UEC - Polyphase'!$S$10:$BT$10,0)) -> 1676.95 | AB14: =OFFSET('UEC - Polyphase'!$R18,0,MATCH(AB$9,'UEC - Polyphase'!$S$10:$BT$10,0)) -> 1676.95 | AC14: =OFFSET('UEC - Polyphase'!$R18,0,MATCH(AC$9,'UEC - Polyphase'!$S$10:$BT$10,0)) -> 1676.95 | AD14: =OFFSET('UEC - Polyphase'!$R18,0,MATCH(AD$9,'UEC - Polyphase'!$S$10:$BT$10,0)) -> 1676.95 | AE14: =OFFSET('UEC - Polyphase'!$R18,0,MATCH(AE$9,'UEC - Polyphase'!$S$10:$BT$10,0)) -> 1676.95 | AF14: =OFFSET('UEC - Polyphase'!$R18,0,MATCH(AF$9,'UEC - Polyphase'!$S$10:$BT$10,0)) -> 1676.95 | AG14: =OFFSET('UEC - Polyphase'!$R18,0,MATCH(AG$9,'UEC - Polyphase'!$S$10:$BT$10,0)) -> 1676.95
C16: Stock and Shipments | D16: 2005 | E16: =D16+1 -> 2006 | F16: =E16+1 -> 2007 | G16: 2008 | H16: 2009 | I16: 2010 | J16: 2011 | K16: 2012 | L16: 2013 | M16: 2014 | N16: 2015 | O16: 2016 | P16: 2017 | Q16: 2018 | R16: 2019 | S16: 2020 | T16: 2021 | U16: 2022 | V16: 2023 | W16: 2024 | X16: 2025 | Y16: 2026 | Z16: 2027 | AA16: 2028 | AB16: 2029 | AC16: 2030 | AD16: 2031 | AE16: 2032 | AF16: 2033 | AG16: 2034
C17: 6P Shipments* | D17: =D20 -> 28414.67074 | E17: =E20 -> 28933.57982 | F17: 29461.96522 | G17: 30000 | H17: 30547.86038 | I17: 31105.72579 | J17: 31673.77895 | K17: 32252.2059 | L17: 32841.1961 | M17: 33440.94244 | N17: 34051.64135 | O17: 34673.49286 | P17: 35306.70062 | Q17: 35951.47203 | R17: 36608.01827 | S17: 37276.55437 | T17: 37957.29927 | U17: 38650.47595 | V17: 39356.31144 | W17: 40075.03689 | X17: 40806.88772 | Y17: 41552.10362 | Z17: 42310.92867 | AA17: 43083.61138 | AB17: 43870.40484 | AC17: 44671.56673 | AD17: 45487.35945 | AE17: 46318.05018 | AF17: 47163.911 | AG17: 48025.21894
C18: Replacement Shipments | D18: =TRANSPOSE('Stock Model - Polyphase'!Z39:Z68) -> 24143.86242 | E18: 24584.77794 | F18: 25033.74546 | G18: 25490.91204 | H18: 25956.4274 | I18: 26430.44401 | J18: 26913.11711 | K18: 27404.60479 | L18: 27905.06803 | M18: 28414.67074 | N18: 28933.57982 | O18: 29461.96522 | P18: 30000 | Q18: 30547.86038 | R18: 31105.72579 | S18: 31673.77895 | T18: 32252.2059 | U18: 32841.1961 | V18: 33440.94244 | W18: 34051.64135 | X18: 34673.49286 | Y18: 35306.70062 | Z18: 35951.47203 | AA18: 36608.01827 | AB18: 37276.55437 | AC18: 37957.29927 | AD18: 38650.47595 | AE18: 39356.31144 | AF18: 40075.03689 | AG18: 40806.88772
C19: Net New Shipments | D19: =TRANSPOSE('Stock Model - Polyphase'!AA39:AA68) -> 4270.808323 | E19: 4348.801878 | F19: 4428.219753 | G19: 4509.087959 | H19: 4591.43298 | I19: 4675.281787 | J19: 4760.661843 | K19: 4847.601109 | L19: 4936.128062 | M19: 5026.271695 | N19: 5118.061533 | O19: 5211.527637 | P19: 5306.700621 | Q19: 5403.611655 | R19: 5502.292479 | S19: 5602.775414 | T19: 5705.09337 | U19: 5809.279857 | V19: 5915.369 | W19: 6023.395543 | X19: 6133.394869 | Y19: 6245.403004 | Z19: 6359.456633 | AA19: 6475.59311 | AB19: 6593.850473 | AC19: 6714.267454 | AD19: 6836.883492 | AE19: 6961.738745 | AF19: 7088.874106 | AG19: 7218.331214
C20: Total Model Shipments | D20: =TRANSPOSE('Stock Model - Polyphase'!AC39:AC68) -> 28414.67074 | E20: 28933.57982 | F20: 29461.96522 | G20: 30000 | H20: 30547.86038 | I20: 31105.72579 | J20: 31673.77895 | K20: 32252.2059 | L20: 32841.1961 | M20: 33440.94244 | N20: 34051.64135 | O20: 34673.49286 | P20: 35306.70062 | Q20: 35951.47203 | R20: 36608.01827 | S20: 37276.55437 | T20: 37957.29927 | U20: 38650.47595 | V20: 39356.31144 | W20: 40075.03689 | X20: 40806.88772 | Y20: 41552.10362 | Z20: 42310.92867 | AA20: 43083.61138 | AB20: 43870.40484 | AC20: 44671.56673 | AD20: 45487.35945 | AE20: 46318.05018 | AF20: 47163.911 | AG20: 48025.21894
C21: Model Installed Stock | D21: =TRANSPOSE('Stock Model - Polyphase'!Y39:Y68) -> 238133.7675 | E21: 242482.5694 | F21: 246910.7892 | G21: 251419.8771 | H21: 256011.3101 | I21: 260686.5919 | J21: 265447.2537 | K21: 270294.8548 | L21: 275230.9829 | M21: 280257.2546 | N21: 285375.3161 | O21: 290586.8438 | P21: 295893.5444 | Q21: 301297.156 | R21: 306799.4485 | S21: 312402.2239 | T21: 318107.3173 | U21: 323916.5972 | V21: 329831.9662 | W21: 335855.3617 | X21: 341988.7566 | Y21: 348234.1596 | Z21: 354593.6162 | AA21: 361069.2093 | AB21: 367663.0598 | AC21: 374377.3272 | AD21: 381214.2107 | AE21: 388175.9495 | AF21: 395264.8236 | AG21: 402483.1548
C25: First Year Energy Consumption | D25: 2005 | E25: =D25+1 -> 2006 | F25: =E25+1 -> 2007 | G25: 2008 | H25: 2009 | I25: 2010 | J25: 2011 | K25: 2012 | L25: 2013 | M25: 2014 | N25: 2015 | O25: 2016 | P25: 2017 | Q25: 2018 | R25: 2019 | S25: 2020 | T25: 2021 | U25: 2022 | V25: 2023 | W25: 2024 | X25: 2025 | Y25: 2026 | Z25: 2027 | AA25: 2028 | AB25: 2029 | AC25: 2030 | AD25: 2031 | AE25: 2032 | AF25: 2033 | AG25: 2034
C26: 6P Shipments * 6P UEC* | D26: =D27 -> 52980290.18 | E26: =E27 -> 53947816.91 | F26: 54933012.63 | G26: 55936200 | H26: 56957707.59 | I26: 57997869.97 | J26: 59057027.81 | K26: 60135528 | L26: 61233723.77 | M26: 62351974.81 | N26: 63490647.36 | O26: 64650114.37 | P26: 65830755.58 | Q26: 67032957.67 | R26: 68257114.39 | S26: 69503626.68 | T26: 70772902.79 | U26: 72065358.44 | V26: 73381416.92 | W26: 74721509.29 | X26: 76086074.44 | Y26: 77475559.29 | Z26: 78890418.94 | AA26: 80331116.77 | AB26: 81798124.64 | AC26: 83291923.03 | AD26: 84813001.18 | AE26: 86361857.28 | AF26: 87938998.61 | AG26: 89544941.72
C27: Model Shipments * Model Pre-Case UEC | D27: =D11*D20 -> 52980290.18 | E27: 53947816.91 | F27: 54933012.63 | G27: 55936200 | H27: 56957707.59 | I27: 57997869.97 | J27: 59057027.81 | K27: 60135528 | L27: 61233723.77 | M27: 62351974.81 | N27: 63490647.36 | O27: 64650114.37 | P27: 65830755.58 | Q27: 67032957.67 | R27: 68257114.39 | S27: 69503626.68 | T27: 70772902.79 | U27: 72065358.44 | V27: 73381416.92 | W27: 74721509.29 | X27: 76086074.44 | Y27: 77475559.29 | Z27: 78890418.94 | AA27: 80331116.77 | AB27: 81798124.64 | AC27: 83291923.03 | AD27: 84813001.18 | AE27: 86361857.28 | AF27: 87938998.61 | AG27: 89544941.72
C28: Model Shipments * Model Post-Case UEC | D28: =D12*D20 -> 52980290.18 | E28: 53947816.91 | F28: 54933012.63 | G28: 55936200 | H28: 56957707.59 | I28: 57997869.97 | J28: 59057027.81 | K28: 60135528 | L28: 61233723.77 | M28: 62351974.81 | N28: 57102899.96 | O28: 58145713.84 | P28: 59207571.61 | Q28: 60288821.03 | R28: 61389816.24 | S28: 62510917.84 | T28: 63652493.02 | U28: 64814915.65 | V28: 65998566.46 | W28: 67203833.12 | X28: 68431110.37 | Y28: 69680800.17 | Z28: 70953311.83 | AA28: 72249062.11 | AB28: 73568475.4 | AC28: 74911983.82 | AD28: 76280027.42 | AE28: 77673054.25 | AF28: 79091520.55 | AG28: 80535890.9
C30: Total Energy Consumption (kWh) | D30: 2005 | E30: =D30+1 -> 2006 | F30: =E30+1 -> 2007 | G30: 2008 | H30: 2009 | I30: 2010 | J30: 2011 | K30: 2012 | L30: 2013 | M30: 2014 | N30: 2015 | O30: 2016 | P30: 2017 | Q30: 2018 | R30: 2019 | S30: 2020 | T30: 2021 | U30: 2022 | V30: 2023 | W30: 2024 | X30: 2025 | Y30: 2026 | Z30: 2027 | AA30: 2028 | AB30: 2029 | AC30: 2030 | AD30: 2031 | AE30: 2032 | AF30: 2033 | AG30: 2034
C31: Modeled Pre-case Consumption (Installed UEC * Stock) | D31: =D13*D21 -> 444009934.9 | E31: 452118450 | F31: 460375042.8 | G31: 468782417.7 | H31: 477343328.1 | I31: 486060578 | J31: 494937022.5 | K31: 503975568.6 | L31: 513179176.9 | M31: 522550861.5 | N31: 532093691.9 | O31: 541810793.7 | P31: 551705349.3 | Q31: 561780599.3 | R31: 572039843.7 | S31: 582486442.6 | T31: 593123817.4 | U31: 603955452.1 | V31: 614984894.2 | W31: 626215756.1 | X31: 637651716.2 | Y31: 649296519.9 | Z31: 661153981.2 | AA31: 673227983.5 | AB31: 685522481.5 | AC31: 698041501.7 | AD31: 710789144.5 | AE31: 723769584.9 | AF31: 736987074.2 | AG31: 750445941.5
C32: Modeled Post-case Consumption (Installed UEC* Stock) | D32: =D14*D21 -> 444009934.9 | E32: 452118450 | F32: 460375042.8 | G32: 468782417.7 | H32: 477343328.1 | I32: 486060578 | J32: 494937022.5 | K32: 503975568.6 | L32: 513179176.9 | M32: 522550861.5 | N32: 525705944.5 | O32: 528918645.7 | P32: 532190017.4 | Q32: 535521130.8 | R32: 538913077.1 | S32: 542366967.1 | T32: 545883932.1 | U32: 549465124 | V32: 553111715.7 | W32: 563212648.8 | X32: 573498045.3 | Y32: 583971273.9 | Z32: 594635764.7 | AA32: 605495010.6 | AB32: 616552568.1 | AC32: 627812058.9 | AD32: 639277170.7 | AE32: 650951658.5 | AF32: 662839345.9 | AG32: 674944126.5
C36: Total Energy Consumption (aMW) | D36: 2005 | E36: =D36+1 -> 2006 | F36: 2007 | G36: 2008 | H36: 2009 | I36: 2010 | J36: 2011 | K36: 2012 | L36: 2013 | M36: 2014 | N36: 2015 | O36: 2016 | P36: 2017 | Q36: 2018 | R36: 2019 | S36: 2020 | T36: 2021 | U36: 2022 | V36: 2023 | W36: 2024 | X36: 2025 | Y36: 2026 | Z36: 2027 | AA36: 2028 | AB36: 2029 | AC36: 2030 | AD36: 2031 | AE36: 2032 | AF36: 2033 | AG36: 2034
C37: =C31 -> Modeled Pre-case Consumption (Installed UEC * Stock) | D37: =D31/'Product Specifications'!$D$13/('Product Specifications'!$D$10*'Product Specifications'!$D$12) -> 50.65137291 | E37: =E31/'Product Specifications'!$D$13/('Product Specifications'!$D$10*'Product Specifications'!$D$12) -> 51.57636892 | F37: =F31/'Product Specifications'!$D$13/('Product Specifications'!$D$10*'Product Specifications'!$D$12) -> 52.51825722 | G37: =G31/'Product Specifications'!$D$13/('Product Specifications'!$D$10*'Product Specifications'!$D$12) -> 53.4773463 | H37: =H31/'Product Specifications'!$D$13/('Product Specifications'!$D$10*'Product Specifications'!$D$12) -> 54.45395028 | I37: =I31/'Product Specifications'!$D$13/('Product Specifications'!$D$10*'Product Specifications'!$D$12) -> 55.44838901 | J37: =J31/'Product Specifications'!$D$13/('Product Specifications'!$D$10*'Product Specifications'!$D$12) -> 56.46098819 | K37: =K31/'Product Specifications'!$D$13/('Product Specifications'!$D$10*'Product Specifications'!$D$12) -> 57.49207947 | L37: =L31/'Product Specifications'!$D$13/('Product Specifications'!$D$10*'Product Specifications'!$D$12) -> 58.54200055 | M37: =M31/'Product Specifications'!$D$13/('Product Specifications'!$D$10*'Product Specifications'!$D$12) -> 59.61109531 | N37: =N31/'Product Specifications'!$D$13/('Product Specifications'!$D$10*'Product Specifications'!$D$12) -> 60.69971389 | O37: =O31/'Product Specifications'!$D$13/('Product Specifications'!$D$10*'Product Specifications'!$D$12) -> 61.80821283 | P37: =P31/'Product Specifications'!$D$13/('Product Specifications'!$D$10*'Product Specifications'!$D$12) -> 62.9369552 | Q37: =Q31/'Product Specifications'!$D$13/('Product Specifications'!$D$10*'Product Specifications'!$D$12) -> 64.08631067 | R37: =R31/'Product Specifications'!$D$13/('Product Specifications'!$D$10*'Product Specifications'!$D$12) -> 65.25665569 | S37: =S31/'Product Specifications'!$D$13/('Product Specifications'!$D$10*'Product Specifications'!$D$12) -> 66.44837356 | T37: =T31/'Product Specifications'!$D$13/('Product Specifications'!$D$10*'Product Specifications'!$D$12) -> 67.6618546 | U37: =U31/'Product Specifications'!$D$13/('Product Specifications'!$D$10*'Product Specifications'!$D$12) -> 68.89749624 | V37: =V31/'Product Specifications'!$D$13/('Product Specifications'!$D$10*'Product Specifications'!$D$12) -> 70.15570319 | W37: =W31/'Product Specifications'!$D$13/('Product Specifications'!$D$10*'Product Specifications'!$D$12) -> 71.43688753 | X37: =X31/'Product Specifications'!$D$13/('Product Specifications'!$D$10*'Product Specifications'!$D$12) -> 72.74146888 | Y37: =Y31/'Product Specifications'!$D$13/('Product Specifications'!$D$10*'Product Specifications'!$D$12) -> 74.0698745 | Z37: =Z31/'Product Specifications'!$D$13/('Product Specifications'!$D$10*'Product Specifications'!$D$12) -> 75.42253949 | AA37: =AA31/'Product Specifications'!$D$13/('Product Specifications'!$D$10*'Product Specifications'!$D$12) -> 76.79990686 | AB37: =AB31/'Product Specifications'!$D$13/('Product Specifications'!$D$10*'Product Specifications'!$D$12) -> 78.20242773 | AC37: =AC31/'Product Specifications'!$D$13/('Product Specifications'!$D$10*'Product Specifications'!$D$12) -> 79.63056146 | AD37: =AD31/'Product Specifications'!$D$13/('Product Specifications'!$D$10*'Product Specifications'!$D$12) -> 81.08477578 | AE37: =AE31/'Product Specifications'!$D$13/('Product Specifications'!$D$10*'Product Specifications'!$D$12) -> 82.56554698 | AF37: =AF31/'Product Specifications'!$D$13/('Product Specifications'!$D$10*'Product Specifications'!$D$12) -> 84.07336005 | AG37: =AG31/'Product Specifications'!$D$13/('Product Specifications'!$D$10*'Product Specifications'!$D$12) -> 85.60870881
C38: =C32 -> Modeled Post-case Consumption (Installed UEC* Stock) | D38: =D32/'Product Specifications'!$D$13/('Product Specifications'!$D$10*'Product Specifications'!$D$12) -> 50.65137291 | E38: =E32/'Product Specifications'!$D$13/('Product Specifications'!$D$10*'Product Specifications'!$D$12) -> 51.57636892 | F38: =F32/'Product Specifications'!$D$13/('Product Specifications'!$D$10*'Product Specifications'!$D$12) -> 52.51825722 | G38: =G32/'Product Specifications'!$D$13/('Product Specifications'!$D$10*'Product Specifications'!$D$12) -> 53.4773463 | H38: =H32/'Product Specifications'!$D$13/('Product Specifications'!$D$10*'Product Specifications'!$D$12) -> 54.45395028 | I38: =I32/'Product Specifications'!$D$13/('Product Specifications'!$D$10*'Product Specifications'!$D$12) -> 55.44838901 | J38: =J32/'Product Specifications'!$D$13/('Product Specifications'!$D$10*'Product Specifications'!$D$12) -> 56.46098819 | K38: =K32/'Product Specifications'!$D$13/('Product Specifications'!$D$10*'Product Specifications'!$D$12) -> 57.49207947 | L38: =L32/'Product Specifications'!$D$13/('Product Specifications'!$D$10*'Product Specifications'!$D$12) -> 58.54200055 | M38: =M32/'Product Specifications'!$D$13/('Product Specifications'!$D$10*'Product Specifications'!$D$12) -> 59.61109531 | N38: =N32/'Product Specifications'!$D$13/('Product Specifications'!$D$10*'Product Specifications'!$D$12) -> 59.97101808 | O38: =O32/'Product Specifications'!$D$13/('Product Specifications'!$D$10*'Product Specifications'!$D$12) -> 60.33751377 | P38: =P32/'Product Specifications'!$D$13/('Product Specifications'!$D$10*'Product Specifications'!$D$12) -> 60.71070241 | Q38: =Q32/'Product Specifications'!$D$13/('Product Specifications'!$D$10*'Product Specifications'!$D$12) -> 61.09070623 | R38: =R32/'Product Specifications'!$D$13/('Product Specifications'!$D$10*'Product Specifications'!$D$12) -> 61.47764968 | S38: =S32/'Product Specifications'!$D$13/('Product Specifications'!$D$10*'Product Specifications'!$D$12) -> 61.87165949 | T38: =T32/'Product Specifications'!$D$13/('Product Specifications'!$D$10*'Product Specifications'!$D$12) -> 62.27286472 | U38: =U32/'Product Specifications'!$D$13/('Product Specifications'!$D$10*'Product Specifications'!$D$12) -> 62.68139676 | V38: =V32/'Product Specifications'!$D$13/('Product Specifications'!$D$10*'Product Specifications'!$D$12) -> 63.09738942 | W38: =W32/'Product Specifications'!$D$13/('Product Specifications'!$D$10*'Product Specifications'!$D$12) -> 64.24967474 | X38: =X32/'Product Specifications'!$D$13/('Product Specifications'!$D$10*'Product Specifications'!$D$12) -> 65.42300312 | Y38: =Y32/'Product Specifications'!$D$13/('Product Specifications'!$D$10*'Product Specifications'!$D$12) -> 66.61775883 | Z38: =Z32/'Product Specifications'!$D$13/('Product Specifications'!$D$10*'Product Specifications'!$D$12) -> 67.83433319 | AA38: =AA32/'Product Specifications'!$D$13/('Product Specifications'!$D$10*'Product Specifications'!$D$12) -> 69.07312464 | AB38: =AB32/'Product Specifications'!$D$13/('Product Specifications'!$D$10*'Product Specifications'!$D$12) -> 70.33453891 | AC38: =AC32/'Product Specifications'!$D$13/('Product Specifications'!$D$10*'Product Specifications'!$D$12) -> 71.61898915 | AD38: =AD32/'Product Specifications'!$D$13/('Product Specifications'!$D$10*'Product Specifications'!$D$12) -> 72.92689604 | AE38: =AE32/'Product Specifications'!$D$13/('Product Specifications'!$D$10*'Product Specifications'!$D$12) -> 74.25868794 | AF38: =AF32/'Product Specifications'!$D$13/('Product Specifications'!$D$10*'Product Specifications'!$D$12) -> 75.61480104 | AG38: =AG32/'Product Specifications'!$D$13/('Product Specifications'!$D$10*'Product Specifications'!$D$12) -> 76.99567949
C40: Savings (aMW) | D40: 2005 | E40: =D40+1 -> 2006 | F40: 2007 | G40: 2008 | H40: 2009 | I40: 2010 | J40: 2011 | K40: 2012 | L40: 2013 | M40: 2014 | N40: 2015 | O40: 2016 | P40: 2017 | Q40: 2018 | R40: 2019 | S40: 2020 | T40: 2021 | U40: 2022 | V40: 2023 | W40: 2024 | X40: 2025 | Y40: 2026 | Z40: 2027 | AA40: 2028 | AB40: 2029 | AC40: 2030 | AD40: 2031 | AE40: 2032 | AF40: 2033 | AG40: 2034
C41: Incremental Savings | D41: =IF(AND(D40>=StandardYear,(D40-StandardYear)<PolyphaseLife), (D11-D12)*D20/'Constants & Menus'!$D$12/('Constants & Menus'!$D$11*'Constants & Menus'!$D$9), (D11-D12)*D19/'Constants & Menus'!$D$12/('Constants & Menus'!$D$11*'Constants & Menus'!$D$9)) -> 0 | E41: =IF(AND(E40>=StandardYear,(E40-StandardYear)<PolyphaseLife), (E11-E12)*E20/'Constants & Menus'!$D$12/('Constants & Menus'!$D$11*'Constants & Menus'!$D$9), (E11-E12)*E19/'Constants & Menus'!$D$12/('Constants & Menus'!$D$11*'Constants & Menus'!$D$9)) -> 0 | F41: =IF(AND(F40>=StandardYear,(F40-StandardYear)<PolyphaseLife), (F11-F12)*F20/'Constants & Menus'!$D$12/('Constants & Menus'!$D$11*'Constants & Menus'!$D$9), (F11-F12)*F19/'Constants & Menus'!$D$12/('Constants & Menus'!$D$11*'Constants & Menus'!$D$9)) -> 0 | G41: =IF(AND(G40>=StandardYear,(G40-StandardYear)<PolyphaseLife), (G11-G12)*G20/'Constants & Menus'!$D$12/('Constants & Menus'!$D$11*'Constants & Menus'!$D$9), (G11-G12)*G19/'Constants & Menus'!$D$12/('Constants & Menus'!$D$11*'Constants & Menus'!$D$9)) -> 0 | H41: =IF(AND(H40>=StandardYear,(H40-StandardYear)<PolyphaseLife), (H11-H12)*H20/'Constants & Menus'!$D$12/('Constants & Menus'!$D$11*'Constants & Menus'!$D$9), (H11-H12)*H19/'Constants & Menus'!$D$12/('Constants & Menus'!$D$11*'Constants & Menus'!$D$9)) -> 0 | I41: =IF(AND(I40>=StandardYear,(I40-StandardYear)<PolyphaseLife), (I11-I12)*I20/'Constants & Menus'!$D$12/('Constants & Menus'!$D$11*'Constants & Menus'!$D$9), (I11-I12)*I19/'Constants & Menus'!$D$12/('Constants & Menus'!$D$11*'Constants & Menus'!$D$9)) -> 0 | J41: =IF(AND(J40>=StandardYear,(J40-StandardYear)<PolyphaseLife), (J11-J12)*J20/'Constants & Menus'!$D$12/('Constants & Menus'!$D$11*'Constants & Menus'!$D$9), (J11-J12)*J19/'Constants & Menus'!$D$12/('Constants & Menus'!$D$11*'Constants & Menus'!$D$9)) -> 0 | K41: =IF(AND(K40>=StandardYear,(K40-StandardYear)<PolyphaseLife), (K11-K12)*K20/'Constants & Menus'!$D$12/('Constants & Menus'!$D$11*'Constants & Menus'!$D$9), (K11-K12)*K19/'Constants & Menus'!$D$12/('Constants & Menus'!$D$11*'Constants & Menus'!$D$9)) -> 0 | L41: =IF(AND(L40>=StandardYear,(L40-StandardYear)<PolyphaseLife), (L11-L12)*L20/'Constants & Menus'!$D$12/('Constants & Menus'!$D$11*'Constants & Menus'!$D$9), (L11-L12)*L19/'Constants & Menus'!$D$12/('Constants & Menus'!$D$11*'Constants & Menus'!$D$9)) -> 0 | M41: =IF(AND(M40>=StandardYear,(M40-StandardYear)<PolyphaseLife), (M11-M12)*M20/'Constants & Menus'!$D$12/('Constants & Menus'!$D$11*'Constants & Menus'!$D$9), (M11-M12)*M19/'Constants & Menus'!$D$12/('Constants & Menus'!$D$11*'Constants & Menus'!$D$9)) -> 0 | N41: =IF(AND(N40>=StandardYear,(N40-StandardYear)<PolyphaseLife), (N11-N12)*N20/'Constants & Menus'!$D$12/('Constants & Menus'!$D$11*'Constants & Menus'!$D$9), (N11-N12)*N19/'Constants & Menus'!$D$12/('Constants & Menus'!$D$11*'Constants & Menus'!$D$9)) -> 0.7286958021 | O41: =IF(AND(O40>=StandardYear,(O40-StandardYear)<PolyphaseLife), (O11-O12)*O20/'Constants & Menus'!$D$12/('Constants & Menus'!$D$11*'Constants & Menus'!$D$9), (O11-O12)*O19/'Constants & Menus'!$D$12/('Constants & Menus'!$D$11*'Constants & Menus'!$D$9)) -> 0.742003254 | P41: =IF(AND(P40>=StandardYear,(P40-StandardYear)<PolyphaseLife), (P11-P12)*P20/'Constants & Menus'!$D$12/('Constants & Menus'!$D$11*'Constants & Menus'!$D$9), (P11-P12)*P19/'Constants & Menus'!$D$12/('Constants & Menus'!$D$11*'Constants & Menus'!$D$9)) -> 0.7555537268 | Q41: =IF(AND(Q40>=StandardYear,(Q40-StandardYear)<PolyphaseLife), (Q11-Q12)*Q20/'Constants & Menus'!$D$12/('Constants & Menus'!$D$11*'Constants & Menus'!$D$9), (Q11-Q12)*Q19/'Constants & Menus'!$D$12/('Constants & Menus'!$D$11*'Constants & Menus'!$D$9)) -> 0.7693516586 | R41: =IF(AND(R40>=StandardYear,(R40-StandardYear)<PolyphaseLife), (R11-R12)*R20/'Constants & Menus'!$D$12/('Constants & Menus'!$D$11*'Constants & Menus'!$D$9), (R11-R12)*R19/'Constants & Menus'!$D$12/('Constants & Menus'!$D$11*'Constants & Menus'!$D$9)) -> 0.7834015683 | S41: =IF(AND(S40>=StandardYear,(S40-StandardYear)<PolyphaseLife), (S11-S12)*S20/'Constants & Menus'!$D$12/('Constants & Menus'!$D$11*'Constants & Menus'!$D$9), (S11-S12)*S19/'Constants & Menus'!$D$12/('Constants & Menus'!$D$11*'Constants & Menus'!$D$9)) -> 0.7977080577 | T41: =IF(AND(T40>=StandardYear,(T40-StandardYear)<PolyphaseLife), (T11-T12)*T20/'Constants & Menus'!$D$12/('Constants & Menus'!$D$11*'Constants & Menus'!$D$9), (T11-T12)*T19/'Constants & Menus'!$D$12/('Constants & Menus'!$D$11*'Constants & Menus'!$D$9)) -> 0.8122758123 | U41: =IF(AND(U40>=StandardYear,(U40-StandardYear)<PolyphaseLife), (U11-U12)*U20/'Constants & Menus'!$D$12/('Constants & Menus'!$D$11*'Constants & Menus'!$D$9), (U11-U12)*U19/'Constants & Menus'!$D$12/('Constants & Menus'!$D$11*'Constants & Menus'!$D$9)) -> 0.8271096035 | V41: =IF(AND(V40>=StandardYear,(V40-StandardYear)<PolyphaseLife), (V11-V12)*V20/'Constants & Menus'!$D$12/('Constants & Menus'!$D$11*'Constants & Menus'!$D$9), (V11-V12)*V19/'Constants & Menus'!$D$12/('Constants & Menus'!$D$11*'Constants & Menus'!$D$9)) -> 0.8422142895 | W41: =IF(AND(W40>=StandardYear,(W40-StandardYear)<PolyphaseLife), (W11-W12)*W20/'Constants & Menus'!$D$12/('Constants & Menus'!$D$11*'Constants & Menus'!$D$9), (W11-W12)*W19/'Constants & Menus'!$D$12/('Constants & Menus'!$D$11*'Constants & Menus'!$D$9)) -> 0.1288990155 | X41: =IF(AND(X40>=StandardYear,(X40-StandardYear)<PolyphaseLife), (X11-X12)*X20/'Constants & Menus'!$D$12/('Constants & Menus'!$D$11*'Constants & Menus'!$D$9), (X11-X12)*X19/'Constants & Menus'!$D$12/('Constants & Menus'!$D$11*'Constants & Menus'!$D$9)) -> 0.131252971 | Y41: =IF(AND(Y40>=StandardYear,(Y40-StandardYear)<PolyphaseLife), (Y11-Y12)*Y20/'Constants & Menus'!$D$12/('Constants & Menus'!$D$11*'Constants & Menus'!$D$9), (Y11-Y12)*Y19/'Constants & Menus'!$D$12/('Constants & Menus'!$D$11*'Constants & Menus'!$D$9)) -> 0.1336499144 | Z41: =IF(AND(Z40>=StandardYear,(Z40-StandardYear)<PolyphaseLife), (Z11-Z12)*Z20/'Constants & Menus'!$D$12/('Constants & Menus'!$D$11*'Constants & Menus'!$D$9), (Z11-Z12)*Z19/'Constants & Menus'!$D$12/('Constants & Menus'!$D$11*'Constants & Menus'!$D$9)) -> 0.1360906308 | AA41: =IF(AND(AA40>=StandardYear,(AA40-StandardYear)<PolyphaseLife), (AA11-AA12)*AA20/'Constants & Menus'!$D$12/('Constants & Menus'!$D$11*'Constants & Menus'!$D$9), (AA11-AA12)*AA19/'Constants & Menus'!$D$12/('Constants & Menus'!$D$11*'Constants & Menus'!$D$9)) -> 0.1385759196 | AB41: =IF(AND(AB40>=StandardYear,(AB40-StandardYear)<PolyphaseLife), (AB11-AB12)*AB20/'Constants & Menus'!$D$12/('Constants & Menus'!$D$11*'Constants & Menus'!$D$9), (AB11-AB12)*AB19/'Constants & Menus'!$D$12/('Constants & Menus'!$D$11*'Constants & Menus'!$D$9)) -> 0.1411065948 | AC41: =IF(AND(AC40>=StandardYear,(AC40-StandardYear)<PolyphaseLife), (AC11-AC12)*AC20/'Constants & Menus'!$D$12/('Constants & Menus'!$D$11*'Constants & Menus'!$D$9), (AC11-AC12)*AC19/'Constants & Menus'!$D$12/('Constants & Menus'!$D$11*'Constants & Menus'!$D$9)) -> 0.1436834853 | AD41: =IF(AND(AD40>=StandardYear,(AD40-StandardYear)<PolyphaseLife), (AD11-AD12)*AD20/'Constants & Menus'!$D$12/('Constants & Menus'!$D$11*'Constants & Menus'!$D$9), (AD11-AD12)*AD19/'Constants & Menus'!$D$12/('Constants & Menus'!$D$11*'Constants & Menus'!$D$9)) -> 0.1463074349 | AE41: =IF(AND(AE40>=StandardYear,(AE40-StandardYear)<PolyphaseLife), (AE11-AE12)*AE20/'Constants & Menus'!$D$12/('Constants & Menus'!$D$11*'Constants & Menus'!$D$9), (AE11-AE12)*AE19/'Constants & Menus'!$D$12/('Constants & Menus'!$D$11*'Constants & Menus'!$D$9)) -> 0.1489793031 | AF41: =IF(AND(AF40>=StandardYear,(AF40-StandardYear)<PolyphaseLife), (AF11-AF12)*AF20/'Constants & Menus'!$D$12/('Constants & Menus'!$D$11*'Constants & Menus'!$D$9), (AF11-AF12)*AF19/'Constants & Menus'!$D$12/('Constants & Menus'!$D$11*'Constants & Menus'!$D$9)) -> 0.151699965 | AG41: =IF(AND(AG40>=StandardYear,(AG40-StandardYear)<PolyphaseLife), (AG11-AG12)*AG20/'Constants & Menus'!$D$12/('Constants & Menus'!$D$11*'Constants & Menus'!$D$9), (AG11-AG12)*AG19/'Constants & Menus'!$D$12/('Constants & Menus'!$D$11*'Constants & Menus'!$D$9)) -> 0.1544703117
C42: Cumulative Savings | D42: =IFERROR(D41+C42,0) -> 0 | E42: =IFERROR(E41+D42,0) -> 0 | F42: 0 | G42: 0 | H42: 0 | I42: 0 | J42: 0 | K42: 0 | L42: 0 | M42: 0 | N42: 0.7286958021 | O42: 1.470699056 | P42: 2.226252783 | Q42: 2.995604441 | R42: 3.77900601 | S42: 4.576714067 | T42: 5.38898988 | U42: 6.216099483 | V42: 7.058313773 | W42: 7.187212788 | X42: 7.318465759 | Y42: 7.452115674 | Z42: 7.588206304 | AA42: 7.726782224 | AB42: 7.867888819 | AC42: 8.011572304 | AD42: 8.157879739 | AE42: 8.306859042 | AF42: 8.458559007 | AG42: 8.613029319
C43: DOE Aggregate Lifecycle Savings (formerly DOE Carbon proxy) | D43: =SUM($D$42:D42) -> 0 | E43: =SUM($D$42:E42) -> 0 | F43: =SUM($D$42:F42) -> 0 | G43: =SUM($D$42:G42) -> 0 | H43: =SUM($D$42:H42) -> 0 | I43: =SUM($D$42:I42) -> 0 | J43: =SUM($D$42:J42) -> 0 | K43: =SUM($D$42:K42) -> 0 | L43: =SUM($D$42:L42) -> 0 | M43: =SUM($D$42:M42) -> 0 | N43: =SUM($D$42:N42) -> 0.7286958021 | O43: =SUM($D$42:O42) -> 2.199394858 | P43: =SUM($D$42:P42) -> 4.425647641 | Q43: =SUM($D$42:Q42) -> 7.421252083 | R43: =SUM($D$42:R42) -> 11.20025809 | S43: =SUM($D$42:S42) -> 15.77697216 | T43: =SUM($D$42:T42) -> 21.16596204 | U43: =SUM($D$42:U42) -> 27.38206152 | V43: =SUM($D$42:V42) -> 34.4403753 | W43: =SUM($D$42:W42) -> 41.62758808 | X43: =SUM($D$42:X42) -> 48.94605384 | Y43: =SUM($D$42:Y42) -> 56.39816952 | Z43: =SUM($D$42:Z42) -> 63.98637582 | AA43: =SUM($D$42:AA42) -> 71.71315805 | AB43: =SUM($D$42:AB42) -> 79.58104686 | AC43: =SUM($D$42:AC42) -> 87.59261917 | AD43: =SUM($D$42:AD42) -> 95.75049891 | AE43: =SUM($D$42:AE42) -> 104.0573579 | AF43: =SUM($D$42:AF42) -> 112.515917 | AG43: =SUM($D$42:AG42) -> 121.1289463
C44: Check | E44: =ROUND((E42-D42-E41),3) -> 0 | F44: =ROUND((F42-E42-F41),3) -> 0 | G44: 0 | H44: 0 | I44: 0 | J44: 0 | K44: 0 | L44: 0 | M44: 0 | N44: 0 | O44: 0 | P44: 0 | Q44: 0 | R44: 0 | S44: 0 | T44: 0 | U44: 0 | V44: 0 | W44: 0 | X44: 0 | Y44: 0 | Z44: 0 | AA44: 0 | AB44: 0 | AC44: 0 | AD44: 0 | AE44: 0 | AF44: 0 | AG44: 0

Sheet Results - CSIR
C2: RESULTS - CSIR Motors
C4: NAVIGATION
C6: COMMENTS
C9: Unit Energy Consumption (kWh/year) | D9: 2005 | E9: =D9+1 -> 2006 | F9: =E9+1 -> 2007 | G9: 2008 | H9: 2009 | I9: 2010 | J9: 2011 | K9: 2012 | L9: 2013 | M9: 2014 | N9: 2015 | O9: 2016 | P9: 2017 | Q9: 2018 | R9: 2019 | S9: 2020 | T9: 2021 | U9: 2022 | V9: 2023 | W9: 2024 | X9: 2025 | Y9: 2026 | Z9: 2027 | AA9: 2028 | AB9: 2029 | AC9: 2030 | AD9: 2031 | AE9: 2032 | AF9: 2033 | AG9: 2034
C10: 6P Pre-case Shipment UEC* | D10: =D11 -> 1187.08 | E10: =E11 -> 1187.08 | F10: 1187.08 | G10: 1187.08 | H10: 1187.08 | I10: 1187.08 | J10: 1187.08 | K10: 1187.08 | L10: 1187.08 | M10: 1187.08 | N10: 1187.08 | O10: 1187.08 | P10: 1187.08 | Q10: 1187.08 | R10: 1187.08 | S10: 1187.08 | T10: 1187.08 | U10: 1187.08 | V10: 1187.08 | W10: 1187.08 | X10: 1187.08 | Y10: 1187.08 | Z10: 1187.08 | AA10: 1187.08 | AB10: 1187.08 | AC10: 1187.08 | AD10: 1187.08 | AE10: 1187.08 | AF10: 1187.08 | AG10: 1187.08
C11: ='UEC - Polyphase'!$R$9&" - "&'UEC - Polyphase'!R11 -> Market UEC (Shipment Weighted Average) - PRE-Case UEC | D11: =OFFSET('UEC - CSIR'!$R11,0,MATCH(D$9,'UEC - CSIR'!$S$10:$BT$10,0)) -> 1187.08 | E11: =OFFSET('UEC - CSIR'!$R11,0,MATCH(E$9,'UEC - CSIR'!$S$10:$BT$10,0)) -> 1187.08 | F11: =OFFSET('UEC - CSIR'!$R11,0,MATCH(F$9,'UEC - CSIR'!$S$10:$BT$10,0)) -> 1187.08 | G11: =OFFSET('UEC - CSIR'!$R11,0,MATCH(G$9,'UEC - CSIR'!$S$10:$BT$10,0)) -> 1187.08 | H11: =OFFSET('UEC - CSIR'!$R11,0,MATCH(H$9,'UEC - CSIR'!$S$10:$BT$10,0)) -> 1187.08 | I11: =OFFSET('UEC - CSIR'!$R11,0,MATCH(I$9,'UEC - CSIR'!$S$10:$BT$10,0)) -> 1187.08 | J11: =OFFSET('UEC - CSIR'!$R11,0,MATCH(J$9,'UEC - CSIR'!$S$10:$BT$10,0)) -> 1187.08 | K11: =OFFSET('UEC - CSIR'!$R11,0,MATCH(K$9,'UEC - CSIR'!$S$10:$BT$10,0)) -> 1187.08 | L11: =OFFSET('UEC - CSIR'!$R11,0,MATCH(L$9,'UEC - CSIR'!$S$10:$BT$10,0)) -> 1187.08 | M11: =OFFSET('UEC - CSIR'!$R11,0,MATCH(M$9,'UEC - CSIR'!$S$10:$BT$10,0)) -> 1187.08 | N11: =OFFSET('UEC - CSIR'!$R11,0,MATCH(N$9,'UEC - CSIR'!$S$10:$BT$10,0)) -> 1187.08 | O11: =OFFSET('UEC - CSIR'!$R11,0,MATCH(O$9,'UEC - CSIR'!$S$10:$BT$10,0)) -> 1187.08 | P11: =OFFSET('UEC - CSIR'!$R11,0,MATCH(P$9,'UEC - CSIR'!$S$10:$BT$10,0)) -> 1187.08 | Q11: =OFFSET('UEC - CSIR'!$R11,0,MATCH(Q$9,'UEC - CSIR'!$S$10:$BT$10,0)) -> 1187.08 | R11: =OFFSET('UEC - CSIR'!$R11,0,MATCH(R$9,'UEC - CSIR'!$S$10:$BT$10,0)) -> 1187.08 | S11: =OFFSET('UEC - CSIR'!$R11,0,MATCH(S$9,'UEC - CSIR'!$S$10:$BT$10,0)) -> 1187.08 | T11: =OFFSET('UEC - CSIR'!$R11,0,MATCH(T$9,'UEC - CSIR'!$S$10:$BT$10,0)) -> 1187.08 | U11: =OFFSET('UEC - CSIR'!$R11,0,MATCH(U$9,'UEC - CSIR'!$S$10:$BT$10,0)) -> 1187.08 | V11: =OFFSET('UEC - CSIR'!$R11,0,MATCH(V$9,'UEC - CSIR'!$S$10:$BT$10,0)) -> 1187.08 | W11: =OFFSET('UEC - CSIR'!$R11,0,MATCH(W$9,'UEC - CSIR'!$S$10:$BT$10,0)) -> 1187.08 | X11: =OFFSET('UEC - CSIR'!$R11,0,MATCH(X$9,'UEC - CSIR'!$S$10:$BT$10,0)) -> 1187.08 | Y11: =OFFSET('UEC - CSIR'!$R11,0,MATCH(Y$9,'UEC - CSIR'!$S$10:$BT$10,0)) -> 1187.08 | Z11: =OFFSET('UEC - CSIR'!$R11,0,MATCH(Z$9,'UEC - CSIR'!$S$10:$BT$10,0)) -> 1187.08 | AA11: =OFFSET('UEC - CSIR'!$R11,0,MATCH(AA$9,'UEC - CSIR'!$S$10:$BT$10,0)) -> 1187.08 | AB11: =OFFSET('UEC - CSIR'!$R11,0,MATCH(AB$9,'UEC - CSIR'!$S$10:$BT$10,0)) -> 1187.08 | AC11: =OFFSET('UEC - CSIR'!$R11,0,MATCH(AC$9,'UEC - CSIR'!$S$10:$BT$10,0)) -> 1187.08 | AD11: =OFFSET('UEC - CSIR'!$R11,0,MATCH(AD$9,'UEC - CSIR'!$S$10:$BT$10,0)) -> 1187.08 | AE11: =OFFSET('UEC - CSIR'!$R11,0,MATCH(AE$9,'UEC - CSIR'!$S$10:$BT$10,0)) -> 1187.08 | AF11: =OFFSET('UEC - CSIR'!$R11,0,MATCH(AF$9,'UEC - CSIR'!$S$10:$BT$10,0)) -> 1187.08 | AG11: =OFFSET('UEC - CSIR'!$R11,0,MATCH(AG$9,'UEC - CSIR'!$S$10:$BT$10,0)) -> 1187.08
C12: ='UEC - Polyphase'!$R$9&" - "&'UEC - Polyphase'!R12 -> Market UEC (Shipment Weighted Average) - POST-Case UEC | D12: =OFFSET('UEC - CSIR'!$R12,0,MATCH(D$9,'UEC - CSIR'!$S$10:$BT$10,0)) -> 1187.08 | E12: =OFFSET('UEC - CSIR'!$R12,0,MATCH(E$9,'UEC - CSIR'!$S$10:$BT$10,0)) -> 1187.08 | F12: =OFFSET('UEC - CSIR'!$R12,0,MATCH(F$9,'UEC - CSIR'!$S$10:$BT$10,0)) -> 1187.08 | G12: =OFFSET('UEC - CSIR'!$R12,0,MATCH(G$9,'UEC - CSIR'!$S$10:$BT$10,0)) -> 1187.08 | H12: =OFFSET('UEC - CSIR'!$R12,0,MATCH(H$9,'UEC - CSIR'!$S$10:$BT$10,0)) -> 1187.08 | I12: =OFFSET('UEC - CSIR'!$R12,0,MATCH(I$9,'UEC - CSIR'!$S$10:$BT$10,0)) -> 1187.08 | J12: =OFFSET('UEC - CSIR'!$R12,0,MATCH(J$9,'UEC - CSIR'!$S$10:$BT$10,0)) -> 1187.08 | K12: =OFFSET('UEC - CSIR'!$R12,0,MATCH(K$9,'UEC - CSIR'!$S$10:$BT$10,0)) -> 1187.08 | L12: =OFFSET('UEC - CSIR'!$R12,0,MATCH(L$9,'UEC - CSIR'!$S$10:$BT$10,0)) -> 1187.08 | M12: =OFFSET('UEC - CSIR'!$R12,0,MATCH(M$9,'UEC - CSIR'!$S$10:$BT$10,0)) -> 1187.08 | N12: =OFFSET('UEC - CSIR'!$R12,0,MATCH(N$9,'UEC - CSIR'!$S$10:$BT$10,0)) -> 858 | O12: =OFFSET('UEC - CSIR'!$R12,0,MATCH(O$9,'UEC - CSIR'!$S$10:$BT$10,0)) -> 858 | P12: =OFFSET('UEC - CSIR'!$R12,0,MATCH(P$9,'UEC - CSIR'!$S$10:$BT$10,0)) -> 858 | Q12: =OFFSET('UEC - CSIR'!$R12,0,MATCH(Q$9,'UEC - CSIR'!$S$10:$BT$10,0)) -> 858 | R12: =OFFSET('UEC - CSIR'!$R12,0,MATCH(R$9,'UEC - CSIR'!$S$10:$BT$10,0)) -> 858 | S12: =OFFSET('UEC - CSIR'!$R12,0,MATCH(S$9,'UEC - CSIR'!$S$10:$BT$10,0)) -> 858 | T12: =OFFSET('UEC - CSIR'!$R12,0,MATCH(T$9,'UEC - CSIR'!$S$10:$BT$10,0)) -> 858 | U12: =OFFSET('UEC - CSIR'!$R12,0,MATCH(U$9,'UEC - CSIR'!$S$10:$BT$10,0)) -> 858 | V12: =OFFSET('UEC - CSIR'!$R12,0,MATCH(V$9,'UEC - CSIR'!$S$10:$BT$10,0)) -> 858 | W12: =OFFSET('UEC - CSIR'!$R12,0,MATCH(W$9,'UEC - CSIR'!$S$10:$BT$10,0)) -> 858 | X12: =OFFSET('UEC - CSIR'!$R12,0,MATCH(X$9,'UEC - CSIR'!$S$10:$BT$10,0)) -> 858 | Y12: =OFFSET('UEC - CSIR'!$R12,0,MATCH(Y$9,'UEC - CSIR'!$S$10:$BT$10,0)) -> 858 | Z12: =OFFSET('UEC - CSIR'!$R12,0,MATCH(Z$9,'UEC - CSIR'!$S$10:$BT$10,0)) -> 858 | AA12: =OFFSET('UEC - CSIR'!$R12,0,MATCH(AA$9,'UEC - CSIR'!$S$10:$BT$10,0)) -> 858 | AB12: =OFFSET('UEC - CSIR'!$R12,0,MATCH(AB$9,'UEC - CSIR'!$S$10:$BT$10,0)) -> 858 | AC12: =OFFSET('UEC - CSIR'!$R12,0,MATCH(AC$9,'UEC - CSIR'!$S$10:$BT$10,0)) -> 858 | AD12: =OFFSET('UEC - CSIR'!$R12,0,MATCH(AD$9,'UEC - CSIR'!$S$10:$BT$10,0)) -> 858 | AE12: =OFFSET('UEC - CSIR'!$R12,0,MATCH(AE$9,'UEC - CSIR'!$S$10:$BT$10,0)) -> 858 | AF12: =OFFSET('UEC - CSIR'!$R12,0,MATCH(AF$9,'UEC - CSIR'!$S$10:$BT$10,0)) -> 858 | AG12: =OFFSET('UEC - CSIR'!$R12,0,MATCH(AG$9,'UEC - CSIR'!$S$10:$BT$10,0)) -> 858
